Workbook

Sheet Índice
A1: Índice de Contenidos
H2: Significado de los colores:
B3: Hoja | D3: Descripción | H3: Decisiones a tomar/Intervenciones
H4: Carga de Datos Externos (o vinculados)
B5: ProyDda | D5: Selección de proyección de datos de la empresa o de ASEP | H5: Cálculos
D6: Selección de Año Base
D7: Energía y cantidad de Clientes categorizados por tipo. Proyección Empresa y ASEP. | G7: Decisiones para el cálculo de los nuevos cargos y carga de inputs
B9: Asignación | D9: Porcentaje de asginación de cada componente de costos por categoría tarifaria
D10: Tablero de control de asignaciones
D11: Criterio Ingreso a Tarifa Vigente (por defecto) y Posibilidad de Asignación Económica
B13: Pérdidas | D13: Porcentaje de pérdidas reales
B15: Parámetros | D15: Parámetros característicos para las categorías tarifarias vigentes
D16: Parámetros característicos para las nuevas categorías tarifarias
B18: PremisaCosto | D18: Datos IMP
D19: Porcentajes de pérdidas permitidas
D20: Precios Energía y Potencia
D21: Costos de Conexión por categoría tarifaria
D22: Cargos Fijos de Comercialización por categorías tarifaria
D23: Ingresar la ponderación de cargos fijos
B25: DdaAñoBase | D25: Nombres de las categorías tarifarias | G25: Tipeo de datos en diseño de tarifas e ingreso de nuevas categorías
D26: Energía por tipo de cliente por categoría tarifaria
D27: Cantidad de clientes por tipo y categoría tarifaria
D28: Potencia por categoría tarifaria
D29: Carga de consumos de las nuevas categorías
B31: Diseño | D31: Criterio de Recupero por componente de costos y categoría tarifaria
D32: Cargo Relativo Intra-categoria por componente de costo y categorías tarifaria
B34: Límites | D34: Límites superiores de Bloques y Escalones de Categorías Tarifarias
D35: Punto de corte hasta donde se subsidia a determinadas subcategorías
D36: Alícuotas de subsidios a aplicar
B38: Energía | D38: Proyección de Energía y ajustes para facturación | G38: Proyección de Demanda desagregada por categoría tarifaria
B40: Clientes | D40: Proyección de cantidad de Clientes y ajustes para facturación
B42: Potencia | D42: Proyección de Potencia y ajustes para facturación
B44: AsigEco | D44: Asignación siguiendo criterios económicos
D45: Selección de ponderadores de Energía y Potencia por componente de costo | G45: Cálculos Auxiliares necesarios para tener una asignación de costos basada en criterios económicos.
B47: CIP | D47: Cálculo de porcentajes de asignación de costos de distribución por nivel de tensión
B49: AsigTV | D49: Asignación siguiendo estructura de Ingreso a Tarifa Vigente
B51: PliegoVig | D51: Pliego vigente
B53: DdaAñoBaseVig | D53: Energía por tipo de cliente por categoría tarifaria vigente para asignación de costos
D54: Cantidad de clientes por tipo y categoría tarifaria vigente para asignación de costos
D55: Potencia por categoría tarifaria vigente para asignación de costos
B57: EnergíaVig | D57: Proyección de Energía vigente y ajustes para asignación de costos
B59: ClientesVig | D59: Proyección de cantidad de Clientes vigentes y ajustes para asignación de costos
B61: PotenciaVig | D61: Proyección de Potencia vigente y ajustes para asginación
B63: ITV_CD | D63: Cálculo de Ingreso a Tarifa Vigente par asignación de costos de distribución | G63: Cálculos Auxiliares necesarios para asignación de costos siguiendo la estructura de ingresos generada por la tarifa vigente
B65: ITV_CCOMF | D65: Cálculo de Ingreso a Tarifa Vigente par asignación de costos de comercialización fijo
B67: ITV_CCOMV | D67: Cálculo de Ingreso a Tarifa Vigente par asignación de costos de comercialización variable
B69: ITV_CSERAP | D69: Cálculo de Ingreso a Tarifa Vigente par asignación de costos de servicio de alumbrado púlbico
B71: ITV_CX | D71: Cálculo de Ingreso a Tarifa Vigente par asignación de costos de conexión
B73: ITV_CCONAP | D73: Cálculo de Ingreso a Tarifa Vigente par asignación de costos de consumo de alumbrado público
B75: ITV_CENEGEN | D75: Cálculo de Ingreso a Tarifa Vigente par asignación de costos de generación de energía
B77: ITV_CPOTGEN | D77: Cálculo de Ingreso a Tarifa Vigente par asignación de costos de generación de potencia
B79: ITV_CPT | D79: Cálculo de Ingreso a Tarifa Vigente par asignación de costos por potencia de transmisión
B81: ITV_CPET | D81: Cálculo de Ingreso a Tarifa Vigente par asignación de costos de pérdida de energía en transmisión
B83: ITV_CPERDP | D83: Cálculo de Ingreso a Tarifa Vigente par asignación de costos de pérdida de potencia en distribución
B85: ITV_CPERDE | D85: Cálculo de Ingreso a Tarifa Vigente par asignación de costos de pérdida de energía en distribución

Sheet ProyDda
A1: Proyección y Selección de Consumo
A3: Selector de Fuente de Proyección:
A4: ASEP | B4: 1
A5: PROPIA | B5: Energía por tipo de Clientes (MWh/año) | I5: Cantidad de Clientes categorizados (Clientes/año)
A6: Proyección Propia | B6: =+D33 -> 2025 | C6: 2026 | D6: 2027 | E6: 2028 | F6: 2029 | G6: 2030 | I6: =+B6 -> 2025 | J6: 2026 | K6: 2027 | L6: 2028 | M6: 2029 | N6: 2030
A7: Residenciales | B7: 1669754.588 | C7: 1669235.259 | D7: 1722465.861 | E7: 1706190.091 | F7: 1763044.75 | G7: 1749721.855 | I7: 540540.6381 | J7: 555586.0663 | K7: 570987.3296 | L7: 586753.1949 | M7: 602892.452 | N7: 619411.8242
A8: Generales | B8: 3046502.982 | C8: 3067628.528 | D8: 3188061.786 | E8: 3179217.974 | F8: 3304676.946 | G8: 3290613.033 | I8: 73240.29529 | J8: 74832.19809 | K8: 76455.68078 | L8: 78109.06545 | M8: 79791.25506 | N8: 81509.6407
A9: AP | B9: 118561.4594 | C9: 117945.5983 | D9: 119603.6983 | E9: 118992.43 | F9: 120655.1432 | G9: 120048.5085 | I9: 0 | J9: 0 | K9: 0 | L9: 0 | M9: 0 | N9: 0
A10: Consumo Propio | B10: 4590.883667 | C10: 4546.487728 | D10: 4645.082937 | E10: 4551.722428 | F10: 4647.401604 | G10: 4556.896985 | I10: 104.2556874 | J10: 104.2556874 | K10: 104.2556874 | L10: 104.2556874 | M10: 104.2556874 | N10: 104.2556874
A11: Total | B11: =+SUM(B7:B10) -> 4839409.913 | C11: 4859355.874 | D11: 5034776.428 | E11: 5008952.218 | F11: 5193024.241 | G11: 5164940.294 | I11: =+SUM(I7:I10) -> 613885.1891 | J11: 630522.52 | K11: 647547.2661 | L11: 664966.516 | M11: 682787.9627 | N11: 701025.7206
A12: Crecimiento | C12: =+C11/B11-1 -> 0.004121568763 | D12: =+(D11/AVERAGE(B11:C11))-1 -> 0.03823033535 | E12: =+E11/D11-1 -> -0.005129167196 | F12: =+F11/E11-1 -> 0.03674860825 | G12: =+G11/F11-1 -> -0.005408013769 | J12: =+J11/I11-1 -> 0.02710169794 | K12: =+(K11/AVERAGE(I11:J11))-1 -> 0.04073168523 | L12: =+L11/K11-1 -> 0.02690035275 | M12: =+M11/L11-1 -> 0.02680051747 | N12: =+N11/M11-1 -> 0.02671071973
A14: Proyección ASEP | B14: =+B6 -> 2025 | C14: 2026 | D14: 2027 | E14: 2028 | F14: 2029 | G14: 2030 | I14: =+I6 -> 2025 | J14: 2026 | K14: 2027 | L14: 2028 | M14: 2029 | N14: 2030
A15: Residenciales | B15: =+B7/SUM(B$7:B$10)*B$19 -> 1669754.588 | C15: 1669235.259 | D15: 1722465.861 | E15: 1706190.091 | F15: 1763044.75 | G15: 1749721.855 | I15: =+I7/SUM(I$7:I$10)*I$19 -> 540540.6381 | J15: 557786.8063 | K15: 575576.2045 | L15: 593928.0806 | M15: 612861.7303 | N15: 632389.1217
A16: Generales | B16: 3046502.982 | C16: 3067628.528 | D16: 3188061.786 | E16: 3179217.974 | F16: 3304676.946 | G16: 3290613.033 | I16: 73240.29529 | J16: 75128.617 | K16: 77070.13496 | L16: 79064.1921 | M16: 81110.66323 | N16: 83217.34923
A17: AP | B17: =+B9/SUM(B$7:B$10)*B$19 -> 118561.4594 | C17: 117945.5983 | D17: 119603.6983 | E17: 118992.43 | F17: 120655.1432 | G17: 120048.5085 | I17: 0 | J17: 0 | K17: 0 | L17: 0 | M17: 0 | N17: 0
A18: Consumo Propio | B18: 4590.883667 | C18: 4546.487728 | D18: 4645.082937 | E18: 4551.722428 | F18: 4647.401604 | G18: 4556.896985 | I18: 104.2556874 | J18: 104.6686562 | K18: 105.093563 | L18: 105.530538 | M18: 105.9796333 | N18: 106.4399484
A19: Total | B19: 4839409.913 | C19: 4859355.874 | D19: 5034776.428 | E19: 5008952.218 | F19: 5193024.241 | G19: 5164940.294 | I19: 613885.1891 | J19: 633020.092 | K19: 652751.433 | L19: 673097.8032 | M19: 694078.3731 | N19: 715712.9109
A20: Crecimiento | C20: =+C19/B19-1 -> 0.004121568763 | D20: =+(D19/AVERAGE(B19:C19))-1 -> 0.03823033535 | E20: =+E19/D19-1 -> -0.005129167196 | F20: =+F19/E19-1 -> 0.03674860825 | G20: =+G19/F19-1 -> -0.005408013769 | J20: =+J19/I19-1 -> 0.03117016549 | K20: =+(K19/AVERAGE(I19:J19))-1 -> 0.04699441559 | L20: =+L19/K19-1 -> 0.03117016549 | M20: =+M19/L19-1 -> 0.03117016549 | N20: =+N19/M19-1 -> 0.03117016549
A22: Selección | B22: =+D35 -> 2025 | C22: 2026 | D22: 2026/2027 | E22: 2027/2028 | F22: 2028/2029 | G22: 2029/2030 | I22: =+D35 -> 2025 | J22: 2026 | K22: 2026/2027 | L22: 2027/2028 | M22: 2028/2029 | N22: 2029/2030
A23: Residenciales | B23: =+IF($B$4=1,B15,B7) -> 1669754.588 | C23: 1669235.259 | D23: =+IF($B$4=1,AVERAGE(C15:D15),AVERAGE(C7:D7)) -> 1695850.56 | E23: 1714327.976 | F23: 1734617.42 | G23: 1756383.303 | I23: =+IF($B$4=1,I15,I7) -> 540540.6381 | J23: 557786.8063 | K23: =+IF($B$4=1,AVERAGE(J15:K15),AVERAGE(J7:K7)) -> 566681.5054 | L23: 584752.1425 | M23: 603394.9054 | N23: 622625.426
A24: Generales | B24: 3046502.982 | C24: 3067628.528 | D24: 3127845.157 | E24: 3183639.88 | F24: 3241947.46 | G24: 3297644.989 | I24: 73240.29529 | J24: 75128.617 | K24: 76099.37598 | L24: 78067.16353 | M24: 80087.42767 | N24: 82164.00623
A25: AP | B25: 118561.4594 | C25: 117945.5983 | D25: 118774.6483 | E25: 119298.0641 | F25: 119823.7866 | G25: 120351.8258 | I25: 0 | J25: 0 | K25: 0 | L25: 0 | M25: 0 | N25: 0
A26: Consumo Propio | B26: 4590.883667 | C26: 4546.487728 | D26: 4595.785332 | E26: 4598.402683 | F26: 4599.562016 | G26: 4602.149295 | I26: 104.2556874 | J26: 104.6686562 | K26: 104.8811096 | L26: 105.3120505 | M26: 105.7550857 | N26: 106.2097909
A27: Total | B27: =+SUM(B23:B26) -> 4839409.913 | C27: 4859355.874 | D27: 4947066.151 | E27: 5021864.323 | F27: 5100988.229 | G27: 5178982.267 | I27: =+SUM(I23:I26) -> 613885.1891 | J27: 633020.092 | K27: 642885.7625 | L27: 662924.6181 | M27: 683588.0882 | N27: 704895.642
A28: Nota1: en el caso de la Potencia se utiliza la suministrada por la Empresa en el año base y luego se proyecto con los FC.
A29: Nota2: Esta Hoja asume que los datos de ASEP que se ingresan al modelo son totales. Luego toma la estructura porcentual de la proyección propia para los distintos tipos de clientes.
A32: Selección año base del modelo
A33: Ventana de Años Calendario del Modelo | D33: 2025 | E33: =+D33+1 -> 2026 | F33: 2027 | G33: 2028 | H33: 2029 | I33: 2030 | J33: 2031 | K33: 2032 | L33: 2033 | M33: 2034 | N33: 2035 | O33: 2036
A34: Ventana de Años Regulatorios del Modelo | F34: =+E33&"/"&F33 -> 2026/2027 | G34: 2027/2028 | H34: 2028/2029 | I34: 2029/2030 | J34: 2030/2031 | K34: 2031/2032 | L34: 2032/2033 | M34: 2033/2034 | N34: 2034/2035 | O34: 2035/2036
A35: Ventana de Años Calendario+Regulatorio | D35: =+D33 -> 2025 | E35: =+E33 -> 2026 | F35: =+F34 -> 2026/2027 | G35: =+G34 -> 2027/2028 | H35: =+H34 -> 2028/2029 | I35: =+I34 -> 2029/2030 | J35: =+J34 -> 2030/2031 | K35: 2031/2032 | L35: 2032/2033 | M35: 2033/2034 | N35: 2034/2035 | O35: 2035/2036

Sheet Asignación
A1: Asignación de Costos para Cálculo de Cargos
B4: =+IF(ROUND(B7-1,6)=0,"OK","Error") -> OK | C4: OK | D4: OK | E4: OK | F4: OK | G4: OK | H4: OK | I4: =+IF(ROUND(I7-1,15)=0,"OK","Error") -> OK | J4: =+IF(ROUND(J7-1,15)=0,"OK","Error") -> OK | K4: =+IF(ROUND(K7-1,15)=0,"OK","Error") -> OK | L4: =+IF(ROUND(L7-1,15)=0,"OK","Error") -> Error | M4: =+IF(ROUND(M7-1,15)=0,"OK","Error") -> OK | O4: 3 | P4: Ingreso a Tarifa Vigente
B5: Componentes de Costo | P5: Asignación Económica
A6: Asignación de Costos Seleccionada para cálculo tarifario | B6: CD | C6: CCOMF | D6: CCOMV | E6: CSERAP | F6: CX | G6: CCONAP | H6: CENEGEN | I6: CPOTGEN | J6: CPT | K6: CPET | L6: CPERDP | M6: CPERDE | P6: Asignación Manual
A7: =+AsigTV!A5 -> TOTAL | B7: =+SUM(B8:B19) -> 1 | C7: =+SUM(C8:C19) -> 1 | D7: 1 | E7: 1 | F7: 1 | G7: 1 | H7: 1 | I7: 1 | J7: 1 | K7: 1 | L7: 0 | M7: 1
A8: =+AsigTV!A6 -> ATH | B8: =+B23/B$35 -> 9.981289233e-08 | C8: 2.986583395e-11 | D8: =+D23/D$35 -> 2.791555501e-07 | E8: 2.802223922e-07 | F8: 5.950485226e-11 | G8: 2.793708289e-07 | H8: 2.890750914e-07 | I8: 7.914184897e-08 | J8: 9.991961649e-08 | K8: 2.797592172e-07 | L8: =+IFERROR(L23/L$35,0) -> 0 | M8: 2.833250949e-07
A9: =+AsigTV!A10 -> ATD | B9: =+B24/B$35 -> 7.643471429e-06 | C9: 1.63835432e-05 | D9: 4.938905886e-06 | E9: 4.957780786e-06 | F9: 3.264266181e-05 | G9: 4.942714665e-06 | H9: 4.839534161e-06 | I9: 5.299795009e-06 | J9: 3.111903417e-05 | K9: 4.94958615e-06 | L9: =+IFERROR(L24/L$35,0) -> 0 | M9: 5.027974951e-06
A10: =+AsigTV!A11 -> MTH | B10: =+B25/B$35 -> 0.002042534805 | C10: 9.278289772e-05 | D10: 0.002842110786 | E10: 0.002852972413 | F10: 0.000132685652 | G10: 0.002844302561 | H10: 0.003715100538 | I10: 0.0008950530237 | J10: 0.003414208421 | K10: 0.002848256781 | L10: 0 | M10: 0.002892485948
A11: =+AsigTV!A15 -> MTD | B11: =+B26/B$35 -> 0.1873344144 | C11: 0.005330931843 | D11: 0.2161589529 | E11: 0.2183472767 | F11: 0.007576128102 | G11: 0.2160596568 | H11: 0.2208443346 | I11: 0.2418475959 | J11: 0.1844998153 | K11: 0.2163600283 | L11: 0 | M11: 0.2197754414
A12: =+AsigTV!A16 -> BTH | B12: =+B27/B$35 -> 0.005457659369 | C12: 0.0002468729548 | D12: =+D27/D$35 -> 0.005117326839 | E12: 0.005136883605 | F12: 0.0004633637843 | G12: 0.005122856411 | H12: 0.006299919811 | I12: 0.001517795338 | J12: 0.006957941841 | K12: 0.005129978334 | L12: 0 | M12: 0.005140531102
A13: =+AsigTV!A20 -> BTD | B13: =+B28/B$35 -> 0.3773481068 | C13: 0.02876934484 | D13: 0.3196621671 | E13: 0.3228983244 | F13: 0.05174800258 | G13: 0.3195231583 | H13: 0.3199461552 | I13: 0.3573819214 | J13: 0.2756245441 | K13: 0.3199673674 | L13: 0 | M13: 0.3240393819
A14: =+AsigTV!A21 -> BTS | B14: =+B29/B$35 -> 0.4255755903 | C14: 0.9610017781 | D14: 0.4538437929 | E14: 0.4483710521 | F14: 0.9181546087 | G14: 0.4540511339 | H14: 0.4481072452 | I14: 0.3970404912 | J14: 0.5266848198 | K14: 0.453297877 | L14: 0 | M14: 0.4453873524
A15: =+DdaAñoBase!A193 -> BTSH | B15: =+B30/B$35 -> 0.0002444458025 | C15: 0.0001081331162 | D15: 0.0002681438808 | E15: 0.0002775181375 | F15: 8.943502236e-05 | G15: 0.0002702333472 | H15: 0.0002066983725 | I15: 0.0002572230579 | J15: 0.0003146457574 | K15: 0.0002689760121 | L15: 0 | M15: 0.0002750660805
A16: =+DdaAñoBase!A206 -> BTS Prepago | B16: =+B31/B$35 -> 0.001989505285 | C16: 0.004433772699 | D16: 0.002102287531 | E16: 0.002110734625 | F16: 0.02180313349 | G16: 0.002123436629 | H16: =+H31/H$35 -> 0.0008754176924 | I16: 0.001054541115 | J16: 0.002472805812 | K16: 0.002122286854 | L16: 0 | M16: 0.002484429909
A17: =+DdaAñoBase!A262 -> X2H | B17: =+B32/B$35 -> 0 | C17: 0 | D17: 0 | E17: 0 | F17: 0 | G17: 0 | H17: 0 | I17: 0 | J17: 0 | K17: 0 | L17: 0 | M17: 0
A18: =+DdaAñoBase!A265 -> X2D | B18: =+B33/B$35 -> 0 | C18: 0 | D18: 0 | E18: 0 | F18: 0 | G18: 0 | H18: 0 | I18: 0 | J18: 0 | K18: 0 | L18: 0 | M18: 0
A19: =+DdaAñoBase!A321 -> X3D | B19: =+B34/B$35 -> 0 | C19: 0 | D19: 0 | E19: 0 | F19: 0 | G19: 0 | H19: 0 | I19: 0 | J19: 0 | K19: 0 | L19: 0 | M19: 0
A21: Selección | B21: CD | C21: CCOMF | D21: CCOMV | E21: CSERAP | F21: CX | G21: CCONAP | H21: CENEGEN | I21: CPOTGEN | J21: CPT | K21: CPET | L21: CPERDP | M21: CPERDE | O21: Tablero de Control de Asignaciones
A22: =+A7 -> TOTAL | B22: =+SUM(B23:B34) -> 1 | C22: =+SUM(C23:C34) -> 1 | D22: 1 | E22: 1 | F22: 1 | G22: 1 | H22: 1.042487423 | I22: 0.9519525726 | J22: 1 | K22: 1 | L22: 0 | M22: 1 | O22: CD | P22: CCOMF | Q22: CCOMV | R22: CSERAP | S22: CX | T22: CCONAP | U22: CENEGEN | V22: CPOTGEN | W22: CPT | X22: CPET | Y22: CPERDP | Z22: CPERDE
A23: =+A8 -> ATH | B23: =+IF($O$4=1,B40,IF($O$4=2,B55,B70))*Asignación!O23 -> 9.981289233e-08 | C23: =+IF($O$4=1,C40,IF($O$4=2,C55,C70))*Asignación!P23 -> 2.986583395e-11 | D23: =+IF($O$4=1,D40,IF($O$4=2,D55,D70))*Asignación!Q23 -> 2.791555501e-07 | E23: =+IF($O$4=1,E40,IF($O$4=2,E55,E70))*Asignación!R23 -> 2.802223922e-07 | F23: =+IF($O$4=1,F40,IF($O$4=2,F55,F70))*Asignación!S23 -> 5.950485226e-11 | G23: =+IF($O$4=1,G40,IF($O$4=2,G55,G70))*Asignación!T23 -> 2.793708289e-07 | H23: =+IF($O$4=1,H40,IF($O$4=2,H55,H70))*Asignación!U23 -> 3.013571469e-07 | I23: =+IF($O$4=1,I40,IF($O$4=2,I55,I70))*Asignación!V23 -> 7.533928673e-08 | J23: =+IF($O$4=1,J40,IF($O$4=2,J55,J70))*Asignación!W23 -> 9.991961649e-08 | K23: =+IF($O$4=1,K40,IF($O$4=2,K55,K70))*Asignación!X23 -> 2.797592172e-07 | L23: =+IF($O$4=1,L40,IF($O$4=2,L55,L70))*Asignación!Y23 -> 0 | M23: =+IF($O$4=1,M40,IF($O$4=2,M55,M70))*Asignación!Z23 -> 2.833250949e-07 | O23: 1 | P23: 1 | Q23: 1 | R23: 1 | S23: 1 | T23: 1 | U23: 1 | V23: 0.25 | W23: 1 | X23: 1 | Y23: 1 | Z23: 1
A24: ATD | B24: =+IF($O$4=1,B41,IF($O$4=2,B56,B71))*Asignación!O24 -> 7.643471429e-06 | C24: =+IF($O$4=1,C41,IF($O$4=2,C56,C71))*Asignación!P24 -> 1.63835432e-05 | D24: =+IF($O$4=1,D41,IF($O$4=2,D56,D71))*Asignación!Q24 -> 4.938905886e-06 | E24: =+IF($O$4=1,E41,IF($O$4=2,E56,E71))*Asignación!R24 -> 4.957780786e-06 | F24: =+IF($O$4=1,F41,IF($O$4=2,F56,F71))*Asignación!S24 -> 3.264266181e-05 | G24: =+IF($O$4=1,G41,IF($O$4=2,G56,G71))*Asignación!T24 -> 4.942714665e-06 | H24: =+IF($O$4=1,H41,IF($O$4=2,H56,H71))*Asignación!U24 -> 5.045153493e-06 | I24: =+IF($O$4=1,I41,IF($O$4=2,I56,I71))*Asignación!V24 -> 5.045153493e-06 | J24: =+IF($O$4=1,J41,IF($O$4=2,J56,J71))*Asignación!W24 -> 3.111903417e-05 | K24: =+IF($O$4=1,K41,IF($O$4=2,K56,K71))*Asignación!X24 -> 4.94958615e-06 | L24: =+IF($O$4=1,L41,IF($O$4=2,L56,L71))*Asignación!Y24 -> 0 | M24: =+IF($O$4=1,M41,IF($O$4=2,M56,M71))*Asignación!Z24 -> 5.027974951e-06 | O24: 1 | P24: 1 | Q24: 1 | R24: 1 | S24: 1 | T24: 1 | U24: 1 | V24: 1 | W24: 1 | X24: 1 | Y24: 1 | Z24: 1
A25: MTH | B25: =+IF($O$4=1,B42,IF($O$4=2,B57,B72))*Asignación!O25 -> 0.002042534805 | C25: =+IF($O$4=1,C42,IF($O$4=2,C57,C72))*Asignación!P25 -> 9.278289772e-05 | D25: =+IF($O$4=1,D42,IF($O$4=2,D57,D72))*Asignación!Q25 -> 0.002842110786 | E25: =+IF($O$4=1,E42,IF($O$4=2,E57,E72))*Asignación!R25 -> 0.002852972413 | F25: =+IF($O$4=1,F42,IF($O$4=2,F57,F72))*Asignación!S25 -> 0.000132685652 | G25: =+IF($O$4=1,G42,IF($O$4=2,G57,G72))*Asignación!T25 -> 0.002844302561 | H25: =+IF($O$4=1,H42,IF($O$4=2,H57,H72))*Asignación!U25 -> 0.003872945584 | I25: =+IF($O$4=1,I42,IF($O$4=2,I57,I72))*Asignación!V25 -> 0.0008520480286 | J25: =+IF($O$4=1,J42,IF($O$4=2,J57,J72))*Asignación!W25 -> 0.003414208421 | K25: =+IF($O$4=1,K42,IF($O$4=2,K57,K72))*Asignación!X25 -> 0.002848256781 | L25: =+IF($O$4=1,L42,IF($O$4=2,L57,L72))*Asignación!Y25 -> 0 | M25: =+IF($O$4=1,M42,IF($O$4=2,M57,M72))*Asignación!Z25 -> 0.002892485948 | O25: 1 | P25: 1 | Q25: 1 | R25: 1 | S25: 1 | T25: 1 | U25: 1 | V25: 0.22 | W25: 1 | X25: 1 | Y25: 1 | Z25: 1
A26: MTD | B26: =+IF($O$4=1,B43,IF($O$4=2,B58,B73))*Asignación!O26 -> 0.1873344144 | C26: =+IF($O$4=1,C43,IF($O$4=2,C58,C73))*Asignación!P26 -> 0.005330931843 | D26: =+IF($O$4=1,D43,IF($O$4=2,D58,D73))*Asignación!Q26 -> 0.2161589529 | E26: =+IF($O$4=1,E43,IF($O$4=2,E58,E73))*Asignación!R26 -> 0.2183472767 | F26: =+IF($O$4=1,F43,IF($O$4=2,F58,F73))*Asignación!S26 -> 0.007576128102 | G26: =+IF($O$4=1,G43,IF($O$4=2,G58,G73))*Asignación!T26 -> 0.2160596568 | H26: =+IF($O$4=1,H43,IF($O$4=2,H58,H73))*Asignación!U26 -> 0.2302274411 | I26: =+IF($O$4=1,I43,IF($O$4=2,I58,I73))*Asignación!V26 -> 0.2302274411 | J26: =+IF($O$4=1,J43,IF($O$4=2,J58,J73))*Asignación!W26 -> 0.1844998153 | K26: =+IF($O$4=1,K43,IF($O$4=2,K58,K73))*Asignación!X26 -> 0.2163600283 | L26: =+IF($O$4=1,L43,IF($O$4=2,L58,L73))*Asignación!Y26 -> 0 | M26: =+IF($O$4=1,M43,IF($O$4=2,M58,M73))*Asignación!Z26 -> 0.2197754414 | O26: 1 | P26: 1 | Q26: 1 | R26: 1 | S26: 1 | T26: 1 | U26: 1 | V26: 1 | W26: 1 | X26: 1 | Y26: 1 | Z26: 1
A27: BTH | B27: =+IF($O$4=1,B44,IF($O$4=2,B59,B74))*Asignación!O27 -> 0.005457659369 | C27: =+IF($O$4=1,C44,IF($O$4=2,C59,C74))*Asignación!P27 -> 0.0002468729548 | D27: =+IF($O$4=1,D44,IF($O$4=2,D59,D74))*Asignación!Q27 -> 0.005117326839 | E27: =+IF($O$4=1,E44,IF($O$4=2,E59,E74))*Asignación!R27 -> 0.005136883605 | F27: =+IF($O$4=1,F44,IF($O$4=2,F59,F74))*Asignación!S27 -> 0.0004633637843 | G27: =+IF($O$4=1,G44,IF($O$4=2,G59,G74))*Asignación!T27 -> 0.005122856411 | H27: =+IF($O$4=1,H44,IF($O$4=2,H59,H74))*Asignación!U27 -> 0.006567587166 | I27: =+IF($O$4=1,I44,IF($O$4=2,I59,I74))*Asignación!V27 -> 0.001444869177 | J27: =+IF($O$4=1,J44,IF($O$4=2,J59,J74))*Asignación!W27 -> 0.006957941841 | K27: =+IF($O$4=1,K44,IF($O$4=2,K59,K74))*Asignación!X27 -> 0.005129978334 | L27: =+IF($O$4=1,L44,IF($O$4=2,L59,L74))*Asignación!Y27 -> 0 | M27: =+IF($O$4=1,M44,IF($O$4=2,M59,M74))*Asignación!Z27 -> 0.005140531102 | O27: 1 | P27: 1 | Q27: 1 | R27: 1 | S27: 1 | T27: 1 | U27: 1 | V27: 0.22 | W27: 1 | X27: 1 | Y27: 1 | Z27: 1
A28: BTD | B28: =+IF($O$4=1,B45,IF($O$4=2,B60,B75))*Asignación!O28 -> 0.3773481068 | C28: =+IF($O$4=1,C45,IF($O$4=2,C60,C75))*Asignación!P28 -> 0.02876934484 | D28: =+IF($O$4=1,D45,IF($O$4=2,D60,D75))*Asignación!Q28 -> 0.3196621671 | E28: =+IF($O$4=1,E45,IF($O$4=2,E60,E75))*Asignación!R28 -> 0.3228983244 | F28: =+IF($O$4=1,F45,IF($O$4=2,F60,F75))*Asignación!S28 -> 0.05174800258 | G28: =+IF($O$4=1,G45,IF($O$4=2,G60,G75))*Asignación!T28 -> 0.3195231583 | H28: =+IF($O$4=1,H45,IF($O$4=2,H60,H75))*Asignación!U28 -> 0.3335398426 | I28: =+IF($O$4=1,I45,IF($O$4=2,I60,I75))*Asignación!V28 -> 0.3402106395 | J28: =+IF($O$4=1,J45,IF($O$4=2,J60,J75))*Asignación!W28 -> 0.2756245441 | K28: =+IF($O$4=1,K45,IF($O$4=2,K60,K75))*Asignación!X28 -> 0.3199673674 | L28: =+IF($O$4=1,L45,IF($O$4=2,L60,L75))*Asignación!Y28 -> 0 | M28: =+IF($O$4=1,M45,IF($O$4=2,M60,M75))*Asignación!Z28 -> 0.3240393819 | O28: 1 | P28: 1 | Q28: 1 | R28: 1 | S28: 1 | T28: 1 | U28: 1 | V28: 1.02 | W28: 1 | X28: 1 | Y28: 1 | Z28: 1
A29: BTS | B29: =+IF($O$4=1,B46,IF($O$4=2,B61,B76))*Asignación!O29 -> 0.4255755903 | C29: =+IF($O$4=1,C46,IF($O$4=2,C61,C76))*Asignación!P29 -> 0.9610017781 | D29: =+IF($O$4=1,D46,IF($O$4=2,D61,D76))*Asignación!Q29 -> 0.4538437929 | E29: =+IF($O$4=1,E46,IF($O$4=2,E61,E76))*Asignación!R29 -> 0.4483710521 | F29: =+IF($O$4=1,F46,IF($O$4=2,F61,F76))*Asignación!S29 -> 0.9181546087 | G29: =+IF($O$4=1,G46,IF($O$4=2,G61,G76))*Asignación!T29 -> 0.4540511339 | H29: =+IF($O$4=1,H46,IF($O$4=2,H61,H76))*Asignación!U29 -> 0.4671461671 | I29: =+IF($O$4=1,I46,IF($O$4=2,I61,I76))*Asignación!V29 -> 0.377963717 | J29: =+IF($O$4=1,J46,IF($O$4=2,J61,J76))*Asignación!W29 -> 0.5266848198 | K29: =+IF($O$4=1,K46,IF($O$4=2,K61,K76))*Asignación!X29 -> 0.453297877 | L29: =+IF($O$4=1,L46,IF($O$4=2,L61,L76))*Asignación!Y29 -> 0 | M29: =+IF($O$4=1,M46,IF($O$4=2,M61,M76))*Asignación!Z29 -> 0.4453873524 | O29: 1 | P29: 1 | Q29: 1 | R29: 1 | S29: 1 | T29: 1 | U29: 1.1 | V29: 0.89 | W29: 1 | X29: 1 | Y29: 1 | Z29: 1
A30: BTSH | B30: =+IF($O$4=1,B47,IF($O$4=2,B62,B77))*Asignación!O30 -> 0.0002444458025 | C30: =+IF($O$4=1,C47,IF($O$4=2,C62,C77))*Asignación!P30 -> 0.0001081331162 | D30: =+IF($O$4=1,D47,IF($O$4=2,D62,D77))*Asignación!Q30 -> 0.0002681438808 | E30: =+IF($O$4=1,E47,IF($O$4=2,E62,E77))*Asignación!R30 -> 0.0002775181375 | F30: =+IF($O$4=1,F47,IF($O$4=2,F62,F77))*Asignación!S30 -> 8.943502236e-05 | G30: =+IF($O$4=1,G47,IF($O$4=2,G62,G77))*Asignación!T30 -> 0.0002702333472 | H30: =+IF($O$4=1,H47,IF($O$4=2,H62,H77))*Asignación!U30 -> 0.0002154804535 | I30: =+IF($O$4=1,I47,IF($O$4=2,I62,I77))*Asignación!V30 -> 0.0002448641517 | J30: =+IF($O$4=1,J47,IF($O$4=2,J62,J77))*Asignación!W30 -> 0.0003146457574 | K30: =+IF($O$4=1,K47,IF($O$4=2,K62,K77))*Asignación!X30 -> 0.0002689760121 | L30: =+IF($O$4=1,L47,IF($O$4=2,L62,L77))*Asignación!Y30 -> 0 | M30: =+IF($O$4=1,M47,IF($O$4=2,M62,M77))*Asignación!Z30 -> 0.0002750660805 | O30: 1 | P30: 1 | Q30: 1 | R30: 1 | S30: 1 | T30: 1 | U30: 1.1 | V30: 1.25 | W30: 1 | X30: 1 | Y30: 1 | Z30: 1
A31: BTS Prepago | B31: =+IF($O$4=1,B48,IF($O$4=2,B63,B78))*Asignación!O31 -> 0.001989505285 | C31: =+IF($O$4=1,C48,IF($O$4=2,C63,C78))*Asignación!P31 -> 0.004433772699 | D31: =+IF($O$4=1,D48,IF($O$4=2,D63,D78))*Asignación!Q31 -> 0.002102287531 | E31: =+IF($O$4=1,E48,IF($O$4=2,E63,E78))*Asignación!R31 -> 0.002110734625 | F31: =+IF($O$4=1,F48,IF($O$4=2,F63,F78))*Asignación!S31 -> 0.02180313349 | G31: =+IF($O$4=1,G48,IF($O$4=2,G63,G78))*Asignación!T31 -> 0.002123436629 | H31: =+IF($O$4=1,H48,IF($O$4=2,H63,H78))*Asignación!U31 -> 0.0009126119338 | I31: =+IF($O$4=1,I48,IF($O$4=2,I63,I78))*Asignación!V31 -> 0.001003873127 | J31: =+IF($O$4=1,J48,IF($O$4=2,J63,J78))*Asignación!W31 -> 0.002472805812 | K31: =+IF($O$4=1,K48,IF($O$4=2,K63,K78))*Asignación!X31 -> 0.002122286854 | L31: =+IF($O$4=1,L48,IF($O$4=2,L63,L78))*Asignación!Y31 -> 0 | M31: =+IF($O$4=1,M48,IF($O$4=2,M63,M78))*Asignación!Z31 -> 0.002484429909 | O31: 1 | P31: 1 | Q31: 1 | R31: 1 | S31: 1 | T31: 1 | U31: 1 | V31: 1.1 | W31: 1 | X31: 1 | Y31: 1 | Z31: 1
A32: X2H | B32: =+IF($O$4=1,B49,IF($O$4=2,B64,B79))*Asignación!O32 -> 0 | C32: =+IF($O$4=1,C49,IF($O$4=2,C64,C79))*Asignación!P32 -> 0 | D32: =+IF($O$4=1,D49,IF($O$4=2,D64,D79))*Asignación!Q32 -> 0 | E32: =+IF($O$4=1,E49,IF($O$4=2,E64,E79))*Asignación!R32 -> 0 | F32: =+IF($O$4=1,F49,IF($O$4=2,F64,F79))*Asignación!S32 -> 0 | G32: =+IF($O$4=1,G49,IF($O$4=2,G64,G79))*Asignación!T32 -> 0 | H32: =+IF($O$4=1,H49,IF($O$4=2,H64,H79))*Asignación!U32 -> 0 | I32: =+IF($O$4=1,I49,IF($O$4=2,I64,I79))*Asignación!V32 -> 0 | J32: =+IF($O$4=1,J49,IF($O$4=2,J64,J79))*Asignación!W32 -> 0 | K32: =+IF($O$4=1,K49,IF($O$4=2,K64,K79))*Asignación!X32 -> 0 | L32: =+IF($O$4=1,L49,IF($O$4=2,L64,L79))*Asignación!Y32 -> 0 | M32: =+IF($O$4=1,M49,IF($O$4=2,M64,M79))*Asignación!Z32 -> 0 | O32: 1 | P32: 1 | Q32: 1 | R32: 1 | S32: 1 | T32: 1 | U32: 1 | V32: 1 | W32: 1 | X32: 1 | Y32: 1 | Z32: 1
A33: X2D | B33: =+IF($O$4=1,B50,IF($O$4=2,B65,B80))*Asignación!O33 -> 0 | C33: =+IF($O$4=1,C50,IF($O$4=2,C65,C80))*Asignación!P33 -> 0 | D33: =+IF($O$4=1,D50,IF($O$4=2,D65,D80))*Asignación!Q33 -> 0 | E33: =+IF($O$4=1,E50,IF($O$4=2,E65,E80))*Asignación!R33 -> 0 | F33: =+IF($O$4=1,F50,IF($O$4=2,F65,F80))*Asignación!S33 -> 0 | G33: =+IF($O$4=1,G50,IF($O$4=2,G65,G80))*Asignación!T33 -> 0 | H33: =+IF($O$4=1,H50,IF($O$4=2,H65,H80))*Asignación!U33 -> 0 | I33: =+IF($O$4=1,I50,IF($O$4=2,I65,I80))*Asignación!V33 -> 0 | J33: =+IF($O$4=1,J50,IF($O$4=2,J65,J80))*Asignación!W33 -> 0 | K33: =+IF($O$4=1,K50,IF($O$4=2,K65,K80))*Asignación!X33 -> 0 | L33: =+IF($O$4=1,L50,IF($O$4=2,L65,L80))*Asignación!Y33 -> 0 | M33: =+IF($O$4=1,M50,IF($O$4=2,M65,M80))*Asignación!Z33 -> 0 | O33: 1 | P33: 1 | Q33: 1 | R33: 1 | S33: 1 | T33: 1 | U33: 1 | V33: 1 | W33: 1 | X33: 1 | Y33: 1 | Z33: 1
A34: X3D | B34: =+IF($O$4=1,B51,IF($O$4=2,B66,B81))*Asignación!O34 -> 0 | C34: =+IF($O$4=1,C51,IF($O$4=2,C66,C81))*Asignación!P34 -> 0 | D34: =+IF($O$4=1,D51,IF($O$4=2,D66,D81))*Asignación!Q34 -> 0 | E34: =+IF($O$4=1,E51,IF($O$4=2,E66,E81))*Asignación!R34 -> 0 | F34: =+IF($O$4=1,F51,IF($O$4=2,F66,F81))*Asignación!S34 -> 0 | G34: =+IF($O$4=1,G51,IF($O$4=2,G66,G81))*Asignación!T34 -> 0 | H34: =+IF($O$4=1,H51,IF($O$4=2,H66,H81))*Asignación!U34 -> 0 | I34: =+IF($O$4=1,I51,IF($O$4=2,I66,I81))*Asignación!V34 -> 0 | J34: =+IF($O$4=1,J51,IF($O$4=2,J66,J81))*Asignación!W34 -> 0 | K34: =+IF($O$4=1,K51,IF($O$4=2,K66,K81))*Asignación!X34 -> 0 | L34: =+IF($O$4=1,L51,IF($O$4=2,L66,L81))*Asignación!Y34 -> 0 | M34: =+IF($O$4=1,M51,IF($O$4=2,M66,M81))*Asignación!Z34 -> 0 | O34: 1 | P34: 1 | Q34: 1 | R34: 1 | S34: 1 | T34: 1 | U34: 1 | V34: 1 | W34: 1 | X34: 1 | Y34: 1 | Z34: 1
B35: =+SUM(B23:B34) -> 1 | C35: 1 | D35: 1 | E35: 1 | F35: 1 | G35: 1 | H35: 1.042487423 | I35: 0.9519525726 | J35: 1 | K35: 1 | L35: 0 | M35: 1
A36: Opciones de Asignación de Costos
A38: Asignación siguiendo estructura de Ingreso a Tarifa Vigente | B38: =+AsigTV!B4 -> CD | C38: =+AsigTV!C4 -> CCOMF | D38: =+AsigTV!D4 -> CCOMV | E38: =+AsigTV!E4 -> CSERAP | F38: =+AsigTV!F4 -> CX | G38: =+AsigTV!G4 -> CCONAP | H38: =+AsigTV!H4 -> CENEGEN | I38: =+AsigTV!I4 -> CPOTGEN | J38: =+AsigTV!J4 -> CPT | K38: =+AsigTV!K4 -> CPET | L38: =+AsigTV!L4 -> CPERDP | M38: =+AsigTV!M4 -> CPERDE
A39: TOTAL | B39: =+SUM(B40:B48) -> 1 | C39: =+SUM(C40:C48) -> 1 | D39: 1 | E39: 1 | F39: 1 | G39: 1 | H39: 1 | I39: 1 | J39: 1 | K39: 1 | L39: 0 | M39: 1
A40: =+AsigTV!A6 -> ATH | B40: =+AsigTV!B6 -> 9.981289233e-08 | C40: =+AsigTV!C6 -> 2.986583395e-11 | D40: =+AsigTV!D6 -> 2.791555501e-07 | E40: =+AsigTV!E6 -> 2.802223922e-07 | F40: =+AsigTV!F6 -> 5.950485226e-11 | G40: =+AsigTV!G6 -> 2.793708289e-07 | H40: =+AsigTV!H6 -> 3.013571469e-07 | I40: =+AsigTV!I6 -> 1.453696485e-08 | J40: =+AsigTV!J6 -> 9.991961649e-08 | K40: =+AsigTV!K6 -> 2.797592172e-07 | L40: =+AsigTV!L6 -> 0 | M40: =+AsigTV!M6 -> 2.833250949e-07
A41: =+AsigTV!A10 -> ATD | B41: =+AsigTV!B10 -> 7.643471429e-06 | C41: =+AsigTV!C10 -> 1.63835432e-05 | D41: =+AsigTV!D10 -> 4.938905886e-06 | E41: =+AsigTV!E10 -> 4.957780786e-06 | F41: =+AsigTV!F10 -> 3.264266181e-05 | G41: =+AsigTV!G10 -> 4.942714665e-06 | H41: =+AsigTV!H10 -> 5.045153493e-06 | I41: =+AsigTV!I10 -> 3.855730158e-06 | J41: =+AsigTV!J10 -> 3.111903417e-05 | K41: =+AsigTV!K10 -> 4.94958615e-06 | L41: =+AsigTV!L10 -> 0 | M41: =+AsigTV!M10 -> 5.027974951e-06
A42: =+AsigTV!A11 -> MTH | B42: =+AsigTV!B11 -> 0.002042534805 | C42: =+AsigTV!C11 -> 9.278289772e-05 | D42: =+AsigTV!D11 -> 0.002842110786 | E42: =+AsigTV!E11 -> 0.002852972413 | F42: =+AsigTV!F11 -> 0.000132685652 | G42: =+AsigTV!G11 -> 0.002844302561 | H42: =+AsigTV!H11 -> 0.003872945584 | I42: =+AsigTV!I11 -> 0.0001089747909 | J42: =+AsigTV!J11 -> 0.003414208421 | K42: =+AsigTV!K11 -> 0.002848256781 | L42: =+AsigTV!L11 -> 0 | M42: =+AsigTV!M11 -> 0.002892485948
A43: =+AsigTV!A15 -> MTD | B43: =+AsigTV!B15 -> 0.1873344144 | C43: =+AsigTV!C15 -> 0.005330931843 | D43: =+AsigTV!D15 -> 0.2161589529 | E43: =+AsigTV!E15 -> 0.2183472767 | F43: =+AsigTV!F15 -> 0.007576128102 | G43: =+AsigTV!G15 -> 0.2160596568 | H43: =+AsigTV!H15 -> 0.2302274411 | I43: =+AsigTV!I15 -> 0.2044218761 | J43: =+AsigTV!J15 -> 0.1844998153 | K43: =+AsigTV!K15 -> 0.2163600283 | L43: =+AsigTV!L15 -> 0 | M43: =+AsigTV!M15 -> 0.2197754414
A44: =+AsigTV!A16 -> BTH | B44: =+AsigTV!B16 -> 0.005457659369 | C44: =+AsigTV!C16 -> 0.0002468729548 | D44: =+AsigTV!D16 -> 0.005117326839 | E44: =+AsigTV!E16 -> 0.005136883605 | F44: =+AsigTV!F16 -> 0.0004633637843 | G44: =+AsigTV!G16 -> 0.005122856411 | H44: =+AsigTV!H16 -> 0.006567587166 | I44: =+AsigTV!I16 -> 0.0002882885953 | J44: =+AsigTV!J16 -> 0.006957941841 | K44: =+AsigTV!K16 -> 0.005129978334 | L44: =+AsigTV!L16 -> 0 | M44: =+AsigTV!M16 -> 0.005140531102
A45: =+AsigTV!A20 -> BTD | B45: =+AsigTV!B20 -> 0.3773481068 | C45: =+AsigTV!C20 -> 0.02876934484 | D45: =+AsigTV!D20 -> 0.3196621671 | E45: =+AsigTV!E20 -> 0.3228983244 | F45: =+AsigTV!F20 -> 0.05174800258 | G45: =+AsigTV!G20 -> 0.3195231583 | H45: =+AsigTV!H20 -> 0.3335398426 | I45: =+AsigTV!I20 -> 0.2544906129 | J45: =+AsigTV!J20 -> 0.2756245441 | K45: =+AsigTV!K20 -> 0.3199673674 | L45: =+AsigTV!L20 -> 0 | M45: =+AsigTV!M20 -> 0.3240393819
A46: =+AsigTV!A21 -> BTS | B46: =+AsigTV!B21 -> 0.4255755903 | C46: =+AsigTV!C21 -> 0.9610017781 | D46: =+AsigTV!D21 -> 0.4538437929 | E46: =+AsigTV!E21 -> 0.4483710521 | F46: =+AsigTV!F21 -> 0.9181546087 | G46: =+AsigTV!G21 -> 0.4540511339 | H46: =+AsigTV!H21 -> 0.4246783337 | I46: =+AsigTV!I21 -> 0.5392184523 | J46: =+AsigTV!J21 -> 0.5266848198 | K46: =+AsigTV!K21 -> 0.453297877 | L46: =+AsigTV!L21 -> 0 | M46: =+AsigTV!M21 -> 0.4453873524
A47: =+A15 -> BTSH | B47: =+AsigTV!B22 -> 0.0002444458025 | C47: =+AsigTV!C22 -> 0.0001081331162 | D47: =+AsigTV!D22 -> 0.0002681438808 | E47: =+AsigTV!E22 -> 0.0002775181375 | F47: =+AsigTV!F22 -> 8.943502236e-05 | G47: =+AsigTV!G22 -> 0.0002702333472 | H47: =+AsigTV!H22 -> 0.0001958913214 | I47: =+AsigTV!I22 -> 0.0003091722613 | J47: =+AsigTV!J22 -> 0.0003146457574 | K47: =+AsigTV!K22 -> 0.0002689760121 | L47: =+AsigTV!L22 -> 0 | M47: =+AsigTV!M22 -> 0.0002750660805
A48: =+A16 -> BTS Prepago | B48: =+AsigTV!B23 -> 0.001989505285 | C48: =+AsigTV!C23 -> 0.004433772699 | D48: =+AsigTV!D23 -> 0.002102287531 | E48: =+AsigTV!E23 -> 0.002110734625 | F48: =+AsigTV!F23 -> 0.02180313349 | G48: =+AsigTV!G23 -> 0.002123436629 | H48: =+AsigTV!H23 -> 0.0009126119338 | I48: =+AsigTV!I23 -> 0.001158752767 | J48: =+AsigTV!J23 -> 0.002472805812 | K48: =+AsigTV!K23 -> 0.002122286854 | L48: =+AsigTV!L23 -> 0 | M48: =+AsigTV!M23 -> 0.002484429909
A49: =+A17 -> X2H
A50: =+A18 -> X2D
A51: =+A19 -> X3D
A53: Asignación económica | B53: =+AsigEco!B11 -> CD | C53: =+AsigEco!C11 -> CCOMF | D53: =+AsigEco!D11 -> CCOMV | E53: =+AsigEco!E11 -> CSERAP | F53: =+AsigEco!F11 -> CX | G53: =+AsigEco!G11 -> CCONAP | H53: =+AsigEco!H11 -> CENEGEN | I53: =+AsigEco!I11 -> CPOTGEN | J53: =+AsigEco!J11 -> CPT | K53: =+AsigEco!K11 -> CPET | L53: =+AsigEco!L11 -> CPERDP | M53: =+AsigEco!M11 -> CPERDE
A54: =+AsigEco!A12 -> TOTAL | B54: =+SUM(B55:B66) -> 1 | C54: =+SUM(C55:C66) -> 1 | D54: 1 | E54: 1 | F54: 1 | G54: 1 | H54: 1 | I54: 1 | J54: 1 | K54: 1 | L54: 1 | M54: 1
A55: =+AsigEco!A13 -> ATH | B55: =+AsigEco!B13 -> 7.876549893e-09 | C55: =+AsigEco!C13 -> 6.181836242e-12 | D55: =+AsigEco!D13 -> 2.772972946e-07 | E55: =+AsigEco!E13 -> 2.772972946e-07 | F55: =+AsigEco!F13 -> 6.181836242e-12 | G55: =+AsigEco!G13 -> 2.76436538e-07 | H55: =+AsigEco!H13 -> 2.76436538e-07 | I55: =+AsigEco!I13 -> 1.994758783e-08 | J55: =+AsigEco!J13 -> 1.481920629e-07 | K55: =+AsigEco!K13 -> 2.76436538e-07 | L55: =+AsigEco!L13 -> 1.994758783e-08 | M55: =+AsigEco!M13 -> 2.76436538e-07
A56: =+AsigEco!A14 -> ATD | B56: =+AsigEco!B14 -> 3.061144358e-06 | C56: =+AsigEco!C14 -> 3.391178738e-06 | D56: =+AsigEco!D14 -> 4.906029058e-06 | E56: =+AsigEco!E14 -> 4.906029058e-06 | F56: =+AsigEco!F14 -> 3.391178738e-06 | G56: =+AsigEco!G14 -> 4.890800287e-06 | H56: =+AsigEco!H14 -> 4.890800287e-06 | I56: =+AsigEco!I14 -> 1.954503134e-05 | J56: =+AsigEco!J14 -> 1.221791581e-05 | K56: =+AsigEco!K14 -> 4.890800287e-06 | L56: =+AsigEco!L14 -> 1.954503134e-05 | M56: =+AsigEco!M14 -> 4.890800287e-06
A57: =+AsigEco!A15 -> MTH | B57: =+AsigEco!B15 -> 0.0014898475 | C57: =+AsigEco!C15 -> 1.920484392e-05 | D57: =+AsigEco!D15 -> 0.002823191699 | E57: =+AsigEco!E15 -> 0.002823191699 | F57: =+AsigEco!F15 -> 1.920484392e-05 | G57: =+AsigEco!G15 -> 0.002814428249 | H57: =+AsigEco!H15 -> 0.002814428249 | I57: =+AsigEco!I15 -> 0.001756978217 | J57: =+AsigEco!J15 -> 0.002285703233 | K57: =+AsigEco!K15 -> 0.002814428249 | L57: =+AsigEco!L15 -> 0.001756978217 | M57: =+AsigEco!M15 -> 0.002814428249
A58: =+AsigEco!A16 -> MTD | B58: =+AsigEco!B16 -> 0.1568954295 | C58: =+AsigEco!C16 -> 0.001113876956 | D58: =+AsigEco!D16 -> 0.2145472613 | E58: =+AsigEco!E16 -> 0.2145472613 | F58: =+AsigEco!F16 -> 0.001113876956 | G58: =+AsigEco!G16 -> 0.2138817265 | H58: =+AsigEco!H16 -> 0.2138817265 | I58: =+AsigEco!I16 -> 0.1848228871 | J58: =+AsigEco!J16 -> 0.1993523068 | K58: =+AsigEco!K16 -> 0.2138817265 | L58: =+AsigEco!L16 -> 0.1848228871 | M58: =+AsigEco!M16 -> 0.2138817265
A59: =+AsigEco!A17 -> BTH | B59: =+AsigEco!B17 -> 0.005003916281 | C59: =+AsigEco!C17 -> 0.0001292356875 | D59: =+AsigEco!D17 -> 0.005083262332 | E59: =+AsigEco!E17 -> 0.005083262332 | F59: =+AsigEco!F17 -> 0.0001292356875 | G59: =+AsigEco!G17 -> 0.005069049984 | H59: =+AsigEco!H17 -> 0.005069049984 | I59: =+AsigEco!I17 -> 0.004684606964 | J59: =+AsigEco!J17 -> 0.004876828474 | K59: =+AsigEco!K17 -> 0.005069049984 | L59: =+AsigEco!L17 -> 0.004684606964 | M59: =+AsigEco!M17 -> 0.005069049984
A60: =+AsigEco!A18 -> BTD | B60: =+AsigEco!B18 -> 0.4490412906 | C60: =+AsigEco!C18 -> 0.01510630717 | D60: =+AsigEco!D18 -> 0.317684914 | E60: =+AsigEco!E18 -> 0.317684914 | F60: =+AsigEco!F18 -> 0.01510630717 | G60: =+AsigEco!G18 -> 0.3167177667 | H60: =+AsigEco!H18 -> 0.3167177667 | I60: =+AsigEco!I18 -> 0.4245785984 | J60: =+AsigEco!J18 -> 0.3706481826 | K60: =+AsigEco!K18 -> 0.3167177667 | L60: =+AsigEco!L18 -> 0.4245785984 | M60: =+AsigEco!M18 -> 0.3167177667
A61: =+AsigEco!A19 -> BTS | B61: =+AsigEco!B19 -> 0.3859912299 | C61: =+AsigEco!C19 -> 0.9610678822 | D61: =+AsigEco!D19 -> 0.4571856159 | E61: =+AsigEco!E19 -> 0.4571856159 | F61: =+AsigEco!F19 -> 0.9610678822 | G61: =+AsigEco!G19 -> 0.4588281021 | H61: =+AsigEco!H19 -> 0.4588281021 | I61: =+AsigEco!I19 -> 0.3825866413 | J61: =+AsigEco!J19 -> 0.4207073717 | K61: =+AsigEco!K19 -> 0.4588281021 | L61: =+AsigEco!L19 -> 0.3825866413 | M61: =+AsigEco!M19 -> 0.4588281021
A62: =+AsigEco!A20 -> BTSH | B62: =+AsigEco!B20 -> 4.503000897e-05 | C62: =+AsigEco!C20 -> 0.0001048888427 | D62: =+AsigEco!D20 -> 0.0002626019205 | E62: =+AsigEco!E20 -> 0.0002626019205 | F62: =+AsigEco!F20 -> 0.0001048888427 | G62: =+AsigEco!G20 -> 0.0002625246151 | H62: =+AsigEco!H20 -> 0.0002625246151 | I62: =+AsigEco!I20 -> 3.124158984e-05 | J62: =+AsigEco!J20 -> 0.0001468831025 | K62: =+AsigEco!K20 -> 0.0002625246151 | L62: =+AsigEco!L20 -> 3.124158984e-05 | M62: =+AsigEco!M20 -> 0.0002625246151
A63: =+AsigEco!A21 -> BTS Prepago | B63: =+AsigEco!B21 -> 0.001530187129 | C63: =+AsigEco!C21 -> 0.02245521309 | D63: =+AsigEco!D21 -> 0.0024079696 | E63: =+AsigEco!E21 -> 0.0024079696 | F63: =+AsigEco!F21 -> 0.02245521309 | G63: =+AsigEco!G21 -> 0.002421234622 | H63: =+AsigEco!H21 -> 0.002421234622 | I63: =+AsigEco!I21 -> 0.001519481407 | J63: =+AsigEco!J21 -> 0.001970358014 | K63: =+AsigEco!K21 -> 0.002421234622 | L63: =+AsigEco!L21 -> 0.001519481407 | M63: =+AsigEco!M21 -> 0.002421234622
A64: =+AsigEco!A22 -> X2H | B64: =+AsigEco!B22 -> 0 | C64: =+AsigEco!C22 -> 0 | D64: =+AsigEco!D22 -> 0 | E64: =+AsigEco!E22 -> 0 | F64: =+AsigEco!F22 -> 0 | G64: =+AsigEco!G22 -> 0 | H64: =+AsigEco!H22 -> 0 | I64: =+AsigEco!I22 -> 0 | J64: =+AsigEco!J22 -> 0 | K64: =+AsigEco!K22 -> 0 | L64: =+AsigEco!L22 -> 0 | M64: =+AsigEco!M22 -> 0
A65: =+AsigEco!A23 -> X2D | B65: =+AsigEco!B23 -> 0 | C65: =+AsigEco!C23 -> 0 | D65: =+AsigEco!D23 -> 0 | E65: =+AsigEco!E23 -> 0 | F65: =+AsigEco!F23 -> 0 | G65: =+AsigEco!G23 -> 0 | H65: =+AsigEco!H23 -> 0 | I65: =+AsigEco!I23 -> 0 | J65: =+AsigEco!J23 -> 0 | K65: =+AsigEco!K23 -> 0 | L65: =+AsigEco!L23 -> 0 | M65: =+AsigEco!M23 -> 0
A66: =+AsigEco!A24 -> X3D | B66: =+AsigEco!B24 -> 0 | C66: =+AsigEco!C24 -> 0 | D66: =+AsigEco!D24 -> 0 | E66: =+AsigEco!E24 -> 0 | F66: =+AsigEco!F24 -> 0 | G66: =+AsigEco!G24 -> 0 | H66: =+AsigEco!H24 -> 0 | I66: =+AsigEco!I24 -> 0 | J66: =+AsigEco!J24 -> 0 | K66: =+AsigEco!K24 -> 0 | L66: =+AsigEco!L24 -> 0 | M66: =+AsigEco!M24 -> 0
B67: ITV | C67: ITV | D67: Eco | E67: Eco | F67: ITV | G67: Eco | H67: ITV | I67: ITV | J67: ITV | K67: Eco | L67: ITV | M67: Eco
A68: Asignación Manual | B68: =+B53 -> CD | C68: =+C53 -> CCOMF | D68: CCOMV | E68: CSERAP | F68: CX | G68: CCONAP | H68: CENEGEN | I68: CPOTGEN | J68: CPT | K68: CPET | L68: CPERDP | M68: CPERDE
A69: =+A54 -> TOTAL | B69: =+SUM(B70:B81) -> 1 | C69: =+SUM(C70:C81) -> 1 | D69: =+SUM(D70:D81) -> 1 | E69: 1 | F69: 1 | G69: 1 | H69: 1 | I69: 1 | J69: 1 | K69: 1 | L69: 0 | M69: 1
A70: =+A55 -> ATH | B70: =+B40 -> 9.981289233e-08 | C70: =+C40 -> 2.986583395e-11 | D70: 2.791555501e-07 | E70: 2.802223922e-07 | F70: 5.950485226e-11 | G70: 2.793708289e-07 | H70: 3.013571469e-07 | I70: =+H70 -> 3.013571469e-07 | J70: 9.991961649e-08 | K70: 2.797592172e-07 | L70: 0 | M70: 2.833250949e-07
A71: =+A56 -> ATD | B71: =+B41 -> 7.643471429e-06 | C71: 1.63835432e-05 | D71: 4.938905886e-06 | E71: 4.957780786e-06 | F71: 3.264266181e-05 | G71: 4.942714665e-06 | H71: 5.045153493e-06 | I71: =+H71 -> 5.045153493e-06 | J71: 3.111903417e-05 | K71: 4.94958615e-06 | L71: 0 | M71: 5.027974951e-06
A72: MTH | B72: 0.002042534805 | C72: 9.278289772e-05 | D72: 0.002842110786 | E72: 0.002852972413 | F72: 0.000132685652 | G72: 0.002844302561 | H72: 0.003872945584 | I72: 0.003872945584 | J72: 0.003414208421 | K72: 0.002848256781 | L72: 0 | M72: 0.002892485948
A73: MTD | B73: 0.1873344144 | C73: 0.005330931843 | D73: 0.2161589529 | E73: 0.2183472767 | F73: 0.007576128102 | G73: 0.2160596568 | H73: 0.2302274411 | I73: 0.2302274411 | J73: 0.1844998153 | K73: 0.2163600283 | L73: 0 | M73: 0.2197754414
A74: BTH | B74: 0.005457659369 | C74: 0.0002468729548 | D74: 0.005117326839 | E74: 0.005136883605 | F74: 0.0004633637843 | G74: 0.005122856411 | H74: 0.006567587166 | I74: 0.006567587166 | J74: 0.006957941841 | K74: 0.005129978334 | L74: 0 | M74: 0.005140531102
A75: BTD | B75: 0.3773481068 | C75: 0.02876934484 | D75: 0.3196621671 | E75: 0.3228983244 | F75: 0.05174800258 | G75: 0.3195231583 | H75: 0.3335398426 | I75: 0.3335398426 | J75: 0.2756245441 | K75: 0.3199673674 | L75: 0 | M75: 0.3240393819
A76: BTS | B76: 0.4255755903 | C76: 0.9610017781 | D76: 0.4538437929 | E76: 0.4483710521 | F76: 0.9181546087 | G76: 0.4540511339 | H76: 0.4246783337 | I76: 0.4246783337 | J76: 0.5266848198 | K76: 0.453297877 | L76: 0 | M76: 0.4453873524
A77: BTSH | B77: 0.0002444458025 | C77: 0.0001081331162 | D77: 0.0002681438808 | E77: 0.0002775181375 | F77: 8.943502236e-05 | G77: 0.0002702333472 | H77: 0.0001958913214 | I77: 0.0001958913214 | J77: 0.0003146457574 | K77: 0.0002689760121 | L77: 0 | M77: 0.0002750660805
A78: BTS Prepago | B78: 0.001989505285 | C78: 0.004433772699 | D78: 0.002102287531 | E78: 0.002110734625 | F78: 0.02180313349 | G78: 0.002123436629 | H78: 0.0009126119338 | I78: 0.0009126119338 | J78: 0.002472805812 | K78: 0.002122286854 | L78: 0 | M78: 0.002484429909
A79: X2H | B79: 0 | C79: 0 | D79: 0 | E79: 0 | F79: 0 | G79: 0 | H79: 0 | I79: 0 | J79: 0 | K79: 0 | L79: 0 | M79: 0
A80: X2D | B80: 0 | C80: 0 | D80: 0 | E80: 0 | F80: 0 | G80: 0 | H80: 0 | I80: 0 | J80: 0 | K80: 0 | L80: 0 | M80: 0
A81: X3D | B81: 0 | C81: 0 | D81: 0 | E81: 0 | F81: 0 | G81: 0 | H81: 0 | I81: 0 | J81: 0 | K81: 0 | L81: 0 | M81: 0
B83: =+B46 -> 0.4255755903 | C83: =+C46 -> 0.9610017781 | F83: =+F46 -> 0.9181546087 | H83: =+H46 -> 0.4246783337 | I83: =+I46 -> 0.5392184523 | J83: =+J46 -> 0.5266848198 | L83: =+L46 -> 0
A84: =+DdaAñoBase!B207/(DdaAñoBase!B207+DdaAñoBase!B133+DdaAñoBase!C133+DdaAñoBase!E133) -> 0.00510289203 | B84: =+$A$84 -> 0.00510289203 | C84: =+$A$84 -> 0.00510289203 | F84: =+$A$84 -> 0.00510289203 | H84: =+$A$84 -> 0.00510289203 | I84: =+$A$84 -> 0.00510289203 | J84: =+$A$84 -> 0.00510289203 | L84: =+$A$84 -> 0.00510289203
A86: BTS total | B86: =+B46+B48 -> 0.4275650956 | C86: =+C46+C48 -> 0.9654355508 | D86: 0.4559460804 | E86: 0.4504817867 | F86: 0.9399577421 | G86: 0.4561745705 | H86: 0.4255909456 | I86: 0.540377205 | J86: 0.5291576256 | K86: 0.4554201638 | L86: 0 | M86: 0.4478717824
A88: Factor BTSH | B88: 0.828 | C88: 0.77 | D88: 0.803 | E88: 0.755 | F88: 1 | G88: 1.04 | H88: 1.036 | I88: 1.035 | J88: 1.035 | K88: 1.031 | L88: 1 | M88: 1.068
A89: FactorBTS Prepago | B89: 0.9292 | C89: 0.968 | D89: 0.968 | E89: 0.965 | F89: 1 | G89: 0.96 | H89: 0.755 | I89: 1.34 | J89: 0.935 | K89: 0.95 | L89: 1 | M89: 0.95
B90: =+B46-B77 -> 0.4253311445 | C90: =+C46-C77 -> 0.960893645 | D90: 0.453575649 | E90: 0.448093534 | F90: 0.9180651736 | G90: 0.4537809005 | H90: 0.4244824424 | I90: 0.5390225609 | J90: 0.526370174 | K90: 0.4530289009 | L90: 0 | M90: 0.4451122864
A91: % base BTSH | B91: =+B47 -> 0.0002444458025 | C91: 0.0005541870649 | D91: 0.0002617210137 | E91: 0.0002585650131 | F91: 0.0005294781126 | G91: 0.0002618405823 | H91: 0.0002449019811 | I91: 0.0003109545666 | J91: 0.0003037267162 | K91: 0.0002614061968 | L91: 0 | M91: 0.0002568443839
A92: % base Prepago | B92: =+B48 -> 0.001989505285 | C92: =+C48 -> 0.004433772699 | D92: 0.002102287531 | E92: 0.002110734625 | F92: 0.02180313349 | G92: 0.002123436629 | H92: 0.0009126119338 | I92: 0.001158752767 | J92: 0.002472805812 | K92: 0.002122286854 | L92: 0 | M92: 0.002484429909
A93: Total BTS | B93: =+SUM(B90:B92) -> 0.4275650956 | C93: =+SUM(C90:C92) -> 0.9658816047 | D93: 0.4559396575 | E93: 0.4504628336 | F93: 0.9403977852 | G93: 0.4561661777 | H93: 0.4256399563 | I93: 0.5404922683 | J93: 0.5291467065 | K93: 0.455412594 | L93: 0 | M93: 0.4478535607
A94: Nuevo BTS | B94: =+(B93-B91*B88-B92*B89) -> 0.4255140462 | C94: =+(C93-C91*C88-C92*C89) -> 0.9611629887 | D94: 0.4536944812 | E94: 0.4482307581 | F94: 0.9180651736 | G94: 0.4538553644 | H94: 0.4246972158 | I94: 0.5386177016 | J94: 0.5265202759 | K94: 0.4531269117 | L94: 0 | M94: 0.4452190424

Sheet Pérdidas
A1: Pérdidas Reales
A4: Coeficientes Pérdidas Energía | B4: u.m. | C4: Año base
A5: pe ST | B5: % | C5: 0.04386995691
A6: pe AT | B6: % | C6: 0.007298917076
A7: pe MT | B7: % | C7: 0.04212831323
A8: pe BT | B8: % | C8: 0.07367655663

Sheet Parámetros
A1: Parámetros Característicos de Consumo obtenidos en Campaña de Caracterización de Cargas - 2025
B2: % de Energía Pico | C2: % de Energía Resto | D2: Factor de Uso de la Potencia Máxima | E2: Factor de Coincidencia Total de Pico en ST | F2: Factor de Coincidencia Total de Pico en AT | G2: Factor de Coincidencia Total de Pico en MT | H2: Factor de Coincidencia Total de Pico en BT | I2: Factor de Coincidencia Total Fuera de punta AT | J2: Factor de Coincidencia Total fuera de MT | K2: Factor de Coincidencia Total fuera de punta BT
A3: Categorías | B3: Kep | C3: Kefp | D3: FC | E3: FCTT | F3: FCTATp | G3: FCTMTp | H3: FCTBTp | I3: FCTATfp | J3: FCTMTfp | K3: FCTBTfp
A4: BTS | B4: 0.3098384641 | C4: 0.6901615359 | D4: 0.4856599844 | E4: 0.7115890232 | F4: 0.7115890232 | G4: 0.7115890232 | H4: 0.7115890232 | I4: 0.521035436 | J4: 0.521035436 | K4: 0.521035436
A5: BTD | B5: 0.3883306973 | C5: 0.6116693027 | D5: 0.5508313506 | E5: 0.89528302 | F5: 0.89528302 | G5: 0.89528302 | H5: 0.89528302 | I5: 0.8654065463 | J5: 0.8654065463 | K5: 0.8654065463
A6: BTH | B6: 0.3006697864 | C6: 0.6993302136 | D6: 0.6679990757 | E6: 0.8308375241 | F6: 0.8308375241 | G6: 0.8308375241 | H6: 0.8308375241 | I6: 0.7388597126 | J6: 0.7388597126 | K6: 0.7388597126
A7: MTD | B7: 0.2932103584 | C7: 0.7067896416 | D7: 0.7076597399 | E7: 0.838062897 | F7: 0.838062897 | G7: 0.838062897 | H7: 0.838062897 | I7: 0.7808364865 | J7: 0.7808364865 | K7: 0.7808364865
A8: MTH | B8: 0.2818552157 | C8: 0.7181447843 | D8: 0.5076990459 | E8: 0.7526850689 | F8: 0.7526850689 | G8: 0.7526850689 | H8: 0.7526850689 | I8: 0.601118445 | J8: 0.601118445 | K8: 0.601118445
A9: ATD | B9: 0.2932103584 | C9: 0.7067896416 | D9: 0.7076597399 | E9: 0.838062897 | F9: 0.838062897 | I9: 0.7808364865
A10: ATH | B10: 0.2818552157 | C10: 0.7181447843 | D10: 0.5076990459 | E10: 0.7526850689 | F10: 0.7526850689 | I10: 0.601118445
A11: AP - BT | B11: 0 | C11: 1 | D11: 0.5 | E11: 0.7115890232 | F11: 0.7115890232 | G11: 0.7115890232 | H11: 0.7115890232 | I11: 0.521035436 | J11: 0.521035436 | K11: 0.521035436
A12: BTSH | B12: 0.2352960949 | C12: 0.7647039051 | D12: 0.4420082763 | E12: 0.5068611713 | F12: 0.5068611713 | G12: 0.5068611713 | H12: 0.5068611713 | I12: 0.3531869333 | J12: 0.3531869333 | K12: 0.3531869333
A13: BTS Prepago | B13: 0.3098384641 | C13: 0.6901615359 | D13: 0.4856599844 | E13: 0.7115890232 | F13: 0.7115890232 | G13: 0.7115890232 | H13: 0.7115890232 | I13: 0.521035436 | J13: 0.521035436 | K13: 0.521035436

Sheet PremisaCosto
A1: Inputs para Modelo Tarifario
A2: Deuda Cruz Roja | B2: 0 | C2: Se quitó
A3: Cifra de deuda de clientes <200kWh no cortables | B3: =11790351.79*0 -> 0 | C3: Se quitó
A4: Deuda Moratoria Generadores | B4: =4357373.86*0 -> 0 | C4: Se quitó
A5: Descuentos por inversiones no ejecutadas | B5: -30670041.16
A6: Tasa de Rentabilidad regulada | B6: 0.1074333333
A8: Ingreso Máximo Permitido | B8: u.m. | F8: =+ProyDda!F35 -> 2026/2027 | G8: =+ProyDda!G35 -> 2027/2028 | H8: =+ProyDda!H35 -> 2028/2029 | I8: =+ProyDda!I35 -> 2029/2030
A9: DISTRIBUCION
A10: CO&M | B10: $/año | F10: 51636963.12 | G10: 53003203.97 | H10: 54385113.58 | I10: 55821724.29
A11: Rentabilidad | B11: $/año | F11: 91402681.77 | G11: 102938955.5 | H11: 101308787.3 | I11: 101117582.1
A12: Depreciación | B12: $/año | F12: 44257673.65 | G12: 47015088.04 | H12: 49892887.6 | I12: 49957326.82
A13: Gastos Administrativos | B13: $/año | F13: 19042519.46 | G13: 19557886.67 | H13: 20083335.39 | I13: 20626337.17
A17: COMERCIALIZACION
A18: CO&M | B18: $/año | F18: 47255428.62 | G18: 48778027.3 | H18: 50348506.98 | I18: 51968372.45
A19: Rentabilidad | B19: $/año | F19: 7176306.352 | G19: 7024546.63 | H19: 6877768.582 | I19: 6742301.353
A20: Depreciación | B20: $/año | F20: 4762855.445 | G20: 4804284.328 | H20: 4854591.232 | I20: 4848746.968
A24: ALUMBRADO PUBLICO
A25: CO&M | B25: $/año | F25: 1420710.015 | G25: 1464714.863 | H25: 1508719.71 | I25: 1552724.558
A26: Rentabilidad | B26: $/año | F26: 2945585.884 | G26: 2965334.108 | H26: 2976448.255 | I26: 2978844.918
A27: Depreciación | B27: $/año | F27: 2166913.553 | G27: 2216181.596 | H27: 2296548.435 | I27: 2377691.62
A31: Pérdidas | F31: =+F8 -> 2026/2027 | G31: =+G8 -> 2027/2028 | H31: =+H8 -> 2028/2029 | I31: =+I8 -> 2029/2030
A32: IMP de Pérdidas sin Descuento por Inv. | B32: $/año | F32: 64021713.72 | G32: 64971800.46 | H32: 65976551.49 | I32: 66966676.37
A38: Perdidas de Energía Permitidas | B38: u.m. | F38: =+F31 -> 2026/2027 | G38: =+G31 -> 2027/2028 | H38: =+H31 -> 2028/2029 | I38: =+I31 -> 2029/2030
A39: Pérdidas de Energía Permitida | B39: % | F39: 0.09050390156 | G39: 0.09048122643 | H39: 0.09045761188 | I39: 0.09043469741
A41: Premisas Costos Abastecimiento | B41: u.m. | F41: =+F38 -> 2026/2027 | G41: =+G38 -> 2027/2028 | H41: =+H38 -> 2028/2029 | I41: =+I38 -> 2029/2030
A42: Costos de Pérdidas de Transmisión Permitidas | B42: $/año | F42: 13908639.68 | G42: =+F42 -> 13908639.68 | H42: 13908639.68 | I42: 13908639.68
A43: Sistema Transmisión | B43: $/año | F43: 50427438.69 | G43: 50427438.69 | H43: 50427438.69 | I43: 50427438.69
A44: Precio Generación Energía P (en frontera) | B44: $/MWh | F44: 71.11058777
A45: Precio Generación Energía FP (en frontera) | B45: $/MWh | F45: 64.42550716
A46: Costo Generación de Potencia (en frontera) | B46: $/MW año | F46: 268734.6437
A49: Costos de Conexión (Pliego) | B49: u.m. | D49: Cargo
A50: =+Parámetros!A4 -> BTS | B50: $/Cliente | D50: =+SUMIFS(PliegoVig!$C$7:$C$388,PliegoVig!$E$7:$E$388,A50,PliegoVig!$F$7:$F$388,"Cx",PliegoVig!$G$7:$G$388,1) -> 16.66
A51: =+Parámetros!A5 -> BTD | B51: $/Cliente | D51: =+SUMIFS(PliegoVig!$C$7:$C$388,PliegoVig!$E$7:$E$388,A51,PliegoVig!$F$7:$F$388,"Cx",PliegoVig!$G$7:$G$388,1) -> 71.69
A52: =+Parámetros!A6 -> BTH | B52: $/Cliente | D52: =+SUMIFS(PliegoVig!$C$7:$C$388,PliegoVig!$E$7:$E$388,A52,PliegoVig!$F$7:$F$388,"Cx",PliegoVig!$G$7:$G$388,1) -> 71.69
A53: =+Parámetros!A7 -> MTD | B53: $/Cliente | D53: =+SUMIFS(PliegoVig!$C$7:$C$388,PliegoVig!$E$7:$E$388,A53,PliegoVig!$F$7:$F$388,"Cx",PliegoVig!$G$7:$G$388,1) -> 142
A54: =+Parámetros!A8 -> MTH | B54: $/Cliente | D54: =+SUMIFS(PliegoVig!$C$7:$C$388,PliegoVig!$E$7:$E$388,A54,PliegoVig!$F$7:$F$388,"Cx",PliegoVig!$G$7:$G$388,1) -> 142
A55: =+Parámetros!A9 -> ATD | B55: $/Cliente | D55: =+SUMIFS(PliegoVig!$C$7:$C$388,PliegoVig!$E$7:$E$388,A55,PliegoVig!$F$7:$F$388,"Cx",PliegoVig!$G$7:$G$388,1) -> 201.75
A56: =+Parámetros!A10 -> ATH | B56: $/Cliente | D56: =+SUMIFS(PliegoVig!$C$7:$C$388,PliegoVig!$E$7:$E$388,A56,PliegoVig!$F$7:$F$388,"Cx",PliegoVig!$G$7:$G$388,1) -> 201.75
A57: =+Parámetros!A12 -> BTSH | B57: $/Cliente | D57: =+SUMIFS(PliegoVig!$C$7:$C$388,PliegoVig!$E$7:$E$388,A57,PliegoVig!$F$7:$F$388,"Cx",PliegoVig!$G$7:$G$388,1) -> 16.66
A58: BTS Prepago | B58: $/Cliente | D58: =+SUMIFS(PliegoVig!$C$7:$C$388,PliegoVig!$E$7:$E$388,A58,PliegoVig!$F$7:$F$388,"Cx",PliegoVig!$G$7:$G$388,1) -> 16.66
A59: =+Parámetros!A14 -> 0 | B59: $/Cliente | D59: 0
A60: =+Parámetros!A15 -> 0 | B60: $/Cliente | D60: 0
A61: =+Parámetros!A16 -> 0 | B61: $/Cliente | D61: 0
A63: Cargos Fijos de Comercialización (Pliego) | B63: u.m. | D63: Ponderador
A64: Ponderador Global de Ajuste | B64: % | D64: 1
A66: Actualización | E66: =+ProyDda!E35 -> 2026 | F66: =+ProyDda!F35 -> 2026/2027 | G66: =+ProyDda!G35 -> 2027/2028 | H66: =+ProyDda!H35 -> 2028/2029 | I66: =+ProyDda!I35 -> 2029/2030
A67: Año genérico | E67: 0 | F67: 1 | G67: 2 | H67: 3 | I67: 4
A68: Factor de Descuento | E68: =1/(1+$B$6)^E67 -> 1 | F68: =1/(1+$B$6)^F67 -> 0.9029888932 | G68: =1/(1+$B$6)^G67 -> 0.8153889413 | H68: =1/(1+$B$6)^H67 -> 0.7362871577 | I68: =1/(1+$B$6)^I67 -> 0.6648591256
A69: Promedios | F69: =+AVERAGE(E68:F68) -> 0.9514944466 | G69: =+AVERAGE(F68:G68) -> 0.8591889173 | H69: =+AVERAGE(G68:H68) -> 0.7758380495 | I69: =+AVERAGE(H68:I68) -> 0.7005731416
B77: Ajuste | C77: CPOTGEN | D77: Verificación
B78: 12
C80: DMG mensual
C81: 1002.582768 | D81: 1008.169653 | E81: 984.6999777 | F81: 926.1354092 | G81: 918.1305497 | H81: 984.5308964
C82: CPOTGEN
B83: 12 | C83: =+C81*$B$83*1000 -> 12030993.22 | D83: =+D81*$B$83*1000 -> 12098035.84 | E83: 11816399.73 | F83: 11113624.91 | G83: 11017566.6 | H83: 11814370.76

Sheet DdaAñoBase
A1: Asignaciones a partir del Año Base (Nueva Estructura Tarifaria)
B5: Energía Categorizada por tipo de cliente (MWh) | F5: Energía Categorizada por tipo de cliente (%) | K5: Cantidad de Clientes categorizados (Clientes) | O5: Cantidad de Clientes categorizados (%) | T5: Potencia (MW)
A6: Nueva Estructura Tarifaria | B6: Residencial | C6: General | D6: AP | E6: Cons. Propio | F6: Residencial | G6: General | H6: AP | I6: Cons. Propio | K6: Residencial | L6: General | M6: AP | N6: Cons. Propio | O6: Residencial | P6: General | Q6: AP | R6: Cons. Propio | T6: Base
A7: TOTAL | B7: =+SUM(B8,B12,B13,B17,B73,B77,B133,B189,B193,B206,B262,B265,B321) -> 1620841.558 | C7: =+SUM(C8,C12,C13,C17,C73,C77,C133,C189,C193,C206,C262,C265,C321) -> 3046488.978 | D7: 117993.542 | E7: 3789.068 | F7: 1 | G7: 1 | H7: 1 | I7: 1 | K7: =+SUM(K8,K12,K13,K17,K73,K77,K133,K189,K193,K206,K262,K265,K321) -> 524105.5 | L7: =+SUM(L8,L12,L13,L17,L73,L77,L133,L189,L193,L206,L262,L265,L321) -> 69318.30742 | M7: =+SUM(M8,M12,M13,M17,M73,M77,M133,M189,M193,M206,M262,M265,M321) -> 1 | N7: 134.5 | O7: 1 | P7: 1 | Q7: 1 | R7: 1 | T7: =+SUM(T8,T12,T13,T17,T73,T77,T133,T189,T193,T206,T262,T265,T321) -> 671.7980383
A8: ATH | B8: =+SUM(B9:B11) -> 0 | C8: =+SUM(C9:C11) -> 1.3 | D8: =+SUM(D9:D11) -> 0 | E8: =+SUM(E9:E11) -> 0 | F8: =+B8/B$7 -> 0 | G8: =+C8/C$7 -> 4.267207298e-07 | H8: =+D8/D$7 -> 0 | I8: =+E8/E$7 -> 0 | K8: 0 | L8: 3.645833333e-06 | M8: 0 | N8: 0 | O8: =+K8/K$7 -> 0 | P8: =+L8/L$7 -> 5.259553312e-11 | Q8: =+M8/M$7 -> 0 | R8: =+N8/N$7 -> 0 | T8: =+SUM(T9:T11) -> 0.000325
A9: ATH Punta | B9: 0 | C9: 0.3 | D9: 0 | E9: 0 | F9: 0 | G9: 9.847401457e-08 | H9: 0 | I9: 0 | K9: 0 | L9: 0 | M9: 0 | N9: 0 | O9: =+K9/K$7 -> 0 | P9: =+L9/L$7 -> 0 | Q9: =+M9/M$7 -> 0 | R9: =+N9/N$7 -> 0 | T9: 2.5e-05
A10: ATH Fuera de Punta Medio | B10: 0 | C10: 0.5 | D10: 0 | E10: 0 | F10: =+B10/B$7 -> 0 | G10: =+C10/C$7 -> 1.641233576e-07 | H10: =+D10/D$7 -> 0 | I10: =+E10/E$7 -> 0 | K10: 0 | L10: 0 | M10: 0 | N10: 0 | O10: =+K10/K$7 -> 0 | P10: =+L10/L$7 -> 0 | Q10: =+M10/M$7 -> 0 | R10: =+N10/N$7 -> 0 | T10: 0.00015
A11: ATH Fuera de Punta Bajo | B11: 0 | C11: 0.5 | D11: 0 | E11: 0 | F11: 0 | G11: 1.641233576e-07 | H11: 0 | I11: 0 | K11: 0 | L11: 0 | M11: 0 | N11: 0 | O11: 0 | P11: 0 | Q11: 0 | R11: 0 | T11: 0.00015
A12: ATD | B12: 0 | C12: 23 | D12: 0 | E12: 0 | F12: 0 | G12: 7.54967445e-06 | H12: 0 | I12: 0 | K12: 0 | L12: 2 | M12: 0 | N12: 0 | O12: 0 | P12: 2.885240674e-05 | Q12: 0 | R12: 0 | T12: 0.022
A13: MTH | B13: =+SUM(B14:B16) -> 0 | C13: =+SUM(C14:C16) -> 13235.431 | D13: =+SUM(D14:D16) -> 0 | E13: =+SUM(E14:E16) -> 0 | F13: 0 | G13: 0.00434448675 | H13: 0 | I13: 0 | K13: 1 | L13: 10.33333333 | M13: 0 | N13: 0 | O13: 1.908012795e-06 | P13: 0.0001490707681 | Q13: 0 | R13: 0 | T13: =+SUM(T14:T16) -> 4.753076667
A14: MTH Punta | B14: 0 | C14: 3328.914 | D14: 0 | E14: 0 | F14: 0 | G14: 0.001092705086 | H14: 0 | I14: 0 | K14: 0 | L14: 0 | M14: 0 | N14: 0 | O14: 0 | P14: 0 | Q14: 0 | R14: 0 | T14: 2.201993333
A15: MTH Fuera de Punta Medio | B15: 0 | C15: 3864.063 | D15: 0 | E15: 0 | F15: =+B15/B$7 -> 0 | G15: =+C15/C$7 -> 0.001268365987 | H15: =+D15/D$7 -> 0 | I15: =+E15/E$7 -> 0 | K15: 0 | L15: 0 | M15: 0 | N15: 0 | O15: =+K15/K$7 -> 0 | P15: =+L15/L$7 -> 0 | Q15: =+M15/M$7 -> 0 | R15: =+N15/N$7 -> 0 | T15: 1.577
A16: MTH Fuera de Punta Bajo | B16: 0 | C16: 6042.454 | D16: 0 | E16: 0 | F16: 0 | G16: 0.001983415677 | H16: 0 | I16: 0 | K16: 0 | L16: 0 | M16: 0 | N16: 0 | O16: 0 | P16: 0 | Q16: 0 | R16: 0 | T16: 0.9740833333
A17: MTD | B17: =+SUM(B18,B29,B40,B51,B62) -> 231.377 | C17: =+SUM(C18,C29,C40,C51,C62) -> 1005587.272 | D17: =+SUM(D18,D29,D40,D51,D62) -> 0 | E17: =+SUM(E18,E29,E40,E51,E62) -> 0 | F17: 0.0001427511522 | G17: 0.3300807189 | H17: 0 | I17: 0 | K17: =+SUM(K18,K29,K40,K51,K62) -> 10.58333333 | L17: =+SUM(L18,L29,L40,L51,L62) -> 646.4166667 | M17: =+SUM(M18,M29,M40,M51,M62) -> 0 | N17: =+SUM(N18,N29,N40,N51,N62) -> 1.833333333 | O17: 2.019313542e-05 | P17: 0.009325338294 | Q17: 0 | R17: 0.0136307311 | T17: =+SUM(T18,T29,T40,T51,T62) -> 208.1041767
A18: MTD_1 (0-10,000) | B18: =+SUM(B19:B28) -> 231.377 | C18: =+SUM(C19:C28) -> 1005587.272 | D18: =+SUM(D19:D28) -> 0 | E18: =+SUM(E19:E28) -> 0 | F18: 0.0001427511522 | G18: 0.3300807189 | H18: 0 | I18: 0 | K18: =+SUM(K19:K28) -> 10.58333333 | L18: =+SUM(L19:L28) -> 646.4166667 | M18: =+SUM(M19:M28) -> 0 | N18: =+SUM(N19:N28) -> 1.833333333 | O18: 2.019313542e-05 | P18: 0.009325338294 | Q18: 0 | R18: 0.0136307311 | T18: =+SUM(T19:T28) -> 208.1041767
A19: MTD_1 Regular | B19: 182.027 | C19: 997281.029 | D19: 0 | E19: 0 | F19: 0.000112304006 | G19: 0.3273542219 | H19: 0 | I19: 0 | K19: 8.5 | L19: 597.4166667 | M19: 0 | N19: 1.833333333 | O19: 1.621810876e-05 | P19: 0.008618454329 | Q19: 0 | R19: 0.0136307311 | T19: 203.8418975
A20: MTD_1 Agro | B20: 0 | C20: 8306.243 | D20: 0 | E20: 0 | F20: 0 | G20: 0.002726496981 | H20: 0 | I20: 0 | K20: 0 | L20: 49 | M20: 0 | N20: 0 | O20: 0 | P20: 0.0007068839651 | Q20: 0 | R20: 0 | T20: 4.1911125
A21: MTD_1 Jub. 1 | B21: 49.35 | C21: 0 | D21: 0 | E21: 0 | F21: 3.044714627e-05 | G21: 0 | H21: 0 | I21: 0 | K21: 1.083333333 | L21: 0 | M21: 0 | N21: 0 | O21: 2.067013861e-06 | P21: 0 | Q21: 0 | R21: 0 | T21: 0.005166666667
A22: MTD_1 Jub. 2 | B22: 0 | C22: 0 | D22: 0 | E22: 0 | F22: 0 | G22: 0 | H22: 0 | I22: 0 | K22: 1 | L22: 0 | M22: 0 | N22: 0 | O22: 1.908012795e-06 | P22: 0 | Q22: 0 | R22: 0 | T22: 0.066
A23: MTD_1 Político | B23: 0 | C23: 0 | D23: 0 | E23: 0 | F23: 0 | G23: 0 | H23: 0 | I23: 0 | K23: 0 | L23: 0 | M23: 0 | N23: 0 | O23: 0 | P23: 0 | Q23: 0 | R23: 0 | T23: 0
A24: MTD_1 x1 | B24: 0 | C24: 0 | D24: 0 | E24: 0 | F24: 0 | G24: 0 | H24: 0 | I24: 0 | K24: 0 | L24: 0 | M24: 0 | N24: 0 | O24: 0 | P24: 0 | Q24: 0 | R24: 0 | T24: 0
A25: MTD_1 x2 | B25: 0 | C25: 0 | D25: 0 | E25: 0 | F25: =+B25/B$7 -> 0 | G25: =+C25/C$7 -> 0 | H25: =+D25/D$7 -> 0 | I25: =+E25/E$7 -> 0 | K25: 0 | L25: 0 | M25: 0 | N25: 0 | O25: 0 | P25: 0 | Q25: 0 | R25: 0 | T25: 0
A26: MTD_1 Discap. | B26: 0 | C26: 0 | D26: 0 | E26: 0 | F26: 0 | G26: 0 | H26: 0 | I26: 0 | K26: 0 | L26: 0 | M26: 0 | N26: 0 | O26: 0 | P26: 0 | Q26: 0 | R26: 0 | T26: 0
A27: MTD_1 Discapacitados 601-más | B27: 0 | C27: 0 | D27: 0 | E27: 0 | F27: 0 | G27: 0 | H27: 0 | I27: 0 | K27: 0 | L27: 0 | M27: 0 | N27: 0 | O27: 0 | P27: 0 | Q27: 0 | R27: 0 | T27: 0
A28: MTD_1 Cruz Roja | B28: 0 | C28: 0 | D28: 0 | E28: 0 | F28: 0 | G28: 0 | H28: 0 | I28: 0 | K28: 0 | L28: 0 | M28: 0 | N28: 0 | O28: 0 | P28: 0 | Q28: 0 | R28: 0 | T28: 0
A29: MTD_2 (10,001-30,000) | B29: =+SUM(B30:B39) -> 0 | C29: =+SUM(C30:C39) -> 0 | D29: =+SUM(D30:D39) -> 0 | E29: =+SUM(E30:E39) -> 0 | F29: 0 | G29: 0 | H29: 0 | I29: 0 | K29: =+SUM(K30:K39) -> 0 | L29: =+SUM(L30:L39) -> 0 | M29: =+SUM(M30:M39) -> 0 | N29: =+SUM(N30:N39) -> 0 | O29: 0 | P29: 0 | Q29: 0 | R29: 0 | T29: =+SUM(T30:T39) -> 0
A30: MTD_2 Regular | B30: 0 | C30: 0 | D30: 0 | E30: 0 | F30: 0 | G30: 0 | H30: 0 | I30: 0 | K30: 0 | L30: 0 | M30: 0 | N30: 0 | O30: 0 | P30: 0 | Q30: 0 | R30: 0 | T30: 0
A31: MTD_2 Agro | B31: 0 | C31: 0 | D31: 0 | E31: 0 | F31: 0 | G31: 0 | H31: 0 | I31: 0 | K31: 0 | L31: 0 | M31: 0 | N31: 0 | O31: 0 | P31: 0 | Q31: 0 | R31: 0 | T31: 0
A32: MTD_2 Jub. 1 | B32: 0 | C32: 0 | D32: 0 | E32: 0 | F32: 0 | G32: 0 | H32: 0 | I32: 0 | K32: 0 | L32: 0 | M32: 0 | N32: 0 | O32: 0 | P32: 0 | Q32: 0 | R32: 0 | T32: 0
A33: MTD_2 Jub. 2 | B33: 0 | C33: 0 | D33: 0 | E33: 0 | F33: 0 | G33: 0 | H33: 0 | I33: 0 | K33: 0 | L33: 0 | M33: 0 | N33: 0 | O33: 0 | P33: 0 | Q33: 0 | R33: 0 | T33: 0
A34: MTD_2 Político | B34: 0 | C34: 0 | D34: 0 | E34: 0 | F34: 0 | G34: 0 | H34: 0 | I34: 0 | K34: 0 | L34: 0 | M34: 0 | N34: 0 | O34: 0 | P34: 0 | Q34: 0 | R34: 0 | T34: 0
A35: MTD_2 x1 | B35: 0 | C35: 0 | D35: 0 | E35: 0 | F35: 0 | G35: 0 | H35: 0 | I35: 0 | K35: 0 | L35: 0 | M35: 0 | N35: 0 | O35: 0 | P35: 0 | Q35: 0 | R35: 0 | T35: 0
A36: MTD_2 x2 | B36: 0 | C36: 0 | D36: 0 | E36: 0 | F36: 0 | G36: 0 | H36: 0 | I36: 0 | K36: 0 | L36: 0 | M36: 0 | N36: 0 | O36: 0 | P36: 0 | Q36: 0 | R36: 0 | T36: 0
A37: MTD_2 Discap. | B37: 0 | C37: 0 | D37: 0 | E37: 0 | F37: 0 | G37: 0 | H37: 0 | I37: 0 | K37: 0 | L37: 0 | M37: 0 | N37: 0 | O37: 0 | P37: 0 | Q37: 0 | R37: 0 | T37: 0
A38: MTD_2 Discapacitados 601-más | B38: 0 | C38: 0 | D38: 0 | E38: 0 | F38: 0 | G38: 0 | H38: 0 | I38: 0 | K38: 0 | L38: 0 | M38: 0 | N38: 0 | O38: 0 | P38: 0 | Q38: 0 | R38: 0 | T38: 0
A39: MTD_2 Cruz Roja | B39: 0 | C39: 0 | D39: 0 | E39: 0 | F39: 0 | G39: 0 | H39: 0 | I39: 0 | K39: 0 | L39: 0 | M39: 0 | N39: 0 | O39: 0 | P39: 0 | Q39: 0 | R39: 0 | T39: 0
A40: MTD_3 (30,001-50,000) | B40: =+SUM(B41:B50) -> 0 | C40: =+SUM(C41:C50) -> 0 | D40: =+SUM(D41:D50) -> 0 | E40: =+SUM(E41:E50) -> 0 | F40: 0 | G40: 0 | H40: 0 | I40: 0 | K40: =+SUM(K41:K50) -> 0 | L40: =+SUM(L41:L50) -> 0 | M40: =+SUM(M41:M50) -> 0 | N40: =+SUM(N41:N50) -> 0 | O40: 0 | P40: 0 | Q40: 0 | R40: 0 | T40: =+SUM(T41:T50) -> 0
A41: MTD_3 Regular | B41: 0 | C41: 0 | D41: 0 | E41: 0 | F41: 0 | G41: 0 | H41: 0 | I41: 0 | K41: 0 | L41: 0 | M41: 0 | N41: 0 | O41: 0 | P41: 0 | Q41: 0 | R41: 0 | T41: 0
A42: MTD_3 Agro | B42: 0 | C42: 0 | D42: 0 | E42: 0 | F42: 0 | G42: 0 | H42: 0 | I42: 0 | K42: 0 | L42: 0 | M42: 0 | N42: 0 | O42: 0 | P42: 0 | Q42: 0 | R42: 0 | T42: 0
A43: MTD_3 Jub. 1 | B43: 0 | C43: 0 | D43: 0 | E43: 0 | F43: 0 | G43: 0 | H43: 0 | I43: 0 | K43: 0 | L43: 0 | M43: 0 | N43: 0 | O43: 0 | P43: 0 | Q43: 0 | R43: 0 | T43: 0
A44: MTD_3 Jub. 2 | B44: 0 | C44: 0 | D44: 0 | E44: 0 | F44: 0 | G44: 0 | H44: 0 | I44: 0 | K44: 0 | L44: 0 | M44: 0 | N44: 0 | O44: 0 | P44: 0 | Q44: 0 | R44: 0 | T44: 0
A45: MTD_3 Político | B45: 0 | C45: 0 | D45: 0 | E45: 0 | F45: 0 | G45: 0 | H45: 0 | I45: 0 | K45: 0 | L45: 0 | M45: 0 | N45: 0 | O45: 0 | P45: 0 | Q45: 0 | R45: 0 | T45: 0
A46: MTD_3 x1 | B46: 0 | C46: 0 | D46: 0 | E46: 0 | F46: 0 | G46: 0 | H46: 0 | I46: 0 | K46: 0 | L46: 0 | M46: 0 | N46: 0 | O46: 0 | P46: 0 | Q46: 0 | R46: 0 | T46: 0
A47: MTD_3 x2 | B47: 0 | C47: 0 | D47: 0 | E47: 0 | F47: 0 | G47: 0 | H47: 0 | I47: 0 | K47: 0 | L47: 0 | M47: 0 | N47: 0 | O47: 0 | P47: 0 | Q47: 0 | R47: 0 | T47: 0
A48: MTD_3 Discap. | B48: 0 | C48: 0 | D48: 0 | E48: 0 | F48: 0 | G48: 0 | H48: 0 | I48: 0 | K48: 0 | L48: 0 | M48: 0 | N48: 0 | O48: 0 | P48: 0 | Q48: 0 | R48: 0 | T48: 0
A49: MTD_3 Discapacitados 601-más | B49: 0 | C49: 0 | D49: 0 | E49: 0 | F49: 0 | G49: 0 | H49: 0 | I49: 0 | K49: 0 | L49: 0 | M49: 0 | N49: 0 | O49: 0 | P49: 0 | Q49: 0 | R49: 0 | T49: 0
A50: MTD_3 Cruz Roja | B50: 0 | C50: 0 | D50: 0 | E50: 0 | F50: 0 | G50: 0 | H50: 0 | I50: 0 | K50: 0 | L50: 0 | M50: 0 | N50: 0 | O50: 0 | P50: 0 | Q50: 0 | R50: 0 | T50: 0
A51: MTD_4 (50,001-más) | B51: =+SUM(B52:B61) -> 0 | C51: =+SUM(C52:C61) -> 0 | D51: =+SUM(D52:D61) -> 0 | E51: =+SUM(E52:E61) -> 0 | F51: 0 | G51: 0 | H51: 0 | I51: 0 | K51: =+SUM(K52:K61) -> 0 | L51: =+SUM(L52:L61) -> 0 | M51: =+SUM(M52:M61) -> 0 | N51: =+SUM(N52:N61) -> 0 | O51: 0 | P51: 0 | Q51: 0 | R51: 0 | T51: =+SUM(T52:T61) -> 0
A52: MTD_4 Regular | B52: 0 | C52: 0 | D52: 0 | E52: 0 | F52: 0 | G52: 0 | H52: 0 | I52: 0 | K52: 0 | L52: 0 | M52: 0 | N52: 0 | O52: 0 | P52: 0 | Q52: 0 | R52: 0 | T52: 0
A53: MTD_4 Agro | B53: 0 | C53: 0 | D53: 0 | E53: 0 | F53: 0 | G53: 0 | H53: 0 | I53: 0 | K53: 0 | L53: 0 | M53: 0 | N53: 0 | O53: 0 | P53: 0 | Q53: 0 | R53: 0 | T53: 0
A54: MTD_4 Jub. 1 | B54: 0 | C54: 0 | D54: 0 | E54: 0 | F54: 0 | G54: 0 | H54: 0 | I54: 0 | K54: 0 | L54: 0 | M54: 0 | N54: 0 | O54: 0 | P54: 0 | Q54: 0 | R54: 0 | T54: 0
A55: MTD_4 Jub. 2 | B55: 0 | C55: 0 | D55: 0 | E55: 0 | F55: 0 | G55: 0 | H55: 0 | I55: 0 | K55: 0 | L55: 0 | M55: 0 | N55: 0 | O55: 0 | P55: 0 | Q55: 0 | R55: 0 | T55: 0
A56: MTD_4 Político | B56: 0 | C56: 0 | D56: 0 | E56: 0 | F56: 0 | G56: 0 | H56: 0 | I56: 0 | K56: 0 | L56: 0 | M56: 0 | N56: 0 | O56: 0 | P56: 0 | Q56: 0 | R56: 0 | T56: 0
A57: MTD_4 x1 | B57: 0 | C57: 0 | D57: 0 | E57: 0 | F57: 0 | G57: 0 | H57: 0 | I57: 0 | K57: 0 | L57: 0 | M57: 0 | N57: 0 | O57: 0 | P57: 0 | Q57: 0 | R57: 0 | T57: 0
A58: MTD_4 x2 | B58: 0 | C58: 0 | D58: 0 | E58: 0 | F58: 0 | G58: 0 | H58: 0 | I58: 0 | K58: 0 | L58: 0 | M58: 0 | N58: 0 | O58: 0 | P58: 0 | Q58: 0 | R58: 0 | T58: 0
A59: MTD_4 Discap. | B59: 0 | C59: 0 | D59: 0 | E59: 0 | F59: 0 | G59: 0 | H59: 0 | I59: 0 | K59: 0 | L59: 0 | M59: 0 | N59: 0 | O59: 0 | P59: 0 | Q59: 0 | R59: 0 | T59: 0
A60: MTD_4 Discapacitados 601-más | B60: 0 | C60: 0 | D60: 0 | E60: 0 | F60: 0 | G60: 0 | H60: 0 | I60: 0 | K60: 0 | L60: 0 | M60: 0 | N60: 0 | O60: 0 | P60: 0 | Q60: 0 | R60: 0 | T60: 0
A61: MTD_4 Cruz Roja | B61: 0 | C61: 0 | D61: 0 | E61: 0 | F61: 0 | G61: 0 | H61: 0 | I61: 0 | K61: 0 | L61: 0 | M61: 0 | N61: 0 | O61: 0 | P61: 0 | Q61: 0 | R61: 0 | T61: 0
A62: MTD_5 (xxx) | B62: =+SUM(B63:B72) -> 0 | C62: =+SUM(C63:C72) -> 0 | D62: =+SUM(D63:D72) -> 0 | E62: =+SUM(E63:E72) -> 0 | F62: 0 | G62: 0 | H62: 0 | I62: 0 | K62: =+SUM(K63:K72) -> 0 | L62: =+SUM(L63:L72) -> 0 | M62: =+SUM(M63:M72) -> 0 | N62: =+SUM(N63:N72) -> 0 | O62: 0 | P62: 0 | Q62: 0 | R62: 0 | T62: =+SUM(T63:T72) -> 0
A63: MTD_5 Regular | B63: 0 | C63: 0 | D63: 0 | E63: 0 | F63: 0 | G63: 0 | H63: 0 | I63: 0 | K63: 0 | L63: 0 | M63: 0 | N63: 0 | O63: 0 | P63: 0 | Q63: 0 | R63: 0 | T63: 0
A64: MTD_5 Agro | B64: 0 | C64: 0 | D64: 0 | E64: 0 | F64: 0 | G64: 0 | H64: 0 | I64: 0 | K64: 0 | L64: 0 | M64: 0 | N64: 0 | O64: 0 | P64: 0 | Q64: 0 | R64: 0 | T64: 0
A65: MTD_5 Jub. 1 | B65: 0 | C65: 0 | D65: 0 | E65: 0 | F65: 0 | G65: 0 | H65: 0 | I65: 0 | K65: 0 | L65: 0 | M65: 0 | N65: 0 | O65: 0 | P65: 0 | Q65: 0 | R65: 0 | T65: 0
A66: MTD_5 Jub. 2 | B66: 0 | C66: 0 | D66: 0 | E66: 0 | F66: 0 | G66: 0 | H66: 0 | I66: 0 | K66: 0 | L66: 0 | M66: 0 | N66: 0 | O66: 0 | P66: 0 | Q66: 0 | R66: 0 | T66: 0
A67: MTD_5 Político | B67: 0 | C67: 0 | D67: 0 | E67: 0 | F67: 0 | G67: 0 | H67: 0 | I67: 0 | K67: 0 | L67: 0 | M67: 0 | N67: 0 | O67: 0 | P67: 0 | Q67: 0 | R67: 0 | T67: 0
A68: MTD_5 x1 | B68: 0 | C68: 0 | D68: 0 | E68: 0 | F68: 0 | G68: 0 | H68: 0 | I68: 0 | K68: 0 | L68: 0 | M68: 0 | N68: 0 | O68: 0 | P68: 0 | Q68: 0 | R68: 0 | T68: 0
A69: MTD_5 x2 | B69: 0 | C69: 0 | D69: 0 | E69: 0 | F69: 0 | G69: 0 | H69: 0 | I69: 0 | K69: 0 | L69: 0 | M69: 0 | N69: 0 | O69: 0 | P69: 0 | Q69: 0 | R69: 0 | T69: 0
A70: MTD_5 Discap. | B70: 0 | C70: 0 | D70: 0 | E70: 0 | F70: 0 | G70: 0 | H70: 0 | I70: 0 | K70: 0 | L70: 0 | M70: 0 | N70: 0 | O70: 0 | P70: 0 | Q70: 0 | R70: 0 | T70: 0
A71: MTD_5 Discapacitados 601-más | B71: 0 | C71: 0 | D71: 0 | E71: 0 | F71: 0 | G71: 0 | H71: 0 | I71: 0 | K71: 0 | L71: 0 | M71: 0 | N71: 0 | O71: 0 | P71: 0 | Q71: 0 | R71: 0 | T71: 0
A72: MTD_5 Cruz Roja | B72: 0 | C72: 0 | D72: 0 | E72: 0 | F72: 0 | G72: 0 | H72: 0 | I72: 0 | K72: 0 | L72: 0 | M72: 0 | N72: 0 | O72: 0 | P72: 0 | Q72: 0 | R72: 0 | T72: 0
A73: BTH | B73: =+SUM(B74:B76) -> 823.973 | C73: =+SUM(C74:C76) -> 22998.575 | D73: =+SUM(D74:D76) -> 0 | E73: =+SUM(E74:E76) -> 0 | F73: 0.000508361225 | G73: 0.007549206699 | H73: 0 | I73: 0 | K73: 16.41666667 | L73: 59.91666667 | M73: 0 | N73: 0 | O73: 3.132321005e-05 | P73: 0.0008643700185 | Q73: 0 | R73: 0 | T73: =+SUM(T74:T76) -> 11.45965667
A74: BTH Punta | B74: 187.382 | C74: 5732.196 | D74: 0 | E74: 0 | F74: 0.0001156078452 | G74: 0.001881574508 | H74: 0 | I74: 0 | K74: 0 | L74: 0 | M74: 0 | N74: 0 | O74: 0 | P74: 0 | Q74: 0 | R74: 0 | T74: 5.320746667
A75: BTH Fuera de Punta Medio | B75: 266.479 | C75: 6808.499 | D75: 0 | E75: 0 | F75: =+B75/B$7 -> 0.0001644078033 | G75: =+C75/C$7 -> 0.002234867432 | H75: =+D75/D$7 -> 0 | I75: =+E75/E$7 -> 0 | K75: 0 | L75: 0 | M75: 0 | N75: 0 | O75: =+K75/K$7 -> 0 | P75: =+L75/L$7 -> 0 | Q75: =+M75/M$7 -> 0 | R75: =+N75/N$7 -> 0 | T75: 2.9045
A76: BTH Fuera de Punta Bajo | B76: 370.112 | C76: 10457.88 | D76: 0 | E76: 0 | F76: 0.0002283455765 | G76: 0.003432764758 | H76: 0 | I76: 0 | K76: 0 | L76: 0 | M76: 0 | N76: 0 | O76: =+K76/K$7 -> 0 | P76: =+L76/L$7 -> 0 | Q76: =+M76/M$7 -> 0 | R76: =+N76/N$7 -> 0 | T76: 3.23441
A77: BTD | B77: =+SUM(B78,B89,B100,B111,B122) -> 4400.01 | C77: =+SUM(C78,C89,C100,C111,C122) -> 1482834.14 | D77: =+SUM(D78,D89,D100,D111,D122) -> 0 | E77: =+SUM(E78,E89,E100,E111,E122) -> 1788.432 | F77: 0.002714645351 | G77: 0.4867354357 | H77: 0 | I77: 0.4719978633 | K77: =+SUM(K78,K89,K100,K111,K122) -> 50.5 | L77: =+SUM(L78,L89,L100,L111,L122) -> 8859.030303 | M77: =+SUM(M78,M89,M100,M111,M122) -> 0 | N77: =+SUM(N78,N89,N100,N111,N122) -> 19 | O77: 9.635464615e-05 | P77: 0.1278021728 | Q77: 0 | R77: 0.1412639405 | T77: =+SUM(T78,T89,T100,T111,T122) -> 447.4588033 | AA77: =+D77 -> 0 | AB77: =+E77 -> 1788.432
A78: BTD_1 (0-10,000) | B78: =+SUM(B79:B88) -> 2084.08 | C78: =+SUM(C79:C88) -> 612745.335 | D78: =+SUM(D79:D88) -> 0 | E78: =+SUM(E79:E88) -> 1128.642 | F78: 0.001285801187 | G78: 0.2011316435 | H78: 0 | I78: 0.2978679718 | K78: =+SUM(K79:K88) -> 41.25 | L78: =+SUM(L79:L88) -> 6182.916667 | M78: =+SUM(M79:M88) -> 0 | N78: =+SUM(N79:N88) -> 15.33333333 | O78: 7.87055278e-05 | P78: 0.08919601325 | Q78: 0 | R78: 0.1140024783 | T78: =+SUM(T79:T88) -> 207.9690767
A79: BTD_1 Regular | B79: 1672.858 | C79: 610073.935 | D79: 0 | E79: 1128.642 | F79: 0.001032092244 | G79: 0.2002547652 | H79: 0 | I79: 0.2978679718 | K79: 34.58333333 | L79: 6129.833333 | M79: 0 | N79: 15.33333333 | O79: 6.59854425e-05 | P79: 0.08843022228 | Q79: 0 | R79: 0.1140024783 | T79: 200.6932433 | AA79: 4026.381383 | AB79: 16105.52553 | AD79: 126.3359167
A80: BTD_1 Agro | B80: 0 | C80: 2586.434 | D80: 0 | E80: 0 | F80: 0 | G80: 0.0008489884646 | H80: 0 | I80: 0 | K80: 0 | L80: 45.66666667 | M80: 0 | N80: 0 | O80: 0 | P80: 0.0006587966205 | Q80: 0 | R80: 0 | T80: 1.23575 | AA80: 83.27774248 | AB80: 333.1109699
A81: BTD_1 Jub. 1 | B81: -0.16 | C81: 0 | D81: 0 | E81: 0 | F81: -9.871415205e-08 | G81: 0 | H81: 0 | I81: 0 | K81: 0.75 | L81: 0 | M81: 0 | N81: 0 | O81: 1.431009596e-06 | P81: 0 | Q81: 0 | R81: 0 | T81: 5.75 | AA81: =+AA79/AA80 -> 48.34882963 | AB81: =+AB79/AB80 -> 48.34882963 | AD81: =+AD79/Y80 -> 
A82: BTD_1 Jub. 2 | B82: 411.382 | C82: 0 | D82: 0 | E82: 0 | F82: 0.0002538076581 | G82: 0 | H82: 0 | I82: 0 | K82: 5.916666667 | L82: 0 | M82: 0 | N82: 0 | O82: 1.12890757e-05 | P82: 0 | Q82: 0 | R82: 0 | T82: 0.215 | AA82: =+AA81*10 -> 483.4882963 | AB82: =+AB81*10 -> 483.4882963 | AD82: =+AD81*10 -> 
A83: BTD_1 Político | B83: 0 | C83: 84.966 | D83: 0 | E83: 0 | F83: 0 | G83: 2.788981041e-05 | H83: 0 | I83: 0 | K83: 0 | L83: 3.416666667 | M83: 0 | N83: 0 | O83: 0 | P83: 4.928952818e-05 | Q83: 0 | R83: 0 | T83: 0.07508333333 | AA83: =+AA82/AA79 -> 0.1200801043 | AB83: =+AB82/AB79 -> 0.03002002607
A84: BTD_1 x1 | B84: 0 | C84: 0 | D84: 0 | E84: 0 | F84: 0 | G84: 0 | H84: 0 | I84: 0 | K84: 0 | L84: 0 | M84: 0 | N84: 0 | O84: 0 | P84: 0 | Q84: 0 | R84: 0 | T84: 0
A85: BTD_1 x2 | B85: 0 | C85: 0 | D85: 0 | E85: 0 | F85: 0 | G85: 0 | H85: 0 | I85: 0 | K85: 0 | L85: 0 | M85: 0 | N85: 0 | O85: 0 | P85: 0 | Q85: 0 | R85: 0 | T85: 0
A86: BTD_1 Discap. | B86: 0 | C86: 0 | D86: 0 | E86: 0 | F86: 0 | G86: 0 | H86: 0 | I86: 0 | K86: 0 | L86: 0 | M86: 0 | N86: 0 | O86: 0 | P86: 0 | Q86: 0 | R86: 0 | T86: 0
A87: BTD_1 Discapacitados 601-más | B87: 0 | C87: 0 | D87: 0 | E87: 0 | F87: 0 | G87: 0 | H87: 0 | I87: 0 | K87: 0 | L87: 0 | M87: 0 | N87: 0 | O87: 0 | P87: 0 | Q87: 0 | R87: 0 | T87: 0
A88: BTD_1 Cruz Roja | B88: 0 | C88: 0 | D88: 0 | E88: 0 | F88: 0 | G88: 0 | H88: 0 | I88: 0 | K88: 0 | L88: 4 | M88: 0 | N88: 0 | O88: 0 | P88: 5.770481348e-05 | Q88: 0 | R88: 0 | T88: 0
A89: BTD_2 (10,001-30,000) | B89: =+SUM(B90:B99) -> 1479.286 | C89: =+SUM(C90:C99) -> 395589.626 | D89: =+SUM(D90:D99) -> 0 | E89: =+SUM(E90:E99) -> 659.79 | F89: 0.0009126653945 | G89: 0.1298509953 | H89: 0 | I89: 0.1741298916 | K89: =+SUM(K90:K99) -> 7.583333333 | L89: =+SUM(L90:L99) -> 2024.083333 | M89: =+SUM(M90:M99) -> 0 | N89: =+SUM(N90:N99) -> 3.666666667 | O89: 1.446909703e-05 | P89: 0.0291998378 | Q89: 0 | R89: 0.02726146221 | T89: =+SUM(T90:T99) -> 121.15791
A90: BTD_2 Regular | B90: 1095.306 | C90: 393330.609 | D90: 0 | E90: 659.79 | F90: =+B90/B$7 -> 0.0006757637689 | G90: =+C90/C$7 -> 0.1291094804 | H90: =+D90/D$7 -> 0 | I90: =+E90/E$7 -> 0.1741298916 | K90: 5.666666667 | L90: 2012.25 | M90: 0 | N90: 3.666666667 | O90: 1.081207251e-05 | P90: 0.02902912773 | Q90: 0 | R90: 0.02726146221 | T90: 120.3238267
A91: BTD_2 Agro | B91: 0 | C91: 2147.657 | D91: 0 | E91: 0 | F91: 0 | G91: 0.0007049613557 | H91: 0 | I91: 0 | K91: 0 | L91: 10.83333333 | M91: 0 | N91: 0 | O91: 0 | P91: 0.0001562838698 | Q91: 0 | R91: 0 | T91: 0.6350833333
A92: BTD_2 Jub. 1 | B92: 0 | C92: 0 | D92: 0 | E92: 0 | F92: 0 | G92: 0 | H92: 0 | I92: 0 | K92: 0 | L92: 0 | M92: 0 | N92: 0 | O92: 0 | P92: 0 | Q92: 0 | R92: 0 | T92: 0
A93: BTD_2 Jub. 2 | B93: 383.98 | C93: 0 | D93: 0 | E93: 0 | F93: 0.0002369016256 | G93: 0 | H93: 0 | I93: 0 | K93: 1.916666667 | L93: 0 | M93: 0 | N93: 0 | O93: 3.657024524e-06 | P93: 0 | Q93: 0 | R93: 0 | T93: 0.127
A94: BTD_2 Político | B94: 0 | C94: 111.36 | D94: 0 | E94: 0 | F94: 0 | G94: 3.655355421e-05 | H94: 0 | I94: 0 | K94: 0 | L94: 1 | M94: 0 | N94: 0 | O94: 0 | P94: 1.442620337e-05 | Q94: 0 | R94: 0 | T94: 0.072
A95: BTD_2 x1 | B95: 0 | C95: 0 | D95: 0 | E95: 0 | F95: 0 | G95: 0 | H95: 0 | I95: 0 | K95: 0 | L95: 0 | M95: 0 | N95: 0 | O95: 0 | P95: 0 | Q95: 0 | R95: 0 | T95: 0
A96: BTD_2 x2 | B96: 0 | C96: 0 | D96: 0 | E96: 0 | F96: 0 | G96: 0 | H96: 0 | I96: 0 | K96: 0 | L96: 0 | M96: 0 | N96: 0 | O96: 0 | P96: 0 | Q96: 0 | R96: 0 | T96: 0
A97: BTD_2 Discap. | B97: 0 | C97: 0 | D97: 0 | E97: 0 | F97: 0 | G97: 0 | H97: 0 | I97: 0 | K97: 0 | L97: 0 | M97: 0 | N97: 0 | O97: 0 | P97: 0 | Q97: 0 | R97: 0 | T97: 0
A98: BTD_2 Discapacitados 601-más | B98: 0 | C98: 0 | D98: 0 | E98: 0 | F98: 0 | G98: 0 | H98: 0 | I98: 0 | K98: 0 | L98: 0 | M98: 0 | N98: 0 | O98: 0 | P98: 0 | Q98: 0 | R98: 0 | T98: 0
A99: BTD_2 Cruz Roja | B99: 0 | C99: 0 | D99: 0 | E99: 0 | F99: 0 | G99: 0 | H99: 0 | I99: 0 | K99: 0 | L99: 0 | M99: 0 | N99: 0 | O99: 0 | P99: 0 | Q99: 0 | R99: 0 | T99: 0
A100: BTD_3 (30,001-50,000) | B100: =+SUM(B101:B110) -> 678.724 | C100: =+SUM(C101:C110) -> 177417.235 | D100: =+SUM(D101:D110) -> 0 | E100: =+SUM(E101:E110) -> 0 | F100: 0.0004187479008 | G100: 0.05823662461 | H100: 0 | I100: 0 | K100: =+SUM(K101:K110) -> 1.416666667 | L100: =+SUM(L101:L110) -> 389.6136364 | M100: =+SUM(M101:M110) -> 0 | N100: =+SUM(N101:N110) -> 0 | O100: 2.703018126e-06 | P100: 0.005620645553 | Q100: 0 | R100: 0 | T100: =+SUM(T101:T110) -> 47.86616667
A101: BTD_3 Regular | B101: 678.724 | C101: 176761.339 | D101: 0 | E101: 0 | F101: 0.0004187479008 | G101: 0.05802132891 | H101: 0 | I101: 0 | K101: 1.416666667 | L101: 388.25 | M101: 0 | N101: 0 | O101: 2.703018126e-06 | P101: 0.005600973458 | Q101: 0 | R101: 0 | T101: 47.69366667
A102: BTD_3 Agro | B102: 0 | C102: 655.896 | D102: 0 | E102: 0 | F102: 0 | G102: 0.0002152957075 | H102: 0 | I102: 0 | K102: 0 | L102: 1.363636364 | M102: 0 | N102: 0 | O102: 0 | P102: 1.96720955e-05 | Q102: 0 | R102: 0 | T102: 0.1725
A103: BTD_3 Jub. 1 | B103: 0 | C103: 0 | D103: 0 | E103: 0 | F103: 0 | G103: 0 | H103: 0 | I103: 0 | K103: 0 | L103: 0 | M103: 0 | N103: 0 | O103: 0 | P103: 0 | Q103: 0 | R103: 0 | T103: 0
A104: BTD_3 Jub. 2 | B104: 0 | C104: 0 | D104: 0 | E104: 0 | F104: 0 | G104: 0 | H104: 0 | I104: 0 | K104: 0 | L104: 0 | M104: 0 | N104: 0 | O104: 0 | P104: 0 | Q104: 0 | R104: 0 | T104: 0
A105: BTD_3 Político | B105: 0 | C105: 0 | D105: 0 | E105: 0 | F105: 0 | G105: 0 | H105: 0 | I105: 0 | K105: 0 | L105: 0 | M105: 0 | N105: 0 | O105: 0 | P105: 0 | Q105: 0 | R105: 0 | T105: 0
A106: BTD_3 x1 | B106: 0 | C106: 0 | D106: 0 | E106: 0 | F106: 0 | G106: 0 | H106: 0 | I106: 0 | K106: 0 | L106: 0 | M106: 0 | N106: 0 | O106: 0 | P106: 0 | Q106: 0 | R106: 0 | T106: 0
A107: BTD_3 x2 | B107: 0 | C107: 0 | D107: 0 | E107: 0 | F107: 0 | G107: 0 | H107: 0 | I107: 0 | K107: 0 | L107: 0 | M107: 0 | N107: 0 | O107: 0 | P107: 0 | Q107: 0 | R107: 0 | T107: 0
A108: BTD_3 Discap. | B108: 0 | C108: 0 | D108: 0 | E108: 0 | F108: 0 | G108: 0 | H108: 0 | I108: 0 | K108: 0 | L108: 0 | M108: 0 | N108: 0 | O108: 0 | P108: 0 | Q108: 0 | R108: 0 | T108: 0
A109: BTD_3 Discapacitados 601-más | B109: 0 | C109: 0 | D109: 0 | E109: 0 | F109: 0 | G109: 0 | H109: 0 | I109: 0 | K109: 0 | L109: 0 | M109: 0 | N109: 0 | O109: 0 | P109: 0 | Q109: 0 | R109: 0 | T109: 0
A110: BTD_3 Cruz Roja | B110: 0 | C110: 0 | D110: 0 | E110: 0 | F110: 0 | G110: 0 | H110: 0 | I110: 0 | K110: 0 | L110: 0 | M110: 0 | N110: 0 | O110: 0 | P110: 0 | Q110: 0 | R110: 0 | T110: 0
A111: BTD_4 (50,001-más) | B111: =+SUM(B112:B121) -> 157.92 | C111: =+SUM(C112:C121) -> 297081.944 | D111: =+SUM(D112:D121) -> 0 | E111: =+SUM(E112:E121) -> 0 | F111: 9.743086807e-05 | G111: 0.09751617227 | H111: 0 | I111: 0 | K111: =+SUM(K112:K121) -> 0.25 | L111: =+SUM(L112:L121) -> 262.4166667 | M111: =+SUM(M112:M121) -> 0 | N111: =+SUM(N112:N121) -> 0 | O111: 4.770031988e-07 | P111: 0.003785676201 | Q111: 0 | R111: 0 | T111: =+SUM(T112:T121) -> 70.46565
A112: BTD_4 Regular | B112: 157.92 | C112: 295195.686 | D112: 0 | E112: 0 | F112: 9.743086807e-05 | G112: 0.09689701428 | H112: 0 | I112: 0 | K112: 0.25 | L112: 260.4166667 | M112: 0 | N112: 0 | O112: 4.770031988e-07 | P112: 0.003756823794 | Q112: 0 | R112: 0 | T112: 69.91275
A113: BTD_4 Agro | B113: 0 | C113: 1886.258 | D113: 0 | E113: 0 | F113: 0 | G113: 0.0006191579926 | H113: 0 | I113: 0 | K113: 0 | L113: 2 | M113: 0 | N113: 0 | O113: 0 | P113: 2.885240674e-05 | Q113: 0 | R113: 0 | T113: 0.5529
A114: BTD_4 Jub. 1 | B114: 0 | C114: 0 | D114: 0 | E114: 0 | F114: 0 | G114: 0 | H114: 0 | I114: 0 | K114: 0 | L114: 0 | M114: 0 | N114: 0 | O114: 0 | P114: 0 | Q114: 0 | R114: 0 | T114: 0
A115: BTD_4 Jub. 2 | B115: 0 | C115: 0 | D115: 0 | E115: 0 | F115: 0 | G115: 0 | H115: 0 | I115: 0 | K115: 0 | L115: 0 | M115: 0 | N115: 0 | O115: 0 | P115: 0 | Q115: 0 | R115: 0 | T115: 0
A116: BTD_4 Político | B116: 0 | C116: 0 | D116: 0 | E116: 0 | F116: 0 | G116: 0 | H116: 0 | I116: 0 | K116: 0 | L116: 0 | M116: 0 | N116: 0 | O116: 0 | P116: 0 | Q116: 0 | R116: 0 | T116: 0
A117: BTD_4 x1 | B117: 0 | C117: 0 | D117: 0 | E117: 0 | F117: 0 | G117: 0 | H117: 0 | I117: 0 | K117: 0 | L117: 0 | M117: 0 | N117: 0 | O117: 0 | P117: 0 | Q117: 0 | R117: 0 | T117: 0
A118: BTD_4 x2 | B118: 0 | C118: 0 | D118: 0 | E118: 0 | F118: 0 | G118: 0 | H118: 0 | I118: 0 | K118: 0 | L118: 0 | M118: 0 | N118: 0 | O118: 0 | P118: 0 | Q118: 0 | R118: 0 | T118: 0
A119: BTD_4 Discap. | B119: 0 | C119: 0 | D119: 0 | E119: 0 | F119: 0 | G119: 0 | H119: 0 | I119: 0 | K119: 0 | L119: 0 | M119: 0 | N119: 0 | O119: 0 | P119: 0 | Q119: 0 | R119: 0 | T119: 0
A120: BTD_4 Discapacitados 601-más | B120: 0 | C120: 0 | D120: 0 | E120: 0 | F120: 0 | G120: 0 | H120: 0 | I120: 0 | K120: 0 | L120: 0 | M120: 0 | N120: 0 | O120: 0 | P120: 0 | Q120: 0 | R120: 0 | T120: 0
A121: BTD_4 Cruz Roja | B121: 0 | C121: 0 | D121: 0 | E121: 0 | F121: 0 | G121: 0 | H121: 0 | I121: 0 | K121: 0 | L121: 0 | M121: 0 | N121: 0 | O121: 0 | P121: 0 | Q121: 0 | R121: 0 | T121: 0
A122: BTD_5 (xxx) | B122: =+SUM(B123:B132) -> 0 | C122: =+SUM(C123:C132) -> 0 | D122: =+SUM(D123:D132) -> 0 | E122: =+SUM(E123:E132) -> 0 | F122: 0 | G122: 0 | H122: 0 | I122: 0 | K122: =+SUM(K123:K132) -> 0 | L122: =+SUM(L123:L132) -> 0 | M122: =+SUM(M123:M132) -> 0 | N122: =+SUM(N123:N132) -> 0 | O122: 0 | P122: 0 | Q122: 0 | R122: 0 | T122: =+SUM(T123:T132) -> 0
A123: BTD_5 Regular | B123: 0 | C123: 0 | D123: 0 | E123: 0 | F123: 0 | G123: 0 | H123: 0 | I123: 0 | K123: 0 | L123: 0 | M123: 0 | N123: 0 | O123: 0 | P123: 0 | Q123: 0 | R123: 0 | T123: 0
A124: BTD_5 Agro | B124: 0 | C124: 0 | D124: 0 | E124: 0 | F124: 0 | G124: 0 | H124: 0 | I124: 0 | K124: 0 | L124: 0 | M124: 0 | N124: 0 | O124: 0 | P124: 0 | Q124: 0 | R124: 0 | T124: 0
A125: BTD_5 Jub. 1 | B125: 0 | C125: 0 | D125: 0 | E125: 0 | F125: 0 | G125: 0 | H125: 0 | I125: 0 | K125: 0 | L125: 0 | M125: 0 | N125: 0 | O125: 0 | P125: 0 | Q125: 0 | R125: 0 | T125: 0
A126: BTD_5 Jub. 2 | B126: 0 | C126: 0 | D126: 0 | E126: 0 | F126: 0 | G126: 0 | H126: 0 | I126: 0 | K126: 0 | L126: 0 | M126: 0 | N126: 0 | O126: 0 | P126: 0 | Q126: 0 | R126: 0 | T126: 0
A127: BTD_5 Político | B127: 0 | C127: 0 | D127: 0 | E127: 0 | F127: 0 | G127: 0 | H127: 0 | I127: 0 | K127: 0 | L127: 0 | M127: 0 | N127: 0 | O127: 0 | P127: 0 | Q127: 0 | R127: 0 | T127: 0
A128: BTD_5 x1 | B128: 0 | C128: 0 | D128: 0 | E128: 0 | F128: 0 | G128: 0 | H128: 0 | I128: 0 | K128: 0 | L128: 0 | M128: 0 | N128: 0 | O128: 0 | P128: 0 | Q128: 0 | R128: 0 | T128: 0
A129: BTD_5 x2 | B129: 0 | C129: 0 | D129: 0 | E129: 0 | F129: 0 | G129: 0 | H129: 0 | I129: 0 | K129: 0 | L129: 0 | M129: 0 | N129: 0 | O129: 0 | P129: 0 | Q129: 0 | R129: 0 | T129: 0
A130: BTD_5 Discap. | B130: 0 | C130: 0 | D130: 0 | E130: 0 | F130: 0 | G130: 0 | H130: 0 | I130: 0 | K130: 0 | L130: 0 | M130: 0 | N130: 0 | O130: 0 | P130: 0 | Q130: 0 | R130: 0 | T130: 0
A131: BTD_5 Discapacitados 601-más | B131: 0 | C131: 0 | D131: 0 | E131: 0 | F131: 0 | G131: 0 | H131: 0 | I131: 0 | K131: 0 | L131: 0 | M131: 0 | N131: 0 | O131: 0 | P131: 0 | Q131: 0 | R131: 0 | T131: 0
A132: BTD_5 Cruz Roja | B132: 0 | C132: 0 | D132: 0 | E132: 0 | F132: 0 | G132: 0 | H132: 0 | I132: 0 | K132: 0 | L132: 0 | M132: 0 | N132: 0 | O132: 0 | P132: 0 | Q132: 0 | R132: 0 | T132: 0
A133: BTS | B133: =+SUM(B134,B145,B156,B167,B178) -> 1604089.67 | C133: =+SUM(C134,C145,C156,C167,C178) -> 520700.21 | D133: =+SUM(D134,D145,D156,D167,D178) -> 0.65 | E133: =+SUM(E134,E145,E156,E167,E178) -> 2000.636 | F133: 0.9896646974 | G133: 0.1709181335 | H133: 5.508776065e-06 | I133: 0.5280021367 | K133: =+SUM(K134,K145,K156,K167,K178) -> 510906.8333 | L133: =+SUM(L134,L145,L156,L167,L178) -> 59464.02711 | M133: =+SUM(M134,M145,M156,M167,M178) -> 0 | N133: =+SUM(N134,N145,N156,N167,N178) -> 113.6666667 | O133: 0.9748167751 | P133: 0.8578401482 | Q133: 0 | R133: 0.8451053284 | T133: =+SUM(T134,T145,T156,T167,T178) -> 0
A134: BTS_1 (0-300) | B134: =+SUM(B135:B144) -> 581729.802 | C134: =+SUM(C135:C144) -> 30520.711 | D134: =+SUM(D135:D144) -> 0 | E134: =+SUM(E135:E144) -> 37.228 | F134: 0.3589060258 | G134: 0.01001832313 | H134: 0 | I134: 0.009825107388 | K134: =+SUM(K135:K144) -> 381086.75 | L134: =+SUM(L135:L144) -> 28900.666 | M134: =+SUM(M135:M144) -> 0 | N134: =+SUM(N135:N144) -> 47.41666667 | O134: 0.7271183951 | P134: 0.4169268852 | Q134: 0 | R134: 0.3525402726 | T134: =+SUM(T135:T144) -> 0
A135: BTS_1 Regular | B135: 415341.382 | C135: 30322.727 | D135: 0 | E135: 37.228 | F135: 0.2562504521 | G135: 0.009953335534 | H135: 0 | I135: 0.009825107388 | K135: 284526.1667 | L135: 28787.58267 | M135: 0 | N135: 47.41666667 | O135: 0.5428795666 | P135: 0.415295522 | Q135: 0 | R135: 0.3525402726 | T135: 0
A136: BTS_1 Agro | B136: 0 | C136: 187.159 | D136: 0 | E136: 0 | F136: 0 | G136: 6.143432697e-05 | H136: 0 | I136: 0 | K136: 0 | L136: 100.5833333 | M136: 0 | N136: 0 | O136: 0 | P136: 0.001451035622 | Q136: 0 | R136: 0 | T136: 0
A137: BTS_1 Jub. 1 | B137: 163533.89 | C137: 4.39 | D137: 0 | E137: 0 | F137: 0.100894433 | G137: 1.44100308e-06 | H137: 0 | I137: 0 | K137: 95200.41667 | L137: 2.416666667 | M137: 0 | N137: 0 | O137: 0.1816436131 | P137: 3.486332481e-05 | Q137: 0 | R137: 0 | T137: 0
A138: BTS_1 Jub. 2 | B138: 0 | C138: 0 | D138: 0 | E138: 0 | F138: 0 | G138: 0 | H138: 0 | I138: 0 | K138: 0 | L138: 0 | M138: 0 | N138: 0 | O138: 0 | P138: 0 | Q138: 0 | R138: 0 | T138: 0
A139: BTS_1 Político | B139: 0 | C139: 4.222 | D139: 0 | E139: 0 | F139: 0 | G139: 1.385857632e-06 | H139: 0 | I139: 0 | K139: 0 | L139: 4.083333333 | M139: 0 | N139: 0 | O139: 0 | P139: 5.890699709e-05 | Q139: 0 | R139: 0 | T139: 0
A140: BTS_1 x1 | B140: 0 | C140: 0 | D140: 0 | E140: 0 | F140: 0 | G140: 0 | H140: 0 | I140: 0 | K140: 0 | L140: 0 | M140: 0 | N140: 0 | O140: =+K140/K$7 -> 0 | P140: =+L140/L$7 -> 0 | Q140: =+M140/M$7 -> 0 | R140: =+N140/N$7 -> 0 | T140: 0
A141: BTS_1 x2 | B141: 0 | C141: 0 | D141: 0 | E141: 0 | F141: 0 | G141: 0 | H141: 0 | I141: 0 | K141: 0 | L141: 0 | M141: 0 | N141: 0 | O141: 0 | P141: 0 | Q141: 0 | R141: 0 | T141: 0
A142: BTS_1 Discap. | B142: 2854.53 | C142: 0 | D142: 0 | E142: 0 | F142: 0.001761140678 | G142: 0 | H142: 0 | I142: 0 | K142: 1360.166667 | L142: 0 | M142: 0 | N142: 0 | O142: 0.002595215404 | P142: 0 | Q142: 0 | R142: 0 | T142: 0
A143: BTS_1 Discapacitados 601-más | B143: 0 | C143: 0 | D143: 0 | E143: 0 | F143: 0 | G143: 0 | H143: 0 | I143: 0 | K143: 0 | L143: 0 | M143: 0 | N143: 0 | O143: 0 | P143: 0 | Q143: 0 | R143: 0 | T143: 0
A144: BTS_1 Cruz Roja | B144: 0 | C144: 2.213 | D144: 0 | E144: 0 | F144: 0 | G144: 7.264099808e-07 | H144: 0 | I144: 0 | K144: 0 | L144: 6 | M144: 0 | N144: 0 | O144: 0 | P144: 8.655722021e-05 | Q144: 0 | R144: 0 | T144: 0
A145: BTS_2 (301-750) | B145: =+SUM(B146:B155) -> 553213.86 | C145: =+SUM(C146:C155) -> 77466.159 | D145: =+SUM(D146:D155) -> 0.65 | E145: =+SUM(E146:E155) -> 53.263 | F145: 0.3413127318 | G145: 0.02542801223 | H145: 5.508776065e-06 | I145: 0.01405701877 | K145: =+SUM(K146:K155) -> 102078.5 | L145: =+SUM(L146:L155) -> 13192.11111 | M145: =+SUM(M146:M155) -> 0 | N145: =+SUM(N146:N155) -> 8.416666667 | O145: 0.1947670841 | P145: 0.1903120778 | Q145: 0 | R145: 0.06257744734 | T145: =+SUM(T146:T155) -> 0
A146: BTS_2 Regular | B146: 365756.553 | C146: 77020.24 | D146: 0.65 | E146: 53.263 | F146: 0.2256584249 | G146: 0.02528164079 | H146: 5.508776065e-06 | I146: 0.01405701877 | K146: 67447.16667 | L146: 13113.41667 | M146: 0 | N146: 8.416666667 | O146: 0.128690057 | P146: 0.1891768157 | Q146: 0 | R146: 0.06257744734 | T146: 0
A147: BTS_2 Agro | B147: 0 | C147: 422.451 | D147: 0 | E147: 0 | F147: 0 | G147: 0.0001386681531 | H147: 0 | I147: 0 | K147: 0 | L147: 71.91666667 | M147: 0 | N147: 0 | O147: 0 | P147: 0.001037484459 | Q147: 0 | R147: 0 | T147: 0
A148: BTS_2 Jub. 1 | B148: 144233.545 | C148: 1.734 | D148: 0 | E148: 0 | F148: 0.08898682557 | G148: 5.691798042e-07 | H148: 0 | I148: 0 | K148: 29034.75 | L148: 0 | M148: 0 | N148: 0 | O148: 0.0553986745 | P148: 0 | Q148: 0 | R148: 0 | T148: 0
A149: BTS_2 Jub. 2 | B149: 40103.067 | C149: 2.058 | D149: 0 | E149: 0 | F149: 0.02474212658 | G149: 6.755317399e-07 | H149: 0 | I149: 0 | K149: 5006.5 | L149: 0 | M149: 0 | N149: 0 | O149: 0.009552466059 | P149: 0 | Q149: 0 | R149: 0 | T149: 0
A150: BTS_2 Político | B150: 0 | C150: 7.389 | D150: 0 | E150: 0 | F150: 0 | G150: 2.425414979e-06 | H150: 0 | I150: 0 | K150: 0 | L150: 1.777777778 | M150: 0 | N150: 0 | O150: 0 | P150: 2.564658377e-05 | Q150: 0 | R150: 0 | T150: 0
A151: BTS_2 x1 | B151: 0 | C151: 0 | D151: 0 | E151: 0 | F151: 0 | G151: 0 | H151: 0 | I151: 0 | K151: 0 | L151: 0 | M151: 0 | N151: 0 | O151: 0 | P151: 0 | Q151: 0 | R151: 0 | T151: 0
A152: BTS_2 x2 | B152: 0 | C152: 0 | D152: 0 | E152: 0 | F152: 0 | G152: 0 | H152: 0 | I152: 0 | K152: 0 | L152: 0 | M152: 0 | N152: 0 | O152: 0 | P152: 0 | Q152: 0 | R152: 0 | T152: 0
A153: BTS_2 Discap. | B153: 3120.695 | C153: 0 | D153: 0 | E153: 0 | F153: 0.001925354755 | G153: 0 | H153: 0 | I153: 0 | K153: 590.0833333 | L153: 0 | M153: 0 | N153: 0 | O153: 0.00112588655 | P153: 0 | Q153: 0 | R153: 0 | T153: 0
A154: BTS_2 Discapacitados 601-más | B154: 0 | C154: 0 | D154: 0 | E154: 0 | F154: =+B154/B$7 -> 0 | G154: =+C154/C$7 -> 0 | H154: =+D154/D$7 -> 0 | I154: =+E154/E$7 -> 0 | K154: 0 | L154: 0 | M154: 0 | N154: 0 | O154: 0 | P154: 0 | Q154: 0 | R154: 0 | T154: 0
A155: BTS_2 Cruz Roja | B155: 0 | C155: 12.287 | D155: 0 | E155: 0 | F155: 0 | G155: 4.03316739e-06 | H155: 0 | I155: 0 | K155: 0 | L155: 5 | M155: 0 | N155: 0 | O155: 0 | P155: 7.213101684e-05 | Q155: 0 | R155: 0 | T155: 0
A156: BTS_3 (751-más) | B156: =+SUM(B157:B166) -> 469146.008 | C156: =+SUM(C157:C166) -> 412713.34 | D156: =+SUM(D157:D166) -> 0 | E156: =+SUM(E157:E166) -> 1910.145 | F156: 0.2894459398 | G156: 0.1354717982 | H156: 0 | I156: 0.5041200105 | K156: =+SUM(K157:K166) -> 27741.58333 | L156: =+SUM(L157:L166) -> 17371.25 | M156: =+SUM(M157:M166) -> 0 | N156: =+SUM(N157:N166) -> 57.83333333 | O156: 0.05293129596 | P156: 0.2506011853 | Q156: 0 | R156: 0.4299876084 | T156: =+SUM(T157:T166) -> 0
A157: BTS_3 Regular | B157: 362439.332 | C157: 409235.128 | D157: 0 | E157: 1910.145 | F157: 0.2236118208 | G157: 0.1343300865 | H157: 0 | I157: 0.5041200105 | K157: 20383.75 | L157: 17233.75 | M157: 0 | N157: 57.83333333 | O157: 0.03889245581 | P157: 0.2486175823 | Q157: 0 | R157: 0.4299876084 | T157: 0
A158: BTS_3 Agro | B158: 0 | C158: 2995.621 | D158: 0 | E158: 0 | F158: 0 | G158: 0.0009833027533 | H158: 0 | I158: 0 | K158: 0 | L158: 119.6666667 | M158: 0 | N158: 0 | O158: 0 | P158: 0.00172633567 | Q158: 0 | R158: 0 | T158: 0
A159: BTS_3 Jub. 1 | B159: 0 | C159: 0 | D159: 0 | E159: 0 | F159: 0 | G159: 0 | H159: 0 | I159: 0 | K159: 0 | L159: 0 | M159: 0 | N159: 0 | O159: 0 | P159: 0 | Q159: 0 | R159: 0 | T159: 0
A160: BTS_3 Jub. 2 | B160: 106516.808 | C160: 144.827 | D160: 0 | E160: 0 | F160: 0.06571697738 | G160: 4.753898703e-05 | H160: 0 | I160: 0 | K160: 7290.583333 | L160: 1.166666667 | M160: 0 | N160: 0 | O160: 0.01391052628 | P160: 1.68305706e-05 | Q160: 0 | R160: 0 | T160: 0
A161: BTS_3 Político | B161: 0 | C161: 27.6 | D161: 0 | E161: 0 | F161: 0 | G161: 9.05960934e-06 | H161: 0 | I161: 0 | K161: 0 | L161: 1.666666667 | M161: 0 | N161: 0 | O161: 0 | P161: 2.404367228e-05 | Q161: 0 | R161: 0 | T161: 0
A162: BTS_3 x1 | B162: 0 | C162: 0 | D162: 0 | E162: 0 | F162: 0 | G162: 0 | H162: 0 | I162: 0 | K162: 0 | L162: 0 | M162: 0 | N162: 0 | O162: 0 | P162: 0 | Q162: 0 | R162: 0 | T162: 0
A163: BTS_3 x2 | B163: 0 | C163: 0 | D163: 0 | E163: 0 | F163: 0 | G163: 0 | H163: 0 | I163: 0 | K163: 0 | L163: 0 | M163: 0 | N163: 0 | O163: 0 | P163: 0 | Q163: 0 | R163: 0 | T163: 0
A164: BTS_3 Discap. | B164: 189.868 | C164: 0 | D164: 0 | E164: 0 | F164: 0.0001171416164 | G164: 0 | H164: 0 | I164: 0 | K164: 67.25 | L164: 0 | M164: 0 | N164: 0 | O164: 0.0001283138605 | P164: 0 | Q164: 0 | R164: 0 | T164: 0
A165: BTS_3 Discapacitados 601-más | B165: 0 | C165: 0 | D165: 0 | E165: 0 | F165: 0 | G165: 0 | H165: 0 | I165: 0 | K165: 0 | L165: 0 | M165: 0 | N165: 0 | O165: 0 | P165: 0 | Q165: 0 | R165: 0 | T165: 0
A166: BTS_3 Cruz Roja | B166: 0 | C166: 310.164 | D166: 0 | E166: 0 | F166: 0 | G166: 0.0001018103142 | H166: 0 | I166: 0 | K166: 0 | L166: 15 | M166: 0 | N166: 0 | O166: 0 | P166: 0.0002163930505 | Q166: 0 | R166: 0 | T166: 0
A167: BTS_4 (xxx) | B167: =+SUM(B168:B177) -> 0 | C167: =+SUM(C168:C177) -> 0 | D167: =+SUM(D168:D177) -> 0 | E167: =+SUM(E168:E177) -> 0 | F167: 0 | G167: 0 | H167: 0 | I167: 0 | K167: =+SUM(K168:K177) -> 0 | L167: =+SUM(L168:L177) -> 0 | M167: =+SUM(M168:M177) -> 0 | N167: =+SUM(N168:N177) -> 0 | O167: 0 | P167: 0 | Q167: 0 | R167: 0 | T167: =+SUM(T168:T177) -> 0
A168: BTS_4 Regular | B168: 0 | C168: 0 | D168: 0 | E168: 0 | F168: 0 | G168: 0 | H168: 0 | I168: 0 | K168: 0 | L168: 0 | M168: 0 | N168: 0 | O168: 0 | P168: 0 | Q168: 0 | R168: 0 | T168: 0
A169: BTS_4 Agro | B169: 0 | C169: 0 | D169: 0 | E169: 0 | F169: 0 | G169: 0 | H169: 0 | I169: 0 | K169: 0 | L169: 0 | M169: 0 | N169: 0 | O169: 0 | P169: 0 | Q169: 0 | R169: 0 | T169: 0
A170: BTS_4 Jub. 1 | B170: 0 | C170: 0 | D170: 0 | E170: 0 | F170: 0 | G170: 0 | H170: 0 | I170: 0 | K170: 0 | L170: 0 | M170: 0 | N170: 0 | O170: 0 | P170: 0 | Q170: 0 | R170: 0 | T170: 0
A171: BTS_4 Jub. 2 | B171: 0 | C171: 0 | D171: 0 | E171: 0 | F171: 0 | G171: 0 | H171: 0 | I171: 0 | K171: 0 | L171: 0 | M171: 0 | N171: 0 | O171: 0 | P171: 0 | Q171: 0 | R171: 0 | T171: 0
A172: BTS_4 Político | B172: 0 | C172: 0 | D172: 0 | E172: 0 | F172: 0 | G172: 0 | H172: 0 | I172: 0 | K172: 0 | L172: 0 | M172: 0 | N172: 0 | O172: 0 | P172: 0 | Q172: 0 | R172: 0 | T172: 0
A173: BTS_4 x1 | B173: 0 | C173: 0 | D173: 0 | E173: 0 | F173: 0 | G173: 0 | H173: 0 | I173: 0 | K173: 0 | L173: 0 | M173: 0 | N173: 0 | O173: 0 | P173: 0 | Q173: 0 | R173: 0 | T173: 0
A174: BTS_4 x2 | B174: 0 | C174: 0 | D174: 0 | E174: 0 | F174: 0 | G174: 0 | H174: 0 | I174: 0 | K174: 0 | L174: 0 | M174: 0 | N174: 0 | O174: 0 | P174: 0 | Q174: 0 | R174: 0 | T174: 0
A175: BTS_4 Discap. | B175: 0 | C175: 0 | D175: 0 | E175: 0 | F175: 0 | G175: 0 | H175: 0 | I175: 0 | K175: 0 | L175: 0 | M175: 0 | N175: 0 | O175: 0 | P175: 0 | Q175: 0 | R175: 0 | T175: 0
A176: BTS_4 Discapacitados 601-más | B176: 0 | C176: 0 | D176: 0 | E176: 0 | F176: 0 | G176: 0 | H176: 0 | I176: 0 | K176: 0 | L176: 0 | M176: 0 | N176: 0 | O176: 0 | P176: 0 | Q176: 0 | R176: 0 | T176: 0
A177: BTS_4 Cruz Roja | B177: 0 | C177: 0 | D177: 0 | E177: 0 | F177: 0 | G177: 0 | H177: 0 | I177: 0 | K177: 0 | L177: 0 | M177: 0 | N177: 0 | O177: 0 | P177: 0 | Q177: 0 | R177: 0 | T177: 0
A178: BTS_5 (xxx) | B178: =+SUM(B179:B188) -> 0 | C178: =+SUM(C179:C188) -> 0 | D178: =+SUM(D179:D188) -> 0 | E178: =+SUM(E179:E188) -> 0 | F178: 0 | G178: 0 | H178: 0 | I178: 0 | K178: =+SUM(K179:K188) -> 0 | L178: =+SUM(L179:L188) -> 0 | M178: =+SUM(M179:M188) -> 0 | N178: =+SUM(N179:N188) -> 0 | O178: 0 | P178: 0 | Q178: 0 | R178: 0 | T178: =+SUM(T179:T188) -> 0
A179: BTS_5 Regular | B179: 0 | C179: 0 | D179: 0 | E179: 0 | F179: 0 | G179: 0 | H179: 0 | I179: 0 | K179: 0 | L179: 0 | M179: 0 | N179: 0 | O179: 0 | P179: 0 | Q179: 0 | R179: 0 | T179: 0
A180: BTS_5 Agro | B180: 0 | C180: 0 | D180: 0 | E180: 0 | F180: 0 | G180: 0 | H180: 0 | I180: 0 | K180: 0 | L180: 0 | M180: 0 | N180: 0 | O180: 0 | P180: 0 | Q180: 0 | R180: 0 | T180: 0
A181: BTS_5 Jub. 1 | B181: 0 | C181: 0 | D181: 0 | E181: 0 | F181: 0 | G181: 0 | H181: 0 | I181: 0 | K181: 0 | L181: 0 | M181: 0 | N181: 0 | O181: 0 | P181: 0 | Q181: 0 | R181: 0 | T181: 0
A182: BTS_5 Jub. 2 | B182: 0 | C182: 0 | D182: 0 | E182: 0 | F182: 0 | G182: 0 | H182: 0 | I182: 0 | K182: 0 | L182: 0 | M182: 0 | N182: 0 | O182: 0 | P182: 0 | Q182: 0 | R182: 0 | T182: 0
A183: BTS_5 Político | B183: 0 | C183: 0 | D183: 0 | E183: 0 | F183: 0 | G183: 0 | H183: 0 | I183: 0 | K183: 0 | L183: 0 | M183: 0 | N183: 0 | O183: 0 | P183: 0 | Q183: 0 | R183: 0 | T183: 0
A184: BTS_5 x1 | B184: 0 | C184: 0 | D184: 0 | E184: 0 | F184: 0 | G184: 0 | H184: 0 | I184: 0 | K184: 0 | L184: 0 | M184: 0 | N184: 0 | O184: 0 | P184: 0 | Q184: 0 | R184: 0 | T184: 0
A185: BTS_5 x2 | B185: 0 | C185: 0 | D185: 0 | E185: 0 | F185: 0 | G185: 0 | H185: 0 | I185: 0 | K185: 0 | L185: 0 | M185: 0 | N185: 0 | O185: 0 | P185: 0 | Q185: 0 | R185: 0 | T185: 0
A186: BTS_5 Discap. | B186: 0 | C186: 0 | D186: 0 | E186: 0 | F186: 0 | G186: 0 | H186: 0 | I186: 0 | K186: 0 | L186: 0 | M186: 0 | N186: 0 | O186: 0 | P186: 0 | Q186: 0 | R186: 0 | T186: 0
A187: BTS_5 Discapacitados 601-más | B187: 0 | C187: 0 | D187: 0 | E187: 0 | F187: 0 | G187: 0 | H187: 0 | I187: 0 | K187: 0 | L187: 0 | M187: 0 | N187: 0 | O187: 0 | P187: 0 | Q187: 0 | R187: 0 | T187: 0
A188: BTS_5 Cruz Roja | B188: 0 | C188: 0 | D188: 0 | E188: 0 | F188: 0 | G188: 0 | H188: 0 | I188: 0 | K188: 0 | L188: 0 | M188: 0 | N188: 0 | O188: 0 | P188: 0 | Q188: 0 | R188: 0 | T188: 0
A189: Alumbrado Público | B189: 0 | C189: 0 | D189: 117992.892 | E189: 0 | F189: 0 | G189: 0 | H189: 0.9999944912 | I189: 0 | K189: 0 | L189: 0 | M189: 1 | N189: 0 | O189: 0 | P189: 0 | Q189: 1 | R189: 0
A190: GRANDES CLIENTES | B190: =+SUM(B191:B192) -> 0 | C190: =+SUM(C191:C192) -> 0 | D190: =+SUM(D191:D192) -> 0 | E190: =+SUM(E191:E192) -> 0 | F190: 0 | G190: 0 | H190: 0 | I190: 0 | K190: =+SUM(K191:K192) -> 0 | L190: =+SUM(L191:L192) -> 0 | M190: =+SUM(M191:M192) -> 0 | N190: =+SUM(N191:N192) -> 0 | O190: 0 | P190: 0 | Q190: 0 | R190: 0 | T190: =+SUM(T191:T192) -> 0
A191: MTD_GC | B191: 0 | C191: 0 | D191: 0 | E191: 0 | F191: 0 | G191: 0 | H191: 0 | I191: 0 | K191: 0 | L191: 0 | M191: 0 | N191: 0 | O191: 0 | P191: 0 | Q191: 0 | R191: 0 | T191: 0
A192: BTD_GC | B192: 0 | C192: 0 | D192: 0 | E192: 0 | F192: 0 | G192: 0 | H192: 0 | I192: 0 | K192: 0 | L192: 0 | M192: 0 | N192: 0 | O192: 0 | P192: 0 | Q192: 0 | R192: 0 | T192: 0
A193: BTSH | B193: =+SUM(B194,B198,B202) -> 388.081 | C193: =+SUM(C194,C198,C202) -> 839.097 | D193: =+SUM(D194,D198,D202) -> 0 | E193: =+SUM(E194,E198,E202) -> 0 | F193: =+B193/B$7 -> 0.0002394317928 | G193: =+C193/C$7 -> 0.000275430834 | H193: =+D193/D$7 -> 0 | I193: =+E193/E$7 -> 0 | K193: 20.08333333 | L193: 41.91666667 | M193: 0 | N193: 0 | O193: =+K193/K$7 -> 3.831925697e-05 | P193: =+L193/L$7 -> 0.0006046983579 | Q193: =+M193/M$7 -> 0 | R193: =+N193/N$7 -> 0 | T193: =+SUM(T194,T198,T202) -> 0
A194: BTSH_1 | B194: 388.081 | C194: 839.097 | D194: 0 | E194: 0 | F194: =+B194/B$7 -> 0.0002394317928 | G194: =+C194/C$7 -> 0.000275430834 | H194: =+D194/D$7 -> 0 | I194: =+E194/E$7 -> 0 | K194: 20.08333333 | L194: 41.91666667 | M194: 0 | N194: 0 | O194: =+K194/K$7 -> 3.831925697e-05 | P194: =+L194/L$7 -> 0.0006046983579 | Q194: =+M194/M$7 -> 0 | R194: =+N194/N$7 -> 0 | T194: 0
A195: BTSH_1 Punta | B195: 75.651 | C195: 148.04 | D195: 0 | E195: 0 | F195: 4.667390198e-05 | G195: 4.859364372e-05 | H195: 0 | I195: 0 | K195: 20.08333333 | L195: 41.91666667 | M195: 0 | N195: 0 | O195: 3.831925697e-05 | P195: 0.0006046983579 | Q195: 0 | R195: 0 | T195: 0
A196: BTSH_1 Fuera de Punta Medio | B196: 108.029 | C196: 262.237 | D196: 0 | E196: 0 | F196: 6.664994457e-05 | G196: 8.607843386e-05 | H196: 0 | I196: =+E196/E$7 -> 0 | K196: 0 | L196: 0 | M196: 0 | N196: 0 | O196: 0 | P196: 0 | Q196: 0 | R196: 0 | T196: 0
A197: BTSH_1 Fuera de Punta Bajo | B197: 204.401 | C197: 428.82 | D197: 0 | E197: 0 | F197: 0.0001261079462 | G197: 0.0001407587564 | H197: 0 | I197: 0 | K197: 0 | L197: 0 | M197: 0 | N197: 0 | O197: 0 | P197: 0 | Q197: 0 | R197: 0 | T197: 0
A198: BTSH_2 | B198: 0 | C198: 0 | D198: 0 | E198: 0 | F198: 0 | G198: 0 | H198: 0 | I198: 0 | K198: 0 | L198: 0 | M198: 0 | N198: 0 | O198: 0 | P198: 0 | Q198: 0 | R198: 0 | T198: 0
A199: BTSH_2 Punta | B199: 0 | C199: 0 | D199: 0 | E199: 0 | F199: 0 | G199: 0 | H199: 0 | I199: 0 | K199: 0 | L199: 0 | M199: 0 | N199: 0 | O199: 0 | P199: 0 | Q199: 0 | R199: 0 | T199: 0
A200: BTSH_2 Fuera de Punta Medio | B200: 0 | C200: 0 | D200: 0 | E200: 0 | F200: 0 | G200: 0 | H200: 0 | I200: 0 | K200: 0 | L200: 0 | M200: 0 | N200: 0 | O200: 0 | P200: 0 | Q200: 0 | R200: 0 | T200: 0
A201: BTSH_2 Fuera de Punta Bajo | B201: 0 | C201: 0 | D201: 0 | E201: 0 | F201: 0 | G201: 0 | H201: 0 | I201: 0 | K201: 0 | L201: 0 | M201: 0 | N201: 0 | O201: 0 | P201: 0 | Q201: 0 | R201: 0 | T201: 0
A202: BTSH_3 | B202: 0 | C202: 0 | D202: 0 | E202: 0 | F202: 0 | G202: 0 | H202: 0 | I202: 0 | K202: 0 | L202: 0 | M202: 0 | N202: 0 | O202: 0 | P202: 0 | Q202: 0 | R202: 0 | T202: 0
A203: BTSH_3 Punta | B203: 0 | C203: 0 | D203: 0 | E203: 0 | F203: 0 | G203: 0 | H203: 0 | I203: 0 | K203: 0 | L203: 0 | M203: 0 | N203: 0 | O203: 0 | P203: 0 | Q203: 0 | R203: 0 | T203: 0
... 173 more rows

Sheet Diseño
A1: Diseño de Cargos
AC2: -0.02105493815
B4: CD | G4: CCOMF | L4: CCOMV | Q4: CSERAP | V4: CX | AA4: CENEGEN | AF4: CPOTGEN | AK4: CCONAP | AP4: CPT | AU4: CPET | AZ4: CPERDP | BE4: CPERDE
A5: Categorías | B5: Criterio de Recupero | D5: Cargo Relativo | G5: =+B5 -> Criterio de Recupero | I5: =+D5 -> Cargo Relativo | L5: =+G5 -> Criterio de Recupero | N5: =+I5 -> Cargo Relativo | Q5: =+L5 -> Criterio de Recupero | S5: =+N5 -> Cargo Relativo | V5: =+Q5 -> Criterio de Recupero | X5: =+S5 -> Cargo Relativo | AA5: =+V5 -> Criterio de Recupero | AC5: =+X5 -> Cargo Relativo | AF5: =+AA5 -> Criterio de Recupero | AH5: =+AC5 -> Cargo Relativo | AK5: =+AF5 -> Criterio de Recupero | AM5: =+AH5 -> Cargo Relativo | AP5: =+AK5 -> Criterio de Recupero | AR5: =+AM5 -> Cargo Relativo | AU5: =+AP5 -> Criterio de Recupero | AW5: =+AR5 -> Cargo Relativo | AZ5: =+AU5 -> Criterio de Recupero | BB5: =+AW5 -> Cargo Relativo | BE5: =+AZ5 -> Criterio de Recupero | BG5: =+BB5 -> Cargo Relativo
B6: Energía | C6: Potencia | D6: Energía | E6: Potencia | G6: Energía | H6: Cliente | I6: Energía | J6: Cliente | L6: Energía | M6: Potencia | N6: Energía | O6: Potencia | Q6: Energía | R6: Clientes | S6: Energía | T6: Cliente | V6: Energía | W6: Conexiones | X6: Energía | Y6: Conexiones | AA6: Energía | AB6: Potencia | AC6: Energía | AD6: Potencia | AF6: Energía | AG6: Potencia | AH6: Energía | AI6: Potencia | AK6: Energía | AL6: Potencia | AM6: Energía | AN6: Potencia | AP6: Energía | AQ6: Potencia | AR6: Energía | AS6: Potencia | AU6: Energía | AV6: Potencia | AW6: Energía | AX6: Potencia | AZ6: Energía | BA6: Potencia | BB6: Energía | BC6: Potencia | BE6: Energía | BF6: Potencia | BG6: Energía | BH6: Potencia
A7: =+DdaAñoBase!A7 -> TOTAL
A8: =+DdaAñoBase!A8 -> ATH | D8: 0 | E8: 0 | H8: 1 | J8: 14.34 | N8: 0 | O8: 0 | R8: 0 | S8: 0 | T8: 0 | V8: 0 | W8: 1 | Y8: 201.75 | AC8: 0 | AD8: 0 | AH8: 0 | AI8: 0 | AM8: 0 | AN8: 0 | AR8: 0 | AS8: 0 | AW8: 0 | AX8: 0 | BB8: 0 | BC8: 0 | BG8: 0 | BH8: 0
A9: =+DdaAñoBase!A9 -> ATH Punta | B9: 0 | C9: 1 | D9: 0 | E9: 6.89 | G9: 0 | J9: 0 | L9: 1 | M9: 0 | N9: 0.00811 | O9: 0 | Q9: 1 | S9: 0.00133 | T9: 0 | Y9: 0 | AA9: 1 | AB9: 0 | AC9: =0.1954*1.2 -> 0.23448 | AD9: 0 | AF9: 0.85 | AG9: 0.15 | AH9: 0.00124 | AI9: 1.04 | AK9: 1 | AL9: 0 | AM9: 0.00199 | AN9: 0 | AP9: 0.5 | AQ9: 0.5 | AR9: 0.00152 | AS9: 5.36 | AU9: 1 | AV9: 0 | AW9: 0.00264 | AX9: 0 | AZ9: 0 | BA9: 1 | BB9: 0 | BC9: 0 | BE9: 0.92 | BF9: 0.08 | BG9: 0.01109 | BH9: 2.92
A10: =+DdaAñoBase!A10 -> ATH Fuera de Punta Medio | B10: 0 | C10: 1 | D10: 0 | E10: 5.66 | G10: 0 | J10: 0 | L10: 1 | M10: 0 | N10: 0.00811 | O10: 0 | Q10: 1 | S10: 0.00133 | T10: 0 | Y10: 0 | AA10: 1 | AB10: 0 | AC10: 0.09997 | AD10: 0 | AF10: 0.85 | AG10: 0.15 | AH10: 0.00124 | AI10: 0 | AK10: 1 | AL10: 0 | AM10: 0.00199 | AN10: 0 | AP10: 0.5 | AQ10: 0.5 | AR10: 0.00152 | AS10: 0.15 | AU10: 1 | AV10: 0 | AW10: 0.00264 | AX10: 0 | AZ10: 0 | BA10: 0 | BB10: 0 | BC10: 0 | BE10: 0.92 | BF10: 0.08 | BG10: 0.00721 | BH10: 0.08 | BI10: =+BH9/BH10 -> 36.5
A11: =+DdaAñoBase!A11 -> ATH Fuera de Punta Bajo | B11: 0 | C11: 1 | D11: 0 | E11: 5.66 | G11: 0 | J11: 0 | L11: 1 | M11: 0 | N11: 0.00811 | O11: 0 | Q11: 1 | S11: 0.00133 | T11: 0 | Y11: 0 | AA11: 1 | AB11: 0 | AC11: 0.04544 | AD11: 0 | AF11: 0.85 | AG11: 0.15 | AH11: 0.00124 | AI11: 0 | AK11: 1 | AL11: 0 | AM11: 0.00199 | AN11: 0 | AP11: 0.5 | AQ11: 0.5 | AR11: 0.00152 | AS11: 0.15 | AU11: 1 | AV11: 0 | AW11: 0.00264 | AX11: 0 | AZ11: 0 | BA11: 0 | BB11: 0 | BC11: 0 | BE11: 0.92 | BF11: 0.08 | BG11: 0.00721 | BH11: 0.08
A12: =+DdaAñoBase!A12 -> ATD | B12: 0 | C12: 1 | D12: 0 | E12: 6.51 | G12: 0 | H12: 1 | J12: 14.34 | L12: 1 | M12: 0 | N12: 0.00811 | O12: 0 | Q12: 1 | R12: 0 | S12: 0.00133 | T12: 0 | V12: 0 | W12: 1 | Y12: 201.75 | AA12: 1 | AB12: 0 | AC12: 0.09559 | AD12: 0 | AF12: 0.85 | AG12: 0.15 | AH12: 0.01863 | AI12: 0.31 | AK12: 1 | AL12: 0 | AM12: 0.00199 | AN12: 0 | AP12: 0.5 | AQ12: 0.5 | AR12: 0.02657 | AS12: 2.55 | AU12: 1 | AV12: 0 | AW12: 0.00264 | AX12: 0 | AZ12: 0 | BA12: 1 | BB12: 0 | BC12: 0 | BE12: 0.92 | BF12: 0.08 | BG12: 0.00811 | BH12: 0.08
A13: =+DdaAñoBase!A13 -> MTH | D13: 0 | E13: 0 | H13: 1 | J13: 14.34 | N13: 0 | O13: 0 | R13: 0 | S13: 0 | T13: 0 | V13: 0 | W13: 1 | Y13: 142 | AC13: 0 | AD13: 0 | AH13: 0 | AI13: 0 | AM13: 0 | AN13: 0 | AR13: 0 | AS13: 0 | AW13: 0 | AX13: 0 | BB13: 0 | BC13: 0 | BG13: 0 | BH13: 0
A14: =+DdaAñoBase!A14 -> MTH Punta | B14: 0 | C14: 1 | D14: 0 | E14: 15.16 | G14: 0 | J14: 0 | L14: 1 | M14: 0 | N14: 0.00811 | O14: 0 | Q14: 1 | S14: 0.00133 | T14: 0 | Y14: 0 | AA14: 1 | AB14: 0 | AC14: =0.24851*1.2 -> 0.298212 | AD14: 0 | AF14: 0.85 | AG14: 0.15 | AH14: 0.00091 | AI14: 0.09 | AK14: 1 | AL14: 0 | AM14: 0.00199 | AN14: 0 | AP14: 0.5 | AQ14: 0.5 | AR14: 0.00503 | AS14: 2.5 | AU14: 1 | AV14: 0 | AW14: 0.00264 | AX14: 0 | AZ14: 0 | BA14: 1 | BB14: 0 | BC14: 0 | BE14: 0.92 | BF14: 0.08 | BG14: 0.01064 | BH14: 0.42
A15: =+DdaAñoBase!A15 -> MTH Fuera de Punta Medio | B15: 0 | C15: 1 | D15: 0 | E15: 2.51 | G15: 0 | J15: 0 | L15: 1 | M15: 0 | N15: 0.00811 | O15: 0 | Q15: 1 | S15: 0.00133 | T15: 0 | Y15: 0 | AA15: 1 | AB15: 0 | AC15: 0.13016 | AD15: 0 | AF15: 0.85 | AG15: 0.15 | AH15: 0.00091 | AI15: 0 | AK15: 1 | AL15: 0 | AM15: 0.00199 | AN15: 0 | AP15: 0.5 | AQ15: 0.5 | AR15: 0.00503 | AS15: 0.27 | AU15: 1 | AV15: 0 | AW15: 0.00264 | AX15: 0 | AZ15: 0 | BA15: 0 | BB15: 0 | BC15: 0 | BE15: 0.92 | BF15: 0.08 | BG15: 0.00727 | BH15: 0.03 | BI15: =+BH14/BH15 -> 14
A16: =+DdaAñoBase!A16 -> MTH Fuera de Punta Bajo | B16: 0 | C16: 1 | D16: 0 | E16: 2.51 | G16: 0 | J16: 0 | L16: 1 | M16: 0 | N16: 0.00811 | O16: 0 | Q16: 1 | S16: 0.00133 | T16: 0 | Y16: 0 | AA16: 1 | AB16: 0 | AC16: 0.05917 | AD16: 0 | AF16: 0.85 | AG16: 0.15 | AH16: 0.00091 | AI16: 0 | AK16: 1 | AL16: 0 | AM16: 0.00199 | AN16: 0 | AP16: 0.5 | AQ16: 0.5 | AR16: 0.00503 | AS16: 0.27 | AU16: 1 | AV16: 0 | AW16: 0.00264 | AX16: 0 | AZ16: 0 | BA16: 0 | BB16: 0 | BC16: 0 | BE16: 0.92 | BF16: 0.08 | BG16: 0.00727 | BH16: 0.03
A17: =+DdaAñoBase!A17 -> MTD | B17: 0 | C17: 1 | D17: 0 | E17: 0 | G17: 0 | H17: 1 | J17: 14.27 | L17: 1 | M17: 0 | N17: 0 | O17: 0 | Q17: 1 | R17: 0 | S17: 0 | T17: 0 | V17: 0 | W17: 1 | Y17: 142 | AA17: 1 | AB17: 0 | AC17: 0 | AD17: 0 | AF17: 0.85 | AG17: 0.15 | AH17: 0 | AI17: 0 | AK17: 1 | AL17: 0 | AM17: 0 | AN17: 0 | AP17: 0.5 | AQ17: 0.5 | AR17: 0 | AS17: 0 | AU17: 1 | AV17: 0 | AW17: 0 | AX17: 0 | AZ17: 0 | BA17: 1 | BB17: 0 | BC17: 0 | BE17: 0.92 | BF17: 0.08 | BG17: 0 | BH17: 0
A18: =+DdaAñoBase!A18 -> MTD_1 (0-10,000) | D18: 0 | E18: 16.89 | J18: 14.27 | N18: 0.00812 | O18: 0 | S18: 0.00134 | T18: 0 | Y18: 0 | AC18: 0.09979 | AD18: 0 | AH18: 0.02257 | AI18: 1.75 | AM18: 0.00199 | AN18: 0 | AR18: 0.00363 | AS18: 1.59 | AW18: 0.00264 | AX18: 0 | BB18: 0 | BC18: 0 | BG18: 0.01622 | BH18: 0.37
A19: =+DdaAñoBase!A29 -> MTD_2 (10,001-30,000) | D19: 0 | E19: 16.89 | J19: 14.27 | N19: 0.00812 | O19: 0 | S19: 0.00134 | T19: 0 | Y19: 0 | AC19: 0.09979 | AD19: 0 | AH19: 0.02257 | AI19: 1.75 | AM19: 0.00199 | AN19: 0 | AR19: 0.00363 | AS19: 1.59 | AW19: 0.00264 | AX19: 0 | BB19: 0 | BC19: 0 | BG19: 0.00811 | BH19: 0.37
A20: =+DdaAñoBase!A40 -> MTD_3 (30,001-50,000) | D20: 0 | E20: 16.89 | J20: 14.27 | N20: 0.00812 | O20: 0 | S20: 0.00134 | T20: 0 | Y20: 0 | AC20: 0.09979 | AD20: 0 | AH20: 0.02257 | AI20: 1.75 | AM20: 0.00199 | AN20: 0 | AR20: 0.00363 | AS20: 1.59 | AW20: 0.00264 | AX20: 0 | BB20: 0 | BC20: 0 | BG20: 0.00811 | BH20: 0.37
A21: =+DdaAñoBase!A51 -> MTD_4 (50,001-más) | D21: 0 | E21: 16.89 | J21: 14.27 | N21: 0.00812 | O21: 0 | S21: 0.00134 | T21: 0 | Y21: 0 | AC21: 0.09979 | AD21: 0 | AH21: 0.02257 | AI21: 1.75 | AM21: 0.00199 | AN21: 0 | AR21: 0.00363 | AS21: 1.59 | AW21: 0.00264 | AX21: 0 | BB21: 0 | BC21: 0 | BG21: 0.00811 | BH21: 0.37
A22: =+DdaAñoBase!A62 -> MTD_5 (xxx) | D22: 0 | E22: 0 | J22: 0 | N22: 0 | O22: 0 | S22: 0 | T22: 0 | Y22: 0 | AC22: 0 | AD22: 0 | AH22: 0 | AI22: 0 | AM22: 0 | AN22: 0 | AR22: 0 | AS22: 0 | AW22: 0 | AX22: 0 | BB22: 0 | BC22: 0 | BG22: 0 | BH22: 0
A23: =+DdaAñoBase!A73 -> BTH | B23: 0 | C23: 1 | D23: 0 | E23: 0 | H23: 1 | J23: 5.67 | L23: 1 | M23: 0 | N23: 0 | O23: 0 | R23: 0 | S23: 0 | T23: 0 | V23: 0 | W23: 1 | Y23: 71.69 | AC23: 0 | AD23: 0 | AH23: 0 | AI23: 0 | AM23: 0 | AN23: 0 | AR23: 0 | AS23: 0 | AW23: 0 | AX23: 0 | BB23: 0 | BC23: 0 | BG23: 0 | BH23: 0
A24: =+DdaAñoBase!A74 -> BTH Punta | B24: 0 | C24: 1 | D24: 0 | E24: 16.59 | G24: 0 | J24: 0 | L24: 1 | M24: 0 | N24: 0.00811 | O24: 0 | Q24: 1 | S24: 0.00133 | T24: 0 | Y24: 0 | AA24: 1 | AB24: 0 | AC24: =0.23999*1.2 -> 0.287988 | AD24: 0 | AF24: 0.85 | AG24: 0.15 | AH24: 0.00136 | AI24: 0.09 | AK24: 1 | AL24: 0 | AM24: 0.00199 | AN24: 0 | AP24: 0.5 | AQ24: 0.5 | AR24: 0.00589 | AS24: 2.07 | AU24: 1 | AV24: 0 | AW24: 0.00264 | AX24: 0 | AZ24: 0 | BA24: 1 | BB24: 0 | BC24: 0 | BE24: 0.92 | BF24: 0.08 | BG24: 0.01054 | BH24: 0.29
A25: =+DdaAñoBase!A75 -> BTH Fuera de Punta Medio | B25: 0 | C25: 1 | D25: 0 | E25: 2.29 | G25: 0 | J25: 0 | L25: 1 | M25: 0 | N25: 0.00811 | O25: 0 | Q25: 1 | S25: 0.00133 | T25: 0 | Y25: 0 | AA25: 1 | AB25: 0 | AC25: 0.11998 | AD25: 0 | AF25: 0.85 | AG25: 0.15 | AH25: 0.00136 | AI25: 0 | AK25: 1 | AL25: 0 | AM25: 0.00199 | AN25: 0 | AP25: 0.5 | AQ25: 0.5 | AR25: 0.00589 | AS25: 0.2 | AU25: 1 | AV25: 0 | AW25: 0.00264 | AX25: 0 | AZ25: 0 | BA25: 0 | BB25: 0 | BC25: 0 | BE25: 0.92 | BF25: 0.08 | BG25: 0.00725 | BH25: 0.02
A26: =+DdaAñoBase!A76 -> BTH Fuera de Punta Bajo | B26: 0 | C26: 1 | D26: 0 | E26: 2.29 | G26: 0 | J26: 0 | L26: 1 | M26: 0 | N26: 0.00811 | O26: 0 | Q26: 1 | S26: 0.00133 | T26: 0 | Y26: 0 | AA26: 1 | AB26: 0 | AC26: 0.05455 | AD26: 0 | AF26: 0.85 | AG26: 0.15 | AH26: 0.00136 | AI26: 0 | AK26: 1 | AL26: 0 | AM26: 0.00199 | AN26: 0 | AP26: 0.5 | AQ26: 0.5 | AR26: 0.00589 | AS26: 0.2 | AU26: 1 | AV26: 0 | AW26: 0.00264 | AX26: 0 | AZ26: 0 | BA26: 0 | BB26: 0 | BC26: 0 | BE26: 0.92 | BF26: 0.08 | BG26: 0.00725 | BH26: 0.02
A27: =+DdaAñoBase!A77 -> BTD | B27: 0 | C27: 1 | D27: 0 | E27: 0 | G27: 0 | H27: 1 | J27: 5.66 | L27: 1 | M27: 0 | N27: 0 | O27: 0 | Q27: 1 | R27: 0 | S27: 0 | T27: 0 | V27: 0 | W27: 1 | Y27: 71.69 | AA27: 1 | AB27: 0 | AC27: 0 | AD27: 0 | AF27: 0.85 | AG27: 0.15 | AH27: 0 | AI27: 0 | AK27: 1 | AL27: 0 | AM27: 0 | AN27: 0 | AP27: 0.5 | AQ27: 0.5 | AR27: 0 | AS27: 0 | AU27: 1 | AV27: 0 | AW27: 0 | AX27: 0 | AZ27: 0 | BA27: 1 | BB27: 0 | BC27: 0 | BE27: 0.92 | BF27: 0.08 | BG27: 0 | BH27: 0
A28: =+DdaAñoBase!A78 -> BTD_1 (0-10,000) | D28: 0 | E28: 16.02 | J28: 5.66 | N28: 0.00812 | O28: 0 | S28: 0.00134 | T28: 0 | Y28: 0 | AC28: 0.09369 | AD28: 0 | AH28: 0.01975 | AI28: 1.07 | AM28: 0.00199 | AN28: 0 | AR28: 0.00377 | AS28: 1.09 | AW28: 0.00264 | AX28: 0 | BB28: 0 | BC28: 0 | BG28: 0.00811 | BH28: 0.25
A29: =+DdaAñoBase!A89 -> BTD_2 (10,001-30,000) | D29: 0 | E29: 16.02 | J29: 5.66 | N29: 0.00812 | O29: 0 | S29: 0.00134 | T29: 0 | Y29: 0 | AC29: 0.09869 | AD29: 0 | AH29: 0.02082 | AI29: 1.07 | AM29: 0.00199 | AN29: 0 | AR29: 0.00377 | AS29: 1.09 | AW29: 0.00264 | AX29: 0 | BB29: 0 | BC29: 0 | BG29: 0.00811 | BH29: 0.25
A30: =+DdaAñoBase!A100 -> BTD_3 (30,001-50,000) | D30: 0 | E30: 16.02 | J30: 5.66 | N30: 0.00812 | O30: 0 | S30: 0.00134 | T30: 0 | Y30: 0 | AC30: 0.10844 | AD30: 0 | AH30: 0.02286 | AI30: 1.07 | AM30: 0.00199 | AN30: 0 | AR30: 0.00377 | AS30: 1.09 | AW30: 0.00264 | AX30: 0 | BB30: 0 | BC30: 0 | BG30: 0.00811 | BH30: 0.25
A31: =+DdaAñoBase!A111 -> BTD_4 (50,001-más) | D31: 0 | E31: 16.02 | J31: 5.66 | N31: 0.00812 | O31: 0 | S31: 0.00134 | T31: 0 | Y31: 0 | AC31: 0.11798 | AD31: 0 | AH31: 0.02489 | AI31: 1.07 | AM31: 0.00199 | AN31: 0 | AR31: 0.00377 | AS31: 1.09 | AW31: 0.00264 | AX31: 0 | BB31: 0 | BC31: 0 | BG31: 0.00811 | BH31: 0.25
A32: =+DdaAñoBase!A122 -> BTD_5 (xxx) | D32: 0 | E32: 0 | J32: 0 | N32: 0 | O32: 0 | S32: 0 | T32: 0 | Y32: 0 | AC32: 0 | AD32: 0 | AH32: 0 | AI32: 0 | AM32: 0 | AN32: 0 | AR32: 0 | AS32: 0 | AW32: 0 | AX32: 0 | BB32: 0 | BC32: 0 | BG32: 0 | BH32: 0
A33: =+DdaAñoBase!A133 -> BTS | B33: 1 | C33: 0 | D33: 0 | E33: 0 | G33: 0 | H33: 1 | J33: 3.16 | L33: 1 | M33: 0 | N33: 0 | O33: 0 | Q33: 1 | R33: 0 | S33: 0 | T33: 0 | V33: 0 | W33: 1 | Y33: 16.66 | AA33: 1 | AB33: 0 | AC33: 0 | AD33: 0 | AF33: 1 | AG33: 0 | AH33: 0 | AI33: 0 | AK33: 1 | AL33: 0 | AM33: 0 | AN33: 0 | AP33: 1 | AQ33: 0 | AR33: 0 | AS33: 0 | AU33: 1 | AV33: 0 | AW33: 0 | AX33: 0 | AZ33: 1 | BA33: 0 | BB33: 0 | BC33: 0 | BE33: 1 | BF33: 0 | BG33: 0 | BH33: 0
A34: =+DdaAñoBase!A134 -> BTS_1 (0-300) | D34: 0.04907 | E34: 0 | J34: 3.16 | N34: 0.00871 | O34: 0 | S34: 0.00142 | T34: 0 | Y34: 0 | AC34: 0.05021324146 | AD34: 0 | AH34: 0.01941675854 | AI34: 0 | AM34: 0.00212 | AN34: 0 | AR34: 0.01116 | AS34: 0 | AW34: 0.00283 | AX34: 0 | BB34: 0 | BC34: 0 | BG34: 0.00936 | BH34: 0
A35: =+DdaAñoBase!A145 -> BTS_2 (301-750) | D35: 0.04907 | E35: 0 | J35: 3.16 | N35: 0.00871 | O35: 0 | S35: 0.00142 | T35: 0 | Y35: 0 | AC35: 0.09965485908 | AD35: 0 | AH35: 0.03853514092 | AI35: 0 | AM35: 0.00212 | AN35: 0 | AR35: 0.01116 | AS35: 0 | AW35: 0.00283 | AX35: 0 | BB35: 0 | BC35: 0 | BG35: 0.00936 | BH35: 0
A36: =+DdaAñoBase!A156 -> BTS_3 (751-más) | D36: 0.04907 | E36: 0 | J36: 3.16 | N36: 0.00871 | O36: 0 | S36: 0.00142 | T36: 0 | Y36: 0 | AC36: 0.1782955884 | AD36: 0 | AH36: 0.06894441162 | AI36: 0 | AM36: 0.00212 | AN36: 0 | AR36: 0.01116 | AS36: 0 | AW36: 0.00283 | AX36: 0 | BB36: 0 | BC36: 0 | BG36: 0.00936 | BH36: 0
A37: =+DdaAñoBase!A167 -> BTS_4 (xxx) | D37: 0 | E37: 0 | J37: 0 | N37: 0 | O37: 0 | S37: 0 | T37: 0 | Y37: 0 | AC37: 0 | AD37: 0 | AH37: 0 | AI37: 0 | AM37: 0 | AN37: 0 | AR37: 0 | AS37: 0 | AW37: 0 | AX37: 0 | BB37: 0 | BC37: 0 | BG37: 0 | BH37: 0
A38: =+DdaAñoBase!A178 -> BTS_5 (xxx) | D38: 0 | E38: 0 | J38: 0 | N38: 0 | O38: 0 | S38: 0 | T38: 0 | Y38: 0 | AC38: 0 | AD38: 0 | AH38: 0 | AI38: 0 | AM38: 0 | AN38: 0 | AR38: 0 | AS38: 0 | AW38: 0 | AX38: 0 | BB38: 0 | BC38: 0 | BG38: 0 | BH38: 0
A39: =+DdaAñoBase!A189 -> Alumbrado Público | D39: 0 | E39: 0 | J39: 0 | N39: 0 | O39: 0 | S39: 0 | T39: 0 | Y39: 0 | AC39: 0 | AD39: 0 | AH39: 0 | AI39: 0 | AM39: 0 | AN39: 0 | AR39: 0 | AS39: 0 | AW39: 0 | AX39: 0 | BB39: 0 | BC39: 0 | BG39: 0 | BH39: 0
A40: =+DdaAñoBase!A190 -> GRANDES CLIENTES | D40: 0 | E40: 0 | J40: 0 | N40: 0 | O40: 0 | S40: 0 | T40: 0 | Y40: 0 | AC40: 0 | AD40: 0 | AH40: 0 | AI40: 0 | AM40: 0 | AN40: 0 | AR40: 0 | AS40: 0 | AW40: 0 | AX40: 0 | BB40: 0 | BC40: 0 | BG40: 0 | BH40: 0
A41: =+DdaAñoBase!A191 -> MTD_GC | D41: 0 | E41: 0 | J41: 0 | N41: 0 | O41: 0 | S41: 0 | T41: 0 | Y41: 0 | AC41: 0 | AD41: 0 | AH41: 0 | AI41: 0 | AK41: =+AK17 -> 1 | AL41: =+AL17 -> 0 | AM41: 0 | AN41: 0 | AR41: 0 | AS41: 0 | AW41: 0 | AX41: 0 | BB41: 0 | BC41: 0 | BG41: 0 | BH41: 0
A42: =+DdaAñoBase!A192 -> BTD_GC | D42: 0 | E42: 0 | J42: 0 | N42: 0 | O42: 0 | S42: 0 | T42: 0 | Y42: 0 | AC42: 0 | AD42: 0 | AH42: 0 | AI42: 0 | AK42: =+AK27 -> 1 | AL42: =+AL27 -> 0 | AM42: 0 | AN42: 0 | AR42: 0 | AS42: 0 | AW42: 0 | AX42: 0 | BB42: 0 | BC42: 0 | BG42: 0 | BH42: 0
A43: =+DdaAñoBase!A193 -> BTSH | B43: =+B33 -> 1 | C43: =+C33 -> 0 | D43: 0 | E43: 0 | G43: =+G33 -> 0 | H43: =+H33 -> 1 | J43: 3.06 | L43: =+L33 -> 1 | M43: =+M33 -> 0 | N43: 0 | O43: 0 | Q43: =+Q33 -> 1 | R43: =+R33 -> 0 | S43: 0 | T43: 0 | V43: =+V33 -> 0 | W43: =+W33 -> 1 | Y43: 16.66 | AA43: =+AA33 -> 1 | AB43: =+AB33 -> 0 | AC43: 0 | AD43: 0 | AF43: =+AF33 -> 1 | AG43: =+AG33 -> 0 | AH43: 0 | AI43: 0 | AK43: =+AK33 -> 1 | AL43: =+AL33 -> 0 | AM43: 0 | AN43: 0 | AP43: =+AP33 -> 1 | AQ43: =+AQ33 -> 0 | AR43: 0 | AS43: 0 | AU43: =+AU33 -> 1 | AV43: =+AV33 -> 0 | AW43: 0 | AX43: 0 | AZ43: =+AZ33 -> 1 | BA43: =+BA33 -> 0 | BB43: 0 | BC43: 0 | BE43: =+BE33 -> 1 | BF43: =+BF33 -> 0 | BG43: 0 | BH43: 0
A44: =+DdaAñoBase!A194 -> BTSH_1
A45: =+DdaAñoBase!A195 -> BTSH_1 Punta | B45: =+B34 -> 0 | C45: =+C34 -> 0 | D45: 0.05209 | E45: 0 | G45: 0 | H45: 0 | J45: 3.06 | L45: 0 | M45: 0 | N45: 0.00828 | O45: 0 | Q45: 0 | R45: 0 | S45: 0.0014 | T45: 0 | V45: 0 | W45: 0 | Y45: 0 | AA45: 0 | AB45: 0 | AC45: 20 | AD45: 0 | AF45: 0 | AG45: 0 | AH45: 0.03345 | AI45: 0 | AK45: 0 | AL45: 0 | AM45: 0.00204 | AN45: 0 | AP45: 0 | AQ45: 0 | AR45: 0.01068 | AS45: 0 | AU45: 0 | AV45: 0 | AW45: 0.00269 | AX45: 0 | AZ45: 0 | BA45: 0 | BB45: 0 | BC45: 0 | BE45: 0 | BF45: 0 | BG45: 0.00926 | BH45: 0
A46: =+DdaAñoBase!A196 -> BTSH_1 Fuera de Punta Medio | B46: =+B45 -> 0 | C46: =+C45 -> 0 | D46: 0.0465 | E46: 0 | G46: 0 | H46: 0 | J46: 3.06 | L46: 0 | M46: 0 | N46: 0.00828 | O46: 0 | Q46: 0 | R46: 0 | S46: 0.0014 | T46: 0 | V46: 0 | W46: 0 | Y46: 0 | AA46: 0 | AB46: 0 | AC46: 6 | AD46: 0 | AF46: 0 | AG46: 0 | AH46: 0.03345 | AI46: 0 | AK46: 0 | AL46: 0 | AM46: 0.00204 | AN46: 0 | AP46: 0 | AQ46: 0 | AR46: 0.01068 | AS46: 0 | AU46: 0 | AV46: 0 | AW46: 0.00269 | AX46: 0 | AZ46: 0 | BA46: 0 | BB46: 0 | BC46: 0 | BE46: 0 | BF46: 0 | BG46: 0.00926 | BH46: 0
A47: =+DdaAñoBase!A197 -> BTSH_1 Fuera de Punta Bajo | B47: =+B46 -> 0 | C47: 0 | D47: 0.04151 | E47: 0 | G47: 0 | H47: 0 | J47: 3.06 | L47: 0 | M47: 0 | N47: 0.00828 | O47: 0 | Q47: 0 | R47: 0 | S47: 0.0014 | T47: 0 | V47: 0 | W47: 0 | Y47: 0 | AA47: 0 | AB47: 0 | AC47: 0.2 | AD47: 0 | AF47: 0 | AG47: 0 | AH47: 0.03345 | AI47: 0 | AK47: 0 | AL47: 0 | AM47: 0.00204 | AN47: 0 | AP47: 0 | AQ47: 0 | AR47: 0.01068 | AS47: 0 | AU47: 0 | AV47: 0 | AW47: 0.00269 | AX47: 0 | AZ47: 0 | BA47: 0 | BB47: 0 | BC47: 0 | BE47: 0 | BF47: 0 | BG47: 0.00926 | BH47: 0
A48: =+DdaAñoBase!A198 -> BTSH_2
A49: =+DdaAñoBase!A199 -> BTSH_2 Punta | B49: =+B35 -> 0 | C49: =+C35 -> 0 | D49: 0 | E49: 0 | G49: 0 | H49: 0 | J49: 0 | L49: 0 | M49: 0 | N49: 0 | O49: 0 | Q49: 0 | R49: 0 | S49: 0 | T49: 0 | V49: 0 | W49: 0 | Y49: 0 | AA49: 0 | AB49: 0 | AC49: 0 | AD49: 0 | AF49: 0 | AG49: 0 | AH49: 0 | AI49: 0 | AK49: 0 | AL49: 0 | AM49: 0 | AN49: 0 | AP49: 0 | AQ49: 0 | AR49: 0 | AS49: 0 | AU49: 0 | AV49: 0 | AW49: 0 | AX49: 0 | AZ49: 0 | BA49: 0 | BB49: 0 | BC49: 0 | BE49: 0 | BF49: 0 | BG49: 0 | BH49: 0
A50: =+DdaAñoBase!A200 -> BTSH_2 Fuera de Punta Medio | B50: =+B49 -> 0 | C50: =+C49 -> 0 | D50: 0 | E50: 0 | G50: 0 | H50: 0 | J50: 0 | L50: 0 | M50: 0 | N50: 0 | O50: 0 | Q50: 0 | R50: 0 | S50: 0 | T50: 0 | V50: 0 | W50: 0 | Y50: 0 | AA50: 0 | AB50: 0 | AC50: 0 | AD50: 0 | AF50: 0 | AG50: 0 | AH50: 0 | AI50: 0 | AK50: 0 | AL50: 0 | AM50: 0 | AN50: 0 | AP50: 0 | AQ50: 0 | AR50: 0 | AS50: 0 | AU50: 0 | AV50: 0 | AW50: 0 | AX50: 0 | AZ50: 0 | BA50: 0 | BB50: 0 | BC50: 0 | BE50: 0 | BF50: 0 | BG50: 0 | BH50: 0
A51: =+DdaAñoBase!A201 -> BTSH_2 Fuera de Punta Bajo | B51: =+B50 -> 0 | C51: 0 | D51: 0 | E51: 0 | G51: 0 | H51: 0 | J51: 0 | L51: 0 | M51: 0 | N51: 0 | O51: 0 | Q51: 0 | R51: 0 | S51: 0 | T51: 0 | V51: 0 | W51: 0 | Y51: 0 | AA51: 0 | AB51: 0 | AC51: 0 | AD51: 0 | AF51: 0 | AG51: 0 | AH51: 0 | AI51: 0 | AK51: 0 | AL51: 0 | AM51: 0 | AN51: 0 | AP51: 0 | AQ51: 0 | AR51: 0 | AS51: 0 | AU51: 0 | AV51: 0 | AW51: 0 | AX51: 0 | AZ51: 0 | BA51: 0 | BB51: 0 | BC51: 0 | BE51: 0 | BF51: 0 | BG51: 0 | BH51: 0
A52: =+DdaAñoBase!A202 -> BTSH_3
A53: =+DdaAñoBase!A203 -> BTSH_3 Punta | B53: =+B36 -> 0 | C53: =+C36 -> 0 | D53: 0 | E53: 0 | G53: 0 | H53: 0 | J53: 0 | L53: 0 | M53: 0 | N53: 0 | O53: 0 | Q53: 0 | R53: 0 | S53: 0 | T53: 0 | V53: 0 | W53: 0 | Y53: 0 | AA53: 0 | AB53: 0 | AC53: 0 | AD53: 0 | AF53: 0 | AG53: 0 | AH53: 0 | AI53: 0 | AK53: 0 | AL53: 0 | AM53: 0 | AN53: 0 | AP53: 0 | AQ53: 0 | AR53: 0 | AS53: 0 | AU53: 0 | AV53: 0 | AW53: 0 | AX53: 0 | AZ53: 0 | BA53: 0 | BB53: 0 | BC53: 0 | BE53: 0 | BF53: 0 | BG53: 0 | BH53: 0
A54: =+DdaAñoBase!A204 -> BTSH_3 Fuera de Punta Medio | B54: =+B53 -> 0 | C54: =+C53 -> 0 | D54: 0 | E54: 0 | G54: 0 | H54: 0 | J54: 0 | L54: 0 | M54: 0 | N54: 0 | O54: 0 | Q54: 0 | R54: 0 | S54: 0 | T54: 0 | V54: 0 | W54: 0 | Y54: 0 | AA54: 0 | AB54: 0 | AC54: 0 | AD54: 0 | AF54: 0 | AG54: 0 | AH54: 0 | AI54: 0 | AK54: 0 | AL54: 0 | AM54: 0 | AN54: 0 | AP54: 0 | AQ54: 0 | AR54: 0 | AS54: 0 | AU54: 0 | AV54: 0 | AW54: 0 | AX54: 0 | AZ54: 0 | BA54: 0 | BB54: 0 | BC54: 0 | BE54: 0 | BF54: 0 | BG54: 0 | BH54: 0
A55: =+DdaAñoBase!A205 -> BTSH_3 Fuera de Punta Bajo | B55: =+B54 -> 0 | C55: 0 | D55: 0 | E55: 0 | G55: 0 | H55: 0 | J55: 0 | L55: 0 | M55: 0 | N55: 0 | O55: 0 | Q55: 0 | R55: 0 | S55: 0 | T55: 0 | V55: 0 | W55: 0 | Y55: 0 | AA55: 0 | AB55: 0 | AC55: 0 | AD55: 0 | AF55: 0 | AG55: 0 | AH55: 0 | AI55: 0 | AK55: 0 | AL55: 0 | AM55: 0 | AN55: 0 | AP55: 0 | AQ55: 0 | AR55: 0 | AS55: 0 | AU55: 0 | AV55: 0 | AW55: 0 | AX55: 0 | AZ55: 0 | BA55: 0 | BB55: 0 | BC55: 0 | BE55: 0 | BF55: 0 | BG55: 0 | BH55: 0
A56: =+DdaAñoBase!A206 -> BTS Prepago | B56: 1 | C56: 0 | D56: 0 | E56: 0 | G56: 1 | H56: 0 | I56: 0.01121 | L56: 1 | M56: 0 | N56: 0 | O56: 0 | Q56: 1 | R56: 0 | S56: 0 | T56: 0 | V56: 0 | W56: 1 | Y56: 16.66 | AA56: 1 | AB56: 0 | AC56: 0 | AD56: 0 | AF56: 1 | AG56: 0 | AH56: 0 | AI56: 0 | AK56: 1 | AL56: 0 | AM56: 0 | AN56: 0 | AP56: 1 | AQ56: 0 | AR56: 0 | AS56: 0 | AU56: 1 | AV56: 0 | AW56: 0 | AX56: 0 | AZ56: 1 | BA56: 0 | BB56: 0 | BC56: 0 | BE56: 1 | BF56: 0 | BG56: 0 | BH56: 0
A57: =+DdaAñoBase!A207 -> BTS Prep | D57: 0.04976 | E57: 0 | I57: 0.01121 | N57: 0.00884 | O57: 0 | S57: 0.00145 | T57: 0 | Y57: 0 | AC57: 0.04368689024 | AD57: 0 | AH57: 0.01689310976 | AI57: 0 | AM57: 0.00216 | AN57: 0 | AR57: 0.01131 | AS57: 0 | AW57: 0.00286 | AX57: 0 | BB57: 0 | BC57: 0 | BG57: 0.01127 | BH57: 0
A58: =+DdaAñoBase!A218 -> X1D_2 (10,001-30,000)
A59: =+DdaAñoBase!A229 -> X1D_3 (30,001-50,000) | D59: 0 | E59: 0 | J59: 0 | N59: 0 | O59: 0 | S59: 0 | T59: 0 | Y59: 0 | AC59: 0 | AD59: 0 | AH59: 0 | AI59: 0 | AM59: 0 | AN59: 0 | AR59: 0 | AS59: 0 | AW59: 0 | AX59: 0 | BB59: 0 | BC59: 0 | BG59: 0 | BH59: 0
A60: =+DdaAñoBase!A240 -> X1D_4 (50,001-más) | D60: 0 | E60: 0 | J60: 0 | N60: 0 | O60: 0 | S60: 0 | T60: 0 | Y60: 0 | AC60: 0 | AD60: 0 | AH60: 0 | AI60: 0 | AM60: 0 | AN60: 0 | AR60: 0 | AS60: 0 | AW60: 0 | AX60: 0 | BB60: 0 | BC60: 0 | BG60: 0 | BH60: 0
A61: =+DdaAñoBase!A251 -> X1D_5 (xxx) | D61: 0 | E61: 0 | J61: 0 | N61: 0 | O61: 0 | S61: 0 | T61: 0 | Y61: 0 | AC61: 0 | AD61: 0 | AH61: 0 | AI61: 0 | AM61: 0 | AN61: 0 | AR61: 0 | AS61: 0 | AW61: 0 | AX61: 0 | BB61: 0 | BC61: 0 | BG61: 0 | BH61: 0
A62: =+DdaAñoBase!A262 -> X2H | B62: 0 | C62: 1 | D62: 0 | E62: 0 | H62: 1 | J62: 0 | L62: 1 | M62: 0 | N62: 0 | O62: 0 | Q62: 1 | R62: 0 | S62: 0 | T62: 0 | V62: 0 | W62: 1 | Y62: 0 | AC62: 0 | AD62: 0 | AH62: 0 | AI62: 0 | AM62: 0 | AN62: 0 | AR62: 0 | AS62: 0 | AW62: 0 | AX62: 0 | BB62: 0 | BC62: 0 | BG62: 0 | BH62: 0
A63: =+DdaAñoBase!A263 -> X2H Punta | B63: 0 | C63: 1 | D63: 0 | E63: 0 | G63: 0 | H63: 1 | J63: 0 | L63: 1 | M63: 0 | N63: 0 | O63: 0 | Q63: 1 | S63: 0 | T63: 0 | V63: 0 | W63: 1 | Y63: 0 | AA63: 1 | AB63: 0 | AC63: 0 | AD63: 0 | AF63: 1 | AG63: 0 | AH63: 0 | AI63: 0 | AK63: 1 | AL63: 0 | AM63: 0 | AN63: 0 | AP63: 1 | AQ63: 0 | AR63: 0 | AS63: 0 | AU63: 1 | AV63: 0 | AW63: 0 | AX63: 0 | AZ63: 1 | BA63: 0 | BB63: 0 | BC63: 0 | BE63: 1 | BF63: 0 | BG63: 0 | BH63: 0
A64: =+DdaAñoBase!A264 -> X2H Fuera de Punta | B64: 0 | C64: 1 | D64: 0 | E64: 0 | G64: 0 | H64: 1 | J64: 0 | L64: 1 | M64: 0 | N64: 0 | O64: 0 | Q64: 1 | S64: 0 | T64: 0 | V64: 0 | W64: 1 | Y64: 0 | AA64: 1 | AB64: 0 | AC64: 0 | AD64: 0 | AF64: 1 | AG64: 0 | AH64: 0 | AI64: 0 | AK64: 1 | AL64: 0 | AM64: 0 | AN64: 0 | AP64: 1 | AQ64: 0 | AR64: 0 | AS64: 0 | AU64: 1 | AV64: 0 | AW64: 0 | AX64: 0 | AZ64: 1 | BA64: 0 | BB64: 0 | BC64: 0 | BE64: 1 | BF64: 0 | BG64: 0 | BH64: 0
A65: =+DdaAñoBase!A265 -> X2D | B65: 0 | C65: 1 | D65: 0 | E65: 0 | G65: 0 | H65: 1 | J65: 0 | L65: 1 | M65: 0 | N65: 0 | O65: 0 | Q65: 1 | R65: 0 | S65: 0 | T65: 0 | V65: 0 | W65: 1 | AA65: 1 | AB65: 0 | AC65: 0 | AD65: 0 | AF65: 1 | AG65: 0 | AH65: 0 | AI65: 0 | AK65: 1 | AL65: 0 | AM65: 0 | AN65: 0 | AP65: 1 | AQ65: 0 | AR65: 0 | AS65: 0 | AU65: 1 | AV65: 0 | AW65: 0 | AX65: 0 | AZ65: 0 | BA65: 1 | BB65: 0 | BC65: 0 | BE65: 1 | BF65: 0 | BG65: 0 | BH65: 0
A66: =+DdaAñoBase!A266 -> X2D_1 (0 - 10000) | D66: 0 | E66: 0 | J66: 0 | N66: 0 | O66: 0 | S66: 0 | T66: 0 | Y66: 0 | AC66: 0 | AD66: 0 | AH66: 0 | AI66: 0 | AM66: 0 | AN66: 0 | AR66: 0 | AS66: 0 | AW66: 0 | AX66: 0 | BB66: 0 | BC66: 0 | BG66: 0 | BH66: 0
A67: =+DdaAñoBase!A277 -> X2D_2 (10,001-30,000) | D67: 0 | E67: 0 | J67: 0 | N67: 0 | O67: 0 | S67: 0 | T67: 0 | Y67: 0 | AC67: 0 | AD67: 0 | AH67: 0 | AI67: 0 | AM67: 0 | AN67: 0 | AR67: 0 | AS67: 0 | AW67: 0 | AX67: 0 | BB67: 0 | BC67: 0 | BG67: 0 | BH67: 0
A68: =+DdaAñoBase!A288 -> X2D_3 (30,001-50,000) | D68: 0 | E68: 0 | J68: 0 | N68: 0 | O68: 0 | S68: 0 | T68: 0 | Y68: 0 | AC68: 0 | AD68: 0 | AH68: 0 | AI68: 0 | AM68: 0 | AN68: 0 | AR68: 0 | AS68: 0 | AW68: 0 | AX68: 0 | BB68: 0 | BC68: 0 | BG68: 0 | BH68: 0
A69: =+DdaAñoBase!A299 -> X2D_4 (50,001-más) | D69: 0 | E69: 0 | J69: 0 | N69: 0 | O69: 0 | S69: 0 | T69: 0 | Y69: 0 | AC69: 0 | AD69: 0 | AH69: 0 | AI69: 0 | AM69: 0 | AN69: 0 | AR69: 0 | AS69: 0 | AW69: 0 | AX69: 0 | BB69: 0 | BC69: 0 | BG69: 0 | BH69: 0
A70: =+DdaAñoBase!A310 -> X2D_5 (xxx) | D70: 0 | E70: 0 | J70: 0 | N70: 0 | O70: 0 | S70: 0 | T70: 0 | Y70: 0 | AC70: 0 | AD70: 0 | AH70: 0 | AI70: 0 | AM70: 0 | AN70: 0 | AR70: 0 | AS70: 0 | AW70: 0 | AX70: 0 | BB70: 0 | BC70: 0 | BG70: 0 | BH70: 0
A71: =+DdaAñoBase!A321 -> X3D | B71: 0 | C71: 1 | D71: 0 | E71: 0 | G71: 0 | H71: 1 | J71: 0 | L71: 1 | M71: 0 | N71: 0 | O71: 0 | Q71: 1 | R71: 0 | S71: 0 | T71: 0 | V71: 0 | W71: 1 | Y71: 0 | AA71: 1 | AB71: 0 | AC71: 0 | AD71: 0 | AF71: 1 | AG71: 0 | AH71: 0 | AI71: 0 | AK71: 1 | AL71: 0 | AM71: 0 | AN71: 0 | AP71: 1 | AQ71: 0 | AR71: 0 | AS71: 0 | AU71: 1 | AV71: 0 | AW71: 0 | AX71: 0 | AZ71: 1 | BA71: 0 | BB71: 0 | BC71: 0 | BE71: 1 | BF71: 0 | BG71: 0 | BH71: 0
A72: =+DdaAñoBase!A322 -> X3D_1 (0-10,000) | D72: 0 | E72: 0 | J72: 0 | N72: 0 | O72: 0 | S72: 0 | T72: 0 | Y72: 0 | AC72: 0 | AD72: 0 | AH72: 0 | AI72: 0 | AM72: 0 | AN72: 0 | AR72: 0 | AS72: 0 | AW72: 0 | AX72: 0 | BB72: 0 | BC72: 0 | BG72: 0 | BH72: 0
A73: =+DdaAñoBase!A333 -> X3D_2 (10,001-30,000) | D73: 0 | E73: 0 | J73: 0 | N73: 0 | O73: 0 | S73: 0 | T73: 0 | Y73: 0 | AC73: 0 | AD73: 0 | AH73: 0 | AI73: 0 | AM73: 0 | AN73: 0 | AR73: 0 | AS73: 0 | AW73: 0 | AX73: 0 | BB73: 0 | BC73: 0 | BG73: 0 | BH73: 0
A74: =+DdaAñoBase!A344 -> X3D_3 (30,001-50,000) | D74: 0 | E74: 0 | J74: 0 | N74: 0 | O74: 0 | S74: 0 | T74: 0 | Y74: 0 | AC74: 0 | AD74: 0 | AH74: 0 | AI74: 0 | AM74: 0 | AN74: 0 | AR74: 0 | AS74: 0 | AW74: 0 | AX74: 0 | BB74: 0 | BC74: 0 | BG74: 0 | BH74: 0
A75: =+DdaAñoBase!A355 -> X3D_4 (50,001-más) | D75: 0 | E75: 0 | J75: 0 | N75: 0 | O75: 0 | S75: 0 | T75: 0 | Y75: 0 | AC75: 0 | AD75: 0 | AH75: 0 | AI75: 0 | AM75: 0 | AN75: 0 | AR75: 0 | AS75: 0 | AW75: 0 | AX75: 0 | BB75: 0 | BC75: 0 | BG75: 0 | BH75: 0
A76: =+DdaAñoBase!A366 -> X3D_5 (xxx) | D76: 0 | E76: 0 | J76: 0 | N76: 0 | O76: 0 | S76: 0 | T76: 0 | Y76: 0 | AC76: 0 | AD76: 0 | AH76: 0 | AI76: 0 | AM76: 0 | AN76: 0 | AR76: 0 | AS76: 0 | AW76: 0 | AX76: 0 | BB76: 0 | BC76: 0 | BG76: 0 | BH76: 0
A80: Tarifa Vigente
A81: =+A8 -> ATH | D81: =+IFERROR(VLOOKUP($A81,ITV_CD!$A$8:$AA$149,13,FALSE),0) -> 0 | E81: =+IFERROR(VLOOKUP($A81,ITV_CD!$A$8:$AA$149,21,FALSE),0) -> 0 | J81: =+IFERROR(VLOOKUP($A81,ITV_CCOMF!$A$8:$AA$149,13,FALSE),0) -> 14.34 | N81: =+IFERROR(VLOOKUP($A81,ITV_CCOMV!$A$8:$AA$149,13,FALSE),0) -> 0 | O81: =+IFERROR(VLOOKUP($A81,ITV_CCOMV!$A$8:$AA$149,21,FALSE),0) -> 0 | S81: =+IFERROR(VLOOKUP($A81,ITV_CSERAP!$A$8:$AA$149,13,FALSE),0) -> 0 | T81: =+IFERROR(VLOOKUP($A81,ITV_CSERAP!$A$8:$AA$149,21,FALSE),0) -> 0 | Y81: =+IFERROR(VLOOKUP($A81,ITV_CX!$A$8:$AA$149,13,FALSE),0) -> 201.75 | AC81: =+IFERROR(VLOOKUP($A81,ITV_CENEGEN!$A$9:$Z$150,13,FALSE),0) -> 0 | AD81: =+IFERROR(VLOOKUP($A81,ITV_CENEGEN!$A$9:$Z$150,21,FALSE),0) -> 0 | AH81: =+IFERROR(VLOOKUP($A81,ITV_CPOTGEN!$A$9:$Z$150,13,FALSE),0) -> 0 | AI81: =+IFERROR(VLOOKUP($A81,ITV_CPOTGEN!$A$9:$Z$150,21,FALSE),0) -> 0 | AM81: =+IFERROR(VLOOKUP($A81,ITV_CCONAP!$A$8:$Z$149,13,FALSE),0) -> 0 | AN81: =+IFERROR(VLOOKUP($A81,ITV_CCONAP!$A$8:$Z$149,21,FALSE),0) -> 0 | AR81: =+IFERROR(VLOOKUP($A81,ITV_CPT!$A$8:$Z$149,13,FALSE),0) -> 0 | AS81: =+IFERROR(VLOOKUP($A81,ITV_CPT!$A$8:$Z$149,21,FALSE),0) -> 0 | AW81: =+IFERROR(VLOOKUP($A81,ITV_CPET!$A$8:$Z$149,13,FALSE),0) -> 0 | AX81: =+IFERROR(VLOOKUP($A81,ITV_CPET!$A$8:$Z$149,21,FALSE),0) -> 0 | BB81: =+IFERROR(VLOOKUP($A81,ITV_CPERDP!$A$8:$Z$149,13,FALSE),0) -> 0 | BC81: =+IFERROR(VLOOKUP($A81,ITV_CPERDP!$A$8:$Z$149,21,FALSE),0) -> 0 | BG81: =+IFERROR(VLOOKUP($A81,ITV_CPERDE!$A$8:$Z$149,13,FALSE),0) -> 0 | BH81: =+IFERROR(VLOOKUP($A81,ITV_CPERDE!$A$8:$Z$149,21,FALSE),0) -> 0
A82: ATH Punta | D82: =+IFERROR(VLOOKUP($A82,ITV_CD!$A$8:$AA$149,13,FALSE),0) -> 0 | E82: =+IFERROR(VLOOKUP($A82,ITV_CD!$A$8:$AA$149,21,FALSE),0) -> 6.89 | J82: =+IFERROR(VLOOKUP($A82,ITV_CCOMF!$A$8:$AA$149,13,FALSE),0) -> 0 | N82: =+IFERROR(VLOOKUP($A82,ITV_CCOMV!$A$8:$AA$149,13,FALSE),0) -> 0.00811 | O82: =+IFERROR(VLOOKUP($A82,ITV_CCOMV!$A$8:$AA$149,21,FALSE),0) -> 0 | S82: =+IFERROR(VLOOKUP($A82,ITV_CSERAP!$A$8:$AA$149,13,FALSE),0) -> 0.00133 | T82: =+IFERROR(VLOOKUP($A82,ITV_CSERAP!$A$8:$AA$149,21,FALSE),0) -> 0 | Y82: =+IFERROR(VLOOKUP($A82,ITV_CX!$A$8:$AA$149,13,FALSE),0) -> 0 | AC82: =+IFERROR(VLOOKUP($A82,ITV_CENEGEN!$A$9:$Z$150,13,FALSE),0) -> 0.1954 | AD82: =+IFERROR(VLOOKUP($A82,ITV_CENEGEN!$A$9:$Z$150,21,FALSE),0) -> 0 | AH82: =+IFERROR(VLOOKUP($A82,ITV_CPOTGEN!$A$9:$Z$150,13,FALSE),0) -> 0.00124 | AI82: =+IFERROR(VLOOKUP($A82,ITV_CPOTGEN!$A$9:$Z$150,21,FALSE),0) -> 1.04 | AM82: =+IFERROR(VLOOKUP($A82,ITV_CCONAP!$A$8:$Z$149,13,FALSE),0) -> 0.00199 | AN82: =+IFERROR(VLOOKUP($A82,ITV_CCONAP!$A$8:$Z$149,21,FALSE),0) -> 0 | AR82: =+IFERROR(VLOOKUP($A82,ITV_CPT!$A$8:$Z$149,13,FALSE),0) -> 0.00152 | AS82: =+IFERROR(VLOOKUP($A82,ITV_CPT!$A$8:$Z$149,21,FALSE),0) -> 5.36 | AW82: =+IFERROR(VLOOKUP($A82,ITV_CPET!$A$8:$Z$149,13,FALSE),0) -> 0.00264 | AX82: =+IFERROR(VLOOKUP($A82,ITV_CPET!$A$8:$Z$149,21,FALSE),0) -> 0 | BB82: =+IFERROR(VLOOKUP($A82,ITV_CPERDP!$A$8:$Z$149,13,FALSE),0) -> 0 | BC82: =+IFERROR(VLOOKUP($A82,ITV_CPERDP!$A$8:$Z$149,21,FALSE),0) -> 0 | BG82: =+IFERROR(VLOOKUP($A82,ITV_CPERDE!$A$8:$Z$149,13,FALSE),0) -> 0.01109 | BH82: =+IFERROR(VLOOKUP($A82,ITV_CPERDE!$A$8:$Z$149,21,FALSE),0) -> 2.92
A83: ATH Fuera de Punta Medio | D83: =+IFERROR(VLOOKUP($A83,ITV_CD!$A$8:$AA$149,13,FALSE),0) -> 0 | E83: =+IFERROR(VLOOKUP($A83,ITV_CD!$A$8:$AA$149,21,FALSE),0) -> 5.66 | J83: =+IFERROR(VLOOKUP($A83,ITV_CCOMF!$A$8:$AA$149,13,FALSE),0) -> 0 | N83: =+IFERROR(VLOOKUP($A83,ITV_CCOMV!$A$8:$AA$149,13,FALSE),0) -> 0.00811 | O83: =+IFERROR(VLOOKUP($A83,ITV_CCOMV!$A$8:$AA$149,21,FALSE),0) -> 0 | S83: =+IFERROR(VLOOKUP($A83,ITV_CSERAP!$A$8:$AA$149,13,FALSE),0) -> 0.00133 | T83: =+IFERROR(VLOOKUP($A83,ITV_CSERAP!$A$8:$AA$149,21,FALSE),0) -> 0 | Y83: =+IFERROR(VLOOKUP($A83,ITV_CX!$A$8:$AA$149,13,FALSE),0) -> 0 | AC83: =+IFERROR(VLOOKUP($A83,ITV_CENEGEN!$A$9:$Z$150,13,FALSE),0) -> 0.09997 | AD83: =+IFERROR(VLOOKUP($A83,ITV_CENEGEN!$A$9:$Z$150,21,FALSE),0) -> 0 | AH83: =+IFERROR(VLOOKUP($A83,ITV_CPOTGEN!$A$9:$Z$150,13,FALSE),0) -> 0.00124 | AI83: =+IFERROR(VLOOKUP($A83,ITV_CPOTGEN!$A$9:$Z$150,21,FALSE),0) -> 0 | AM83: =+IFERROR(VLOOKUP($A83,ITV_CCONAP!$A$8:$Z$149,13,FALSE),0) -> 0.00199 | AN83: =+IFERROR(VLOOKUP($A83,ITV_CCONAP!$A$8:$Z$149,21,FALSE),0) -> 0 | AR83: =+IFERROR(VLOOKUP($A83,ITV_CPT!$A$8:$Z$149,13,FALSE),0) -> 0.00152 | AS83: =+IFERROR(VLOOKUP($A83,ITV_CPT!$A$8:$Z$149,21,FALSE),0) -> 0.15 | AW83: =+IFERROR(VLOOKUP($A83,ITV_CPET!$A$8:$Z$149,13,FALSE),0) -> 0.00264 | AX83: =+IFERROR(VLOOKUP($A83,ITV_CPET!$A$8:$Z$149,21,FALSE),0) -> 0 | BB83: =+IFERROR(VLOOKUP($A83,ITV_CPERDP!$A$8:$Z$149,13,FALSE),0) -> 0 | BC83: =+IFERROR(VLOOKUP($A83,ITV_CPERDP!$A$8:$Z$149,21,FALSE),0) -> 0 | BG83: =+IFERROR(VLOOKUP($A83,ITV_CPERDE!$A$8:$Z$149,13,FALSE),0) -> 0.00721 | BH83: =+IFERROR(VLOOKUP($A83,ITV_CPERDE!$A$8:$Z$149,21,FALSE),0) -> 0.08
A84: ATH Fuera de Punta Bajo | D84: =+IFERROR(VLOOKUP($A84,ITV_CD!$A$8:$AA$149,13,FALSE),0) -> 0 | E84: =+IFERROR(VLOOKUP($A84,ITV_CD!$A$8:$AA$149,21,FALSE),0) -> 5.66 | J84: =+IFERROR(VLOOKUP($A84,ITV_CCOMF!$A$8:$AA$149,13,FALSE),0) -> 0 | N84: =+IFERROR(VLOOKUP($A84,ITV_CCOMV!$A$8:$AA$149,13,FALSE),0) -> 0.00811 | O84: =+IFERROR(VLOOKUP($A84,ITV_CCOMV!$A$8:$AA$149,21,FALSE),0) -> 0 | S84: =+IFERROR(VLOOKUP($A84,ITV_CSERAP!$A$8:$AA$149,13,FALSE),0) -> 0.00133 | T84: =+IFERROR(VLOOKUP($A84,ITV_CSERAP!$A$8:$AA$149,21,FALSE),0) -> 0 | Y84: =+IFERROR(VLOOKUP($A84,ITV_CX!$A$8:$AA$149,13,FALSE),0) -> 0 | AC84: =+IFERROR(VLOOKUP($A84,ITV_CENEGEN!$A$9:$Z$150,13,FALSE),0) -> 0.04544 | AD84: =+IFERROR(VLOOKUP($A84,ITV_CENEGEN!$A$9:$Z$150,21,FALSE),0) -> 0 | AH84: =+IFERROR(VLOOKUP($A84,ITV_CPOTGEN!$A$9:$Z$150,13,FALSE),0) -> 0.00124 | AI84: =+IFERROR(VLOOKUP($A84,ITV_CPOTGEN!$A$9:$Z$150,21,FALSE),0) -> 0 | AM84: =+IFERROR(VLOOKUP($A84,ITV_CCONAP!$A$8:$Z$149,13,FALSE),0) -> 0.00199 | AN84: =+IFERROR(VLOOKUP($A84,ITV_CCONAP!$A$8:$Z$149,21,FALSE),0) -> 0 | AR84: =+IFERROR(VLOOKUP($A84,ITV_CPT!$A$8:$Z$149,13,FALSE),0) -> 0.00152 | AS84: =+IFERROR(VLOOKUP($A84,ITV_CPT!$A$8:$Z$149,21,FALSE),0) -> 0.15 | AW84: =+IFERROR(VLOOKUP($A84,ITV_CPET!$A$8:$Z$149,13,FALSE),0) -> 0.00264 | AX84: =+IFERROR(VLOOKUP($A84,ITV_CPET!$A$8:$Z$149,21,FALSE),0) -> 0 | BB84: =+IFERROR(VLOOKUP($A84,ITV_CPERDP!$A$8:$Z$149,13,FALSE),0) -> 0 | BC84: =+IFERROR(VLOOKUP($A84,ITV_CPERDP!$A$8:$Z$149,21,FALSE),0) -> 0 | BG84: =+IFERROR(VLOOKUP($A84,ITV_CPERDE!$A$8:$Z$149,13,FALSE),0) -> 0.00721 | BH84: =+IFERROR(VLOOKUP($A84,ITV_CPERDE!$A$8:$Z$149,21,FALSE),0) -> 0.08
A85: ATD | D85: =+IFERROR(VLOOKUP($A85,ITV_CD!$A$8:$AA$149,13,FALSE),0) -> 0 | E85: =+IFERROR(VLOOKUP($A85,ITV_CD!$A$8:$AA$149,21,FALSE),0) -> 6.51 | J85: =+IFERROR(VLOOKUP($A85,ITV_CCOMF!$A$8:$AA$149,13,FALSE),0) -> 14.34 | N85: =+IFERROR(VLOOKUP($A85,ITV_CCOMV!$A$8:$AA$149,13,FALSE),0) -> 0.00811 | O85: =+IFERROR(VLOOKUP($A85,ITV_CCOMV!$A$8:$AA$149,21,FALSE),0) -> 0 | S85: =+IFERROR(VLOOKUP($A85,ITV_CSERAP!$A$8:$AA$149,13,FALSE),0) -> 0.00133 | T85: =+IFERROR(VLOOKUP($A85,ITV_CSERAP!$A$8:$AA$149,21,FALSE),0) -> 0 | Y85: =+IFERROR(VLOOKUP($A85,ITV_CX!$A$8:$AA$149,13,FALSE),0) -> 201.75 | AC85: =+IFERROR(VLOOKUP($A85,ITV_CENEGEN!$A$9:$Z$150,13,FALSE),0) -> 0.09559 | AD85: =+IFERROR(VLOOKUP($A85,ITV_CENEGEN!$A$9:$Z$150,21,FALSE),0) -> 0 | AH85: =+IFERROR(VLOOKUP($A85,ITV_CPOTGEN!$A$9:$Z$150,13,FALSE),0) -> 0.01863 | AI85: =+IFERROR(VLOOKUP($A85,ITV_CPOTGEN!$A$9:$Z$150,21,FALSE),0) -> 0.31 | AM85: =+IFERROR(VLOOKUP($A85,ITV_CCONAP!$A$8:$Z$149,13,FALSE),0) -> 0.00199 | AN85: =+IFERROR(VLOOKUP($A85,ITV_CCONAP!$A$8:$Z$149,21,FALSE),0) -> 0 | AR85: =+IFERROR(VLOOKUP($A85,ITV_CPT!$A$8:$Z$149,13,FALSE),0) -> 0.02657 | AS85: =+IFERROR(VLOOKUP($A85,ITV_CPT!$A$8:$Z$149,21,FALSE),0) -> 2.55 | AW85: =+IFERROR(VLOOKUP($A85,ITV_CPET!$A$8:$Z$149,13,FALSE),0) -> 0.00264 | AX85: =+IFERROR(VLOOKUP($A85,ITV_CPET!$A$8:$Z$149,21,FALSE),0) -> 0 | BB85: =+IFERROR(VLOOKUP($A85,ITV_CPERDP!$A$8:$Z$149,13,FALSE),0) -> 0 | BC85: =+IFERROR(VLOOKUP($A85,ITV_CPERDP!$A$8:$Z$149,21,FALSE),0) -> 0 | BG85: =+IFERROR(VLOOKUP($A85,ITV_CPERDE!$A$8:$Z$149,13,FALSE),0) -> 0.00811 | BH85: =+IFERROR(VLOOKUP($A85,ITV_CPERDE!$A$8:$Z$149,21,FALSE),0) -> 0.08
A86: MTH | D86: =+IFERROR(VLOOKUP($A86,ITV_CD!$A$8:$AA$149,13,FALSE),0) -> 0 | E86: =+IFERROR(VLOOKUP($A86,ITV_CD!$A$8:$AA$149,21,FALSE),0) -> 0 | J86: =+IFERROR(VLOOKUP($A86,ITV_CCOMF!$A$8:$AA$149,13,FALSE),0) -> 14.34 | N86: =+IFERROR(VLOOKUP($A86,ITV_CCOMV!$A$8:$AA$149,13,FALSE),0) -> 0 | O86: =+IFERROR(VLOOKUP($A86,ITV_CCOMV!$A$8:$AA$149,21,FALSE),0) -> 0 | S86: =+IFERROR(VLOOKUP($A86,ITV_CSERAP!$A$8:$AA$149,13,FALSE),0) -> 0 | T86: =+IFERROR(VLOOKUP($A86,ITV_CSERAP!$A$8:$AA$149,21,FALSE),0) -> 0 | Y86: =+IFERROR(VLOOKUP($A86,ITV_CX!$A$8:$AA$149,13,FALSE),0) -> 142 | AC86: =+IFERROR(VLOOKUP($A86,ITV_CENEGEN!$A$9:$Z$150,13,FALSE),0) -> 0 | AD86: =+IFERROR(VLOOKUP($A86,ITV_CENEGEN!$A$9:$Z$150,21,FALSE),0) -> 0 | AH86: =+IFERROR(VLOOKUP($A86,ITV_CPOTGEN!$A$9:$Z$150,13,FALSE),0) -> 0 | AI86: =+IFERROR(VLOOKUP($A86,ITV_CPOTGEN!$A$9:$Z$150,21,FALSE),0) -> 0 | AM86: =+IFERROR(VLOOKUP($A86,ITV_CCONAP!$A$8:$Z$149,13,FALSE),0) -> 0 | AN86: =+IFERROR(VLOOKUP($A86,ITV_CCONAP!$A$8:$Z$149,21,FALSE),0) -> 0 | AR86: =+IFERROR(VLOOKUP($A86,ITV_CPT!$A$8:$Z$149,13,FALSE),0) -> 0 | AS86: =+IFERROR(VLOOKUP($A86,ITV_CPT!$A$8:$Z$149,21,FALSE),0) -> 0 | AW86: =+IFERROR(VLOOKUP($A86,ITV_CPET!$A$8:$Z$149,13,FALSE),0) -> 0 | AX86: =+IFERROR(VLOOKUP($A86,ITV_CPET!$A$8:$Z$149,21,FALSE),0) -> 0 | BB86: =+IFERROR(VLOOKUP($A86,ITV_CPERDP!$A$8:$Z$149,13,FALSE),0) -> 0 | BC86: =+IFERROR(VLOOKUP($A86,ITV_CPERDP!$A$8:$Z$149,21,FALSE),0) -> 0 | BG86: =+IFERROR(VLOOKUP($A86,ITV_CPERDE!$A$8:$Z$149,13,FALSE),0) -> 0 | BH86: =+IFERROR(VLOOKUP($A86,ITV_CPERDE!$A$8:$Z$149,21,FALSE),0) -> 0
A87: MTH Punta | D87: =+IFERROR(VLOOKUP($A87,ITV_CD!$A$8:$AA$149,13,FALSE),0) -> 0 | E87: =+IFERROR(VLOOKUP($A87,ITV_CD!$A$8:$AA$149,21,FALSE),0) -> 15.16 | J87: =+IFERROR(VLOOKUP($A87,ITV_CCOMF!$A$8:$AA$149,13,FALSE),0) -> 0 | N87: =+IFERROR(VLOOKUP($A87,ITV_CCOMV!$A$8:$AA$149,13,FALSE),0) -> 0.00811 | O87: =+IFERROR(VLOOKUP($A87,ITV_CCOMV!$A$8:$AA$149,21,FALSE),0) -> 0 | S87: =+IFERROR(VLOOKUP($A87,ITV_CSERAP!$A$8:$AA$149,13,FALSE),0) -> 0.00133 | T87: =+IFERROR(VLOOKUP($A87,ITV_CSERAP!$A$8:$AA$149,21,FALSE),0) -> 0 | Y87: =+IFERROR(VLOOKUP($A87,ITV_CX!$A$8:$AA$149,13,FALSE),0) -> 0 | AC87: =+IFERROR(VLOOKUP($A87,ITV_CENEGEN!$A$9:$Z$150,13,FALSE),0) -> 0.24851 | AD87: =+IFERROR(VLOOKUP($A87,ITV_CENEGEN!$A$9:$Z$150,21,FALSE),0) -> 0 | AH87: =+IFERROR(VLOOKUP($A87,ITV_CPOTGEN!$A$9:$Z$150,13,FALSE),0) -> 0.00091 | AI87: =+IFERROR(VLOOKUP($A87,ITV_CPOTGEN!$A$9:$Z$150,21,FALSE),0) -> 0.09 | AM87: =+IFERROR(VLOOKUP($A87,ITV_CCONAP!$A$8:$Z$149,13,FALSE),0) -> 0.00199 | AN87: =+IFERROR(VLOOKUP($A87,ITV_CCONAP!$A$8:$Z$149,21,FALSE),0) -> 0 | AR87: =+IFERROR(VLOOKUP($A87,ITV_CPT!$A$8:$Z$149,13,FALSE),0) -> 0.00503 | AS87: =+IFERROR(VLOOKUP($A87,ITV_CPT!$A$8:$Z$149,21,FALSE),0) -> 2.5 | AW87: =+IFERROR(VLOOKUP($A87,ITV_CPET!$A$8:$Z$149,13,FALSE),0) -> 0.00264 | AX87: =+IFERROR(VLOOKUP($A87,ITV_CPET!$A$8:$Z$149,21,FALSE),0) -> 0 | BB87: =+IFERROR(VLOOKUP($A87,ITV_CPERDP!$A$8:$Z$149,13,FALSE),0) -> 0 | BC87: =+IFERROR(VLOOKUP($A87,ITV_CPERDP!$A$8:$Z$149,21,FALSE),0) -> 0 | BG87: =+IFERROR(VLOOKUP($A87,ITV_CPERDE!$A$8:$Z$149,13,FALSE),0) -> 0.01064 | BH87: =+IFERROR(VLOOKUP($A87,ITV_CPERDE!$A$8:$Z$149,21,FALSE),0) -> 0.42
A88: MTH Fuera de Punta Medio | D88: =+IFERROR(VLOOKUP($A88,ITV_CD!$A$8:$AA$149,13,FALSE),0) -> 0 | E88: =+IFERROR(VLOOKUP($A88,ITV_CD!$A$8:$AA$149,21,FALSE),0) -> 2.51 | J88: =+IFERROR(VLOOKUP($A88,ITV_CCOMF!$A$8:$AA$149,13,FALSE),0) -> 0 | N88: =+IFERROR(VLOOKUP($A88,ITV_CCOMV!$A$8:$AA$149,13,FALSE),0) -> 0.00811 | O88: =+IFERROR(VLOOKUP($A88,ITV_CCOMV!$A$8:$AA$149,21,FALSE),0) -> 0 | S88: =+IFERROR(VLOOKUP($A88,ITV_CSERAP!$A$8:$AA$149,13,FALSE),0) -> 0.00133 | T88: =+IFERROR(VLOOKUP($A88,ITV_CSERAP!$A$8:$AA$149,21,FALSE),0) -> 0 | Y88: =+IFERROR(VLOOKUP($A88,ITV_CX!$A$8:$AA$149,13,FALSE),0) -> 0 | AC88: =+IFERROR(VLOOKUP($A88,ITV_CENEGEN!$A$9:$Z$150,13,FALSE),0) -> 0.13016 | AD88: =+IFERROR(VLOOKUP($A88,ITV_CENEGEN!$A$9:$Z$150,21,FALSE),0) -> 0 | AH88: =+IFERROR(VLOOKUP($A88,ITV_CPOTGEN!$A$9:$Z$150,13,FALSE),0) -> 0.00091 | AI88: =+IFERROR(VLOOKUP($A88,ITV_CPOTGEN!$A$9:$Z$150,21,FALSE),0) -> 0 | AM88: =+IFERROR(VLOOKUP($A88,ITV_CCONAP!$A$8:$Z$149,13,FALSE),0) -> 0.00199 | AN88: =+IFERROR(VLOOKUP($A88,ITV_CCONAP!$A$8:$Z$149,21,FALSE),0) -> 0 | AR88: =+IFERROR(VLOOKUP($A88,ITV_CPT!$A$8:$Z$149,13,FALSE),0) -> 0.00503 | AS88: =+IFERROR(VLOOKUP($A88,ITV_CPT!$A$8:$Z$149,21,FALSE),0) -> 0.27 | AW88: =+IFERROR(VLOOKUP($A88,ITV_CPET!$A$8:$Z$149,13,FALSE),0) -> 0.00264 | AX88: =+IFERROR(VLOOKUP($A88,ITV_CPET!$A$8:$Z$149,21,FALSE),0) -> 0 | BB88: =+IFERROR(VLOOKUP($A88,ITV_CPERDP!$A$8:$Z$149,13,FALSE),0) -> 0 | BC88: =+IFERROR(VLOOKUP($A88,ITV_CPERDP!$A$8:$Z$149,21,FALSE),0) -> 0 | BG88: =+IFERROR(VLOOKUP($A88,ITV_CPERDE!$A$8:$Z$149,13,FALSE),0) -> 0.00727 | BH88: =+IFERROR(VLOOKUP($A88,ITV_CPERDE!$A$8:$Z$149,21,FALSE),0) -> 0.03
A89: MTH Fuera de Punta Bajo | D89: =+IFERROR(VLOOKUP($A89,ITV_CD!$A$8:$AA$149,13,FALSE),0) -> 0 | E89: =+IFERROR(VLOOKUP($A89,ITV_CD!$A$8:$AA$149,21,FALSE),0) -> 2.51 | J89: =+IFERROR(VLOOKUP($A89,ITV_CCOMF!$A$8:$AA$149,13,FALSE),0) -> 0 | N89: =+IFERROR(VLOOKUP($A89,ITV_CCOMV!$A$8:$AA$149,13,FALSE),0) -> 0.00811 | O89: =+IFERROR(VLOOKUP($A89,ITV_CCOMV!$A$8:$AA$149,21,FALSE),0) -> 0 | S89: =+IFERROR(VLOOKUP($A89,ITV_CSERAP!$A$8:$AA$149,13,FALSE),0) -> 0.00133 | T89: =+IFERROR(VLOOKUP($A89,ITV_CSERAP!$A$8:$AA$149,21,FALSE),0) -> 0 | Y89: =+IFERROR(VLOOKUP($A89,ITV_CX!$A$8:$AA$149,13,FALSE),0) -> 0 | AC89: =+IFERROR(VLOOKUP($A89,ITV_CENEGEN!$A$9:$Z$150,13,FALSE),0) -> 0.05917 | AD89: =+IFERROR(VLOOKUP($A89,ITV_CENEGEN!$A$9:$Z$150,21,FALSE),0) -> 0 | AH89: =+IFERROR(VLOOKUP($A89,ITV_CPOTGEN!$A$9:$Z$150,13,FALSE),0) -> 0.00091 | AI89: =+IFERROR(VLOOKUP($A89,ITV_CPOTGEN!$A$9:$Z$150,21,FALSE),0) -> 0 | AM89: =+IFERROR(VLOOKUP($A89,ITV_CCONAP!$A$8:$Z$149,13,FALSE),0) -> 0.00199 | AN89: =+IFERROR(VLOOKUP($A89,ITV_CCONAP!$A$8:$Z$149,21,FALSE),0) -> 0 | AR89: =+IFERROR(VLOOKUP($A89,ITV_CPT!$A$8:$Z$149,13,FALSE),0) -> 0.00503 | AS89: =+IFERROR(VLOOKUP($A89,ITV_CPT!$A$8:$Z$149,21,FALSE),0) -> 0.27 | AW89: =+IFERROR(VLOOKUP($A89,ITV_CPET!$A$8:$Z$149,13,FALSE),0) -> 0.00264 | AX89: =+IFERROR(VLOOKUP($A89,ITV_CPET!$A$8:$Z$149,21,FALSE),0) -> 0 | BB89: =+IFERROR(VLOOKUP($A89,ITV_CPERDP!$A$8:$Z$149,13,FALSE),0) -> 0 | BC89: =+IFERROR(VLOOKUP($A89,ITV_CPERDP!$A$8:$Z$149,21,FALSE),0) -> 0 | BG89: =+IFERROR(VLOOKUP($A89,ITV_CPERDE!$A$8:$Z$149,13,FALSE),0) -> 0.00727 | BH89: =+IFERROR(VLOOKUP($A89,ITV_CPERDE!$A$8:$Z$149,21,FALSE),0) -> 0.03
A90: MTD | D90: =+IFERROR(VLOOKUP($A90,ITV_CD!$A$8:$AA$149,13,FALSE),0) -> 0 | E90: =+IFERROR(VLOOKUP($A90,ITV_CD!$A$8:$AA$149,21,FALSE),0) -> 0 | J90: =+IFERROR(VLOOKUP($A90,ITV_CCOMF!$A$8:$AA$149,13,FALSE),0) -> 14.27 | N90: =+IFERROR(VLOOKUP($A90,ITV_CCOMV!$A$8:$AA$149,13,FALSE),0) -> 0 | O90: =+IFERROR(VLOOKUP($A90,ITV_CCOMV!$A$8:$AA$149,21,FALSE),0) -> 0 | S90: =+IFERROR(VLOOKUP($A90,ITV_CSERAP!$A$8:$AA$149,13,FALSE),0) -> 0 | T90: =+IFERROR(VLOOKUP($A90,ITV_CSERAP!$A$8:$AA$149,21,FALSE),0) -> 0 | Y90: =+IFERROR(VLOOKUP($A90,ITV_CX!$A$8:$AA$149,13,FALSE),0) -> 142 | AC90: =+IFERROR(VLOOKUP($A90,ITV_CENEGEN!$A$9:$Z$150,13,FALSE),0) -> 0 | AD90: =+IFERROR(VLOOKUP($A90,ITV_CENEGEN!$A$9:$Z$150,21,FALSE),0) -> 0 | AH90: =+IFERROR(VLOOKUP($A90,ITV_CPOTGEN!$A$9:$Z$150,13,FALSE),0) -> 0 | AI90: =+IFERROR(VLOOKUP($A90,ITV_CPOTGEN!$A$9:$Z$150,21,FALSE),0) -> 0 | AM90: =+IFERROR(VLOOKUP($A90,ITV_CCONAP!$A$8:$Z$149,13,FALSE),0) -> 0 | AN90: =+IFERROR(VLOOKUP($A90,ITV_CCONAP!$A$8:$Z$149,21,FALSE),0) -> 0 | AR90: =+IFERROR(VLOOKUP($A90,ITV_CPT!$A$8:$Z$149,13,FALSE),0) -> 0 | AS90: =+IFERROR(VLOOKUP($A90,ITV_CPT!$A$8:$Z$149,21,FALSE),0) -> 0 | AW90: =+IFERROR(VLOOKUP($A90,ITV_CPET!$A$8:$Z$149,13,FALSE),0) -> 0 | AX90: =+IFERROR(VLOOKUP($A90,ITV_CPET!$A$8:$Z$149,21,FALSE),0) -> 0 | BB90: =+IFERROR(VLOOKUP($A90,ITV_CPERDP!$A$8:$Z$149,13,FALSE),0) -> 0 | BC90: =+IFERROR(VLOOKUP($A90,ITV_CPERDP!$A$8:$Z$149,21,FALSE),0) -> 0 | BG90: =+IFERROR(VLOOKUP($A90,ITV_CPERDE!$A$8:$Z$149,13,FALSE),0) -> 0 | BH90: =+IFERROR(VLOOKUP($A90,ITV_CPERDE!$A$8:$Z$149,21,FALSE),0) -> 0
A91: MTD_1 (0-10,000) | D91: =+IFERROR(VLOOKUP($A91,ITV_CD!$A$8:$AA$149,13,FALSE),0) -> 0 | E91: =+IFERROR(VLOOKUP($A91,ITV_CD!$A$8:$AA$149,21,FALSE),0) -> 16.89 | J91: =+IFERROR(VLOOKUP($A91,ITV_CCOMF!$A$8:$AA$149,13,FALSE),0) -> 14.27 | N91: =+IFERROR(VLOOKUP($A91,ITV_CCOMV!$A$8:$AA$149,13,FALSE),0) -> 0.00812 | O91: =+IFERROR(VLOOKUP($A91,ITV_CCOMV!$A$8:$AA$149,21,FALSE),0) -> 0 | S91: =+IFERROR(VLOOKUP($A91,ITV_CSERAP!$A$8:$AA$149,13,FALSE),0) -> 0.00134 | T91: =+IFERROR(VLOOKUP($A91,ITV_CSERAP!$A$8:$AA$149,21,FALSE),0) -> 0 | Y91: =+IFERROR(VLOOKUP($A91,ITV_CX!$A$8:$AA$149,13,FALSE),0) -> 0 | AC91: =+IFERROR(VLOOKUP($A91,ITV_CENEGEN!$A$9:$Z$150,13,FALSE),0) -> 0.09979 | AD91: =+IFERROR(VLOOKUP($A91,ITV_CENEGEN!$A$9:$Z$150,21,FALSE),0) -> 0 | AH91: =+IFERROR(VLOOKUP($A91,ITV_CPOTGEN!$A$9:$Z$150,13,FALSE),0) -> 0.02257 | AI91: =+IFERROR(VLOOKUP($A91,ITV_CPOTGEN!$A$9:$Z$150,21,FALSE),0) -> 1.75 | AM91: =+IFERROR(VLOOKUP($A91,ITV_CCONAP!$A$8:$Z$149,13,FALSE),0) -> 0.00199 | AN91: =+IFERROR(VLOOKUP($A91,ITV_CCONAP!$A$8:$Z$149,21,FALSE),0) -> 0 | AR91: =+IFERROR(VLOOKUP($A91,ITV_CPT!$A$8:$Z$149,13,FALSE),0) -> 0.00363 | AS91: =+IFERROR(VLOOKUP($A91,ITV_CPT!$A$8:$Z$149,21,FALSE),0) -> 1.59 | AW91: =+IFERROR(VLOOKUP($A91,ITV_CPET!$A$8:$Z$149,13,FALSE),0) -> 0.00264 | AX91: =+IFERROR(VLOOKUP($A91,ITV_CPET!$A$8:$Z$149,21,FALSE),0) -> 0 | BB91: =+IFERROR(VLOOKUP($A91,ITV_CPERDP!$A$8:$Z$149,13,FALSE),0) -> 0 | BC91: =+IFERROR(VLOOKUP($A91,ITV_CPERDP!$A$8:$Z$149,21,FALSE),0) -> 0 | BG91: =+IFERROR(VLOOKUP($A91,ITV_CPERDE!$A$8:$Z$149,13,FALSE),0) -> 0.00811 | BH91: =+IFERROR(VLOOKUP($A91,ITV_CPERDE!$A$8:$Z$149,21,FALSE),0) -> 0.37
A92: MTD_2 (10,001-30,000) | D92: =+IFERROR(VLOOKUP($A92,ITV_CD!$A$8:$AA$149,13,FALSE),0) -> 0 | E92: =+IFERROR(VLOOKUP($A92,ITV_CD!$A$8:$AA$149,21,FALSE),0) -> 16.89 | J92: =+IFERROR(VLOOKUP($A92,ITV_CCOMF!$A$8:$AA$149,13,FALSE),0) -> 14.27 | N92: =+IFERROR(VLOOKUP($A92,ITV_CCOMV!$A$8:$AA$149,13,FALSE),0) -> 0.00812 | O92: =+IFERROR(VLOOKUP($A92,ITV_CCOMV!$A$8:$AA$149,21,FALSE),0) -> 0 | S92: =+IFERROR(VLOOKUP($A92,ITV_CSERAP!$A$8:$AA$149,13,FALSE),0) -> 0.00134 | T92: =+IFERROR(VLOOKUP($A92,ITV_CSERAP!$A$8:$AA$149,21,FALSE),0) -> 0 | Y92: =+IFERROR(VLOOKUP($A92,ITV_CX!$A$8:$AA$149,13,FALSE),0) -> 0 | AC92: =+IFERROR(VLOOKUP($A92,ITV_CENEGEN!$A$9:$Z$150,13,FALSE),0) -> 0.09979 | AD92: =+IFERROR(VLOOKUP($A92,ITV_CENEGEN!$A$9:$Z$150,21,FALSE),0) -> 0 | AH92: =+IFERROR(VLOOKUP($A92,ITV_CPOTGEN!$A$9:$Z$150,13,FALSE),0) -> 0.02257 | AI92: =+IFERROR(VLOOKUP($A92,ITV_CPOTGEN!$A$9:$Z$150,21,FALSE),0) -> 1.75 | AM92: =+IFERROR(VLOOKUP($A92,ITV_CCONAP!$A$8:$Z$149,13,FALSE),0) -> 0.00199 | AN92: =+IFERROR(VLOOKUP($A92,ITV_CCONAP!$A$8:$Z$149,21,FALSE),0) -> 0 | AR92: =+IFERROR(VLOOKUP($A92,ITV_CPT!$A$8:$Z$149,13,FALSE),0) -> 0.00363 | AS92: =+IFERROR(VLOOKUP($A92,ITV_CPT!$A$8:$Z$149,21,FALSE),0) -> 1.59 | AW92: =+IFERROR(VLOOKUP($A92,ITV_CPET!$A$8:$Z$149,13,FALSE),0) -> 0.00264 | AX92: =+IFERROR(VLOOKUP($A92,ITV_CPET!$A$8:$Z$149,21,FALSE),0) -> 0 | BB92: =+IFERROR(VLOOKUP($A92,ITV_CPERDP!$A$8:$Z$149,13,FALSE),0) -> 0 | BC92: =+IFERROR(VLOOKUP($A92,ITV_CPERDP!$A$8:$Z$149,21,FALSE),0) -> 0 | BG92: =+IFERROR(VLOOKUP($A92,ITV_CPERDE!$A$8:$Z$149,13,FALSE),0) -> 0.00811 | BH92: =+IFERROR(VLOOKUP($A92,ITV_CPERDE!$A$8:$Z$149,21,FALSE),0) -> 0.37
A93: MTD_3 (30,001-50,000) | D93: =+IFERROR(VLOOKUP($A93,ITV_CD!$A$8:$AA$149,13,FALSE),0) -> 0 | E93: =+IFERROR(VLOOKUP($A93,ITV_CD!$A$8:$AA$149,21,FALSE),0) -> 16.89 | J93: =+IFERROR(VLOOKUP($A93,ITV_CCOMF!$A$8:$AA$149,13,FALSE),0) -> 14.27 | N93: =+IFERROR(VLOOKUP($A93,ITV_CCOMV!$A$8:$AA$149,13,FALSE),0) -> 0.00812 | O93: =+IFERROR(VLOOKUP($A93,ITV_CCOMV!$A$8:$AA$149,21,FALSE),0) -> 0 | S93: =+IFERROR(VLOOKUP($A93,ITV_CSERAP!$A$8:$AA$149,13,FALSE),0) -> 0.00134 | T93: =+IFERROR(VLOOKUP($A93,ITV_CSERAP!$A$8:$AA$149,21,FALSE),0) -> 0 | Y93: =+IFERROR(VLOOKUP($A93,ITV_CX!$A$8:$AA$149,13,FALSE),0) -> 0 | AC93: =+IFERROR(VLOOKUP($A93,ITV_CENEGEN!$A$9:$Z$150,13,FALSE),0) -> 0.09979 | AD93: =+IFERROR(VLOOKUP($A93,ITV_CENEGEN!$A$9:$Z$150,21,FALSE),0) -> 0 | AH93: =+IFERROR(VLOOKUP($A93,ITV_CPOTGEN!$A$9:$Z$150,13,FALSE),0) -> 0.02257 | AI93: =+IFERROR(VLOOKUP($A93,ITV_CPOTGEN!$A$9:$Z$150,21,FALSE),0) -> 1.75 | AM93: =+IFERROR(VLOOKUP($A93,ITV_CCONAP!$A$8:$Z$149,13,FALSE),0) -> 0.00199 | AN93: =+IFERROR(VLOOKUP($A93,ITV_CCONAP!$A$8:$Z$149,21,FALSE),0) -> 0 | AR93: =+IFERROR(VLOOKUP($A93,ITV_CPT!$A$8:$Z$149,13,FALSE),0) -> 0.00363 | AS93: =+IFERROR(VLOOKUP($A93,ITV_CPT!$A$8:$Z$149,21,FALSE),0) -> 1.59 | AW93: =+IFERROR(VLOOKUP($A93,ITV_CPET!$A$8:$Z$149,13,FALSE),0) -> 0.00264 | AX93: =+IFERROR(VLOOKUP($A93,ITV_CPET!$A$8:$Z$149,21,FALSE),0) -> 0 | BB93: =+IFERROR(VLOOKUP($A93,ITV_CPERDP!$A$8:$Z$149,13,FALSE),0) -> 0 | BC93: =+IFERROR(VLOOKUP($A93,ITV_CPERDP!$A$8:$Z$149,21,FALSE),0) -> 0 | BG93: =+IFERROR(VLOOKUP($A93,ITV_CPERDE!$A$8:$Z$149,13,FALSE),0) -> 0.00811 | BH93: =+IFERROR(VLOOKUP($A93,ITV_CPERDE!$A$8:$Z$149,21,FALSE),0) -> 0.37
A94: MTD_4 (50,001-más) | D94: =+IFERROR(VLOOKUP($A94,ITV_CD!$A$8:$AA$149,13,FALSE),0) -> 0 | E94: =+IFERROR(VLOOKUP($A94,ITV_CD!$A$8:$AA$149,21,FALSE),0) -> 16.89 | J94: =+IFERROR(VLOOKUP($A94,ITV_CCOMF!$A$8:$AA$149,13,FALSE),0) -> 14.27 | N94: =+IFERROR(VLOOKUP($A94,ITV_CCOMV!$A$8:$AA$149,13,FALSE),0) -> 0.00812 | O94: =+IFERROR(VLOOKUP($A94,ITV_CCOMV!$A$8:$AA$149,21,FALSE),0) -> 0 | S94: =+IFERROR(VLOOKUP($A94,ITV_CSERAP!$A$8:$AA$149,13,FALSE),0) -> 0.00134 | T94: =+IFERROR(VLOOKUP($A94,ITV_CSERAP!$A$8:$AA$149,21,FALSE),0) -> 0 | Y94: =+IFERROR(VLOOKUP($A94,ITV_CX!$A$8:$AA$149,13,FALSE),0) -> 0 | AC94: =+IFERROR(VLOOKUP($A94,ITV_CENEGEN!$A$9:$Z$150,13,FALSE),0) -> 0.09979 | AD94: =+IFERROR(VLOOKUP($A94,ITV_CENEGEN!$A$9:$Z$150,21,FALSE),0) -> 0 | AH94: =+IFERROR(VLOOKUP($A94,ITV_CPOTGEN!$A$9:$Z$150,13,FALSE),0) -> 0.02257 | AI94: =+IFERROR(VLOOKUP($A94,ITV_CPOTGEN!$A$9:$Z$150,21,FALSE),0) -> 1.75 | AM94: =+IFERROR(VLOOKUP($A94,ITV_CCONAP!$A$8:$Z$149,13,FALSE),0) -> 0.00199 | AN94: =+IFERROR(VLOOKUP($A94,ITV_CCONAP!$A$8:$Z$149,21,FALSE),0) -> 0 | AR94: =+IFERROR(VLOOKUP($A94,ITV_CPT!$A$8:$Z$149,13,FALSE),0) -> 0.00363 | AS94: =+IFERROR(VLOOKUP($A94,ITV_CPT!$A$8:$Z$149,21,FALSE),0) -> 1.59 | AW94: =+IFERROR(VLOOKUP($A94,ITV_CPET!$A$8:$Z$149,13,FALSE),0) -> 0.00264 | AX94: =+IFERROR(VLOOKUP($A94,ITV_CPET!$A$8:$Z$149,21,FALSE),0) -> 0 | BB94: =+IFERROR(VLOOKUP($A94,ITV_CPERDP!$A$8:$Z$149,13,FALSE),0) -> 0 | BC94: =+IFERROR(VLOOKUP($A94,ITV_CPERDP!$A$8:$Z$149,21,FALSE),0) -> 0 | BG94: =+IFERROR(VLOOKUP($A94,ITV_CPERDE!$A$8:$Z$149,13,FALSE),0) -> 0.00811 | BH94: =+IFERROR(VLOOKUP($A94,ITV_CPERDE!$A$8:$Z$149,21,FALSE),0) -> 0.37
A95: MTD_5 (xxx) | D95: =+IFERROR(VLOOKUP($A95,ITV_CD!$A$8:$AA$149,13,FALSE),0) -> 0 | E95: =+IFERROR(VLOOKUP($A95,ITV_CD!$A$8:$AA$149,21,FALSE),0) -> 0 | J95: =+IFERROR(VLOOKUP($A95,ITV_CCOMF!$A$8:$AA$149,13,FALSE),0) -> 0 | N95: =+IFERROR(VLOOKUP($A95,ITV_CCOMV!$A$8:$AA$149,13,FALSE),0) -> 0 | O95: =+IFERROR(VLOOKUP($A95,ITV_CCOMV!$A$8:$AA$149,21,FALSE),0) -> 0 | S95: =+IFERROR(VLOOKUP($A95,ITV_CSERAP!$A$8:$AA$149,13,FALSE),0) -> 0 | T95: =+IFERROR(VLOOKUP($A95,ITV_CSERAP!$A$8:$AA$149,21,FALSE),0) -> 0 | Y95: =+IFERROR(VLOOKUP($A95,ITV_CX!$A$8:$AA$149,13,FALSE),0) -> 0 | AC95: =+IFERROR(VLOOKUP($A95,ITV_CENEGEN!$A$9:$Z$150,13,FALSE),0) -> 0 | AD95: =+IFERROR(VLOOKUP($A95,ITV_CENEGEN!$A$9:$Z$150,21,FALSE),0) -> 0 | AH95: =+IFERROR(VLOOKUP($A95,ITV_CPOTGEN!$A$9:$Z$150,13,FALSE),0) -> 0 | AI95: =+IFERROR(VLOOKUP($A95,ITV_CPOTGEN!$A$9:$Z$150,21,FALSE),0) -> 0 | AM95: =+IFERROR(VLOOKUP($A95,ITV_CCONAP!$A$8:$Z$149,13,FALSE),0) -> 0 | AN95: =+IFERROR(VLOOKUP($A95,ITV_CCONAP!$A$8:$Z$149,21,FALSE),0) -> 0 | AR95: =+IFERROR(VLOOKUP($A95,ITV_CPT!$A$8:$Z$149,13,FALSE),0) -> 0 | AS95: =+IFERROR(VLOOKUP($A95,ITV_CPT!$A$8:$Z$149,21,FALSE),0) -> 0 | AW95: =+IFERROR(VLOOKUP($A95,ITV_CPET!$A$8:$Z$149,13,FALSE),0) -> 0 | AX95: =+IFERROR(VLOOKUP($A95,ITV_CPET!$A$8:$Z$149,21,FALSE),0) -> 0 | BB95: =+IFERROR(VLOOKUP($A95,ITV_CPERDP!$A$8:$Z$149,13,FALSE),0) -> 0 | BC95: =+IFERROR(VLOOKUP($A95,ITV_CPERDP!$A$8:$Z$149,21,FALSE),0) -> 0 | BG95: =+IFERROR(VLOOKUP($A95,ITV_CPERDE!$A$8:$Z$149,13,FALSE),0) -> 0 | BH95: =+IFERROR(VLOOKUP($A95,ITV_CPERDE!$A$8:$Z$149,21,FALSE),0) -> 0
A96: BTH | D96: =+IFERROR(VLOOKUP($A96,ITV_CD!$A$8:$AA$149,13,FALSE),0) -> 0 | E96: =+IFERROR(VLOOKUP($A96,ITV_CD!$A$8:$AA$149,21,FALSE),0) -> 0 | J96: =+IFERROR(VLOOKUP($A96,ITV_CCOMF!$A$8:$AA$149,13,FALSE),0) -> 5.67 | N96: =+IFERROR(VLOOKUP($A96,ITV_CCOMV!$A$8:$AA$149,13,FALSE),0) -> 0 | O96: =+IFERROR(VLOOKUP($A96,ITV_CCOMV!$A$8:$AA$149,21,FALSE),0) -> 0 | S96: =+IFERROR(VLOOKUP($A96,ITV_CSERAP!$A$8:$AA$149,13,FALSE),0) -> 0 | T96: =+IFERROR(VLOOKUP($A96,ITV_CSERAP!$A$8:$AA$149,21,FALSE),0) -> 0 | Y96: =+IFERROR(VLOOKUP($A96,ITV_CX!$A$8:$AA$149,13,FALSE),0) -> 71.69 | AC96: =+IFERROR(VLOOKUP($A96,ITV_CENEGEN!$A$9:$Z$150,13,FALSE),0) -> 0 | AD96: =+IFERROR(VLOOKUP($A96,ITV_CENEGEN!$A$9:$Z$150,21,FALSE),0) -> 0 | AH96: =+IFERROR(VLOOKUP($A96,ITV_CPOTGEN!$A$9:$Z$150,13,FALSE),0) -> 0 | AI96: =+IFERROR(VLOOKUP($A96,ITV_CPOTGEN!$A$9:$Z$150,21,FALSE),0) -> 0 | AM96: =+IFERROR(VLOOKUP($A96,ITV_CCONAP!$A$8:$Z$149,13,FALSE),0) -> 0 | AN96: =+IFERROR(VLOOKUP($A96,ITV_CCONAP!$A$8:$Z$149,21,FALSE),0) -> 0 | AR96: =+IFERROR(VLOOKUP($A96,ITV_CPT!$A$8:$Z$149,13,FALSE),0) -> 0 | AS96: =+IFERROR(VLOOKUP($A96,ITV_CPT!$A$8:$Z$149,21,FALSE),0) -> 0 | AW96: =+IFERROR(VLOOKUP($A96,ITV_CPET!$A$8:$Z$149,13,FALSE),0) -> 0 | AX96: =+IFERROR(VLOOKUP($A96,ITV_CPET!$A$8:$Z$149,21,FALSE),0) -> 0 | BB96: =+IFERROR(VLOOKUP($A96,ITV_CPERDP!$A$8:$Z$149,13,FALSE),0) -> 0 | BC96: =+IFERROR(VLOOKUP($A96,ITV_CPERDP!$A$8:$Z$149,21,FALSE),0) -> 0 | BG96: =+IFERROR(VLOOKUP($A96,ITV_CPERDE!$A$8:$Z$149,13,FALSE),0) -> 0 | BH96: =+IFERROR(VLOOKUP($A96,ITV_CPERDE!$A$8:$Z$149,21,FALSE),0) -> 0
A97: BTH Punta | D97: =+IFERROR(VLOOKUP($A97,ITV_CD!$A$8:$AA$149,13,FALSE),0) -> 0 | E97: =+IFERROR(VLOOKUP($A97,ITV_CD!$A$8:$AA$149,21,FALSE),0) -> 16.59 | J97: =+IFERROR(VLOOKUP($A97,ITV_CCOMF!$A$8:$AA$149,13,FALSE),0) -> 0 | N97: =+IFERROR(VLOOKUP($A97,ITV_CCOMV!$A$8:$AA$149,13,FALSE),0) -> 0.00811 | O97: =+IFERROR(VLOOKUP($A97,ITV_CCOMV!$A$8:$AA$149,21,FALSE),0) -> 0 | S97: =+IFERROR(VLOOKUP($A97,ITV_CSERAP!$A$8:$AA$149,13,FALSE),0) -> 0.00133 | T97: =+IFERROR(VLOOKUP($A97,ITV_CSERAP!$A$8:$AA$149,21,FALSE),0) -> 0 | Y97: =+IFERROR(VLOOKUP($A97,ITV_CX!$A$8:$AA$149,13,FALSE),0) -> 0 | AC97: =+IFERROR(VLOOKUP($A97,ITV_CENEGEN!$A$9:$Z$150,13,FALSE),0) -> 0.23999 | AD97: =+IFERROR(VLOOKUP($A97,ITV_CENEGEN!$A$9:$Z$150,21,FALSE),0) -> 0 | AH97: =+IFERROR(VLOOKUP($A97,ITV_CPOTGEN!$A$9:$Z$150,13,FALSE),0) -> 0.00136 | AI97: =+IFERROR(VLOOKUP($A97,ITV_CPOTGEN!$A$9:$Z$150,21,FALSE),0) -> 0.09 | AM97: =+IFERROR(VLOOKUP($A97,ITV_CCONAP!$A$8:$Z$149,13,FALSE),0) -> 0.00199 | AN97: =+IFERROR(VLOOKUP($A97,ITV_CCONAP!$A$8:$Z$149,21,FALSE),0) -> 0 | AR97: =+IFERROR(VLOOKUP($A97,ITV_CPT!$A$8:$Z$149,13,FALSE),0) -> 0.00589 | AS97: =+IFERROR(VLOOKUP($A97,ITV_CPT!$A$8:$Z$149,21,FALSE),0) -> 2.07 | AW97: =+IFERROR(VLOOKUP($A97,ITV_CPET!$A$8:$Z$149,13,FALSE),0) -> 0.00264 | AX97: =+IFERROR(VLOOKUP($A97,ITV_CPET!$A$8:$Z$149,21,FALSE),0) -> 0 | BB97: =+IFERROR(VLOOKUP($A97,ITV_CPERDP!$A$8:$Z$149,13,FALSE),0) -> 0 | BC97: =+IFERROR(VLOOKUP($A97,ITV_CPERDP!$A$8:$Z$149,21,FALSE),0) -> 0 | BG97: =+IFERROR(VLOOKUP($A97,ITV_CPERDE!$A$8:$Z$149,13,FALSE),0) -> 0.01054 | BH97: =+IFERROR(VLOOKUP($A97,ITV_CPERDE!$A$8:$Z$149,21,FALSE),0) -> 0.29
A98: BTH Fuera de Punta Medio | D98: =+IFERROR(VLOOKUP($A98,ITV_CD!$A$8:$AA$149,13,FALSE),0) -> 0 | E98: =+IFERROR(VLOOKUP($A98,ITV_CD!$A$8:$AA$149,21,FALSE),0) -> 2.29 | J98: =+IFERROR(VLOOKUP($A98,ITV_CCOMF!$A$8:$AA$149,13,FALSE),0) -> 0 | N98: =+IFERROR(VLOOKUP($A98,ITV_CCOMV!$A$8:$AA$149,13,FALSE),0) -> 0.00811 | O98: =+IFERROR(VLOOKUP($A98,ITV_CCOMV!$A$8:$AA$149,21,FALSE),0) -> 0 | S98: =+IFERROR(VLOOKUP($A98,ITV_CSERAP!$A$8:$AA$149,13,FALSE),0) -> 0.00133 | T98: =+IFERROR(VLOOKUP($A98,ITV_CSERAP!$A$8:$AA$149,21,FALSE),0) -> 0 | Y98: =+IFERROR(VLOOKUP($A98,ITV_CX!$A$8:$AA$149,13,FALSE),0) -> 0 | AC98: =+IFERROR(VLOOKUP($A98,ITV_CENEGEN!$A$9:$Z$150,13,FALSE),0) -> 0.11998 | AD98: =+IFERROR(VLOOKUP($A98,ITV_CENEGEN!$A$9:$Z$150,21,FALSE),0) -> 0 | AH98: =+IFERROR(VLOOKUP($A98,ITV_CPOTGEN!$A$9:$Z$150,13,FALSE),0) -> 0.00136 | AI98: =+IFERROR(VLOOKUP($A98,ITV_CPOTGEN!$A$9:$Z$150,21,FALSE),0) -> 0 | AM98: =+IFERROR(VLOOKUP($A98,ITV_CCONAP!$A$8:$Z$149,13,FALSE),0) -> 0.00199 | AN98: =+IFERROR(VLOOKUP($A98,ITV_CCONAP!$A$8:$Z$149,21,FALSE),0) -> 0 | AR98: =+IFERROR(VLOOKUP($A98,ITV_CPT!$A$8:$Z$149,13,FALSE),0) -> 0.00589 | AS98: =+IFERROR(VLOOKUP($A98,ITV_CPT!$A$8:$Z$149,21,FALSE),0) -> 0.2 | AW98: =+IFERROR(VLOOKUP($A98,ITV_CPET!$A$8:$Z$149,13,FALSE),0) -> 0.00264 | AX98: =+IFERROR(VLOOKUP($A98,ITV_CPET!$A$8:$Z$149,21,FALSE),0) -> 0 | BB98: =+IFERROR(VLOOKUP($A98,ITV_CPERDP!$A$8:$Z$149,13,FALSE),0) -> 0 | BC98: =+IFERROR(VLOOKUP($A98,ITV_CPERDP!$A$8:$Z$149,21,FALSE),0) -> 0 | BG98: =+IFERROR(VLOOKUP($A98,ITV_CPERDE!$A$8:$Z$149,13,FALSE),0) -> 0.00725 | BH98: =+IFERROR(VLOOKUP($A98,ITV_CPERDE!$A$8:$Z$149,21,FALSE),0) -> 0.02
A99: BTH Fuera de Punta Bajo | D99: =+IFERROR(VLOOKUP($A99,ITV_CD!$A$8:$AA$149,13,FALSE),0) -> 0 | E99: =+IFERROR(VLOOKUP($A99,ITV_CD!$A$8:$AA$149,21,FALSE),0) -> 2.29 | J99: =+IFERROR(VLOOKUP($A99,ITV_CCOMF!$A$8:$AA$149,13,FALSE),0) -> 0 | N99: =+IFERROR(VLOOKUP($A99,ITV_CCOMV!$A$8:$AA$149,13,FALSE),0) -> 0.00811 | O99: =+IFERROR(VLOOKUP($A99,ITV_CCOMV!$A$8:$AA$149,21,FALSE),0) -> 0 | S99: =+IFERROR(VLOOKUP($A99,ITV_CSERAP!$A$8:$AA$149,13,FALSE),0) -> 0.00133 | T99: =+IFERROR(VLOOKUP($A99,ITV_CSERAP!$A$8:$AA$149,21,FALSE),0) -> 0 | Y99: =+IFERROR(VLOOKUP($A99,ITV_CX!$A$8:$AA$149,13,FALSE),0) -> 0 | AC99: =+IFERROR(VLOOKUP($A99,ITV_CENEGEN!$A$9:$Z$150,13,FALSE),0) -> 0.05455 | AD99: =+IFERROR(VLOOKUP($A99,ITV_CENEGEN!$A$9:$Z$150,21,FALSE),0) -> 0 | AH99: =+IFERROR(VLOOKUP($A99,ITV_CPOTGEN!$A$9:$Z$150,13,FALSE),0) -> 0.00136 | AI99: =+IFERROR(VLOOKUP($A99,ITV_CPOTGEN!$A$9:$Z$150,21,FALSE),0) -> 0 | AM99: =+IFERROR(VLOOKUP($A99,ITV_CCONAP!$A$8:$Z$149,13,FALSE),0) -> 0.00199 | AN99: =+IFERROR(VLOOKUP($A99,ITV_CCONAP!$A$8:$Z$149,21,FALSE),0) -> 0 | AR99: =+IFERROR(VLOOKUP($A99,ITV_CPT!$A$8:$Z$149,13,FALSE),0) -> 0.00589 | AS99: =+IFERROR(VLOOKUP($A99,ITV_CPT!$A$8:$Z$149,21,FALSE),0) -> 0.2 | AW99: =+IFERROR(VLOOKUP($A99,ITV_CPET!$A$8:$Z$149,13,FALSE),0) -> 0.00264 | AX99: =+IFERROR(VLOOKUP($A99,ITV_CPET!$A$8:$Z$149,21,FALSE),0) -> 0 | BB99: =+IFERROR(VLOOKUP($A99,ITV_CPERDP!$A$8:$Z$149,13,FALSE),0) -> 0 | BC99: =+IFERROR(VLOOKUP($A99,ITV_CPERDP!$A$8:$Z$149,21,FALSE),0) -> 0 | BG99: =+IFERROR(VLOOKUP($A99,ITV_CPERDE!$A$8:$Z$149,13,FALSE),0) -> 0.00725 | BH99: =+IFERROR(VLOOKUP($A99,ITV_CPERDE!$A$8:$Z$149,21,FALSE),0) -> 0.02
A100: BTD | D100: =+IFERROR(VLOOKUP($A100,ITV_CD!$A$8:$AA$149,13,FALSE),0) -> 0 | E100: =+IFERROR(VLOOKUP($A100,ITV_CD!$A$8:$AA$149,21,FALSE),0) -> 0 | J100: =+IFERROR(VLOOKUP($A100,ITV_CCOMF!$A$8:$AA$149,13,FALSE),0) -> 5.66 | N100: =+IFERROR(VLOOKUP($A100,ITV_CCOMV!$A$8:$AA$149,13,FALSE),0) -> 0 | O100: =+IFERROR(VLOOKUP($A100,ITV_CCOMV!$A$8:$AA$149,21,FALSE),0) -> 0 | S100: =+IFERROR(VLOOKUP($A100,ITV_CSERAP!$A$8:$AA$149,13,FALSE),0) -> 0 | T100: =+IFERROR(VLOOKUP($A100,ITV_CSERAP!$A$8:$AA$149,21,FALSE),0) -> 0 | Y100: =+IFERROR(VLOOKUP($A100,ITV_CX!$A$8:$AA$149,13,FALSE),0) -> 71.69 | AC100: =+IFERROR(VLOOKUP($A100,ITV_CENEGEN!$A$9:$Z$150,13,FALSE),0) -> 0 | AD100: =+IFERROR(VLOOKUP($A100,ITV_CENEGEN!$A$9:$Z$150,21,FALSE),0) -> 0 | AH100: =+IFERROR(VLOOKUP($A100,ITV_CPOTGEN!$A$9:$Z$150,13,FALSE),0) -> 0 | AI100: =+IFERROR(VLOOKUP($A100,ITV_CPOTGEN!$A$9:$Z$150,21,FALSE),0) -> 0 | AM100: =+IFERROR(VLOOKUP($A100,ITV_CCONAP!$A$8:$Z$149,13,FALSE),0) -> 0 | AN100: =+IFERROR(VLOOKUP($A100,ITV_CCONAP!$A$8:$Z$149,21,FALSE),0) -> 0 | AR100: =+IFERROR(VLOOKUP($A100,ITV_CPT!$A$8:$Z$149,13,FALSE),0) -> 0 | AS100: =+IFERROR(VLOOKUP($A100,ITV_CPT!$A$8:$Z$149,21,FALSE),0) -> 0 | AW100: =+IFERROR(VLOOKUP($A100,ITV_CPET!$A$8:$Z$149,13,FALSE),0) -> 0 | AX100: =+IFERROR(VLOOKUP($A100,ITV_CPET!$A$8:$Z$149,21,FALSE),0) -> 0 | BB100: =+IFERROR(VLOOKUP($A100,ITV_CPERDP!$A$8:$Z$149,13,FALSE),0) -> 0 | BC100: =+IFERROR(VLOOKUP($A100,ITV_CPERDP!$A$8:$Z$149,21,FALSE),0) -> 0 | BG100: =+IFERROR(VLOOKUP($A100,ITV_CPERDE!$A$8:$Z$149,13,FALSE),0) -> 0 | BH100: =+IFERROR(VLOOKUP($A100,ITV_CPERDE!$A$8:$Z$149,21,FALSE),0) -> 0
A101: BTD_1 (0-10,000) | D101: =+IFERROR(VLOOKUP($A101,ITV_CD!$A$8:$AA$149,13,FALSE),0) -> 0 | E101: =+IFERROR(VLOOKUP($A101,ITV_CD!$A$8:$AA$149,21,FALSE),0) -> 16.02 | J101: =+IFERROR(VLOOKUP($A101,ITV_CCOMF!$A$8:$AA$149,13,FALSE),0) -> 5.66 | N101: =+IFERROR(VLOOKUP($A101,ITV_CCOMV!$A$8:$AA$149,13,FALSE),0) -> 0.00812 | O101: =+IFERROR(VLOOKUP($A101,ITV_CCOMV!$A$8:$AA$149,21,FALSE),0) -> 0 | S101: =+IFERROR(VLOOKUP($A101,ITV_CSERAP!$A$8:$AA$149,13,FALSE),0) -> 0.00134 | T101: =+IFERROR(VLOOKUP($A101,ITV_CSERAP!$A$8:$AA$149,21,FALSE),0) -> 0 | Y101: =+IFERROR(VLOOKUP($A101,ITV_CX!$A$8:$AA$149,13,FALSE),0) -> 0 | AC101: =+IFERROR(VLOOKUP($A101,ITV_CENEGEN!$A$9:$Z$150,13,FALSE),0) -> 0.09369 | AD101: =+IFERROR(VLOOKUP($A101,ITV_CENEGEN!$A$9:$Z$150,21,FALSE),0) -> 0 | AH101: =+IFERROR(VLOOKUP($A101,ITV_CPOTGEN!$A$9:$Z$150,13,FALSE),0) -> 0.01975 | AI101: =+IFERROR(VLOOKUP($A101,ITV_CPOTGEN!$A$9:$Z$150,21,FALSE),0) -> 1.07 | AM101: =+IFERROR(VLOOKUP($A101,ITV_CCONAP!$A$8:$Z$149,13,FALSE),0) -> 0.00199 | AN101: =+IFERROR(VLOOKUP($A101,ITV_CCONAP!$A$8:$Z$149,21,FALSE),0) -> 0 | AR101: =+IFERROR(VLOOKUP($A101,ITV_CPT!$A$8:$Z$149,13,FALSE),0) -> 0.00377 | AS101: =+IFERROR(VLOOKUP($A101,ITV_CPT!$A$8:$Z$149,21,FALSE),0) -> 1.09 | AW101: =+IFERROR(VLOOKUP($A101,ITV_CPET!$A$8:$Z$149,13,FALSE),0) -> 0.00264 | AX101: =+IFERROR(VLOOKUP($A101,ITV_CPET!$A$8:$Z$149,21,FALSE),0) -> 0 | BB101: =+IFERROR(VLOOKUP($A101,ITV_CPERDP!$A$8:$Z$149,13,FALSE),0) -> 0 | BC101: =+IFERROR(VLOOKUP($A101,ITV_CPERDP!$A$8:$Z$149,21,FALSE),0) -> 0 | BG101: =+IFERROR(VLOOKUP($A101,ITV_CPERDE!$A$8:$Z$149,13,FALSE),0) -> 0.00811 | BH101: =+IFERROR(VLOOKUP($A101,ITV_CPERDE!$A$8:$Z$149,21,FALSE),0) -> 0.25
A102: BTD_2 (10,001-30,000) | D102: =+IFERROR(VLOOKUP($A102,ITV_CD!$A$8:$AA$149,13,FALSE),0) -> 0 | E102: =+IFERROR(VLOOKUP($A102,ITV_CD!$A$8:$AA$149,21,FALSE),0) -> 16.02 | J102: =+IFERROR(VLOOKUP($A102,ITV_CCOMF!$A$8:$AA$149,13,FALSE),0) -> 5.66 | N102: =+IFERROR(VLOOKUP($A102,ITV_CCOMV!$A$8:$AA$149,13,FALSE),0) -> 0.00812 | O102: =+IFERROR(VLOOKUP($A102,ITV_CCOMV!$A$8:$AA$149,21,FALSE),0) -> 0 | S102: =+IFERROR(VLOOKUP($A102,ITV_CSERAP!$A$8:$AA$149,13,FALSE),0) -> 0.00134 | T102: =+IFERROR(VLOOKUP($A102,ITV_CSERAP!$A$8:$AA$149,21,FALSE),0) -> 0 | Y102: =+IFERROR(VLOOKUP($A102,ITV_CX!$A$8:$AA$149,13,FALSE),0) -> 0 | AC102: =+IFERROR(VLOOKUP($A102,ITV_CENEGEN!$A$9:$Z$150,13,FALSE),0) -> 0.09869 | AD102: =+IFERROR(VLOOKUP($A102,ITV_CENEGEN!$A$9:$Z$150,21,FALSE),0) -> 0 | AH102: =+IFERROR(VLOOKUP($A102,ITV_CPOTGEN!$A$9:$Z$150,13,FALSE),0) -> 0.02082 | AI102: =+IFERROR(VLOOKUP($A102,ITV_CPOTGEN!$A$9:$Z$150,21,FALSE),0) -> 1.07 | AM102: =+IFERROR(VLOOKUP($A102,ITV_CCONAP!$A$8:$Z$149,13,FALSE),0) -> 0.00199 | AN102: =+IFERROR(VLOOKUP($A102,ITV_CCONAP!$A$8:$Z$149,21,FALSE),0) -> 0 | AR102: =+IFERROR(VLOOKUP($A102,ITV_CPT!$A$8:$Z$149,13,FALSE),0) -> 0.00377 | AS102: =+IFERROR(VLOOKUP($A102,ITV_CPT!$A$8:$Z$149,21,FALSE),0) -> 1.09 | AW102: =+IFERROR(VLOOKUP($A102,ITV_CPET!$A$8:$Z$149,13,FALSE),0) -> 0.00264 | AX102: =+IFERROR(VLOOKUP($A102,ITV_CPET!$A$8:$Z$149,21,FALSE),0) -> 0 | BB102: =+IFERROR(VLOOKUP($A102,ITV_CPERDP!$A$8:$Z$149,13,FALSE),0) -> 0 | BC102: =+IFERROR(VLOOKUP($A102,ITV_CPERDP!$A$8:$Z$149,21,FALSE),0) -> 0 | BG102: =+IFERROR(VLOOKUP($A102,ITV_CPERDE!$A$8:$Z$149,13,FALSE),0) -> 0.00811 | BH102: =+IFERROR(VLOOKUP($A102,ITV_CPERDE!$A$8:$Z$149,21,FALSE),0) -> 0.25
A103: BTD_3 (30,001-50,000) | D103: =+IFERROR(VLOOKUP($A103,ITV_CD!$A$8:$AA$149,13,FALSE),0) -> 0 | E103: =+IFERROR(VLOOKUP($A103,ITV_CD!$A$8:$AA$149,21,FALSE),0) -> 16.02 | J103: =+IFERROR(VLOOKUP($A103,ITV_CCOMF!$A$8:$AA$149,13,FALSE),0) -> 5.66 | N103: =+IFERROR(VLOOKUP($A103,ITV_CCOMV!$A$8:$AA$149,13,FALSE),0) -> 0.00812 | O103: =+IFERROR(VLOOKUP($A103,ITV_CCOMV!$A$8:$AA$149,21,FALSE),0) -> 0 | S103: =+IFERROR(VLOOKUP($A103,ITV_CSERAP!$A$8:$AA$149,13,FALSE),0) -> 0.00134 | T103: =+IFERROR(VLOOKUP($A103,ITV_CSERAP!$A$8:$AA$149,21,FALSE),0) -> 0 | Y103: =+IFERROR(VLOOKUP($A103,ITV_CX!$A$8:$AA$149,13,FALSE),0) -> 0 | AC103: =+IFERROR(VLOOKUP($A103,ITV_CENEGEN!$A$9:$Z$150,13,FALSE),0) -> 0.10844 | AD103: =+IFERROR(VLOOKUP($A103,ITV_CENEGEN!$A$9:$Z$150,21,FALSE),0) -> 0 | AH103: =+IFERROR(VLOOKUP($A103,ITV_CPOTGEN!$A$9:$Z$150,13,FALSE),0) -> 0.02286 | AI103: =+IFERROR(VLOOKUP($A103,ITV_CPOTGEN!$A$9:$Z$150,21,FALSE),0) -> 1.07 | AM103: =+IFERROR(VLOOKUP($A103,ITV_CCONAP!$A$8:$Z$149,13,FALSE),0) -> 0.00199 | AN103: =+IFERROR(VLOOKUP($A103,ITV_CCONAP!$A$8:$Z$149,21,FALSE),0) -> 0 | AR103: =+IFERROR(VLOOKUP($A103,ITV_CPT!$A$8:$Z$149,13,FALSE),0) -> 0.00377 | AS103: =+IFERROR(VLOOKUP($A103,ITV_CPT!$A$8:$Z$149,21,FALSE),0) -> 1.09 | AW103: =+IFERROR(VLOOKUP($A103,ITV_CPET!$A$8:$Z$149,13,FALSE),0) -> 0.00264 | AX103: =+IFERROR(VLOOKUP($A103,ITV_CPET!$A$8:$Z$149,21,FALSE),0) -> 0 | BB103: =+IFERROR(VLOOKUP($A103,ITV_CPERDP!$A$8:$Z$149,13,FALSE),0) -> 0 | BC103: =+IFERROR(VLOOKUP($A103,ITV_CPERDP!$A$8:$Z$149,21,FALSE),0) -> 0 | BG103: =+IFERROR(VLOOKUP($A103,ITV_CPERDE!$A$8:$Z$149,13,FALSE),0) -> 0.00811 | BH103: =+IFERROR(VLOOKUP($A103,ITV_CPERDE!$A$8:$Z$149,21,FALSE),0) -> 0.25
A104: BTD_4 (50,001-más) | D104: =+IFERROR(VLOOKUP($A104,ITV_CD!$A$8:$AA$149,13,FALSE),0) -> 0 | E104: =+IFERROR(VLOOKUP($A104,ITV_CD!$A$8:$AA$149,21,FALSE),0) -> 16.02 | J104: =+IFERROR(VLOOKUP($A104,ITV_CCOMF!$A$8:$AA$149,13,FALSE),0) -> 5.66 | N104: =+IFERROR(VLOOKUP($A104,ITV_CCOMV!$A$8:$AA$149,13,FALSE),0) -> 0.00812 | O104: =+IFERROR(VLOOKUP($A104,ITV_CCOMV!$A$8:$AA$149,21,FALSE),0) -> 0 | S104: =+IFERROR(VLOOKUP($A104,ITV_CSERAP!$A$8:$AA$149,13,FALSE),0) -> 0.00134 | T104: =+IFERROR(VLOOKUP($A104,ITV_CSERAP!$A$8:$AA$149,21,FALSE),0) -> 0 | Y104: =+IFERROR(VLOOKUP($A104,ITV_CX!$A$8:$AA$149,13,FALSE),0) -> 0 | AC104: =+IFERROR(VLOOKUP($A104,ITV_CENEGEN!$A$9:$Z$150,13,FALSE),0) -> 0.11798 | AD104: =+IFERROR(VLOOKUP($A104,ITV_CENEGEN!$A$9:$Z$150,21,FALSE),0) -> 0 | AH104: =+IFERROR(VLOOKUP($A104,ITV_CPOTGEN!$A$9:$Z$150,13,FALSE),0) -> 0.02489 | AI104: =+IFERROR(VLOOKUP($A104,ITV_CPOTGEN!$A$9:$Z$150,21,FALSE),0) -> 1.07 | AM104: =+IFERROR(VLOOKUP($A104,ITV_CCONAP!$A$8:$Z$149,13,FALSE),0) -> 0.00199 | AN104: =+IFERROR(VLOOKUP($A104,ITV_CCONAP!$A$8:$Z$149,21,FALSE),0) -> 0 | AR104: =+IFERROR(VLOOKUP($A104,ITV_CPT!$A$8:$Z$149,13,FALSE),0) -> 0.00377 | AS104: =+IFERROR(VLOOKUP($A104,ITV_CPT!$A$8:$Z$149,21,FALSE),0) -> 1.09 | AW104: =+IFERROR(VLOOKUP($A104,ITV_CPET!$A$8:$Z$149,13,FALSE),0) -> 0.00264 | AX104: =+IFERROR(VLOOKUP($A104,ITV_CPET!$A$8:$Z$149,21,FALSE),0) -> 0 | BB104: =+IFERROR(VLOOKUP($A104,ITV_CPERDP!$A$8:$Z$149,13,FALSE),0) -> 0 | BC104: =+IFERROR(VLOOKUP($A104,ITV_CPERDP!$A$8:$Z$149,21,FALSE),0) -> 0 | BG104: =+IFERROR(VLOOKUP($A104,ITV_CPERDE!$A$8:$Z$149,13,FALSE),0) -> 0.00811 | BH104: =+IFERROR(VLOOKUP($A104,ITV_CPERDE!$A$8:$Z$149,21,FALSE),0) -> 0.25
A105: BTD_5 (xxx) | D105: =+IFERROR(VLOOKUP($A105,ITV_CD!$A$8:$AA$149,13,FALSE),0) -> 0 | E105: =+IFERROR(VLOOKUP($A105,ITV_CD!$A$8:$AA$149,21,FALSE),0) -> 0 | J105: =+IFERROR(VLOOKUP($A105,ITV_CCOMF!$A$8:$AA$149,13,FALSE),0) -> 0 | N105: =+IFERROR(VLOOKUP($A105,ITV_CCOMV!$A$8:$AA$149,13,FALSE),0) -> 0 | O105: =+IFERROR(VLOOKUP($A105,ITV_CCOMV!$A$8:$AA$149,21,FALSE),0) -> 0 | S105: =+IFERROR(VLOOKUP($A105,ITV_CSERAP!$A$8:$AA$149,13,FALSE),0) -> 0 | T105: =+IFERROR(VLOOKUP($A105,ITV_CSERAP!$A$8:$AA$149,21,FALSE),0) -> 0 | Y105: =+IFERROR(VLOOKUP($A105,ITV_CX!$A$8:$AA$149,13,FALSE),0) -> 0 | AC105: =+IFERROR(VLOOKUP($A105,ITV_CENEGEN!$A$9:$Z$150,13,FALSE),0) -> 0 | AD105: =+IFERROR(VLOOKUP($A105,ITV_CENEGEN!$A$9:$Z$150,21,FALSE),0) -> 0 | AH105: =+IFERROR(VLOOKUP($A105,ITV_CPOTGEN!$A$9:$Z$150,13,FALSE),0) -> 0 | AI105: =+IFERROR(VLOOKUP($A105,ITV_CPOTGEN!$A$9:$Z$150,21,FALSE),0) -> 0 | AM105: =+IFERROR(VLOOKUP($A105,ITV_CCONAP!$A$8:$Z$149,13,FALSE),0) -> 0 | AN105: =+IFERROR(VLOOKUP($A105,ITV_CCONAP!$A$8:$Z$149,21,FALSE),0) -> 0 | AR105: =+IFERROR(VLOOKUP($A105,ITV_CPT!$A$8:$Z$149,13,FALSE),0) -> 0 | AS105: =+IFERROR(VLOOKUP($A105,ITV_CPT!$A$8:$Z$149,21,FALSE),0) -> 0 | AW105: =+IFERROR(VLOOKUP($A105,ITV_CPET!$A$8:$Z$149,13,FALSE),0) -> 0 | AX105: =+IFERROR(VLOOKUP($A105,ITV_CPET!$A$8:$Z$149,21,FALSE),0) -> 0 | BB105: =+IFERROR(VLOOKUP($A105,ITV_CPERDP!$A$8:$Z$149,13,FALSE),0) -> 0 | BC105: =+IFERROR(VLOOKUP($A105,ITV_CPERDP!$A$8:$Z$149,21,FALSE),0) -> 0 | BG105: =+IFERROR(VLOOKUP($A105,ITV_CPERDE!$A$8:$Z$149,13,FALSE),0) -> 0 | BH105: =+IFERROR(VLOOKUP($A105,ITV_CPERDE!$A$8:$Z$149,21,FALSE),0) -> 0
A106: BTS | D106: =+IFERROR(VLOOKUP($A106,ITV_CD!$A$8:$AA$149,13,FALSE),0) -> 0 | E106: =+IFERROR(VLOOKUP($A106,ITV_CD!$A$8:$AA$149,21,FALSE),0) -> 0 | J106: =+IFERROR(VLOOKUP($A106,ITV_CCOMF!$A$8:$AA$149,13,FALSE),0) -> 3.16 | N106: =+IFERROR(VLOOKUP($A106,ITV_CCOMV!$A$8:$AA$149,13,FALSE),0) -> 0 | O106: =+IFERROR(VLOOKUP($A106,ITV_CCOMV!$A$8:$AA$149,21,FALSE),0) -> 0 | S106: =+IFERROR(VLOOKUP($A106,ITV_CSERAP!$A$8:$AA$149,13,FALSE),0) -> 0 | T106: =+IFERROR(VLOOKUP($A106,ITV_CSERAP!$A$8:$AA$149,21,FALSE),0) -> 0 | Y106: =+IFERROR(VLOOKUP($A106,ITV_CX!$A$8:$AA$149,13,FALSE),0) -> 16.66 | AC106: =+IFERROR(VLOOKUP($A106,ITV_CENEGEN!$A$9:$Z$150,13,FALSE),0) -> 0 | AD106: =+IFERROR(VLOOKUP($A106,ITV_CENEGEN!$A$9:$Z$150,21,FALSE),0) -> 0 | AH106: =+IFERROR(VLOOKUP($A106,ITV_CPOTGEN!$A$9:$Z$150,13,FALSE),0) -> 0 | AI106: =+IFERROR(VLOOKUP($A106,ITV_CPOTGEN!$A$9:$Z$150,21,FALSE),0) -> 0 | AM106: =+IFERROR(VLOOKUP($A106,ITV_CCONAP!$A$8:$Z$149,13,FALSE),0) -> 0 | AN106: =+IFERROR(VLOOKUP($A106,ITV_CCONAP!$A$8:$Z$149,21,FALSE),0) -> 0 | AR106: =+IFERROR(VLOOKUP($A106,ITV_CPT!$A$8:$Z$149,13,FALSE),0) -> 0 | AS106: =+IFERROR(VLOOKUP($A106,ITV_CPT!$A$8:$Z$149,21,FALSE),0) -> 0 | AW106: =+IFERROR(VLOOKUP($A106,ITV_CPET!$A$8:$Z$149,13,FALSE),0) -> 0 | AX106: =+IFERROR(VLOOKUP($A106,ITV_CPET!$A$8:$Z$149,21,FALSE),0) -> 0 | BB106: =+IFERROR(VLOOKUP($A106,ITV_CPERDP!$A$8:$Z$149,13,FALSE),0) -> 0 | BC106: =+IFERROR(VLOOKUP($A106,ITV_CPERDP!$A$8:$Z$149,21,FALSE),0) -> 0 | BG106: =+IFERROR(VLOOKUP($A106,ITV_CPERDE!$A$8:$Z$149,13,FALSE),0) -> 0 | BH106: =+IFERROR(VLOOKUP($A106,ITV_CPERDE!$A$8:$Z$149,21,FALSE),0) -> 0
A107: BTS_1 (0-300) | D107: =+IFERROR(VLOOKUP($A107,ITV_CD!$A$8:$AA$149,13,FALSE),0) -> 0.04907 | E107: =+IFERROR(VLOOKUP($A107,ITV_CD!$A$8:$AA$149,21,FALSE),0) -> 0 | J107: =+IFERROR(VLOOKUP($A107,ITV_CCOMF!$A$8:$AA$149,13,FALSE),0) -> 3.16 | N107: =+IFERROR(VLOOKUP($A107,ITV_CCOMV!$A$8:$AA$149,13,FALSE),0) -> 0.00871 | O107: =+IFERROR(VLOOKUP($A107,ITV_CCOMV!$A$8:$AA$149,21,FALSE),0) -> 0 | S107: =+IFERROR(VLOOKUP($A107,ITV_CSERAP!$A$8:$AA$149,13,FALSE),0) -> 0.00142 | T107: =+IFERROR(VLOOKUP($A107,ITV_CSERAP!$A$8:$AA$149,21,FALSE),0) -> 0 | Y107: =+IFERROR(VLOOKUP($A107,ITV_CX!$A$8:$AA$149,13,FALSE),0) -> 0 | AC107: =+IFERROR(VLOOKUP($A107,ITV_CENEGEN!$A$9:$Z$150,13,FALSE),0) -> 0.05021324146 | AD107: =+IFERROR(VLOOKUP($A107,ITV_CENEGEN!$A$9:$Z$150,21,FALSE),0) -> 0 | AH107: =+IFERROR(VLOOKUP($A107,ITV_CPOTGEN!$A$9:$Z$150,13,FALSE),0) -> 0.01941675854 | AI107: =+IFERROR(VLOOKUP($A107,ITV_CPOTGEN!$A$9:$Z$150,21,FALSE),0) -> 0 | AM107: =+IFERROR(VLOOKUP($A107,ITV_CCONAP!$A$8:$Z$149,13,FALSE),0) -> 0.00212 | AN107: =+IFERROR(VLOOKUP($A107,ITV_CCONAP!$A$8:$Z$149,21,FALSE),0) -> 0 | AR107: =+IFERROR(VLOOKUP($A107,ITV_CPT!$A$8:$Z$149,13,FALSE),0) -> 0.01116 | AS107: =+IFERROR(VLOOKUP($A107,ITV_CPT!$A$8:$Z$149,21,FALSE),0) -> 0 | AW107: =+IFERROR(VLOOKUP($A107,ITV_CPET!$A$8:$Z$149,13,FALSE),0) -> 0.00283 | AX107: =+IFERROR(VLOOKUP($A107,ITV_CPET!$A$8:$Z$149,21,FALSE),0) -> 0 | BB107: =+IFERROR(VLOOKUP($A107,ITV_CPERDP!$A$8:$Z$149,13,FALSE),0) -> 0 | BC107: =+IFERROR(VLOOKUP($A107,ITV_CPERDP!$A$8:$Z$149,21,FALSE),0) -> 0 | BG107: =+IFERROR(VLOOKUP($A107,ITV_CPERDE!$A$8:$Z$149,13,FALSE),0) -> 0.00936 | BH107: =+IFERROR(VLOOKUP($A107,ITV_CPERDE!$A$8:$Z$149,21,FALSE),0) -> 0
A108: BTS_2 (301-750) | D108: =+IFERROR(VLOOKUP($A108,ITV_CD!$A$8:$AA$149,13,FALSE),0) -> 0.04907 | E108: =+IFERROR(VLOOKUP($A108,ITV_CD!$A$8:$AA$149,21,FALSE),0) -> 0 | J108: =+IFERROR(VLOOKUP($A108,ITV_CCOMF!$A$8:$AA$149,13,FALSE),0) -> 3.16 | N108: =+IFERROR(VLOOKUP($A108,ITV_CCOMV!$A$8:$AA$149,13,FALSE),0) -> 0.00871 | O108: =+IFERROR(VLOOKUP($A108,ITV_CCOMV!$A$8:$AA$149,21,FALSE),0) -> 0 | S108: =+IFERROR(VLOOKUP($A108,ITV_CSERAP!$A$8:$AA$149,13,FALSE),0) -> 0.00142 | T108: =+IFERROR(VLOOKUP($A108,ITV_CSERAP!$A$8:$AA$149,21,FALSE),0) -> 0 | Y108: =+IFERROR(VLOOKUP($A108,ITV_CX!$A$8:$AA$149,13,FALSE),0) -> 0 | AC108: =+IFERROR(VLOOKUP($A108,ITV_CENEGEN!$A$9:$Z$150,13,FALSE),0) -> 0.09965485908 | AD108: =+IFERROR(VLOOKUP($A108,ITV_CENEGEN!$A$9:$Z$150,21,FALSE),0) -> 0 | AH108: =+IFERROR(VLOOKUP($A108,ITV_CPOTGEN!$A$9:$Z$150,13,FALSE),0) -> 0.03853514092 | AI108: =+IFERROR(VLOOKUP($A108,ITV_CPOTGEN!$A$9:$Z$150,21,FALSE),0) -> 0 | AM108: =+IFERROR(VLOOKUP($A108,ITV_CCONAP!$A$8:$Z$149,13,FALSE),0) -> 0.00212 | AN108: =+IFERROR(VLOOKUP($A108,ITV_CCONAP!$A$8:$Z$149,21,FALSE),0) -> 0 | AR108: =+IFERROR(VLOOKUP($A108,ITV_CPT!$A$8:$Z$149,13,FALSE),0) -> 0.01116 | AS108: =+IFERROR(VLOOKUP($A108,ITV_CPT!$A$8:$Z$149,21,FALSE),0) -> 0 | AW108: =+IFERROR(VLOOKUP($A108,ITV_CPET!$A$8:$Z$149,13,FALSE),0) -> 0.00283 | AX108: =+IFERROR(VLOOKUP($A108,ITV_CPET!$A$8:$Z$149,21,FALSE),0) -> 0 | BB108: =+IFERROR(VLOOKUP($A108,ITV_CPERDP!$A$8:$Z$149,13,FALSE),0) -> 0 | BC108: =+IFERROR(VLOOKUP($A108,ITV_CPERDP!$A$8:$Z$149,21,FALSE),0) -> 0 | BG108: =+IFERROR(VLOOKUP($A108,ITV_CPERDE!$A$8:$Z$149,13,FALSE),0) -> 0.00936 | BH108: =+IFERROR(VLOOKUP($A108,ITV_CPERDE!$A$8:$Z$149,21,FALSE),0) -> 0
A109: BTS_3 (751-más) | D109: =+IFERROR(VLOOKUP($A109,ITV_CD!$A$8:$AA$149,13,FALSE),0) -> 0.04907 | E109: =+IFERROR(VLOOKUP($A109,ITV_CD!$A$8:$AA$149,21,FALSE),0) -> 0 | J109: =+IFERROR(VLOOKUP($A109,ITV_CCOMF!$A$8:$AA$149,13,FALSE),0) -> 3.16 | N109: =+IFERROR(VLOOKUP($A109,ITV_CCOMV!$A$8:$AA$149,13,FALSE),0) -> 0.00871 | O109: =+IFERROR(VLOOKUP($A109,ITV_CCOMV!$A$8:$AA$149,21,FALSE),0) -> 0 | S109: =+IFERROR(VLOOKUP($A109,ITV_CSERAP!$A$8:$AA$149,13,FALSE),0) -> 0.00142 | T109: =+IFERROR(VLOOKUP($A109,ITV_CSERAP!$A$8:$AA$149,21,FALSE),0) -> 0 | Y109: =+IFERROR(VLOOKUP($A109,ITV_CX!$A$8:$AA$149,13,FALSE),0) -> 0 | AC109: =+IFERROR(VLOOKUP($A109,ITV_CENEGEN!$A$9:$Z$150,13,FALSE),0) -> 0.1782955884 | AD109: =+IFERROR(VLOOKUP($A109,ITV_CENEGEN!$A$9:$Z$150,21,FALSE),0) -> 0 | AH109: =+IFERROR(VLOOKUP($A109,ITV_CPOTGEN!$A$9:$Z$150,13,FALSE),0) -> 0.06894441162 | AI109: =+IFERROR(VLOOKUP($A109,ITV_CPOTGEN!$A$9:$Z$150,21,FALSE),0) -> 0 | AM109: =+IFERROR(VLOOKUP($A109,ITV_CCONAP!$A$8:$Z$149,13,FALSE),0) -> 0.00212 | AN109: =+IFERROR(VLOOKUP($A109,ITV_CCONAP!$A$8:$Z$149,21,FALSE),0) -> 0 | AR109: =+IFERROR(VLOOKUP($A109,ITV_CPT!$A$8:$Z$149,13,FALSE),0) -> 0.01116 | AS109: =+IFERROR(VLOOKUP($A109,ITV_CPT!$A$8:$Z$149,21,FALSE),0) -> 0 | AW109: =+IFERROR(VLOOKUP($A109,ITV_CPET!$A$8:$Z$149,13,FALSE),0) -> 0.00283 | AX109: =+IFERROR(VLOOKUP($A109,ITV_CPET!$A$8:$Z$149,21,FALSE),0) -> 0 | BB109: =+IFERROR(VLOOKUP($A109,ITV_CPERDP!$A$8:$Z$149,13,FALSE),0) -> 0 | BC109: =+IFERROR(VLOOKUP($A109,ITV_CPERDP!$A$8:$Z$149,21,FALSE),0) -> 0 | BG109: =+IFERROR(VLOOKUP($A109,ITV_CPERDE!$A$8:$Z$149,13,FALSE),0) -> 0.00936 | BH109: =+IFERROR(VLOOKUP($A109,ITV_CPERDE!$A$8:$Z$149,21,FALSE),0) -> 0
A110: BTS_4 (xxx) | D110: =+IFERROR(VLOOKUP($A110,ITV_CD!$A$8:$AA$149,13,FALSE),0) -> 0 | E110: =+IFERROR(VLOOKUP($A110,ITV_CD!$A$8:$AA$149,21,FALSE),0) -> 0 | J110: =+IFERROR(VLOOKUP($A110,ITV_CCOMF!$A$8:$AA$149,13,FALSE),0) -> 0 | N110: =+IFERROR(VLOOKUP($A110,ITV_CCOMV!$A$8:$AA$149,13,FALSE),0) -> 0 | O110: =+IFERROR(VLOOKUP($A110,ITV_CCOMV!$A$8:$AA$149,21,FALSE),0) -> 0 | S110: =+IFERROR(VLOOKUP($A110,ITV_CSERAP!$A$8:$AA$149,13,FALSE),0) -> 0 | T110: =+IFERROR(VLOOKUP($A110,ITV_CSERAP!$A$8:$AA$149,21,FALSE),0) -> 0 | Y110: =+IFERROR(VLOOKUP($A110,ITV_CX!$A$8:$AA$149,13,FALSE),0) -> 0 | AC110: =+IFERROR(VLOOKUP($A110,ITV_CENEGEN!$A$9:$Z$150,13,FALSE),0) -> 0 | AD110: =+IFERROR(VLOOKUP($A110,ITV_CENEGEN!$A$9:$Z$150,21,FALSE),0) -> 0 | AH110: =+IFERROR(VLOOKUP($A110,ITV_CPOTGEN!$A$9:$Z$150,13,FALSE),0) -> 0 | AI110: =+IFERROR(VLOOKUP($A110,ITV_CPOTGEN!$A$9:$Z$150,21,FALSE),0) -> 0 | AM110: =+IFERROR(VLOOKUP($A110,ITV_CCONAP!$A$8:$Z$149,13,FALSE),0) -> 0 | AN110: =+IFERROR(VLOOKUP($A110,ITV_CCONAP!$A$8:$Z$149,21,FALSE),0) -> 0 | AR110: =+IFERROR(VLOOKUP($A110,ITV_CPT!$A$8:$Z$149,13,FALSE),0) -> 0 | AS110: =+IFERROR(VLOOKUP($A110,ITV_CPT!$A$8:$Z$149,21,FALSE),0) -> 0 | AW110: =+IFERROR(VLOOKUP($A110,ITV_CPET!$A$8:$Z$149,13,FALSE),0) -> 0 | AX110: =+IFERROR(VLOOKUP($A110,ITV_CPET!$A$8:$Z$149,21,FALSE),0) -> 0 | BB110: =+IFERROR(VLOOKUP($A110,ITV_CPERDP!$A$8:$Z$149,13,FALSE),0) -> 0 | BC110: =+IFERROR(VLOOKUP($A110,ITV_CPERDP!$A$8:$Z$149,21,FALSE),0) -> 0 | BG110: =+IFERROR(VLOOKUP($A110,ITV_CPERDE!$A$8:$Z$149,13,FALSE),0) -> 0 | BH110: =+IFERROR(VLOOKUP($A110,ITV_CPERDE!$A$8:$Z$149,21,FALSE),0) -> 0
A111: BTS_5 (xxx) | D111: =+IFERROR(VLOOKUP($A111,ITV_CD!$A$8:$AA$149,13,FALSE),0) -> 0 | E111: =+IFERROR(VLOOKUP($A111,ITV_CD!$A$8:$AA$149,21,FALSE),0) -> 0 | J111: =+IFERROR(VLOOKUP($A111,ITV_CCOMF!$A$8:$AA$149,13,FALSE),0) -> 0 | N111: =+IFERROR(VLOOKUP($A111,ITV_CCOMV!$A$8:$AA$149,13,FALSE),0) -> 0 | O111: =+IFERROR(VLOOKUP($A111,ITV_CCOMV!$A$8:$AA$149,21,FALSE),0) -> 0 | S111: =+IFERROR(VLOOKUP($A111,ITV_CSERAP!$A$8:$AA$149,13,FALSE),0) -> 0 | T111: =+IFERROR(VLOOKUP($A111,ITV_CSERAP!$A$8:$AA$149,21,FALSE),0) -> 0 | Y111: =+IFERROR(VLOOKUP($A111,ITV_CX!$A$8:$AA$149,13,FALSE),0) -> 0 | AC111: =+IFERROR(VLOOKUP($A111,ITV_CENEGEN!$A$9:$Z$150,13,FALSE),0) -> 0 | AD111: =+IFERROR(VLOOKUP($A111,ITV_CENEGEN!$A$9:$Z$150,21,FALSE),0) -> 0 | AH111: =+IFERROR(VLOOKUP($A111,ITV_CPOTGEN!$A$9:$Z$150,13,FALSE),0) -> 0 | AI111: =+IFERROR(VLOOKUP($A111,ITV_CPOTGEN!$A$9:$Z$150,21,FALSE),0) -> 0 | AM111: =+IFERROR(VLOOKUP($A111,ITV_CCONAP!$A$8:$Z$149,13,FALSE),0) -> 0 | AN111: =+IFERROR(VLOOKUP($A111,ITV_CCONAP!$A$8:$Z$149,21,FALSE),0) -> 0 | AR111: =+IFERROR(VLOOKUP($A111,ITV_CPT!$A$8:$Z$149,13,FALSE),0) -> 0 | AS111: =+IFERROR(VLOOKUP($A111,ITV_CPT!$A$8:$Z$149,21,FALSE),0) -> 0 | AW111: =+IFERROR(VLOOKUP($A111,ITV_CPET!$A$8:$Z$149,13,FALSE),0) -> 0 | AX111: =+IFERROR(VLOOKUP($A111,ITV_CPET!$A$8:$Z$149,21,FALSE),0) -> 0 | BB111: =+IFERROR(VLOOKUP($A111,ITV_CPERDP!$A$8:$Z$149,13,FALSE),0) -> 0 | BC111: =+IFERROR(VLOOKUP($A111,ITV_CPERDP!$A$8:$Z$149,21,FALSE),0) -> 0 | BG111: =+IFERROR(VLOOKUP($A111,ITV_CPERDE!$A$8:$Z$149,13,FALSE),0) -> 0 | BH111: =+IFERROR(VLOOKUP($A111,ITV_CPERDE!$A$8:$Z$149,21,FALSE),0) -> 0
A112: Alumbrado Público | D112: =+IFERROR(VLOOKUP($A112,ITV_CD!$A$8:$AA$149,13,FALSE),0) -> 0 | E112: =+IFERROR(VLOOKUP($A112,ITV_CD!$A$8:$AA$149,21,FALSE),0) -> 0 | J112: =+IFERROR(VLOOKUP($A112,ITV_CCOMF!$A$8:$AA$149,13,FALSE),0) -> 0 | N112: =+IFERROR(VLOOKUP($A112,ITV_CCOMV!$A$8:$AA$149,13,FALSE),0) -> 0 | O112: =+IFERROR(VLOOKUP($A112,ITV_CCOMV!$A$8:$AA$149,21,FALSE),0) -> 0 | S112: =+IFERROR(VLOOKUP($A112,ITV_CSERAP!$A$8:$AA$149,13,FALSE),0) -> 0 | T112: =+IFERROR(VLOOKUP($A112,ITV_CSERAP!$A$8:$AA$149,21,FALSE),0) -> 0 | Y112: =+IFERROR(VLOOKUP($A112,ITV_CX!$A$8:$AA$149,13,FALSE),0) -> 0 | AC112: =+IFERROR(VLOOKUP($A112,ITV_CENEGEN!$A$9:$Z$150,13,FALSE),0) -> 0 | AD112: =+IFERROR(VLOOKUP($A112,ITV_CENEGEN!$A$9:$Z$150,21,FALSE),0) -> 0 | AH112: =+IFERROR(VLOOKUP($A112,ITV_CPOTGEN!$A$9:$Z$150,13,FALSE),0) -> 0 | AI112: =+IFERROR(VLOOKUP($A112,ITV_CPOTGEN!$A$9:$Z$150,21,FALSE),0) -> 0 | AM112: =+IFERROR(VLOOKUP($A112,ITV_CCONAP!$A$8:$Z$149,13,FALSE),0) -> 0 | AN112: =+IFERROR(VLOOKUP($A112,ITV_CCONAP!$A$8:$Z$149,21,FALSE),0) -> 0 | AR112: =+IFERROR(VLOOKUP($A112,ITV_CPT!$A$8:$Z$149,13,FALSE),0) -> 0 | AS112: =+IFERROR(VLOOKUP($A112,ITV_CPT!$A$8:$Z$149,21,FALSE),0) -> 0 | AW112: =+IFERROR(VLOOKUP($A112,ITV_CPET!$A$8:$Z$149,13,FALSE),0) -> 0 | AX112: =+IFERROR(VLOOKUP($A112,ITV_CPET!$A$8:$Z$149,21,FALSE),0) -> 0 | BB112: =+IFERROR(VLOOKUP($A112,ITV_CPERDP!$A$8:$Z$149,13,FALSE),0) -> 0 | BC112: =+IFERROR(VLOOKUP($A112,ITV_CPERDP!$A$8:$Z$149,21,FALSE),0) -> 0 | BG112: =+IFERROR(VLOOKUP($A112,ITV_CPERDE!$A$8:$Z$149,13,FALSE),0) -> 0 | BH112: =+IFERROR(VLOOKUP($A112,ITV_CPERDE!$A$8:$Z$149,21,FALSE),0) -> 0
A113: GRANDES CLIENTES | D113: =+IFERROR(VLOOKUP($A113,ITV_CD!$A$8:$AA$149,13,FALSE),0) -> 0 | E113: =+IFERROR(VLOOKUP($A113,ITV_CD!$A$8:$AA$149,21,FALSE),0) -> 0 | J113: =+IFERROR(VLOOKUP($A113,ITV_CCOMF!$A$8:$AA$149,13,FALSE),0) -> 0 | N113: =+IFERROR(VLOOKUP($A113,ITV_CCOMV!$A$8:$AA$149,13,FALSE),0) -> 0 | O113: =+IFERROR(VLOOKUP($A113,ITV_CCOMV!$A$8:$AA$149,21,FALSE),0) -> 0 | S113: =+IFERROR(VLOOKUP($A113,ITV_CSERAP!$A$8:$AA$149,13,FALSE),0) -> 0 | T113: =+IFERROR(VLOOKUP($A113,ITV_CSERAP!$A$8:$AA$149,21,FALSE),0) -> 0 | Y113: =+IFERROR(VLOOKUP($A113,ITV_CX!$A$8:$AA$149,13,FALSE),0) -> 0 | AC113: =+IFERROR(VLOOKUP($A113,ITV_CENEGEN!$A$9:$Z$150,13,FALSE),0) -> 0 | AD113: =+IFERROR(VLOOKUP($A113,ITV_CENEGEN!$A$9:$Z$150,21,FALSE),0) -> 0 | AH113: =+IFERROR(VLOOKUP($A113,ITV_CPOTGEN!$A$9:$Z$150,13,FALSE),0) -> 0 | AI113: =+IFERROR(VLOOKUP($A113,ITV_CPOTGEN!$A$9:$Z$150,21,FALSE),0) -> 0 | AM113: =+IFERROR(VLOOKUP($A113,ITV_CCONAP!$A$8:$Z$149,13,FALSE),0) -> 0 | AN113: =+IFERROR(VLOOKUP($A113,ITV_CCONAP!$A$8:$Z$149,21,FALSE),0) -> 0 | AR113: =+IFERROR(VLOOKUP($A113,ITV_CPT!$A$8:$Z$149,13,FALSE),0) -> 0 | AS113: =+IFERROR(VLOOKUP($A113,ITV_CPT!$A$8:$Z$149,21,FALSE),0) -> 0 | AW113: =+IFERROR(VLOOKUP($A113,ITV_CPET!$A$8:$Z$149,13,FALSE),0) -> 0 | AX113: =+IFERROR(VLOOKUP($A113,ITV_CPET!$A$8:$Z$149,21,FALSE),0) -> 0 | BB113: =+IFERROR(VLOOKUP($A113,ITV_CPERDP!$A$8:$Z$149,13,FALSE),0) -> 0 | BC113: =+IFERROR(VLOOKUP($A113,ITV_CPERDP!$A$8:$Z$149,21,FALSE),0) -> 0 | BG113: =+IFERROR(VLOOKUP($A113,ITV_CPERDE!$A$8:$Z$149,13,FALSE),0) -> 0 | BH113: =+IFERROR(VLOOKUP($A113,ITV_CPERDE!$A$8:$Z$149,21,FALSE),0) -> 0
A114: MTD_GC | D114: =+IFERROR(VLOOKUP($A114,ITV_CD!$A$8:$AA$149,13,FALSE),0) -> 0 | E114: =+IFERROR(VLOOKUP($A114,ITV_CD!$A$8:$AA$149,21,FALSE),0) -> 0 | J114: =+IFERROR(VLOOKUP($A114,ITV_CCOMF!$A$8:$AA$149,13,FALSE),0) -> 0 | N114: =+IFERROR(VLOOKUP($A114,ITV_CCOMV!$A$8:$AA$149,13,FALSE),0) -> 0 | O114: =+IFERROR(VLOOKUP($A114,ITV_CCOMV!$A$8:$AA$149,21,FALSE),0) -> 0 | S114: =+IFERROR(VLOOKUP($A114,ITV_CSERAP!$A$8:$AA$149,13,FALSE),0) -> 0 | T114: =+IFERROR(VLOOKUP($A114,ITV_CSERAP!$A$8:$AA$149,21,FALSE),0) -> 0 | Y114: =+IFERROR(VLOOKUP($A114,ITV_CX!$A$8:$AA$149,13,FALSE),0) -> 0 | AC114: =+IFERROR(VLOOKUP($A114,ITV_CENEGEN!$A$9:$Z$150,13,FALSE),0) -> 0 | AD114: =+IFERROR(VLOOKUP($A114,ITV_CENEGEN!$A$9:$Z$150,21,FALSE),0) -> 0 | AH114: =+IFERROR(VLOOKUP($A114,ITV_CPOTGEN!$A$9:$Z$150,13,FALSE),0) -> 0 | AI114: =+IFERROR(VLOOKUP($A114,ITV_CPOTGEN!$A$9:$Z$150,21,FALSE),0) -> 0 | AM114: =+IFERROR(VLOOKUP($A114,ITV_CCONAP!$A$8:$Z$149,13,FALSE),0) -> 0 | AN114: =+IFERROR(VLOOKUP($A114,ITV_CCONAP!$A$8:$Z$149,21,FALSE),0) -> 0 | AR114: =+IFERROR(VLOOKUP($A114,ITV_CPT!$A$8:$Z$149,13,FALSE),0) -> 0 | AS114: =+IFERROR(VLOOKUP($A114,ITV_CPT!$A$8:$Z$149,21,FALSE),0) -> 0 | AW114: =+IFERROR(VLOOKUP($A114,ITV_CPET!$A$8:$Z$149,13,FALSE),0) -> 0 | AX114: =+IFERROR(VLOOKUP($A114,ITV_CPET!$A$8:$Z$149,21,FALSE),0) -> 0 | BB114: =+IFERROR(VLOOKUP($A114,ITV_CPERDP!$A$8:$Z$149,13,FALSE),0) -> 0 | BC114: =+IFERROR(VLOOKUP($A114,ITV_CPERDP!$A$8:$Z$149,21,FALSE),0) -> 0 | BG114: =+IFERROR(VLOOKUP($A114,ITV_CPERDE!$A$8:$Z$149,13,FALSE),0) -> 0 | BH114: =+IFERROR(VLOOKUP($A114,ITV_CPERDE!$A$8:$Z$149,21,FALSE),0) -> 0
A115: BTD_GC | D115: =+IFERROR(VLOOKUP($A115,ITV_CD!$A$8:$AA$149,13,FALSE),0) -> 0 | E115: =+IFERROR(VLOOKUP($A115,ITV_CD!$A$8:$AA$149,21,FALSE),0) -> 0 | J115: =+IFERROR(VLOOKUP($A115,ITV_CCOMF!$A$8:$AA$149,13,FALSE),0) -> 0 | N115: =+IFERROR(VLOOKUP($A115,ITV_CCOMV!$A$8:$AA$149,13,FALSE),0) -> 0 | O115: =+IFERROR(VLOOKUP($A115,ITV_CCOMV!$A$8:$AA$149,21,FALSE),0) -> 0 | S115: =+IFERROR(VLOOKUP($A115,ITV_CSERAP!$A$8:$AA$149,13,FALSE),0) -> 0 | T115: =+IFERROR(VLOOKUP($A115,ITV_CSERAP!$A$8:$AA$149,21,FALSE),0) -> 0 | Y115: =+IFERROR(VLOOKUP($A115,ITV_CX!$A$8:$AA$149,13,FALSE),0) -> 0 | AC115: =+IFERROR(VLOOKUP($A115,ITV_CENEGEN!$A$9:$Z$150,13,FALSE),0) -> 0 | AD115: =+IFERROR(VLOOKUP($A115,ITV_CENEGEN!$A$9:$Z$150,21,FALSE),0) -> 0 | AH115: =+IFERROR(VLOOKUP($A115,ITV_CPOTGEN!$A$9:$Z$150,13,FALSE),0) -> 0 | AI115: =+IFERROR(VLOOKUP($A115,ITV_CPOTGEN!$A$9:$Z$150,21,FALSE),0) -> 0 | AM115: =+IFERROR(VLOOKUP($A115,ITV_CCONAP!$A$8:$Z$149,13,FALSE),0) -> 0 | AN115: =+IFERROR(VLOOKUP($A115,ITV_CCONAP!$A$8:$Z$149,21,FALSE),0) -> 0 | AR115: =+IFERROR(VLOOKUP($A115,ITV_CPT!$A$8:$Z$149,13,FALSE),0) -> 0 | AS115: =+IFERROR(VLOOKUP($A115,ITV_CPT!$A$8:$Z$149,21,FALSE),0) -> 0 | AW115: =+IFERROR(VLOOKUP($A115,ITV_CPET!$A$8:$Z$149,13,FALSE),0) -> 0 | AX115: =+IFERROR(VLOOKUP($A115,ITV_CPET!$A$8:$Z$149,21,FALSE),0) -> 0 | BB115: =+IFERROR(VLOOKUP($A115,ITV_CPERDP!$A$8:$Z$149,13,FALSE),0) -> 0 | BC115: =+IFERROR(VLOOKUP($A115,ITV_CPERDP!$A$8:$Z$149,21,FALSE),0) -> 0 | BG115: =+IFERROR(VLOOKUP($A115,ITV_CPERDE!$A$8:$Z$149,13,FALSE),0) -> 0 | BH115: =+IFERROR(VLOOKUP($A115,ITV_CPERDE!$A$8:$Z$149,21,FALSE),0) -> 0
A116: BTSH | D116: =+IFERROR(VLOOKUP($A116,ITV_CD!$A$8:$AA$149,13,FALSE),0) -> 0 | E116: =+IFERROR(VLOOKUP($A116,ITV_CD!$A$8:$AA$149,21,FALSE),0) -> 0 | J116: =+IFERROR(VLOOKUP($A116,ITV_CCOMF!$A$8:$AA$149,13,FALSE),0) -> 3.06 | N116: =+IFERROR(VLOOKUP($A116,ITV_CCOMV!$A$8:$AA$149,13,FALSE),0) -> 0 | O116: =+IFERROR(VLOOKUP($A116,ITV_CCOMV!$A$8:$AA$149,21,FALSE),0) -> 0 | S116: =+IFERROR(VLOOKUP($A116,ITV_CSERAP!$A$8:$AA$149,13,FALSE),0) -> 0 | T116: =+IFERROR(VLOOKUP($A116,ITV_CSERAP!$A$8:$AA$149,21,FALSE),0) -> 0 | Y116: =+IFERROR(VLOOKUP($A116,ITV_CX!$A$8:$AA$149,13,FALSE),0) -> 16.66 | AC116: =+IFERROR(VLOOKUP($A116,ITV_CENEGEN!$A$9:$Z$150,13,FALSE),0) -> 0 | AD116: =+IFERROR(VLOOKUP($A116,ITV_CENEGEN!$A$9:$Z$150,21,FALSE),0) -> 0 | AH116: =+IFERROR(VLOOKUP($A116,ITV_CPOTGEN!$A$9:$Z$150,13,FALSE),0) -> 0 | AI116: =+IFERROR(VLOOKUP($A116,ITV_CPOTGEN!$A$9:$Z$150,21,FALSE),0) -> 0 | AM116: =+IFERROR(VLOOKUP($A116,ITV_CCONAP!$A$8:$Z$149,13,FALSE),0) -> 0 | AN116: =+IFERROR(VLOOKUP($A116,ITV_CCONAP!$A$8:$Z$149,21,FALSE),0) -> 0 | AR116: =+IFERROR(VLOOKUP($A116,ITV_CPT!$A$8:$Z$149,13,FALSE),0) -> 0 | AS116: =+IFERROR(VLOOKUP($A116,ITV_CPT!$A$8:$Z$149,21,FALSE),0) -> 0 | AW116: =+IFERROR(VLOOKUP($A116,ITV_CPET!$A$8:$Z$149,13,FALSE),0) -> 0 | AX116: =+IFERROR(VLOOKUP($A116,ITV_CPET!$A$8:$Z$149,21,FALSE),0) -> 0 | BB116: =+IFERROR(VLOOKUP($A116,ITV_CPERDP!$A$8:$Z$149,13,FALSE),0) -> 0 | BC116: =+IFERROR(VLOOKUP($A116,ITV_CPERDP!$A$8:$Z$149,21,FALSE),0) -> 0 | BG116: =+IFERROR(VLOOKUP($A116,ITV_CPERDE!$A$8:$Z$149,13,FALSE),0) -> 0 | BH116: =+IFERROR(VLOOKUP($A116,ITV_CPERDE!$A$8:$Z$149,21,FALSE),0) -> 0
A117: BTSH_1
A118: BTSH_1 Punta | D118: =+IFERROR(VLOOKUP($A118,ITV_CD!$A$8:$AA$149,13,FALSE),0) -> 0.05209 | E118: =+IFERROR(VLOOKUP($A118,ITV_CD!$A$8:$AA$149,21,FALSE),0) -> 0 | J118: =+IFERROR(VLOOKUP($A118,ITV_CCOMF!$A$8:$AA$149,13,FALSE),0) -> 3.06 | N118: =+IFERROR(VLOOKUP($A118,ITV_CCOMV!$A$8:$AA$149,13,FALSE),0) -> 0.00828 | O118: =+IFERROR(VLOOKUP($A118,ITV_CCOMV!$A$8:$AA$149,21,FALSE),0) -> 0 | S118: =+IFERROR(VLOOKUP($A118,ITV_CSERAP!$A$8:$AA$149,13,FALSE),0) -> 0.0014 | T118: =+IFERROR(VLOOKUP($A118,ITV_CSERAP!$A$8:$AA$149,21,FALSE),0) -> 0 | Y118: =+IFERROR(VLOOKUP($A118,ITV_CX!$A$8:$AA$149,13,FALSE),0) -> 0 | AC118: =+IFERROR(VLOOKUP($A118,ITV_CENEGEN!$A$9:$Z$150,13,FALSE),0) -> 0.26526 | AD118: =+IFERROR(VLOOKUP($A118,ITV_CENEGEN!$A$9:$Z$150,21,FALSE),0) -> 0 | AH118: =+IFERROR(VLOOKUP($A118,ITV_CPOTGEN!$A$9:$Z$150,13,FALSE),0) -> 0.03345 | AI118: =+IFERROR(VLOOKUP($A118,ITV_CPOTGEN!$A$9:$Z$150,21,FALSE),0) -> 0 | AM118: =+IFERROR(VLOOKUP($A118,ITV_CCONAP!$A$8:$Z$149,13,FALSE),0) -> 0.00204 | AN118: =+IFERROR(VLOOKUP($A118,ITV_CCONAP!$A$8:$Z$149,21,FALSE),0) -> 0 | AR118: =+IFERROR(VLOOKUP($A118,ITV_CPT!$A$8:$Z$149,13,FALSE),0) -> 0.01068 | AS118: =+IFERROR(VLOOKUP($A118,ITV_CPT!$A$8:$Z$149,21,FALSE),0) -> 0 | AW118: =+IFERROR(VLOOKUP($A118,ITV_CPET!$A$8:$Z$149,13,FALSE),0) -> 0.00269 | AX118: =+IFERROR(VLOOKUP($A118,ITV_CPET!$A$8:$Z$149,21,FALSE),0) -> 0 | BB118: =+IFERROR(VLOOKUP($A118,ITV_CPERDP!$A$8:$Z$149,13,FALSE),0) -> 0 | BC118: =+IFERROR(VLOOKUP($A118,ITV_CPERDP!$A$8:$Z$149,21,FALSE),0) -> 0 | BG118: =+IFERROR(VLOOKUP($A118,ITV_CPERDE!$A$8:$Z$149,13,FALSE),0) -> 0.00926 | BH118: =+IFERROR(VLOOKUP($A118,ITV_CPERDE!$A$8:$Z$149,21,FALSE),0) -> 0
A119: =+A46 -> BTSH_1 Fuera de Punta Medio | D119: =+IFERROR(VLOOKUP($A119,ITV_CD!$A$8:$AA$149,13,FALSE),0) -> 0.0465 | E119: =+IFERROR(VLOOKUP($A119,ITV_CD!$A$8:$AA$149,21,FALSE),0) -> 0 | J119: =+IFERROR(VLOOKUP($A119,ITV_CCOMF!$A$8:$AA$149,13,FALSE),0) -> 3.06 | N119: =+IFERROR(VLOOKUP($A119,ITV_CCOMV!$A$8:$AA$149,13,FALSE),0) -> 0.00828 | O119: =+IFERROR(VLOOKUP($A119,ITV_CCOMV!$A$8:$AA$149,21,FALSE),0) -> 0 | S119: =+IFERROR(VLOOKUP($A119,ITV_CSERAP!$A$8:$AA$149,13,FALSE),0) -> 0.0014 | T119: =+IFERROR(VLOOKUP($A119,ITV_CSERAP!$A$8:$AA$149,21,FALSE),0) -> 0 | Y119: =+IFERROR(VLOOKUP($A119,ITV_CX!$A$8:$AA$149,13,FALSE),0) -> 0 | AC119: =+IFERROR(VLOOKUP($A119,ITV_CENEGEN!$A$9:$Z$150,13,FALSE),0) -> 0.07074 | AD119: =+IFERROR(VLOOKUP($A119,ITV_CENEGEN!$A$9:$Z$150,21,FALSE),0) -> 0 | AH119: =+IFERROR(VLOOKUP($A119,ITV_CPOTGEN!$A$9:$Z$150,13,FALSE),0) -> 0.03345 | AI119: =+IFERROR(VLOOKUP($A119,ITV_CPOTGEN!$A$9:$Z$150,21,FALSE),0) -> 0 | AM119: =+IFERROR(VLOOKUP($A119,ITV_CCONAP!$A$8:$Z$149,13,FALSE),0) -> 0.00204 | AN119: =+IFERROR(VLOOKUP($A119,ITV_CCONAP!$A$8:$Z$149,21,FALSE),0) -> 0 | AR119: =+IFERROR(VLOOKUP($A119,ITV_CPT!$A$8:$Z$149,13,FALSE),0) -> 0.01068 | AS119: =+IFERROR(VLOOKUP($A119,ITV_CPT!$A$8:$Z$149,21,FALSE),0) -> 0 | AW119: =+IFERROR(VLOOKUP($A119,ITV_CPET!$A$8:$Z$149,13,FALSE),0) -> 0.00269 | AX119: =+IFERROR(VLOOKUP($A119,ITV_CPET!$A$8:$Z$149,21,FALSE),0) -> 0 | BB119: =+IFERROR(VLOOKUP($A119,ITV_CPERDP!$A$8:$Z$149,13,FALSE),0) -> 0 | BC119: =+IFERROR(VLOOKUP($A119,ITV_CPERDP!$A$8:$Z$149,21,FALSE),0) -> 0 | BG119: =+IFERROR(VLOOKUP($A119,ITV_CPERDE!$A$8:$Z$149,13,FALSE),0) -> 0.00926 | BH119: =+IFERROR(VLOOKUP($A119,ITV_CPERDE!$A$8:$Z$149,21,FALSE),0) -> 0
A120: BTSH_1 Fuera de Punta Bajo | D120: =+IFERROR(VLOOKUP($A120,ITV_CD!$A$8:$AA$149,13,FALSE),0) -> 0.04151 | E120: =+IFERROR(VLOOKUP($A120,ITV_CD!$A$8:$AA$149,21,FALSE),0) -> 0 | J120: =+IFERROR(VLOOKUP($A120,ITV_CCOMF!$A$8:$AA$149,13,FALSE),0) -> 3.06 | N120: =+IFERROR(VLOOKUP($A120,ITV_CCOMV!$A$8:$AA$149,13,FALSE),0) -> 0.00828 | O120: =+IFERROR(VLOOKUP($A120,ITV_CCOMV!$A$8:$AA$149,21,FALSE),0) -> 0 | S120: =+IFERROR(VLOOKUP($A120,ITV_CSERAP!$A$8:$AA$149,13,FALSE),0) -> 0.0014 | T120: =+IFERROR(VLOOKUP($A120,ITV_CSERAP!$A$8:$AA$149,21,FALSE),0) -> 0 | Y120: =+IFERROR(VLOOKUP($A120,ITV_CX!$A$8:$AA$149,13,FALSE),0) -> 0 | AC120: =+IFERROR(VLOOKUP($A120,ITV_CENEGEN!$A$9:$Z$150,13,FALSE),0) -> 0.00221 | AD120: =+IFERROR(VLOOKUP($A120,ITV_CENEGEN!$A$9:$Z$150,21,FALSE),0) -> 0 | AH120: =+IFERROR(VLOOKUP($A120,ITV_CPOTGEN!$A$9:$Z$150,13,FALSE),0) -> 0.03345 | AI120: =+IFERROR(VLOOKUP($A120,ITV_CPOTGEN!$A$9:$Z$150,21,FALSE),0) -> 0 | AM120: =+IFERROR(VLOOKUP($A120,ITV_CCONAP!$A$8:$Z$149,13,FALSE),0) -> 0.00204 | AN120: =+IFERROR(VLOOKUP($A120,ITV_CCONAP!$A$8:$Z$149,21,FALSE),0) -> 0 | AR120: =+IFERROR(VLOOKUP($A120,ITV_CPT!$A$8:$Z$149,13,FALSE),0) -> 0.01068 | AS120: =+IFERROR(VLOOKUP($A120,ITV_CPT!$A$8:$Z$149,21,FALSE),0) -> 0 | AW120: =+IFERROR(VLOOKUP($A120,ITV_CPET!$A$8:$Z$149,13,FALSE),0) -> 0.00269 | AX120: =+IFERROR(VLOOKUP($A120,ITV_CPET!$A$8:$Z$149,21,FALSE),0) -> 0 | BB120: =+IFERROR(VLOOKUP($A120,ITV_CPERDP!$A$8:$Z$149,13,FALSE),0) -> 0 | BC120: =+IFERROR(VLOOKUP($A120,ITV_CPERDP!$A$8:$Z$149,21,FALSE),0) -> 0 | BG120: =+IFERROR(VLOOKUP($A120,ITV_CPERDE!$A$8:$Z$149,13,FALSE),0) -> 0.00926 | BH120: =+IFERROR(VLOOKUP($A120,ITV_CPERDE!$A$8:$Z$149,21,FALSE),0) -> 0
A121: BTSH_2
A122: BTSH_2 Punta | D122: =+IFERROR(VLOOKUP($A122,ITV_CD!$A$8:$AA$149,13,FALSE),0) -> 0 | E122: =+IFERROR(VLOOKUP($A122,ITV_CD!$A$8:$AA$149,21,FALSE),0) -> 0 | J122: =+IFERROR(VLOOKUP($A122,ITV_CCOMF!$A$8:$AA$149,13,FALSE),0) -> 0 | N122: =+IFERROR(VLOOKUP($A122,ITV_CCOMV!$A$8:$AA$149,13,FALSE),0) -> 0 | O122: =+IFERROR(VLOOKUP($A122,ITV_CCOMV!$A$8:$AA$149,21,FALSE),0) -> 0 | S122: =+IFERROR(VLOOKUP($A122,ITV_CSERAP!$A$8:$AA$149,13,FALSE),0) -> 0 | T122: =+IFERROR(VLOOKUP($A122,ITV_CSERAP!$A$8:$AA$149,21,FALSE),0) -> 0 | Y122: =+IFERROR(VLOOKUP($A122,ITV_CX!$A$8:$AA$149,13,FALSE),0) -> 0 | AC122: =+IFERROR(VLOOKUP($A122,ITV_CENEGEN!$A$9:$Z$150,13,FALSE),0) -> 0 | AD122: =+IFERROR(VLOOKUP($A122,ITV_CENEGEN!$A$9:$Z$150,21,FALSE),0) -> 0 | AH122: =+IFERROR(VLOOKUP($A122,ITV_CPOTGEN!$A$9:$Z$150,13,FALSE),0) -> 0 | AI122: =+IFERROR(VLOOKUP($A122,ITV_CPOTGEN!$A$9:$Z$150,21,FALSE),0) -> 0 | AM122: =+IFERROR(VLOOKUP($A122,ITV_CCONAP!$A$8:$Z$149,13,FALSE),0) -> 0 | AN122: =+IFERROR(VLOOKUP($A122,ITV_CCONAP!$A$8:$Z$149,21,FALSE),0) -> 0 | AR122: =+IFERROR(VLOOKUP($A122,ITV_CPT!$A$8:$Z$149,13,FALSE),0) -> 0 | AS122: =+IFERROR(VLOOKUP($A122,ITV_CPT!$A$8:$Z$149,21,FALSE),0) -> 0 | AW122: =+IFERROR(VLOOKUP($A122,ITV_CPET!$A$8:$Z$149,13,FALSE),0) -> 0 | AX122: =+IFERROR(VLOOKUP($A122,ITV_CPET!$A$8:$Z$149,21,FALSE),0) -> 0 | BB122: =+IFERROR(VLOOKUP($A122,ITV_CPERDP!$A$8:$Z$149,13,FALSE),0) -> 0 | BC122: =+IFERROR(VLOOKUP($A122,ITV_CPERDP!$A$8:$Z$149,21,FALSE),0) -> 0 | BG122: =+IFERROR(VLOOKUP($A122,ITV_CPERDE!$A$8:$Z$149,13,FALSE),0) -> 0 | BH122: =+IFERROR(VLOOKUP($A122,ITV_CPERDE!$A$8:$Z$149,21,FALSE),0) -> 0
A123: BTSH_2 Fuera de Punta Medio | D123: =+IFERROR(VLOOKUP($A123,ITV_CD!$A$8:$AA$149,13,FALSE),0) -> 0 | E123: =+IFERROR(VLOOKUP($A123,ITV_CD!$A$8:$AA$149,21,FALSE),0) -> 0 | J123: =+IFERROR(VLOOKUP($A123,ITV_CCOMF!$A$8:$AA$149,13,FALSE),0) -> 0 | N123: =+IFERROR(VLOOKUP($A123,ITV_CCOMV!$A$8:$AA$149,13,FALSE),0) -> 0 | O123: =+IFERROR(VLOOKUP($A123,ITV_CCOMV!$A$8:$AA$149,21,FALSE),0) -> 0 | S123: =+IFERROR(VLOOKUP($A123,ITV_CSERAP!$A$8:$AA$149,13,FALSE),0) -> 0 | T123: =+IFERROR(VLOOKUP($A123,ITV_CSERAP!$A$8:$AA$149,21,FALSE),0) -> 0 | Y123: =+IFERROR(VLOOKUP($A123,ITV_CX!$A$8:$AA$149,13,FALSE),0) -> 0 | AC123: =+IFERROR(VLOOKUP($A123,ITV_CENEGEN!$A$9:$Z$150,13,FALSE),0) -> 0 | AD123: =+IFERROR(VLOOKUP($A123,ITV_CENEGEN!$A$9:$Z$150,21,FALSE),0) -> 0 | AH123: =+IFERROR(VLOOKUP($A123,ITV_CPOTGEN!$A$9:$Z$150,13,FALSE),0) -> 0 | AI123: =+IFERROR(VLOOKUP($A123,ITV_CPOTGEN!$A$9:$Z$150,21,FALSE),0) -> 0 | AM123: =+IFERROR(VLOOKUP($A123,ITV_CCONAP!$A$8:$Z$149,13,FALSE),0) -> 0 | AN123: =+IFERROR(VLOOKUP($A123,ITV_CCONAP!$A$8:$Z$149,21,FALSE),0) -> 0 | AR123: =+IFERROR(VLOOKUP($A123,ITV_CPT!$A$8:$Z$149,13,FALSE),0) -> 0 | AS123: =+IFERROR(VLOOKUP($A123,ITV_CPT!$A$8:$Z$149,21,FALSE),0) -> 0 | AW123: =+IFERROR(VLOOKUP($A123,ITV_CPET!$A$8:$Z$149,13,FALSE),0) -> 0 | AX123: =+IFERROR(VLOOKUP($A123,ITV_CPET!$A$8:$Z$149,21,FALSE),0) -> 0 | BB123: =+IFERROR(VLOOKUP($A123,ITV_CPERDP!$A$8:$Z$149,13,FALSE),0) -> 0 | BC123: =+IFERROR(VLOOKUP($A123,ITV_CPERDP!$A$8:$Z$149,21,FALSE),0) -> 0 | BG123: =+IFERROR(VLOOKUP($A123,ITV_CPERDE!$A$8:$Z$149,13,FALSE),0) -> 0 | BH123: =+IFERROR(VLOOKUP($A123,ITV_CPERDE!$A$8:$Z$149,21,FALSE),0) -> 0
A124: BTSH_2 Fuera de Punta Bajo | D124: =+IFERROR(VLOOKUP($A124,ITV_CD!$A$8:$AA$149,13,FALSE),0) -> 0 | E124: =+IFERROR(VLOOKUP($A124,ITV_CD!$A$8:$AA$149,21,FALSE),0) -> 0 | J124: =+IFERROR(VLOOKUP($A124,ITV_CCOMF!$A$8:$AA$149,13,FALSE),0) -> 0 | N124: =+IFERROR(VLOOKUP($A124,ITV_CCOMV!$A$8:$AA$149,13,FALSE),0) -> 0 | O124: =+IFERROR(VLOOKUP($A124,ITV_CCOMV!$A$8:$AA$149,21,FALSE),0) -> 0 | S124: =+IFERROR(VLOOKUP($A124,ITV_CSERAP!$A$8:$AA$149,13,FALSE),0) -> 0 | T124: =+IFERROR(VLOOKUP($A124,ITV_CSERAP!$A$8:$AA$149,21,FALSE),0) -> 0 | Y124: =+IFERROR(VLOOKUP($A124,ITV_CX!$A$8:$AA$149,13,FALSE),0) -> 0 | AC124: =+IFERROR(VLOOKUP($A124,ITV_CENEGEN!$A$9:$Z$150,13,FALSE),0) -> 0 | AD124: =+IFERROR(VLOOKUP($A124,ITV_CENEGEN!$A$9:$Z$150,21,FALSE),0) -> 0 | AH124: =+IFERROR(VLOOKUP($A124,ITV_CPOTGEN!$A$9:$Z$150,13,FALSE),0) -> 0 | AI124: =+IFERROR(VLOOKUP($A124,ITV_CPOTGEN!$A$9:$Z$150,21,FALSE),0) -> 0 | AM124: =+IFERROR(VLOOKUP($A124,ITV_CCONAP!$A$8:$Z$149,13,FALSE),0) -> 0 | AN124: =+IFERROR(VLOOKUP($A124,ITV_CCONAP!$A$8:$Z$149,21,FALSE),0) -> 0 | AR124: =+IFERROR(VLOOKUP($A124,ITV_CPT!$A$8:$Z$149,13,FALSE),0) -> 0 | AS124: =+IFERROR(VLOOKUP($A124,ITV_CPT!$A$8:$Z$149,21,FALSE),0) -> 0 | AW124: =+IFERROR(VLOOKUP($A124,ITV_CPET!$A$8:$Z$149,13,FALSE),0) -> 0 | AX124: =+IFERROR(VLOOKUP($A124,ITV_CPET!$A$8:$Z$149,21,FALSE),0) -> 0 | BB124: =+IFERROR(VLOOKUP($A124,ITV_CPERDP!$A$8:$Z$149,13,FALSE),0) -> 0 | BC124: =+IFERROR(VLOOKUP($A124,ITV_CPERDP!$A$8:$Z$149,21,FALSE),0) -> 0 | BG124: =+IFERROR(VLOOKUP($A124,ITV_CPERDE!$A$8:$Z$149,13,FALSE),0) -> 0 | BH124: =+IFERROR(VLOOKUP($A124,ITV_CPERDE!$A$8:$Z$149,21,FALSE),0) -> 0
A125: BTSH_3
A126: BTSH_3 Punta | D126: =+IFERROR(VLOOKUP($A126,ITV_CD!$A$8:$AA$149,13,FALSE),0) -> 0 | E126: =+IFERROR(VLOOKUP($A126,ITV_CD!$A$8:$AA$149,21,FALSE),0) -> 0 | J126: =+IFERROR(VLOOKUP($A126,ITV_CCOMF!$A$8:$AA$149,13,FALSE),0) -> 0 | N126: =+IFERROR(VLOOKUP($A126,ITV_CCOMV!$A$8:$AA$149,13,FALSE),0) -> 0 | O126: =+IFERROR(VLOOKUP($A126,ITV_CCOMV!$A$8:$AA$149,21,FALSE),0) -> 0 | S126: =+IFERROR(VLOOKUP($A126,ITV_CSERAP!$A$8:$AA$149,13,FALSE),0) -> 0 | T126: =+IFERROR(VLOOKUP($A126,ITV_CSERAP!$A$8:$AA$149,21,FALSE),0) -> 0 | Y126: =+IFERROR(VLOOKUP($A126,ITV_CX!$A$8:$AA$149,13,FALSE),0) -> 0 | AC126: =+IFERROR(VLOOKUP($A126,ITV_CENEGEN!$A$9:$Z$150,13,FALSE),0) -> 0 | AD126: =+IFERROR(VLOOKUP($A126,ITV_CENEGEN!$A$9:$Z$150,21,FALSE),0) -> 0 | AH126: =+IFERROR(VLOOKUP($A126,ITV_CPOTGEN!$A$9:$Z$150,13,FALSE),0) -> 0 | AI126: =+IFERROR(VLOOKUP($A126,ITV_CPOTGEN!$A$9:$Z$150,21,FALSE),0) -> 0 | AM126: =+IFERROR(VLOOKUP($A126,ITV_CCONAP!$A$8:$Z$149,13,FALSE),0) -> 0 | AN126: =+IFERROR(VLOOKUP($A126,ITV_CCONAP!$A$8:$Z$149,21,FALSE),0) -> 0 | AR126: =+IFERROR(VLOOKUP($A126,ITV_CPT!$A$8:$Z$149,13,FALSE),0) -> 0 | AS126: =+IFERROR(VLOOKUP($A126,ITV_CPT!$A$8:$Z$149,21,FALSE),0) -> 0 | AW126: =+IFERROR(VLOOKUP($A126,ITV_CPET!$A$8:$Z$149,13,FALSE),0) -> 0 | AX126: =+IFERROR(VLOOKUP($A126,ITV_CPET!$A$8:$Z$149,21,FALSE),0) -> 0 | BB126: =+IFERROR(VLOOKUP($A126,ITV_CPERDP!$A$8:$Z$149,13,FALSE),0) -> 0 | BC126: =+IFERROR(VLOOKUP($A126,ITV_CPERDP!$A$8:$Z$149,21,FALSE),0) -> 0 | BG126: =+IFERROR(VLOOKUP($A126,ITV_CPERDE!$A$8:$Z$149,13,FALSE),0) -> 0 | BH126: =+IFERROR(VLOOKUP($A126,ITV_CPERDE!$A$8:$Z$149,21,FALSE),0) -> 0
A127: BTSH_3 Fuera de Punta Medio | D127: =+IFERROR(VLOOKUP($A127,ITV_CD!$A$8:$AA$149,13,FALSE),0) -> 0 | E127: =+IFERROR(VLOOKUP($A127,ITV_CD!$A$8:$AA$149,21,FALSE),0) -> 0 | J127: =+IFERROR(VLOOKUP($A127,ITV_CCOMF!$A$8:$AA$149,13,FALSE),0) -> 0 | N127: =+IFERROR(VLOOKUP($A127,ITV_CCOMV!$A$8:$AA$149,13,FALSE),0) -> 0 | O127: =+IFERROR(VLOOKUP($A127,ITV_CCOMV!$A$8:$AA$149,21,FALSE),0) -> 0 | S127: =+IFERROR(VLOOKUP($A127,ITV_CSERAP!$A$8:$AA$149,13,FALSE),0) -> 0 | T127: =+IFERROR(VLOOKUP($A127,ITV_CSERAP!$A$8:$AA$149,21,FALSE),0) -> 0 | Y127: =+IFERROR(VLOOKUP($A127,ITV_CX!$A$8:$AA$149,13,FALSE),0) -> 0 | AC127: =+IFERROR(VLOOKUP($A127,ITV_CENEGEN!$A$9:$Z$150,13,FALSE),0) -> 0 | AD127: =+IFERROR(VLOOKUP($A127,ITV_CENEGEN!$A$9:$Z$150,21,FALSE),0) -> 0 | AH127: =+IFERROR(VLOOKUP($A127,ITV_CPOTGEN!$A$9:$Z$150,13,FALSE),0) -> 0 | AI127: =+IFERROR(VLOOKUP($A127,ITV_CPOTGEN!$A$9:$Z$150,21,FALSE),0) -> 0 | AM127: =+IFERROR(VLOOKUP($A127,ITV_CCONAP!$A$8:$Z$149,13,FALSE),0) -> 0 | AN127: =+IFERROR(VLOOKUP($A127,ITV_CCONAP!$A$8:$Z$149,21,FALSE),0) -> 0 | AR127: =+IFERROR(VLOOKUP($A127,ITV_CPT!$A$8:$Z$149,13,FALSE),0) -> 0 | AS127: =+IFERROR(VLOOKUP($A127,ITV_CPT!$A$8:$Z$149,21,FALSE),0) -> 0 | AW127: =+IFERROR(VLOOKUP($A127,ITV_CPET!$A$8:$Z$149,13,FALSE),0) -> 0 | AX127: =+IFERROR(VLOOKUP($A127,ITV_CPET!$A$8:$Z$149,21,FALSE),0) -> 0 | BB127: =+IFERROR(VLOOKUP($A127,ITV_CPERDP!$A$8:$Z$149,13,FALSE),0) -> 0 | BC127: =+IFERROR(VLOOKUP($A127,ITV_CPERDP!$A$8:$Z$149,21,FALSE),0) -> 0 | BG127: =+IFERROR(VLOOKUP($A127,ITV_CPERDE!$A$8:$Z$149,13,FALSE),0) -> 0 | BH127: =+IFERROR(VLOOKUP($A127,ITV_CPERDE!$A$8:$Z$149,21,FALSE),0) -> 0
A128: BTSH_3 Fuera de Punta Bajo | D128: =+IFERROR(VLOOKUP($A128,ITV_CD!$A$8:$AA$149,13,FALSE),0) -> 0 | E128: =+IFERROR(VLOOKUP($A128,ITV_CD!$A$8:$AA$149,21,FALSE),0) -> 0 | J128: =+IFERROR(VLOOKUP($A128,ITV_CCOMF!$A$8:$AA$149,13,FALSE),0) -> 0 | N128: =+IFERROR(VLOOKUP($A128,ITV_CCOMV!$A$8:$AA$149,13,FALSE),0) -> 0 | O128: =+IFERROR(VLOOKUP($A128,ITV_CCOMV!$A$8:$AA$149,21,FALSE),0) -> 0 | S128: =+IFERROR(VLOOKUP($A128,ITV_CSERAP!$A$8:$AA$149,13,FALSE),0) -> 0 | T128: =+IFERROR(VLOOKUP($A128,ITV_CSERAP!$A$8:$AA$149,21,FALSE),0) -> 0 | Y128: =+IFERROR(VLOOKUP($A128,ITV_CX!$A$8:$AA$149,13,FALSE),0) -> 0 | AC128: =+IFERROR(VLOOKUP($A128,ITV_CENEGEN!$A$9:$Z$150,13,FALSE),0) -> 0 | AD128: =+IFERROR(VLOOKUP($A128,ITV_CENEGEN!$A$9:$Z$150,21,FALSE),0) -> 0 | AH128: =+IFERROR(VLOOKUP($A128,ITV_CPOTGEN!$A$9:$Z$150,13,FALSE),0) -> 0 | AI128: =+IFERROR(VLOOKUP($A128,ITV_CPOTGEN!$A$9:$Z$150,21,FALSE),0) -> 0 | AM128: =+IFERROR(VLOOKUP($A128,ITV_CCONAP!$A$8:$Z$149,13,FALSE),0) -> 0 | AN128: =+IFERROR(VLOOKUP($A128,ITV_CCONAP!$A$8:$Z$149,21,FALSE),0) -> 0 | AR128: =+IFERROR(VLOOKUP($A128,ITV_CPT!$A$8:$Z$149,13,FALSE),0) -> 0 | AS128: =+IFERROR(VLOOKUP($A128,ITV_CPT!$A$8:$Z$149,21,FALSE),0) -> 0 | AW128: =+IFERROR(VLOOKUP($A128,ITV_CPET!$A$8:$Z$149,13,FALSE),0) -> 0 | AX128: =+IFERROR(VLOOKUP($A128,ITV_CPET!$A$8:$Z$149,21,FALSE),0) -> 0 | BB128: =+IFERROR(VLOOKUP($A128,ITV_CPERDP!$A$8:$Z$149,13,FALSE),0) -> 0 | BC128: =+IFERROR(VLOOKUP($A128,ITV_CPERDP!$A$8:$Z$149,21,FALSE),0) -> 0 | BG128: =+IFERROR(VLOOKUP($A128,ITV_CPERDE!$A$8:$Z$149,13,FALSE),0) -> 0 | BH128: =+IFERROR(VLOOKUP($A128,ITV_CPERDE!$A$8:$Z$149,21,FALSE),0) -> 0
A129: =+A56 -> BTS Prepago | D129: =+IFERROR(VLOOKUP($A129,ITV_CD!$A$8:$AA$149,13,FALSE),0) -> 0 | E129: =+IFERROR(VLOOKUP($A129,ITV_CD!$A$8:$AA$149,21,FALSE),0) -> 0 | J129: =+IFERROR(VLOOKUP($A129,ITV_CCOMF!$A$8:$AA$149,13,FALSE),0) -> 0.01121 | N129: =+IFERROR(VLOOKUP($A129,ITV_CCOMV!$A$8:$AA$149,13,FALSE),0) -> 0 | O129: =+IFERROR(VLOOKUP($A129,ITV_CCOMV!$A$8:$AA$149,21,FALSE),0) -> 0 | S129: =+IFERROR(VLOOKUP($A129,ITV_CSERAP!$A$8:$AA$149,13,FALSE),0) -> 0 | T129: =+IFERROR(VLOOKUP($A129,ITV_CSERAP!$A$8:$AA$149,21,FALSE),0) -> 0 | Y129: =+IFERROR(VLOOKUP($A129,ITV_CX!$A$8:$AA$149,13,FALSE),0) -> 16.66 | AC129: =+IFERROR(VLOOKUP($A129,ITV_CENEGEN!$A$9:$Z$150,13,FALSE),0) -> 0 | AD129: =+IFERROR(VLOOKUP($A129,ITV_CENEGEN!$A$9:$Z$150,21,FALSE),0) -> 0 | AH129: =+IFERROR(VLOOKUP($A129,ITV_CPOTGEN!$A$9:$Z$150,13,FALSE),0) -> 0 | AI129: =+IFERROR(VLOOKUP($A129,ITV_CPOTGEN!$A$9:$Z$150,21,FALSE),0) -> 0 | AM129: =+IFERROR(VLOOKUP($A129,ITV_CCONAP!$A$8:$Z$149,13,FALSE),0) -> 0 | AN129: =+IFERROR(VLOOKUP($A129,ITV_CCONAP!$A$8:$Z$149,21,FALSE),0) -> 0 | AR129: =+IFERROR(VLOOKUP($A129,ITV_CPT!$A$8:$Z$149,13,FALSE),0) -> 0 | AS129: =+IFERROR(VLOOKUP($A129,ITV_CPT!$A$8:$Z$149,21,FALSE),0) -> 0 | AW129: =+IFERROR(VLOOKUP($A129,ITV_CPET!$A$8:$Z$149,13,FALSE),0) -> 0 | AX129: =+IFERROR(VLOOKUP($A129,ITV_CPET!$A$8:$Z$149,21,FALSE),0) -> 0 | BB129: =+IFERROR(VLOOKUP($A129,ITV_CPERDP!$A$8:$Z$149,13,FALSE),0) -> 0 | BC129: =+IFERROR(VLOOKUP($A129,ITV_CPERDP!$A$8:$Z$149,21,FALSE),0) -> 0 | BG129: =+IFERROR(VLOOKUP($A129,ITV_CPERDE!$A$8:$Z$149,13,FALSE),0) -> 0 | BH129: =+IFERROR(VLOOKUP($A129,ITV_CPERDE!$A$8:$Z$149,21,FALSE),0) -> 0
A130: BTS Prep | D130: =+IFERROR(VLOOKUP($A130,ITV_CD!$A$8:$AA$149,13,FALSE),0) -> 0.04976 | E130: =+IFERROR(VLOOKUP($A130,ITV_CD!$A$8:$AA$149,21,FALSE),0) -> 0 | J130: =+IFERROR(VLOOKUP($A130,ITV_CCOMF!$A$8:$AA$149,13,FALSE),0) -> 0.01121 | N130: =+IFERROR(VLOOKUP($A130,ITV_CCOMV!$A$8:$AA$149,13,FALSE),0) -> 0.00884 | O130: =+IFERROR(VLOOKUP($A130,ITV_CCOMV!$A$8:$AA$149,21,FALSE),0) -> 0 | S130: =+IFERROR(VLOOKUP($A130,ITV_CSERAP!$A$8:$AA$149,13,FALSE),0) -> 0.00145 | T130: =+IFERROR(VLOOKUP($A130,ITV_CSERAP!$A$8:$AA$149,21,FALSE),0) -> 0 | Y130: =+IFERROR(VLOOKUP($A130,ITV_CX!$A$8:$AA$149,13,FALSE),0) -> 0 | AC130: =+IFERROR(VLOOKUP($A130,ITV_CENEGEN!$A$9:$Z$150,13,FALSE),0) -> 0.04368689024 | AD130: =+IFERROR(VLOOKUP($A130,ITV_CENEGEN!$A$9:$Z$150,21,FALSE),0) -> 0 | AH130: =+IFERROR(VLOOKUP($A130,ITV_CPOTGEN!$A$9:$Z$150,13,FALSE),0) -> 0.01689310976 | AI130: =+IFERROR(VLOOKUP($A130,ITV_CPOTGEN!$A$9:$Z$150,21,FALSE),0) -> 0 | AM130: =+IFERROR(VLOOKUP($A130,ITV_CCONAP!$A$8:$Z$149,13,FALSE),0) -> 0.00216 | AN130: =+IFERROR(VLOOKUP($A130,ITV_CCONAP!$A$8:$Z$149,21,FALSE),0) -> 0 | AR130: =+IFERROR(VLOOKUP($A130,ITV_CPT!$A$8:$Z$149,13,FALSE),0) -> 0.01131 | AS130: =+IFERROR(VLOOKUP($A130,ITV_CPT!$A$8:$Z$149,21,FALSE),0) -> 0 | AW130: =+IFERROR(VLOOKUP($A130,ITV_CPET!$A$8:$Z$149,13,FALSE),0) -> 0.00286 | AX130: =+IFERROR(VLOOKUP($A130,ITV_CPET!$A$8:$Z$149,21,FALSE),0) -> 0 | BB130: =+IFERROR(VLOOKUP($A130,ITV_CPERDP!$A$8:$Z$149,13,FALSE),0) -> 0 | BC130: =+IFERROR(VLOOKUP($A130,ITV_CPERDP!$A$8:$Z$149,21,FALSE),0) -> 0 | BG130: =+IFERROR(VLOOKUP($A130,ITV_CPERDE!$A$8:$Z$149,13,FALSE),0) -> 0.01127 | BH130: =+IFERROR(VLOOKUP($A130,ITV_CPERDE!$A$8:$Z$149,21,FALSE),0) -> 0
A131: X1D_2 (10,001-30,000) | D131: =+IFERROR(VLOOKUP($A131,ITV_CD!$A$8:$AA$149,13,FALSE),0) -> 0 | E131: =+IFERROR(VLOOKUP($A131,ITV_CD!$A$8:$AA$149,21,FALSE),0) -> 0 | J131: =+IFERROR(VLOOKUP($A131,ITV_CCOMF!$A$8:$AA$149,13,FALSE),0) -> 0 | N131: =+IFERROR(VLOOKUP($A131,ITV_CCOMV!$A$8:$AA$149,13,FALSE),0) -> 0 | O131: =+IFERROR(VLOOKUP($A131,ITV_CCOMV!$A$8:$AA$149,21,FALSE),0) -> 0 | S131: =+IFERROR(VLOOKUP($A131,ITV_CSERAP!$A$8:$AA$149,13,FALSE),0) -> 0 | T131: =+IFERROR(VLOOKUP($A131,ITV_CSERAP!$A$8:$AA$149,21,FALSE),0) -> 0 | Y131: =+IFERROR(VLOOKUP($A131,ITV_CX!$A$8:$AA$149,13,FALSE),0) -> 0 | AC131: =+IFERROR(VLOOKUP($A131,ITV_CENEGEN!$A$9:$Z$150,13,FALSE),0) -> 0 | AD131: =+IFERROR(VLOOKUP($A131,ITV_CENEGEN!$A$9:$Z$150,21,FALSE),0) -> 0 | AH131: =+IFERROR(VLOOKUP($A131,ITV_CPOTGEN!$A$9:$Z$150,13,FALSE),0) -> 0 | AI131: =+IFERROR(VLOOKUP($A131,ITV_CPOTGEN!$A$9:$Z$150,21,FALSE),0) -> 0 | AM131: =+IFERROR(VLOOKUP($A131,ITV_CCONAP!$A$8:$Z$149,13,FALSE),0) -> 0 | AN131: =+IFERROR(VLOOKUP($A131,ITV_CCONAP!$A$8:$Z$149,21,FALSE),0) -> 0 | AR131: =+IFERROR(VLOOKUP($A131,ITV_CPT!$A$8:$Z$149,13,FALSE),0) -> 0 | AS131: =+IFERROR(VLOOKUP($A131,ITV_CPT!$A$8:$Z$149,21,FALSE),0) -> 0 | AW131: =+IFERROR(VLOOKUP($A131,ITV_CPET!$A$8:$Z$149,13,FALSE),0) -> 0 | AX131: =+IFERROR(VLOOKUP($A131,ITV_CPET!$A$8:$Z$149,21,FALSE),0) -> 0 | BB131: =+IFERROR(VLOOKUP($A131,ITV_CPERDP!$A$8:$Z$149,13,FALSE),0) -> 0 | BC131: =+IFERROR(VLOOKUP($A131,ITV_CPERDP!$A$8:$Z$149,21,FALSE),0) -> 0 | BG131: =+IFERROR(VLOOKUP($A131,ITV_CPERDE!$A$8:$Z$149,13,FALSE),0) -> 0 | BH131: =+IFERROR(VLOOKUP($A131,ITV_CPERDE!$A$8:$Z$149,21,FALSE),0) -> 0
A132: X1D_3 (30,001-50,000) | D132: =+IFERROR(VLOOKUP($A132,ITV_CD!$A$8:$AA$149,13,FALSE),0) -> 0 | E132: =+IFERROR(VLOOKUP($A132,ITV_CD!$A$8:$AA$149,21,FALSE),0) -> 0 | J132: =+IFERROR(VLOOKUP($A132,ITV_CCOMF!$A$8:$AA$149,13,FALSE),0) -> 0 | N132: =+IFERROR(VLOOKUP($A132,ITV_CCOMV!$A$8:$AA$149,13,FALSE),0) -> 0 | O132: =+IFERROR(VLOOKUP($A132,ITV_CCOMV!$A$8:$AA$149,21,FALSE),0) -> 0 | S132: =+IFERROR(VLOOKUP($A132,ITV_CSERAP!$A$8:$AA$149,13,FALSE),0) -> 0 | T132: =+IFERROR(VLOOKUP($A132,ITV_CSERAP!$A$8:$AA$149,21,FALSE),0) -> 0 | Y132: =+IFERROR(VLOOKUP($A132,ITV_CX!$A$8:$AA$149,13,FALSE),0) -> 0 | AC132: =+IFERROR(VLOOKUP($A132,ITV_CENEGEN!$A$9:$Z$150,13,FALSE),0) -> 0 | AD132: =+IFERROR(VLOOKUP($A132,ITV_CENEGEN!$A$9:$Z$150,21,FALSE),0) -> 0 | AH132: =+IFERROR(VLOOKUP($A132,ITV_CPOTGEN!$A$9:$Z$150,13,FALSE),0) -> 0 | AI132: =+IFERROR(VLOOKUP($A132,ITV_CPOTGEN!$A$9:$Z$150,21,FALSE),0) -> 0 | AM132: =+IFERROR(VLOOKUP($A132,ITV_CCONAP!$A$8:$Z$149,13,FALSE),0) -> 0 | AN132: =+IFERROR(VLOOKUP($A132,ITV_CCONAP!$A$8:$Z$149,21,FALSE),0) -> 0 | AR132: =+IFERROR(VLOOKUP($A132,ITV_CPT!$A$8:$Z$149,13,FALSE),0) -> 0 | AS132: =+IFERROR(VLOOKUP($A132,ITV_CPT!$A$8:$Z$149,21,FALSE),0) -> 0 | AW132: =+IFERROR(VLOOKUP($A132,ITV_CPET!$A$8:$Z$149,13,FALSE),0) -> 0 | AX132: =+IFERROR(VLOOKUP($A132,ITV_CPET!$A$8:$Z$149,21,FALSE),0) -> 0 | BB132: =+IFERROR(VLOOKUP($A132,ITV_CPERDP!$A$8:$Z$149,13,FALSE),0) -> 0 | BC132: =+IFERROR(VLOOKUP($A132,ITV_CPERDP!$A$8:$Z$149,21,FALSE),0) -> 0 | BG132: =+IFERROR(VLOOKUP($A132,ITV_CPERDE!$A$8:$Z$149,13,FALSE),0) -> 0 | BH132: =+IFERROR(VLOOKUP($A132,ITV_CPERDE!$A$8:$Z$149,21,FALSE),0) -> 0
A133: X1D_4 (50,001-más) | D133: =+IFERROR(VLOOKUP($A133,ITV_CD!$A$8:$AA$149,13,FALSE),0) -> 0 | E133: =+IFERROR(VLOOKUP($A133,ITV_CD!$A$8:$AA$149,21,FALSE),0) -> 0 | J133: =+IFERROR(VLOOKUP($A133,ITV_CCOMF!$A$8:$AA$149,13,FALSE),0) -> 0 | N133: =+IFERROR(VLOOKUP($A133,ITV_CCOMV!$A$8:$AA$149,13,FALSE),0) -> 0 | O133: =+IFERROR(VLOOKUP($A133,ITV_CCOMV!$A$8:$AA$149,21,FALSE),0) -> 0 | S133: =+IFERROR(VLOOKUP($A133,ITV_CSERAP!$A$8:$AA$149,13,FALSE),0) -> 0 | T133: =+IFERROR(VLOOKUP($A133,ITV_CSERAP!$A$8:$AA$149,21,FALSE),0) -> 0 | Y133: =+IFERROR(VLOOKUP($A133,ITV_CX!$A$8:$AA$149,13,FALSE),0) -> 0 | AC133: =+IFERROR(VLOOKUP($A133,ITV_CENEGEN!$A$9:$Z$150,13,FALSE),0) -> 0 | AD133: =+IFERROR(VLOOKUP($A133,ITV_CENEGEN!$A$9:$Z$150,21,FALSE),0) -> 0 | AH133: =+IFERROR(VLOOKUP($A133,ITV_CPOTGEN!$A$9:$Z$150,13,FALSE),0) -> 0 | AI133: =+IFERROR(VLOOKUP($A133,ITV_CPOTGEN!$A$9:$Z$150,21,FALSE),0) -> 0 | AM133: =+IFERROR(VLOOKUP($A133,ITV_CCONAP!$A$8:$Z$149,13,FALSE),0) -> 0 | AN133: =+IFERROR(VLOOKUP($A133,ITV_CCONAP!$A$8:$Z$149,21,FALSE),0) -> 0 | AR133: =+IFERROR(VLOOKUP($A133,ITV_CPT!$A$8:$Z$149,13,FALSE),0) -> 0 | AS133: =+IFERROR(VLOOKUP($A133,ITV_CPT!$A$8:$Z$149,21,FALSE),0) -> 0 | AW133: =+IFERROR(VLOOKUP($A133,ITV_CPET!$A$8:$Z$149,13,FALSE),0) -> 0 | AX133: =+IFERROR(VLOOKUP($A133,ITV_CPET!$A$8:$Z$149,21,FALSE),0) -> 0 | BB133: =+IFERROR(VLOOKUP($A133,ITV_CPERDP!$A$8:$Z$149,13,FALSE),0) -> 0 | BC133: =+IFERROR(VLOOKUP($A133,ITV_CPERDP!$A$8:$Z$149,21,FALSE),0) -> 0 | BG133: =+IFERROR(VLOOKUP($A133,ITV_CPERDE!$A$8:$Z$149,13,FALSE),0) -> 0 | BH133: =+IFERROR(VLOOKUP($A133,ITV_CPERDE!$A$8:$Z$149,21,FALSE),0) -> 0
A134: X1D_5 (xxx) | D134: =+IFERROR(VLOOKUP($A134,ITV_CD!$A$8:$AA$149,13,FALSE),0) -> 0 | E134: =+IFERROR(VLOOKUP($A134,ITV_CD!$A$8:$AA$149,21,FALSE),0) -> 0 | J134: =+IFERROR(VLOOKUP($A134,ITV_CCOMF!$A$8:$AA$149,13,FALSE),0) -> 0 | N134: =+IFERROR(VLOOKUP($A134,ITV_CCOMV!$A$8:$AA$149,13,FALSE),0) -> 0 | O134: =+IFERROR(VLOOKUP($A134,ITV_CCOMV!$A$8:$AA$149,21,FALSE),0) -> 0 | S134: =+IFERROR(VLOOKUP($A134,ITV_CSERAP!$A$8:$AA$149,13,FALSE),0) -> 0 | T134: =+IFERROR(VLOOKUP($A134,ITV_CSERAP!$A$8:$AA$149,21,FALSE),0) -> 0 | Y134: =+IFERROR(VLOOKUP($A134,ITV_CX!$A$8:$AA$149,13,FALSE),0) -> 0 | AC134: =+IFERROR(VLOOKUP($A134,ITV_CENEGEN!$A$9:$Z$150,13,FALSE),0) -> 0 | AD134: =+IFERROR(VLOOKUP($A134,ITV_CENEGEN!$A$9:$Z$150,21,FALSE),0) -> 0 | AH134: =+IFERROR(VLOOKUP($A134,ITV_CPOTGEN!$A$9:$Z$150,13,FALSE),0) -> 0 | AI134: =+IFERROR(VLOOKUP($A134,ITV_CPOTGEN!$A$9:$Z$150,21,FALSE),0) -> 0 | AM134: =+IFERROR(VLOOKUP($A134,ITV_CCONAP!$A$8:$Z$149,13,FALSE),0) -> 0 | AN134: =+IFERROR(VLOOKUP($A134,ITV_CCONAP!$A$8:$Z$149,21,FALSE),0) -> 0 | AR134: =+IFERROR(VLOOKUP($A134,ITV_CPT!$A$8:$Z$149,13,FALSE),0) -> 0 | AS134: =+IFERROR(VLOOKUP($A134,ITV_CPT!$A$8:$Z$149,21,FALSE),0) -> 0 | AW134: =+IFERROR(VLOOKUP($A134,ITV_CPET!$A$8:$Z$149,13,FALSE),0) -> 0 | AX134: =+IFERROR(VLOOKUP($A134,ITV_CPET!$A$8:$Z$149,21,FALSE),0) -> 0 | BB134: =+IFERROR(VLOOKUP($A134,ITV_CPERDP!$A$8:$Z$149,13,FALSE),0) -> 0 | BC134: =+IFERROR(VLOOKUP($A134,ITV_CPERDP!$A$8:$Z$149,21,FALSE),0) -> 0 | BG134: =+IFERROR(VLOOKUP($A134,ITV_CPERDE!$A$8:$Z$149,13,FALSE),0) -> 0 | BH134: =+IFERROR(VLOOKUP($A134,ITV_CPERDE!$A$8:$Z$149,21,FALSE),0) -> 0
A135: X2H | D135: =+IFERROR(VLOOKUP($A135,ITV_CD!$A$8:$AA$149,13,FALSE),0) -> 0 | E135: =+IFERROR(VLOOKUP($A135,ITV_CD!$A$8:$AA$149,21,FALSE),0) -> 0 | J135: =+IFERROR(VLOOKUP($A135,ITV_CCOMF!$A$8:$AA$149,13,FALSE),0) -> 0 | N135: =+IFERROR(VLOOKUP($A135,ITV_CCOMV!$A$8:$AA$149,13,FALSE),0) -> 0 | O135: =+IFERROR(VLOOKUP($A135,ITV_CCOMV!$A$8:$AA$149,21,FALSE),0) -> 0 | S135: =+IFERROR(VLOOKUP($A135,ITV_CSERAP!$A$8:$AA$149,13,FALSE),0) -> 0 | T135: =+IFERROR(VLOOKUP($A135,ITV_CSERAP!$A$8:$AA$149,21,FALSE),0) -> 0 | Y135: =+IFERROR(VLOOKUP($A135,ITV_CX!$A$8:$AA$149,13,FALSE),0) -> 0 | AC135: =+IFERROR(VLOOKUP($A135,ITV_CENEGEN!$A$9:$Z$150,13,FALSE),0) -> 0 | AD135: =+IFERROR(VLOOKUP($A135,ITV_CENEGEN!$A$9:$Z$150,21,FALSE),0) -> 0 | AH135: =+IFERROR(VLOOKUP($A135,ITV_CPOTGEN!$A$9:$Z$150,13,FALSE),0) -> 0 | AI135: =+IFERROR(VLOOKUP($A135,ITV_CPOTGEN!$A$9:$Z$150,21,FALSE),0) -> 0 | AM135: =+IFERROR(VLOOKUP($A135,ITV_CCONAP!$A$8:$Z$149,13,FALSE),0) -> 0 | AN135: =+IFERROR(VLOOKUP($A135,ITV_CCONAP!$A$8:$Z$149,21,FALSE),0) -> 0 | AR135: =+IFERROR(VLOOKUP($A135,ITV_CPT!$A$8:$Z$149,13,FALSE),0) -> 0 | AS135: =+IFERROR(VLOOKUP($A135,ITV_CPT!$A$8:$Z$149,21,FALSE),0) -> 0 | AW135: =+IFERROR(VLOOKUP($A135,ITV_CPET!$A$8:$Z$149,13,FALSE),0) -> 0 | AX135: =+IFERROR(VLOOKUP($A135,ITV_CPET!$A$8:$Z$149,21,FALSE),0) -> 0 | BB135: =+IFERROR(VLOOKUP($A135,ITV_CPERDP!$A$8:$Z$149,13,FALSE),0) -> 0 | BC135: =+IFERROR(VLOOKUP($A135,ITV_CPERDP!$A$8:$Z$149,21,FALSE),0) -> 0 | BG135: =+IFERROR(VLOOKUP($A135,ITV_CPERDE!$A$8:$Z$149,13,FALSE),0) -> 0 | BH135: =+IFERROR(VLOOKUP($A135,ITV_CPERDE!$A$8:$Z$149,21,FALSE),0) -> 0
A136: X2H Punta | D136: =+IFERROR(VLOOKUP($A136,ITV_CD!$A$8:$AA$149,13,FALSE),0) -> 0 | E136: =+IFERROR(VLOOKUP($A136,ITV_CD!$A$8:$AA$149,21,FALSE),0) -> 0 | J136: =+IFERROR(VLOOKUP($A136,ITV_CCOMF!$A$8:$AA$149,13,FALSE),0) -> 0 | N136: =+IFERROR(VLOOKUP($A136,ITV_CCOMV!$A$8:$AA$149,13,FALSE),0) -> 0 | O136: =+IFERROR(VLOOKUP($A136,ITV_CCOMV!$A$8:$AA$149,21,FALSE),0) -> 0 | S136: =+IFERROR(VLOOKUP($A136,ITV_CSERAP!$A$8:$AA$149,13,FALSE),0) -> 0 | T136: =+IFERROR(VLOOKUP($A136,ITV_CSERAP!$A$8:$AA$149,21,FALSE),0) -> 0 | Y136: =+IFERROR(VLOOKUP($A136,ITV_CX!$A$8:$AA$149,13,FALSE),0) -> 0 | AC136: =+IFERROR(VLOOKUP($A136,ITV_CENEGEN!$A$9:$Z$150,13,FALSE),0) -> 0 | AD136: =+IFERROR(VLOOKUP($A136,ITV_CENEGEN!$A$9:$Z$150,21,FALSE),0) -> 0 | AH136: =+IFERROR(VLOOKUP($A136,ITV_CPOTGEN!$A$9:$Z$150,13,FALSE),0) -> 0 | AI136: =+IFERROR(VLOOKUP($A136,ITV_CPOTGEN!$A$9:$Z$150,21,FALSE),0) -> 0 | AM136: =+IFERROR(VLOOKUP($A136,ITV_CCONAP!$A$8:$Z$149,13,FALSE),0) -> 0 | AN136: =+IFERROR(VLOOKUP($A136,ITV_CCONAP!$A$8:$Z$149,21,FALSE),0) -> 0 | AR136: =+IFERROR(VLOOKUP($A136,ITV_CPT!$A$8:$Z$149,13,FALSE),0) -> 0 | AS136: =+IFERROR(VLOOKUP($A136,ITV_CPT!$A$8:$Z$149,21,FALSE),0) -> 0 | AW136: =+IFERROR(VLOOKUP($A136,ITV_CPET!$A$8:$Z$149,13,FALSE),0) -> 0 | AX136: =+IFERROR(VLOOKUP($A136,ITV_CPET!$A$8:$Z$149,21,FALSE),0) -> 0 | BB136: =+IFERROR(VLOOKUP($A136,ITV_CPERDP!$A$8:$Z$149,13,FALSE),0) -> 0 | BC136: =+IFERROR(VLOOKUP($A136,ITV_CPERDP!$A$8:$Z$149,21,FALSE),0) -> 0 | BG136: =+IFERROR(VLOOKUP($A136,ITV_CPERDE!$A$8:$Z$149,13,FALSE),0) -> 0 | BH136: =+IFERROR(VLOOKUP($A136,ITV_CPERDE!$A$8:$Z$149,21,FALSE),0) -> 0
A137: X2H Fuera de Punta | D137: =+IFERROR(VLOOKUP($A137,ITV_CD!$A$8:$AA$149,13,FALSE),0) -> 0 | E137: =+IFERROR(VLOOKUP($A137,ITV_CD!$A$8:$AA$149,21,FALSE),0) -> 0 | J137: =+IFERROR(VLOOKUP($A137,ITV_CCOMF!$A$8:$AA$149,13,FALSE),0) -> 0 | N137: =+IFERROR(VLOOKUP($A137,ITV_CCOMV!$A$8:$AA$149,13,FALSE),0) -> 0 | O137: =+IFERROR(VLOOKUP($A137,ITV_CCOMV!$A$8:$AA$149,21,FALSE),0) -> 0 | S137: =+IFERROR(VLOOKUP($A137,ITV_CSERAP!$A$8:$AA$149,13,FALSE),0) -> 0 | T137: =+IFERROR(VLOOKUP($A137,ITV_CSERAP!$A$8:$AA$149,21,FALSE),0) -> 0 | Y137: =+IFERROR(VLOOKUP($A137,ITV_CX!$A$8:$AA$149,13,FALSE),0) -> 0 | AC137: =+IFERROR(VLOOKUP($A137,ITV_CENEGEN!$A$9:$Z$150,13,FALSE),0) -> 0 | AD137: =+IFERROR(VLOOKUP($A137,ITV_CENEGEN!$A$9:$Z$150,21,FALSE),0) -> 0 | AH137: =+IFERROR(VLOOKUP($A137,ITV_CPOTGEN!$A$9:$Z$150,13,FALSE),0) -> 0 | AI137: =+IFERROR(VLOOKUP($A137,ITV_CPOTGEN!$A$9:$Z$150,21,FALSE),0) -> 0 | AM137: =+IFERROR(VLOOKUP($A137,ITV_CCONAP!$A$8:$Z$149,13,FALSE),0) -> 0 | AN137: =+IFERROR(VLOOKUP($A137,ITV_CCONAP!$A$8:$Z$149,21,FALSE),0) -> 0 | AR137: =+IFERROR(VLOOKUP($A137,ITV_CPT!$A$8:$Z$149,13,FALSE),0) -> 0 | AS137: =+IFERROR(VLOOKUP($A137,ITV_CPT!$A$8:$Z$149,21,FALSE),0) -> 0 | AW137: =+IFERROR(VLOOKUP($A137,ITV_CPET!$A$8:$Z$149,13,FALSE),0) -> 0 | AX137: =+IFERROR(VLOOKUP($A137,ITV_CPET!$A$8:$Z$149,21,FALSE),0) -> 0 | BB137: =+IFERROR(VLOOKUP($A137,ITV_CPERDP!$A$8:$Z$149,13,FALSE),0) -> 0 | BC137: =+IFERROR(VLOOKUP($A137,ITV_CPERDP!$A$8:$Z$149,21,FALSE),0) -> 0 | BG137: =+IFERROR(VLOOKUP($A137,ITV_CPERDE!$A$8:$Z$149,13,FALSE),0) -> 0 | BH137: =+IFERROR(VLOOKUP($A137,ITV_CPERDE!$A$8:$Z$149,21,FALSE),0) -> 0
A138: X2D | D138: =+IFERROR(VLOOKUP($A138,ITV_CD!$A$8:$AA$149,13,FALSE),0) -> 0 | E138: =+IFERROR(VLOOKUP($A138,ITV_CD!$A$8:$AA$149,21,FALSE),0) -> 0 | J138: =+IFERROR(VLOOKUP($A138,ITV_CCOMF!$A$8:$AA$149,13,FALSE),0) -> 0 | N138: =+IFERROR(VLOOKUP($A138,ITV_CCOMV!$A$8:$AA$149,13,FALSE),0) -> 0 | O138: =+IFERROR(VLOOKUP($A138,ITV_CCOMV!$A$8:$AA$149,21,FALSE),0) -> 0 | S138: =+IFERROR(VLOOKUP($A138,ITV_CSERAP!$A$8:$AA$149,13,FALSE),0) -> 0 | T138: =+IFERROR(VLOOKUP($A138,ITV_CSERAP!$A$8:$AA$149,21,FALSE),0) -> 0 | Y138: =+IFERROR(VLOOKUP($A138,ITV_CX!$A$8:$AA$149,13,FALSE),0) -> 0 | AC138: =+IFERROR(VLOOKUP($A138,ITV_CENEGEN!$A$9:$Z$150,13,FALSE),0) -> 0 | AD138: =+IFERROR(VLOOKUP($A138,ITV_CENEGEN!$A$9:$Z$150,21,FALSE),0) -> 0 | AH138: =+IFERROR(VLOOKUP($A138,ITV_CPOTGEN!$A$9:$Z$150,13,FALSE),0) -> 0 | AI138: =+IFERROR(VLOOKUP($A138,ITV_CPOTGEN!$A$9:$Z$150,21,FALSE),0) -> 0 | AM138: =+IFERROR(VLOOKUP($A138,ITV_CCONAP!$A$8:$Z$149,13,FALSE),0) -> 0 | AN138: =+IFERROR(VLOOKUP($A138,ITV_CCONAP!$A$8:$Z$149,21,FALSE),0) -> 0 | AR138: =+IFERROR(VLOOKUP($A138,ITV_CPT!$A$8:$Z$149,13,FALSE),0) -> 0 | AS138: =+IFERROR(VLOOKUP($A138,ITV_CPT!$A$8:$Z$149,21,FALSE),0) -> 0 | AW138: =+IFERROR(VLOOKUP($A138,ITV_CPET!$A$8:$Z$149,13,FALSE),0) -> 0 | AX138: =+IFERROR(VLOOKUP($A138,ITV_CPET!$A$8:$Z$149,21,FALSE),0) -> 0 | BB138: =+IFERROR(VLOOKUP($A138,ITV_CPERDP!$A$8:$Z$149,13,FALSE),0) -> 0 | BC138: =+IFERROR(VLOOKUP($A138,ITV_CPERDP!$A$8:$Z$149,21,FALSE),0) -> 0 | BG138: =+IFERROR(VLOOKUP($A138,ITV_CPERDE!$A$8:$Z$149,13,FALSE),0) -> 0 | BH138: =+IFERROR(VLOOKUP($A138,ITV_CPERDE!$A$8:$Z$149,21,FALSE),0) -> 0
A139: X2D_1 (0 - 10000) | D139: =+IFERROR(VLOOKUP($A139,ITV_CD!$A$8:$AA$149,13,FALSE),0) -> 0 | E139: =+IFERROR(VLOOKUP($A139,ITV_CD!$A$8:$AA$149,21,FALSE),0) -> 0 | J139: =+IFERROR(VLOOKUP($A139,ITV_CCOMF!$A$8:$AA$149,13,FALSE),0) -> 0 | N139: =+IFERROR(VLOOKUP($A139,ITV_CCOMV!$A$8:$AA$149,13,FALSE),0) -> 0 | O139: =+IFERROR(VLOOKUP($A139,ITV_CCOMV!$A$8:$AA$149,21,FALSE),0) -> 0 | S139: =+IFERROR(VLOOKUP($A139,ITV_CSERAP!$A$8:$AA$149,13,FALSE),0) -> 0 | T139: =+IFERROR(VLOOKUP($A139,ITV_CSERAP!$A$8:$AA$149,21,FALSE),0) -> 0 | Y139: =+IFERROR(VLOOKUP($A139,ITV_CX!$A$8:$AA$149,13,FALSE),0) -> 0 | AC139: =+IFERROR(VLOOKUP($A139,ITV_CENEGEN!$A$9:$Z$150,13,FALSE),0) -> 0 | AD139: =+IFERROR(VLOOKUP($A139,ITV_CENEGEN!$A$9:$Z$150,21,FALSE),0) -> 0 | AH139: =+IFERROR(VLOOKUP($A139,ITV_CPOTGEN!$A$9:$Z$150,13,FALSE),0) -> 0 | AI139: =+IFERROR(VLOOKUP($A139,ITV_CPOTGEN!$A$9:$Z$150,21,FALSE),0) -> 0 | AM139: =+IFERROR(VLOOKUP($A139,ITV_CCONAP!$A$8:$Z$149,13,FALSE),0) -> 0 | AN139: =+IFERROR(VLOOKUP($A139,ITV_CCONAP!$A$8:$Z$149,21,FALSE),0) -> 0 | AR139: =+IFERROR(VLOOKUP($A139,ITV_CPT!$A$8:$Z$149,13,FALSE),0) -> 0 | AS139: =+IFERROR(VLOOKUP($A139,ITV_CPT!$A$8:$Z$149,21,FALSE),0) -> 0 | AW139: =+IFERROR(VLOOKUP($A139,ITV_CPET!$A$8:$Z$149,13,FALSE),0) -> 0 | AX139: =+IFERROR(VLOOKUP($A139,ITV_CPET!$A$8:$Z$149,21,FALSE),0) -> 0 | BB139: =+IFERROR(VLOOKUP($A139,ITV_CPERDP!$A$8:$Z$149,13,FALSE),0) -> 0 | BC139: =+IFERROR(VLOOKUP($A139,ITV_CPERDP!$A$8:$Z$149,21,FALSE),0) -> 0 | BG139: =+IFERROR(VLOOKUP($A139,ITV_CPERDE!$A$8:$Z$149,13,FALSE),0) -> 0 | BH139: =+IFERROR(VLOOKUP($A139,ITV_CPERDE!$A$8:$Z$149,21,FALSE),0) -> 0
A140: X2D_2 (10,001-30,000) | D140: =+IFERROR(VLOOKUP($A140,ITV_CD!$A$8:$AA$149,13,FALSE),0) -> 0 | E140: =+IFERROR(VLOOKUP($A140,ITV_CD!$A$8:$AA$149,21,FALSE),0) -> 0 | J140: =+IFERROR(VLOOKUP($A140,ITV_CCOMF!$A$8:$AA$149,13,FALSE),0) -> 0 | N140: =+IFERROR(VLOOKUP($A140,ITV_CCOMV!$A$8:$AA$149,13,FALSE),0) -> 0 | O140: =+IFERROR(VLOOKUP($A140,ITV_CCOMV!$A$8:$AA$149,21,FALSE),0) -> 0 | S140: =+IFERROR(VLOOKUP($A140,ITV_CSERAP!$A$8:$AA$149,13,FALSE),0) -> 0 | T140: =+IFERROR(VLOOKUP($A140,ITV_CSERAP!$A$8:$AA$149,21,FALSE),0) -> 0 | Y140: =+IFERROR(VLOOKUP($A140,ITV_CX!$A$8:$AA$149,13,FALSE),0) -> 0 | AC140: =+IFERROR(VLOOKUP($A140,ITV_CENEGEN!$A$9:$Z$150,13,FALSE),0) -> 0 | AD140: =+IFERROR(VLOOKUP($A140,ITV_CENEGEN!$A$9:$Z$150,21,FALSE),0) -> 0 | AH140: =+IFERROR(VLOOKUP($A140,ITV_CPOTGEN!$A$9:$Z$150,13,FALSE),0) -> 0 | AI140: =+IFERROR(VLOOKUP($A140,ITV_CPOTGEN!$A$9:$Z$150,21,FALSE),0) -> 0 | AM140: =+IFERROR(VLOOKUP($A140,ITV_CCONAP!$A$8:$Z$149,13,FALSE),0) -> 0 | AN140: =+IFERROR(VLOOKUP($A140,ITV_CCONAP!$A$8:$Z$149,21,FALSE),0) -> 0 | AR140: =+IFERROR(VLOOKUP($A140,ITV_CPT!$A$8:$Z$149,13,FALSE),0) -> 0 | AS140: =+IFERROR(VLOOKUP($A140,ITV_CPT!$A$8:$Z$149,21,FALSE),0) -> 0 | AW140: =+IFERROR(VLOOKUP($A140,ITV_CPET!$A$8:$Z$149,13,FALSE),0) -> 0 | AX140: =+IFERROR(VLOOKUP($A140,ITV_CPET!$A$8:$Z$149,21,FALSE),0) -> 0 | BB140: =+IFERROR(VLOOKUP($A140,ITV_CPERDP!$A$8:$Z$149,13,FALSE),0) -> 0 | BC140: =+IFERROR(VLOOKUP($A140,ITV_CPERDP!$A$8:$Z$149,21,FALSE),0) -> 0 | BG140: =+IFERROR(VLOOKUP($A140,ITV_CPERDE!$A$8:$Z$149,13,FALSE),0) -> 0 | BH140: =+IFERROR(VLOOKUP($A140,ITV_CPERDE!$A$8:$Z$149,21,FALSE),0) -> 0
A141: X2D_3 (30,001-50,000) | D141: =+IFERROR(VLOOKUP($A141,ITV_CD!$A$8:$AA$149,13,FALSE),0) -> 0 | E141: =+IFERROR(VLOOKUP($A141,ITV_CD!$A$8:$AA$149,21,FALSE),0) -> 0 | J141: =+IFERROR(VLOOKUP($A141,ITV_CCOMF!$A$8:$AA$149,13,FALSE),0) -> 0 | N141: =+IFERROR(VLOOKUP($A141,ITV_CCOMV!$A$8:$AA$149,13,FALSE),0) -> 0 | O141: =+IFERROR(VLOOKUP($A141,ITV_CCOMV!$A$8:$AA$149,21,FALSE),0) -> 0 | S141: =+IFERROR(VLOOKUP($A141,ITV_CSERAP!$A$8:$AA$149,13,FALSE),0) -> 0 | T141: =+IFERROR(VLOOKUP($A141,ITV_CSERAP!$A$8:$AA$149,21,FALSE),0) -> 0 | Y141: =+IFERROR(VLOOKUP($A141,ITV_CX!$A$8:$AA$149,13,FALSE),0) -> 0 | AC141: =+IFERROR(VLOOKUP($A141,ITV_CENEGEN!$A$9:$Z$150,13,FALSE),0) -> 0 | AD141: =+IFERROR(VLOOKUP($A141,ITV_CENEGEN!$A$9:$Z$150,21,FALSE),0) -> 0 | AH141: =+IFERROR(VLOOKUP($A141,ITV_CPOTGEN!$A$9:$Z$150,13,FALSE),0) -> 0 | AI141: =+IFERROR(VLOOKUP($A141,ITV_CPOTGEN!$A$9:$Z$150,21,FALSE),0) -> 0 | AM141: =+IFERROR(VLOOKUP($A141,ITV_CCONAP!$A$8:$Z$149,13,FALSE),0) -> 0 | AN141: =+IFERROR(VLOOKUP($A141,ITV_CCONAP!$A$8:$Z$149,21,FALSE),0) -> 0 | AR141: =+IFERROR(VLOOKUP($A141,ITV_CPT!$A$8:$Z$149,13,FALSE),0) -> 0 | AS141: =+IFERROR(VLOOKUP($A141,ITV_CPT!$A$8:$Z$149,21,FALSE),0) -> 0 | AW141: =+IFERROR(VLOOKUP($A141,ITV_CPET!$A$8:$Z$149,13,FALSE),0) -> 0 | AX141: =+IFERROR(VLOOKUP($A141,ITV_CPET!$A$8:$Z$149,21,FALSE),0) -> 0 | BB141: =+IFERROR(VLOOKUP($A141,ITV_CPERDP!$A$8:$Z$149,13,FALSE),0) -> 0 | BC141: =+IFERROR(VLOOKUP($A141,ITV_CPERDP!$A$8:$Z$149,21,FALSE),0) -> 0 | BG141: =+IFERROR(VLOOKUP($A141,ITV_CPERDE!$A$8:$Z$149,13,FALSE),0) -> 0 | BH141: =+IFERROR(VLOOKUP($A141,ITV_CPERDE!$A$8:$Z$149,21,FALSE),0) -> 0
A142: X2D_4 (50,001-más) | D142: =+IFERROR(VLOOKUP($A142,ITV_CD!$A$8:$AA$149,13,FALSE),0) -> 0 | E142: =+IFERROR(VLOOKUP($A142,ITV_CD!$A$8:$AA$149,21,FALSE),0) -> 0 | J142: =+IFERROR(VLOOKUP($A142,ITV_CCOMF!$A$8:$AA$149,13,FALSE),0) -> 0 | N142: =+IFERROR(VLOOKUP($A142,ITV_CCOMV!$A$8:$AA$149,13,FALSE),0) -> 0 | O142: =+IFERROR(VLOOKUP($A142,ITV_CCOMV!$A$8:$AA$149,21,FALSE),0) -> 0 | S142: =+IFERROR(VLOOKUP($A142,ITV_CSERAP!$A$8:$AA$149,13,FALSE),0) -> 0 | T142: =+IFERROR(VLOOKUP($A142,ITV_CSERAP!$A$8:$AA$149,21,FALSE),0) -> 0 | Y142: =+IFERROR(VLOOKUP($A142,ITV_CX!$A$8:$AA$149,13,FALSE),0) -> 0 | AC142: =+IFERROR(VLOOKUP($A142,ITV_CENEGEN!$A$9:$Z$150,13,FALSE),0) -> 0 | AD142: =+IFERROR(VLOOKUP($A142,ITV_CENEGEN!$A$9:$Z$150,21,FALSE),0) -> 0 | AH142: =+IFERROR(VLOOKUP($A142,ITV_CPOTGEN!$A$9:$Z$150,13,FALSE),0) -> 0 | AI142: =+IFERROR(VLOOKUP($A142,ITV_CPOTGEN!$A$9:$Z$150,21,FALSE),0) -> 0 | AM142: =+IFERROR(VLOOKUP($A142,ITV_CCONAP!$A$8:$Z$149,13,FALSE),0) -> 0 | AN142: =+IFERROR(VLOOKUP($A142,ITV_CCONAP!$A$8:$Z$149,21,FALSE),0) -> 0 | AR142: =+IFERROR(VLOOKUP($A142,ITV_CPT!$A$8:$Z$149,13,FALSE),0) -> 0 | AS142: =+IFERROR(VLOOKUP($A142,ITV_CPT!$A$8:$Z$149,21,FALSE),0) -> 0 | AW142: =+IFERROR(VLOOKUP($A142,ITV_CPET!$A$8:$Z$149,13,FALSE),0) -> 0 | AX142: =+IFERROR(VLOOKUP($A142,ITV_CPET!$A$8:$Z$149,21,FALSE),0) -> 0 | BB142: =+IFERROR(VLOOKUP($A142,ITV_CPERDP!$A$8:$Z$149,13,FALSE),0) -> 0 | BC142: =+IFERROR(VLOOKUP($A142,ITV_CPERDP!$A$8:$Z$149,21,FALSE),0) -> 0 | BG142: =+IFERROR(VLOOKUP($A142,ITV_CPERDE!$A$8:$Z$149,13,FALSE),0) -> 0 | BH142: =+IFERROR(VLOOKUP($A142,ITV_CPERDE!$A$8:$Z$149,21,FALSE),0) -> 0
A143: X2D_5 (xxx) | D143: =+IFERROR(VLOOKUP($A143,ITV_CD!$A$8:$AA$149,13,FALSE),0) -> 0 | E143: =+IFERROR(VLOOKUP($A143,ITV_CD!$A$8:$AA$149,21,FALSE),0) -> 0 | J143: =+IFERROR(VLOOKUP($A143,ITV_CCOMF!$A$8:$AA$149,13,FALSE),0) -> 0 | N143: =+IFERROR(VLOOKUP($A143,ITV_CCOMV!$A$8:$AA$149,13,FALSE),0) -> 0 | O143: =+IFERROR(VLOOKUP($A143,ITV_CCOMV!$A$8:$AA$149,21,FALSE),0) -> 0 | S143: =+IFERROR(VLOOKUP($A143,ITV_CSERAP!$A$8:$AA$149,13,FALSE),0) -> 0 | T143: =+IFERROR(VLOOKUP($A143,ITV_CSERAP!$A$8:$AA$149,21,FALSE),0) -> 0 | Y143: =+IFERROR(VLOOKUP($A143,ITV_CX!$A$8:$AA$149,13,FALSE),0) -> 0 | AC143: =+IFERROR(VLOOKUP($A143,ITV_CENEGEN!$A$9:$Z$150,13,FALSE),0) -> 0 | AD143: =+IFERROR(VLOOKUP($A143,ITV_CENEGEN!$A$9:$Z$150,21,FALSE),0) -> 0 | AH143: =+IFERROR(VLOOKUP($A143,ITV_CPOTGEN!$A$9:$Z$150,13,FALSE),0) -> 0 | AI143: =+IFERROR(VLOOKUP($A143,ITV_CPOTGEN!$A$9:$Z$150,21,FALSE),0) -> 0 | AM143: =+IFERROR(VLOOKUP($A143,ITV_CCONAP!$A$8:$Z$149,13,FALSE),0) -> 0 | AN143: =+IFERROR(VLOOKUP($A143,ITV_CCONAP!$A$8:$Z$149,21,FALSE),0) -> 0 | AR143: =+IFERROR(VLOOKUP($A143,ITV_CPT!$A$8:$Z$149,13,FALSE),0) -> 0 | AS143: =+IFERROR(VLOOKUP($A143,ITV_CPT!$A$8:$Z$149,21,FALSE),0) -> 0 | AW143: =+IFERROR(VLOOKUP($A143,ITV_CPET!$A$8:$Z$149,13,FALSE),0) -> 0 | AX143: =+IFERROR(VLOOKUP($A143,ITV_CPET!$A$8:$Z$149,21,FALSE),0) -> 0 | BB143: =+IFERROR(VLOOKUP($A143,ITV_CPERDP!$A$8:$Z$149,13,FALSE),0) -> 0 | BC143: =+IFERROR(VLOOKUP($A143,ITV_CPERDP!$A$8:$Z$149,21,FALSE),0) -> 0 | BG143: =+IFERROR(VLOOKUP($A143,ITV_CPERDE!$A$8:$Z$149,13,FALSE),0) -> 0 | BH143: =+IFERROR(VLOOKUP($A143,ITV_CPERDE!$A$8:$Z$149,21,FALSE),0) -> 0
A144: X3D | D144: =+IFERROR(VLOOKUP($A144,ITV_CD!$A$8:$AA$149,13,FALSE),0) -> 0 | E144: =+IFERROR(VLOOKUP($A144,ITV_CD!$A$8:$AA$149,21,FALSE),0) -> 0 | J144: =+IFERROR(VLOOKUP($A144,ITV_CCOMF!$A$8:$AA$149,13,FALSE),0) -> 0 | N144: =+IFERROR(VLOOKUP($A144,ITV_CCOMV!$A$8:$AA$149,13,FALSE),0) -> 0 | O144: =+IFERROR(VLOOKUP($A144,ITV_CCOMV!$A$8:$AA$149,21,FALSE),0) -> 0 | S144: =+IFERROR(VLOOKUP($A144,ITV_CSERAP!$A$8:$AA$149,13,FALSE),0) -> 0 | T144: =+IFERROR(VLOOKUP($A144,ITV_CSERAP!$A$8:$AA$149,21,FALSE),0) -> 0 | Y144: =+IFERROR(VLOOKUP($A144,ITV_CX!$A$8:$AA$149,13,FALSE),0) -> 0 | AC144: =+IFERROR(VLOOKUP($A144,ITV_CENEGEN!$A$9:$Z$150,13,FALSE),0) -> 0 | AD144: =+IFERROR(VLOOKUP($A144,ITV_CENEGEN!$A$9:$Z$150,21,FALSE),0) -> 0 | AH144: =+IFERROR(VLOOKUP($A144,ITV_CPOTGEN!$A$9:$Z$150,13,FALSE),0) -> 0 | AI144: =+IFERROR(VLOOKUP($A144,ITV_CPOTGEN!$A$9:$Z$150,21,FALSE),0) -> 0 | AM144: =+IFERROR(VLOOKUP($A144,ITV_CCONAP!$A$8:$Z$149,13,FALSE),0) -> 0 | AN144: =+IFERROR(VLOOKUP($A144,ITV_CCONAP!$A$8:$Z$149,21,FALSE),0) -> 0 | AR144: =+IFERROR(VLOOKUP($A144,ITV_CPT!$A$8:$Z$149,13,FALSE),0) -> 0 | AS144: =+IFERROR(VLOOKUP($A144,ITV_CPT!$A$8:$Z$149,21,FALSE),0) -> 0 | AW144: =+IFERROR(VLOOKUP($A144,ITV_CPET!$A$8:$Z$149,13,FALSE),0) -> 0 | AX144: =+IFERROR(VLOOKUP($A144,ITV_CPET!$A$8:$Z$149,21,FALSE),0) -> 0 | BB144: =+IFERROR(VLOOKUP($A144,ITV_CPERDP!$A$8:$Z$149,13,FALSE),0) -> 0 | BC144: =+IFERROR(VLOOKUP($A144,ITV_CPERDP!$A$8:$Z$149,21,FALSE),0) -> 0 | BG144: =+IFERROR(VLOOKUP($A144,ITV_CPERDE!$A$8:$Z$149,13,FALSE),0) -> 0 | BH144: =+IFERROR(VLOOKUP($A144,ITV_CPERDE!$A$8:$Z$149,21,FALSE),0) -> 0
A145: X3D_1 (0-10,000) | D145: =+IFERROR(VLOOKUP($A145,ITV_CD!$A$8:$AA$149,13,FALSE),0) -> 0 | E145: =+IFERROR(VLOOKUP($A145,ITV_CD!$A$8:$AA$149,21,FALSE),0) -> 0 | J145: =+IFERROR(VLOOKUP($A145,ITV_CCOMF!$A$8:$AA$149,13,FALSE),0) -> 0 | N145: =+IFERROR(VLOOKUP($A145,ITV_CCOMV!$A$8:$AA$149,13,FALSE),0) -> 0 | O145: =+IFERROR(VLOOKUP($A145,ITV_CCOMV!$A$8:$AA$149,21,FALSE),0) -> 0 | S145: =+IFERROR(VLOOKUP($A145,ITV_CSERAP!$A$8:$AA$149,13,FALSE),0) -> 0 | T145: =+IFERROR(VLOOKUP($A145,ITV_CSERAP!$A$8:$AA$149,21,FALSE),0) -> 0 | Y145: =+IFERROR(VLOOKUP($A145,ITV_CX!$A$8:$AA$149,13,FALSE),0) -> 0 | AC145: =+IFERROR(VLOOKUP($A145,ITV_CENEGEN!$A$9:$Z$150,13,FALSE),0) -> 0 | AD145: =+IFERROR(VLOOKUP($A145,ITV_CENEGEN!$A$9:$Z$150,21,FALSE),0) -> 0 | AH145: =+IFERROR(VLOOKUP($A145,ITV_CPOTGEN!$A$9:$Z$150,13,FALSE),0) -> 0 | AI145: =+IFERROR(VLOOKUP($A145,ITV_CPOTGEN!$A$9:$Z$150,21,FALSE),0) -> 0 | AM145: =+IFERROR(VLOOKUP($A145,ITV_CCONAP!$A$8:$Z$149,13,FALSE),0) -> 0 | AN145: =+IFERROR(VLOOKUP($A145,ITV_CCONAP!$A$8:$Z$149,21,FALSE),0) -> 0 | AR145: =+IFERROR(VLOOKUP($A145,ITV_CPT!$A$8:$Z$149,13,FALSE),0) -> 0 | AS145: =+IFERROR(VLOOKUP($A145,ITV_CPT!$A$8:$Z$149,21,FALSE),0) -> 0 | AW145: =+IFERROR(VLOOKUP($A145,ITV_CPET!$A$8:$Z$149,13,FALSE),0) -> 0 | AX145: =+IFERROR(VLOOKUP($A145,ITV_CPET!$A$8:$Z$149,21,FALSE),0) -> 0 | BB145: =+IFERROR(VLOOKUP($A145,ITV_CPERDP!$A$8:$Z$149,13,FALSE),0) -> 0 | BC145: =+IFERROR(VLOOKUP($A145,ITV_CPERDP!$A$8:$Z$149,21,FALSE),0) -> 0 | BG145: =+IFERROR(VLOOKUP($A145,ITV_CPERDE!$A$8:$Z$149,13,FALSE),0) -> 0 | BH145: =+IFERROR(VLOOKUP($A145,ITV_CPERDE!$A$8:$Z$149,21,FALSE),0) -> 0
A146: X3D_2 (10,001-30,000) | D146: =+IFERROR(VLOOKUP($A146,ITV_CD!$A$8:$AA$149,13,FALSE),0) -> 0 | E146: =+IFERROR(VLOOKUP($A146,ITV_CD!$A$8:$AA$149,21,FALSE),0) -> 0 | J146: =+IFERROR(VLOOKUP($A146,ITV_CCOMF!$A$8:$AA$149,13,FALSE),0) -> 0 | N146: =+IFERROR(VLOOKUP($A146,ITV_CCOMV!$A$8:$AA$149,13,FALSE),0) -> 0 | O146: =+IFERROR(VLOOKUP($A146,ITV_CCOMV!$A$8:$AA$149,21,FALSE),0) -> 0 | S146: =+IFERROR(VLOOKUP($A146,ITV_CSERAP!$A$8:$AA$149,13,FALSE),0) -> 0 | T146: =+IFERROR(VLOOKUP($A146,ITV_CSERAP!$A$8:$AA$149,21,FALSE),0) -> 0 | Y146: =+IFERROR(VLOOKUP($A146,ITV_CX!$A$8:$AA$149,13,FALSE),0) -> 0 | AC146: =+IFERROR(VLOOKUP($A146,ITV_CENEGEN!$A$9:$Z$150,13,FALSE),0) -> 0 | AD146: =+IFERROR(VLOOKUP($A146,ITV_CENEGEN!$A$9:$Z$150,21,FALSE),0) -> 0 | AH146: =+IFERROR(VLOOKUP($A146,ITV_CPOTGEN!$A$9:$Z$150,13,FALSE),0) -> 0 | AI146: =+IFERROR(VLOOKUP($A146,ITV_CPOTGEN!$A$9:$Z$150,21,FALSE),0) -> 0 | AM146: =+IFERROR(VLOOKUP($A146,ITV_CCONAP!$A$8:$Z$149,13,FALSE),0) -> 0 | AN146: =+IFERROR(VLOOKUP($A146,ITV_CCONAP!$A$8:$Z$149,21,FALSE),0) -> 0 | AR146: =+IFERROR(VLOOKUP($A146,ITV_CPT!$A$8:$Z$149,13,FALSE),0) -> 0 | AS146: =+IFERROR(VLOOKUP($A146,ITV_CPT!$A$8:$Z$149,21,FALSE),0) -> 0 | AW146: =+IFERROR(VLOOKUP($A146,ITV_CPET!$A$8:$Z$149,13,FALSE),0) -> 0 | AX146: =+IFERROR(VLOOKUP($A146,ITV_CPET!$A$8:$Z$149,21,FALSE),0) -> 0 | BB146: =+IFERROR(VLOOKUP($A146,ITV_CPERDP!$A$8:$Z$149,13,FALSE),0) -> 0 | BC146: =+IFERROR(VLOOKUP($A146,ITV_CPERDP!$A$8:$Z$149,21,FALSE),0) -> 0 | BG146: =+IFERROR(VLOOKUP($A146,ITV_CPERDE!$A$8:$Z$149,13,FALSE),0) -> 0 | BH146: =+IFERROR(VLOOKUP($A146,ITV_CPERDE!$A$8:$Z$149,21,FALSE),0) -> 0
A147: X3D_3 (30,001-50,000) | D147: =+IFERROR(VLOOKUP($A147,ITV_CD!$A$8:$AA$149,13,FALSE),0) -> 0 | E147: =+IFERROR(VLOOKUP($A147,ITV_CD!$A$8:$AA$149,21,FALSE),0) -> 0 | J147: =+IFERROR(VLOOKUP($A147,ITV_CCOMF!$A$8:$AA$149,13,FALSE),0) -> 0 | N147: =+IFERROR(VLOOKUP($A147,ITV_CCOMV!$A$8:$AA$149,13,FALSE),0) -> 0 | O147: =+IFERROR(VLOOKUP($A147,ITV_CCOMV!$A$8:$AA$149,21,FALSE),0) -> 0 | S147: =+IFERROR(VLOOKUP($A147,ITV_CSERAP!$A$8:$AA$149,13,FALSE),0) -> 0 | T147: =+IFERROR(VLOOKUP($A147,ITV_CSERAP!$A$8:$AA$149,21,FALSE),0) -> 0 | Y147: =+IFERROR(VLOOKUP($A147,ITV_CX!$A$8:$AA$149,13,FALSE),0) -> 0 | AC147: =+IFERROR(VLOOKUP($A147,ITV_CENEGEN!$A$9:$Z$150,13,FALSE),0) -> 0 | AD147: =+IFERROR(VLOOKUP($A147,ITV_CENEGEN!$A$9:$Z$150,21,FALSE),0) -> 0 | AH147: =+IFERROR(VLOOKUP($A147,ITV_CPOTGEN!$A$9:$Z$150,13,FALSE),0) -> 0 | AI147: =+IFERROR(VLOOKUP($A147,ITV_CPOTGEN!$A$9:$Z$150,21,FALSE),0) -> 0 | AM147: =+IFERROR(VLOOKUP($A147,ITV_CCONAP!$A$8:$Z$149,13,FALSE),0) -> 0 | AN147: =+IFERROR(VLOOKUP($A147,ITV_CCONAP!$A$8:$Z$149,21,FALSE),0) -> 0 | AR147: =+IFERROR(VLOOKUP($A147,ITV_CPT!$A$8:$Z$149,13,FALSE),0) -> 0 | AS147: =+IFERROR(VLOOKUP($A147,ITV_CPT!$A$8:$Z$149,21,FALSE),0) -> 0 | AW147: =+IFERROR(VLOOKUP($A147,ITV_CPET!$A$8:$Z$149,13,FALSE),0) -> 0 | AX147: =+IFERROR(VLOOKUP($A147,ITV_CPET!$A$8:$Z$149,21,FALSE),0) -> 0 | BB147: =+IFERROR(VLOOKUP($A147,ITV_CPERDP!$A$8:$Z$149,13,FALSE),0) -> 0 | BC147: =+IFERROR(VLOOKUP($A147,ITV_CPERDP!$A$8:$Z$149,21,FALSE),0) -> 0 | BG147: =+IFERROR(VLOOKUP($A147,ITV_CPERDE!$A$8:$Z$149,13,FALSE),0) -> 0 | BH147: =+IFERROR(VLOOKUP($A147,ITV_CPERDE!$A$8:$Z$149,21,FALSE),0) -> 0
A148: X3D_4 (50,001-más) | D148: =+IFERROR(VLOOKUP($A148,ITV_CD!$A$8:$AA$149,13,FALSE),0) -> 0 | E148: =+IFERROR(VLOOKUP($A148,ITV_CD!$A$8:$AA$149,21,FALSE),0) -> 0 | J148: =+IFERROR(VLOOKUP($A148,ITV_CCOMF!$A$8:$AA$149,13,FALSE),0) -> 0 | N148: =+IFERROR(VLOOKUP($A148,ITV_CCOMV!$A$8:$AA$149,13,FALSE),0) -> 0 | O148: =+IFERROR(VLOOKUP($A148,ITV_CCOMV!$A$8:$AA$149,21,FALSE),0) -> 0 | S148: =+IFERROR(VLOOKUP($A148,ITV_CSERAP!$A$8:$AA$149,13,FALSE),0) -> 0 | T148: =+IFERROR(VLOOKUP($A148,ITV_CSERAP!$A$8:$AA$149,21,FALSE),0) -> 0 | Y148: =+IFERROR(VLOOKUP($A148,ITV_CX!$A$8:$AA$149,13,FALSE),0) -> 0 | AC148: =+IFERROR(VLOOKUP($A148,ITV_CENEGEN!$A$9:$Z$150,13,FALSE),0) -> 0 | AD148: =+IFERROR(VLOOKUP($A148,ITV_CENEGEN!$A$9:$Z$150,21,FALSE),0) -> 0 | AH148: =+IFERROR(VLOOKUP($A148,ITV_CPOTGEN!$A$9:$Z$150,13,FALSE),0) -> 0 | AI148: =+IFERROR(VLOOKUP($A148,ITV_CPOTGEN!$A$9:$Z$150,21,FALSE),0) -> 0 | AM148: =+IFERROR(VLOOKUP($A148,ITV_CCONAP!$A$8:$Z$149,13,FALSE),0) -> 0 | AN148: =+IFERROR(VLOOKUP($A148,ITV_CCONAP!$A$8:$Z$149,21,FALSE),0) -> 0 | AR148: =+IFERROR(VLOOKUP($A148,ITV_CPT!$A$8:$Z$149,13,FALSE),0) -> 0 | AS148: =+IFERROR(VLOOKUP($A148,ITV_CPT!$A$8:$Z$149,21,FALSE),0) -> 0 | AW148: =+IFERROR(VLOOKUP($A148,ITV_CPET!$A$8:$Z$149,13,FALSE),0) -> 0 | AX148: =+IFERROR(VLOOKUP($A148,ITV_CPET!$A$8:$Z$149,21,FALSE),0) -> 0 | BB148: =+IFERROR(VLOOKUP($A148,ITV_CPERDP!$A$8:$Z$149,13,FALSE),0) -> 0 | BC148: =+IFERROR(VLOOKUP($A148,ITV_CPERDP!$A$8:$Z$149,21,FALSE),0) -> 0 | BG148: =+IFERROR(VLOOKUP($A148,ITV_CPERDE!$A$8:$Z$149,13,FALSE),0) -> 0 | BH148: =+IFERROR(VLOOKUP($A148,ITV_CPERDE!$A$8:$Z$149,21,FALSE),0) -> 0
A149: X3D_5 (xxx) | D149: =+IFERROR(VLOOKUP($A149,ITV_CD!$A$8:$AA$149,13,FALSE),0) -> 0 | E149: =+IFERROR(VLOOKUP($A149,ITV_CD!$A$8:$AA$149,21,FALSE),0) -> 0 | J149: =+IFERROR(VLOOKUP($A149,ITV_CCOMF!$A$8:$AA$149,13,FALSE),0) -> 0 | N149: =+IFERROR(VLOOKUP($A149,ITV_CCOMV!$A$8:$AA$149,13,FALSE),0) -> 0 | O149: =+IFERROR(VLOOKUP($A149,ITV_CCOMV!$A$8:$AA$149,21,FALSE),0) -> 0 | S149: =+IFERROR(VLOOKUP($A149,ITV_CSERAP!$A$8:$AA$149,13,FALSE),0) -> 0 | T149: =+IFERROR(VLOOKUP($A149,ITV_CSERAP!$A$8:$AA$149,21,FALSE),0) -> 0 | Y149: =+IFERROR(VLOOKUP($A149,ITV_CX!$A$8:$AA$149,13,FALSE),0) -> 0 | AC149: =+IFERROR(VLOOKUP($A149,ITV_CENEGEN!$A$9:$Z$150,13,FALSE),0) -> 0 | AD149: =+IFERROR(VLOOKUP($A149,ITV_CENEGEN!$A$9:$Z$150,21,FALSE),0) -> 0 | AH149: =+IFERROR(VLOOKUP($A149,ITV_CPOTGEN!$A$9:$Z$150,13,FALSE),0) -> 0 | AI149: =+IFERROR(VLOOKUP($A149,ITV_CPOTGEN!$A$9:$Z$150,21,FALSE),0) -> 0 | AM149: =+IFERROR(VLOOKUP($A149,ITV_CCONAP!$A$8:$Z$149,13,FALSE),0) -> 0 | AN149: =+IFERROR(VLOOKUP($A149,ITV_CCONAP!$A$8:$Z$149,21,FALSE),0) -> 0 | AR149: =+IFERROR(VLOOKUP($A149,ITV_CPT!$A$8:$Z$149,13,FALSE),0) -> 0 | AS149: =+IFERROR(VLOOKUP($A149,ITV_CPT!$A$8:$Z$149,21,FALSE),0) -> 0 | AW149: =+IFERROR(VLOOKUP($A149,ITV_CPET!$A$8:$Z$149,13,FALSE),0) -> 0 | AX149: =+IFERROR(VLOOKUP($A149,ITV_CPET!$A$8:$Z$149,21,FALSE),0) -> 0 | BB149: =+IFERROR(VLOOKUP($A149,ITV_CPERDP!$A$8:$Z$149,13,FALSE),0) -> 0 | BC149: =+IFERROR(VLOOKUP($A149,ITV_CPERDP!$A$8:$Z$149,21,FALSE),0) -> 0 | BG149: =+IFERROR(VLOOKUP($A149,ITV_CPERDE!$A$8:$Z$149,13,FALSE),0) -> 0 | BH149: =+IFERROR(VLOOKUP($A149,ITV_CPERDE!$A$8:$Z$149,21,FALSE),0) -> 0

Sheet Límites
A1: Límites de Bloques y Escalones
B4: Límites superiores bloques/escalones (kWh mes) | H4: Límites superiores bloques/escalones (MWh mes)
A5: Límites Consumo por Categorías | B5: 1° | C5: 2° | D5: 3° | E5: 4° | F5: 5° | H5: 1° | I5: 2° | J5: 3° | K5: 4° | L5: 5°
A6: =+DdaAñoBase!A17 -> MTD | B6: 999999 | C6: 999999 | D6: 999999 | E6: 999999 | F6: 999999 | H6: =+B6/1000 -> 999.999 | I6: 999.999 | J6: 999.999 | K6: 999.999 | L6: 999.999
A7: =+DdaAñoBase!A77 -> BTD | B7: 10000 | C7: 30000 | D7: 50000 | E7: 999999 | F7: 999999 | H7: 10 | I7: 30 | J7: 50 | K7: 999.999 | L7: 999.999
A8: =+DdaAñoBase!A133 -> BTS | B8: 300 | C8: 750 | D8: 999999 | E8: 999999 | F8: 999999 | H8: 0.3 | I8: 0.75 | J8: 999.999 | K8: 999.999 | L8: 999.999
A9: =+DdaAñoBase!A206 -> BTS Prepago | B9: 999999 | C9: 999999 | D9: 999999 | E9: 999999 | F9: 999999 | H9: 999.999 | I9: 999.999 | J9: 999.999 | K9: 999.999 | L9: 999.999
A10: =+DdaAñoBase!A193 -> BTSH | B10: 300 | C10: 750 | D10: 999999 | E10: 999999 | F10: 999999 | H10: 0.3 | I10: 0.75 | J10: 999.999 | K10: 999.999 | L10: 999.999
A11: =+DdaAñoBase!A321 -> X3D | B11: 999999 | C11: 999999 | D11: 999999 | E11: 999999 | F11: 999999 | H11: 999.999 | I11: 999.999 | J11: 999.999 | K11: 999.999 | L11: 999.999
A13: Punto de Corte Subcategorías subsidiadas | B13: kWh mes | H13: MWh mes
A14: Jubilados - 2 | B14: 600 | H14: =+B14/1000 -> 0.6
A15: Discapacitados- 2 | B15: 600 | H15: =+B15/1000 -> 0.6
A16: x2 | B16: 600 | H16: =+B16/1000 -> 0.6
A17: Nota: el modelo no permite que el punto de corte de las subcategoría Jubilados2, Discapacitados2 o x2, sea mayor que el primer escalón de MTD, BTD ni XXD
A20: Subsidios | B20: u.m. | C20: Alicuota
A21: Regular | B21: % | C21: 0
A22: Agro | B22: % | C22: 0.05
A23: Jub. 1 | B23: % | C23: 0.25
A24: Jub. 2 | B24: % | C24: 0.25
A25: Político | B25: % | C25: 0.5
A26: x1 | B26: % | C26: 0
A27: x2 | B27: % | C27: 0
A28: Discap. | B28: % | C28: 0.25
A29: Discapacitados 601-más | B29: % | C29: 0.25
A30: Cruz Roja | B30: % | C30: 1
A31: GC | B31: % | C31: 0

Sheet Energía
A1: Energía
F7: =+F10-SUM(ProyDda!B23:B26) -> 0 | G7: =+G10-SUM(ProyDda!C23:C26) -> 0 | H7: =+H10-SUM(ProyDda!D23:D26) -> 0 | I7: =+I10-SUM(ProyDda!E23:E26) -> 0 | J7: =+J10-SUM(ProyDda!F23:F26) -> 0 | K7: =+K10-SUM(ProyDda!G23:G26) -> 0 | Y7: =+Y10+S10+M10-G10 -> 0 | Z7: =+Z10+T10+N10-H10 -> 0 | AA7: =+AA10+U10+O10-I10 -> 0 | AB7: =+AB10+V10+P10-J10 -> 0 | AC7: =+AC10+W10+Q10-K10 -> 0
F8: Energía Proyectada (MWh año) | M8: Consumo 10kWh sin cargo para BTS (MWh/año) | S8: Consumo Propio (excluye 10kWh sin cargo para BTS - MWh/año) | Y8: Energía para Facturación (excluye 10kWh sin cargo y Consumo Propio - MWh/año)
A9: Categorías | F9: =+ProyDda!D35 -> 2025 | G9: =+ProyDda!E35 -> 2026 | H9: =+ProyDda!F35 -> 2026/2027 | I9: =+ProyDda!G35 -> 2027/2028 | J9: =+ProyDda!H35 -> 2028/2029 | K9: =+ProyDda!I35 -> 2029/2030 | M9: =+G9 -> 2026 | N9: =+H9 -> 2026/2027 | O9: =+I9 -> 2027/2028 | P9: =+J9 -> 2028/2029 | Q9: =+K9 -> 2029/2030 | S9: =+M9 -> 2026 | T9: =+N9 -> 2026/2027 | U9: =+O9 -> 2027/2028 | V9: =+P9 -> 2028/2029 | W9: =+Q9 -> 2029/2030 | Y9: =+S9 -> 2026 | Z9: =+T9 -> 2026/2027 | AA9: =+U9 -> 2027/2028 | AB9: =+V9 -> 2028/2029 | AC9: =+W9 -> 2029/2030 | AD9: VP
A10: =+DdaAñoBase!A7 -> TOTAL | F10: =+SUM(F11,F15,F16,F20,F76,F80,F136,F192,F196,F209,F265,F268,F324) -> 4839409.913 | G10: 4859355.874 | H10: 4947066.151 | I10: 5021864.323 | J10: 5100988.229 | K10: 5178982.267 | M10: =+SUM(M11,M15,M16,M20,M76,M80,M136,M192,M196,M209,M265,M268,M324) -> 74704.7794 | N10: =+SUM(N11,N15,N16,N20,N76,N80,N136,N192,N196,N209,N265,N268,N324) -> 75872.40049 | O10: =+SUM(O11,O15,O16,O20,O76,O80,O136,O192,O196,O209,O265,O268,O324) -> 78244.1037 | P10: =+SUM(P11,P15,P16,P20,P76,P80,P136,P192,P196,P209,P265,P268,P324) -> 80689.88006 | Q10: =+SUM(Q11,Q15,Q16,Q20,Q76,Q80,Q136,Q192,Q196,Q209,Q265,Q268,Q324) -> 83212.00198 | S10: =+SUM(S11,S15,S16,S20,S76,S80,S136,S192,S196,S209,S265,S268,S324) -> 4532.847728 | T10: =+SUM(T11,T15,T16,T20,T76,T80,T136,T192,T196,T209,T265,T268,T324) -> 4582.145332 | U10: =+SUM(U11,U15,U16,U20,U76,U80,U136,U192,U196,U209,U265,U268,U324) -> 4584.762683 | V10: =+SUM(V11,V15,V16,V20,V76,V80,V136,V192,V196,V209,V265,V268,V324) -> 4585.922016 | W10: =+SUM(W11,W15,W16,W20,W76,W80,W136,W192,W196,W209,W265,W268,W324) -> 4588.509295 | Y10: =+SUM(Y11,Y15,Y16,Y20,Y76,Y80,Y136,Y192,Y196,Y209,Y265,Y268,Y324) -> 4780118.247 | Z10: =+SUM(Z11,Z15,Z16,Z20,Z76,Z80,Z136,Z192,Z196,Z209,Z265,Z268,Z324) -> 4866611.605 | AA10: =+SUM(AA11,AA15,AA16,AA20,AA76,AA80,AA136,AA192,AA196,AA209,AA265,AA268,AA324) -> 4939035.456 | AB10: =+SUM(AB11,AB15,AB16,AB20,AB76,AB80,AB136,AB192,AB196,AB209,AB265,AB268,AB324) -> 5015712.427 | AC10: =+SUM(AC11,AC15,AC16,AC20,AC76,AC80,AC136,AC192,AC196,AC209,AC265,AC268,AC324) -> 5091181.756 | AD10: =+SUMPRODUCT(Z10:AC10,PremisaCosto!$F$69:$I$69) -> 16332244.19
A11: =+DdaAñoBase!A8 -> ATH | F11: =+(ProyDda!B$23*DdaAñoBase!$F8+ProyDda!B$24*DdaAñoBase!$G8+ProyDda!B$25*DdaAñoBase!$H8+ProyDda!B$26*DdaAñoBase!$I8) -> 1.300005976 | G11: =+(ProyDda!C$23*DdaAñoBase!$F8+ProyDda!C$24*DdaAñoBase!$G8+ProyDda!C$25*DdaAñoBase!$H8+ProyDda!C$26*DdaAñoBase!$I8) -> 1.309020684 | H11: =+(ProyDda!D$23*DdaAñoBase!$F8+ProyDda!D$24*DdaAñoBase!$G8+ProyDda!D$25*DdaAñoBase!$H8+ProyDda!D$26*DdaAñoBase!$I8) -> 1.334716368 | I11: =+(ProyDda!E$23*DdaAñoBase!$F8+ProyDda!E$24*DdaAñoBase!$G8+ProyDda!E$25*DdaAñoBase!$H8+ProyDda!E$26*DdaAñoBase!$I8) -> 1.358525133 | J11: =+(ProyDda!F$23*DdaAñoBase!$F8+ProyDda!F$24*DdaAñoBase!$G8+ProyDda!F$25*DdaAñoBase!$H8+ProyDda!F$26*DdaAñoBase!$I8) -> 1.383406186 | K11: =+(ProyDda!G$23*DdaAñoBase!$F8+ProyDda!G$24*DdaAñoBase!$G8+ProyDda!G$25*DdaAñoBase!$H8+ProyDda!G$26*DdaAñoBase!$I8) -> 1.407173477 | S11: =+DdaAñoBase!$I8*ProyDda!C$26 -> 0 | T11: =+DdaAñoBase!$I8*ProyDda!D$26 -> 0 | U11: =+DdaAñoBase!$I8*ProyDda!E$26 -> 0 | V11: =+DdaAñoBase!$I8*ProyDda!F$26 -> 0 | W11: =+DdaAñoBase!$I8*ProyDda!G$26 -> 0 | Y11: =+G11-M11-S11 -> 1.309020684 | Z11: 1.334716368 | AA11: 1.358525133 | AB11: 1.383406186 | AC11: 1.407173477 | AD11: =+SUMPRODUCT(Z11:AC11,PremisaCosto!$F$69:$I$69) -> 4.49633205
A12: =+DdaAñoBase!A9 -> ATH Punta | F12: =+(ProyDda!B$23*DdaAñoBase!$F9+ProyDda!B$24*DdaAñoBase!$G9+ProyDda!B$25*DdaAñoBase!$H9+ProyDda!B$26*DdaAñoBase!$I9) -> 0.3000013791 | G12: =+(ProyDda!C$23*DdaAñoBase!$F9+ProyDda!C$24*DdaAñoBase!$G9+ProyDda!C$25*DdaAñoBase!$H9+ProyDda!C$26*DdaAñoBase!$I9) -> 0.3020816964 | H12: =+(ProyDda!D$23*DdaAñoBase!$F9+ProyDda!D$24*DdaAñoBase!$G9+ProyDda!D$25*DdaAñoBase!$H9+ProyDda!D$26*DdaAñoBase!$I9) -> 0.3080114696 | I12: =+(ProyDda!E$23*DdaAñoBase!$F9+ProyDda!E$24*DdaAñoBase!$G9+ProyDda!E$25*DdaAñoBase!$H9+ProyDda!E$26*DdaAñoBase!$I9) -> 0.3135057999 | J12: =+(ProyDda!F$23*DdaAñoBase!$F9+ProyDda!F$24*DdaAñoBase!$G9+ProyDda!F$25*DdaAñoBase!$H9+ProyDda!F$26*DdaAñoBase!$I9) -> 0.3192475814 | K12: =+(ProyDda!G$23*DdaAñoBase!$F9+ProyDda!G$24*DdaAñoBase!$G9+ProyDda!G$25*DdaAñoBase!$H9+ProyDda!G$26*DdaAñoBase!$I9) -> 0.3247323407 | S12: =+DdaAñoBase!$I9*ProyDda!C$26 -> 0 | T12: =+DdaAñoBase!$I9*ProyDda!D$26 -> 0 | U12: =+DdaAñoBase!$I9*ProyDda!E$26 -> 0 | V12: =+DdaAñoBase!$I9*ProyDda!F$26 -> 0 | W12: =+DdaAñoBase!$I9*ProyDda!G$26 -> 0 | Y12: 0.3020816964 | Z12: 0.3080114696 | AA12: =+I12-O12-U12 -> 0.3135057999 | AB12: 0.3192475814 | AC12: 0.3247323407 | AD12: =+SUMPRODUCT(Z12:AC12,PremisaCosto!$F$69:$I$69) -> 1.037615089
A13: =+DdaAñoBase!A10 -> ATH Fuera de Punta Medio | F13: =+(ProyDda!B$23*DdaAñoBase!$F10+ProyDda!B$24*DdaAñoBase!$G10+ProyDda!B$25*DdaAñoBase!$H10+ProyDda!B$26*DdaAñoBase!$I10) -> 0.5000022984 | G13: =+(ProyDda!C$23*DdaAñoBase!$F10+ProyDda!C$24*DdaAñoBase!$G10+ProyDda!C$25*DdaAñoBase!$H10+ProyDda!C$26*DdaAñoBase!$I10) -> 0.503469494 | H13: =+(ProyDda!D$23*DdaAñoBase!$F10+ProyDda!D$24*DdaAñoBase!$G10+ProyDda!D$25*DdaAñoBase!$H10+ProyDda!D$26*DdaAñoBase!$I10) -> 0.5133524493 | I13: =+(ProyDda!E$23*DdaAñoBase!$F10+ProyDda!E$24*DdaAñoBase!$G10+ProyDda!E$25*DdaAñoBase!$H10+ProyDda!E$26*DdaAñoBase!$I10) -> 0.5225096665 | J13: =+(ProyDda!F$23*DdaAñoBase!$F10+ProyDda!F$24*DdaAñoBase!$G10+ProyDda!F$25*DdaAñoBase!$H10+ProyDda!F$26*DdaAñoBase!$I10) -> 0.5320793023 | K13: =+(ProyDda!G$23*DdaAñoBase!$F10+ProyDda!G$24*DdaAñoBase!$G10+ProyDda!G$25*DdaAñoBase!$H10+ProyDda!G$26*DdaAñoBase!$I10) -> 0.5412205679 | S13: =+DdaAñoBase!$I10*ProyDda!C$26 -> 0 | T13: =+DdaAñoBase!$I10*ProyDda!D$26 -> 0 | U13: =+DdaAñoBase!$I10*ProyDda!E$26 -> 0 | V13: =+DdaAñoBase!$I10*ProyDda!F$26 -> 0 | W13: =+DdaAñoBase!$I10*ProyDda!G$26 -> 0 | Y13: =+G13-M13-S13 -> 0.503469494 | Z13: =+H13-N13-T13 -> 0.5133524493 | AA13: =+I13-O13-U13 -> 0.5225096665 | AB13: =+J13-P13-V13 -> 0.5320793023 | AC13: =+K13-Q13-W13 -> 0.5412205679 | AD13: =+SUMPRODUCT(Z13:AC13,PremisaCosto!$F$69:$I$69) -> 1.729358481
A14: =+DdaAñoBase!A11 -> ATH Fuera de Punta Bajo | F14: =+(ProyDda!B$23*DdaAñoBase!$F11+ProyDda!B$24*DdaAñoBase!$G11+ProyDda!B$25*DdaAñoBase!$H11+ProyDda!B$26*DdaAñoBase!$I11) -> 0.5000022984 | G14: =+(ProyDda!C$23*DdaAñoBase!$F11+ProyDda!C$24*DdaAñoBase!$G11+ProyDda!C$25*DdaAñoBase!$H11+ProyDda!C$26*DdaAñoBase!$I11) -> 0.503469494 | H14: =+(ProyDda!D$23*DdaAñoBase!$F11+ProyDda!D$24*DdaAñoBase!$G11+ProyDda!D$25*DdaAñoBase!$H11+ProyDda!D$26*DdaAñoBase!$I11) -> 0.5133524493 | I14: =+(ProyDda!E$23*DdaAñoBase!$F11+ProyDda!E$24*DdaAñoBase!$G11+ProyDda!E$25*DdaAñoBase!$H11+ProyDda!E$26*DdaAñoBase!$I11) -> 0.5225096665 | J14: =+(ProyDda!F$23*DdaAñoBase!$F11+ProyDda!F$24*DdaAñoBase!$G11+ProyDda!F$25*DdaAñoBase!$H11+ProyDda!F$26*DdaAñoBase!$I11) -> 0.5320793023 | K14: =+(ProyDda!G$23*DdaAñoBase!$F11+ProyDda!G$24*DdaAñoBase!$G11+ProyDda!G$25*DdaAñoBase!$H11+ProyDda!G$26*DdaAñoBase!$I11) -> 0.5412205679 | S14: =+DdaAñoBase!$I11*ProyDda!C$26 -> 0 | T14: =+DdaAñoBase!$I11*ProyDda!D$26 -> 0 | U14: =+DdaAñoBase!$I11*ProyDda!E$26 -> 0 | V14: =+DdaAñoBase!$I11*ProyDda!F$26 -> 0 | W14: =+DdaAñoBase!$I11*ProyDda!G$26 -> 0 | Y14: 0.503469494 | Z14: 0.5133524493 | AA14: 0.5225096665 | AB14: 0.5320793023 | AC14: 0.5412205679 | AD14: =+SUMPRODUCT(Z14:AC14,PremisaCosto!$F$69:$I$69) -> 1.729358481
A15: =+DdaAñoBase!A12 -> ATD | F15: =+(ProyDda!B$23*DdaAñoBase!$F12+ProyDda!B$24*DdaAñoBase!$G12+ProyDda!B$25*DdaAñoBase!$H12+ProyDda!B$26*DdaAñoBase!$I12) -> 23.00010573 | G15: =+(ProyDda!C$23*DdaAñoBase!$F12+ProyDda!C$24*DdaAñoBase!$G12+ProyDda!C$25*DdaAñoBase!$H12+ProyDda!C$26*DdaAñoBase!$I12) -> 23.15959672 | H15: =+(ProyDda!D$23*DdaAñoBase!$F12+ProyDda!D$24*DdaAñoBase!$G12+ProyDda!D$25*DdaAñoBase!$H12+ProyDda!D$26*DdaAñoBase!$I12) -> 23.61421267 | I15: =+(ProyDda!E$23*DdaAñoBase!$F12+ProyDda!E$24*DdaAñoBase!$G12+ProyDda!E$25*DdaAñoBase!$H12+ProyDda!E$26*DdaAñoBase!$I12) -> 24.03544466 | J15: =+(ProyDda!F$23*DdaAñoBase!$F12+ProyDda!F$24*DdaAñoBase!$G12+ProyDda!F$25*DdaAñoBase!$H12+ProyDda!F$26*DdaAñoBase!$I12) -> 24.47564791 | K15: =+(ProyDda!G$23*DdaAñoBase!$F12+ProyDda!G$24*DdaAñoBase!$G12+ProyDda!G$25*DdaAñoBase!$H12+ProyDda!G$26*DdaAñoBase!$I12) -> 24.89614612 | S15: =+DdaAñoBase!$I12*ProyDda!C$26 -> 0 | T15: =+DdaAñoBase!$I12*ProyDda!D$26 -> 0 | U15: =+DdaAñoBase!$I12*ProyDda!E$26 -> 0 | V15: =+DdaAñoBase!$I12*ProyDda!F$26 -> 0 | W15: =+DdaAñoBase!$I12*ProyDda!G$26 -> 0 | Y15: 23.15959672 | Z15: 23.61421267 | AA15: 24.03544466 | AB15: 24.47564791 | AC15: 24.89614612 | AD15: =+SUMPRODUCT(Z15:AC15,PremisaCosto!$F$69:$I$69) -> 79.55049012
A16: =+DdaAñoBase!A13 -> MTH | F16: =+(ProyDda!B$23*DdaAñoBase!$F13+ProyDda!B$24*DdaAñoBase!$G13+ProyDda!B$25*DdaAñoBase!$H13+ProyDda!B$26*DdaAñoBase!$I13) -> 13235.49184 | G16: =+(ProyDda!C$23*DdaAñoBase!$F13+ProyDda!C$24*DdaAñoBase!$G13+ProyDda!C$25*DdaAñoBase!$H13+ProyDda!C$26*DdaAñoBase!$I13) -> 13327.2715 | H16: =+(ProyDda!D$23*DdaAñoBase!$F13+ProyDda!D$24*DdaAñoBase!$G13+ProyDda!D$25*DdaAñoBase!$H13+ProyDda!D$26*DdaAñoBase!$I13) -> 13588.88184 | I16: =+(ProyDda!E$23*DdaAñoBase!$F13+ProyDda!E$24*DdaAñoBase!$G13+ProyDda!E$25*DdaAñoBase!$H13+ProyDda!E$26*DdaAñoBase!$I13) -> 13831.28128 | J16: =+(ProyDda!F$23*DdaAñoBase!$F13+ProyDda!F$24*DdaAñoBase!$G13+ProyDda!F$25*DdaAñoBase!$H13+ProyDda!F$26*DdaAñoBase!$I13) -> 14084.59779 | K16: =+(ProyDda!G$23*DdaAñoBase!$F13+ProyDda!G$24*DdaAñoBase!$G13+ProyDda!G$25*DdaAñoBase!$H13+ProyDda!G$26*DdaAñoBase!$I13) -> 14326.57496 | S16: =+DdaAñoBase!$I13*ProyDda!C$26 -> 0 | T16: =+DdaAñoBase!$I13*ProyDda!D$26 -> 0 | U16: =+DdaAñoBase!$I13*ProyDda!E$26 -> 0 | V16: =+DdaAñoBase!$I13*ProyDda!F$26 -> 0 | W16: =+DdaAñoBase!$I13*ProyDda!G$26 -> 0 | Y16: 13327.2715 | Z16: 13588.88184 | AA16: 13831.28128 | AB16: 14084.59779 | AC16: 14326.57496 | AD16: =+SUMPRODUCT(Z16:AC16,PremisaCosto!$F$69:$I$69) -> 45777.6097
A17: =+DdaAñoBase!A14 -> MTH Punta | F17: =+(ProyDda!B$23*DdaAñoBase!$F14+ProyDda!B$24*DdaAñoBase!$G14+ProyDda!B$25*DdaAñoBase!$H14+ProyDda!B$26*DdaAñoBase!$I14) -> 3328.929303 | G17: =+(ProyDda!C$23*DdaAñoBase!$F14+ProyDda!C$24*DdaAñoBase!$G14+ProyDda!C$25*DdaAñoBase!$H14+ProyDda!C$26*DdaAñoBase!$I14) -> 3352.013294 | H17: =+(ProyDda!D$23*DdaAñoBase!$F14+ProyDda!D$24*DdaAñoBase!$G14+ProyDda!D$25*DdaAñoBase!$H14+ProyDda!D$26*DdaAñoBase!$I14) -> 3417.812311 | I17: =+(ProyDda!E$23*DdaAñoBase!$F14+ProyDda!E$24*DdaAñoBase!$G14+ProyDda!E$25*DdaAñoBase!$H14+ProyDda!E$26*DdaAñoBase!$I14) -> 3478.779488 | J17: =+(ProyDda!F$23*DdaAñoBase!$F14+ProyDda!F$24*DdaAñoBase!$G14+ProyDda!F$25*DdaAñoBase!$H14+ProyDda!F$26*DdaAñoBase!$I14) -> 3542.492477 | K17: =+(ProyDda!G$23*DdaAñoBase!$F14+ProyDda!G$24*DdaAñoBase!$G14+ProyDda!G$25*DdaAñoBase!$H14+ProyDda!G$26*DdaAñoBase!$I14) -> 3603.353451 | S17: =+DdaAñoBase!$I14*ProyDda!C$26 -> 0 | T17: =+DdaAñoBase!$I14*ProyDda!D$26 -> 0 | U17: =+DdaAñoBase!$I14*ProyDda!E$26 -> 0 | V17: =+DdaAñoBase!$I14*ProyDda!F$26 -> 0 | W17: =+DdaAñoBase!$I14*ProyDda!G$26 -> 0 | Y17: 3352.013294 | Z17: 3417.812311 | AA17: 3478.779488 | AB17: 3542.492477 | AC17: 3603.353451 | AD17: =+SUMPRODUCT(Z17:AC17,PremisaCosto!$F$69:$I$69) -> 11513.77132
A18: =+DdaAñoBase!A15 -> MTH Fuera de Punta Medio | F18: =+(ProyDda!B$23*DdaAñoBase!$F15+ProyDda!B$24*DdaAñoBase!$G15+ProyDda!B$25*DdaAñoBase!$H15+ProyDda!B$26*DdaAñoBase!$I15) -> 3864.080763 | G18: =+(ProyDda!C$23*DdaAñoBase!$F15+ProyDda!C$24*DdaAñoBase!$G15+ProyDda!C$25*DdaAñoBase!$H15+ProyDda!C$26*DdaAñoBase!$I15) -> 3890.875687 | H18: =+(ProyDda!D$23*DdaAñoBase!$F15+ProyDda!D$24*DdaAñoBase!$G15+ProyDda!D$25*DdaAñoBase!$H15+ProyDda!D$26*DdaAñoBase!$I15) -> 3967.25241 | I18: =+(ProyDda!E$23*DdaAñoBase!$F15+ProyDda!E$24*DdaAñoBase!$G15+ProyDda!E$25*DdaAñoBase!$H15+ProyDda!E$26*DdaAñoBase!$I15) -> 4038.020539 | J18: =+(ProyDda!F$23*DdaAñoBase!$F15+ProyDda!F$24*DdaAñoBase!$G15+ProyDda!F$25*DdaAñoBase!$H15+ProyDda!F$26*DdaAñoBase!$I15) -> 4111.975891 | K18: =+(ProyDda!G$23*DdaAñoBase!$F15+ProyDda!G$24*DdaAñoBase!$G15+ProyDda!G$25*DdaAñoBase!$H15+ProyDda!G$26*DdaAñoBase!$I15) -> 4182.620742 | S18: =+DdaAñoBase!$I15*ProyDda!C$26 -> 0 | T18: =+DdaAñoBase!$I15*ProyDda!D$26 -> 0 | U18: =+DdaAñoBase!$I15*ProyDda!E$26 -> 0 | V18: =+DdaAñoBase!$I15*ProyDda!F$26 -> 0 | W18: =+DdaAñoBase!$I15*ProyDda!G$26 -> 0 | Y18: =+G18-M18-S18 -> 3890.875687 | Z18: =+H18-N18-T18 -> 3967.25241 | AA18: =+I18-O18-U18 -> 4038.020539 | AB18: =+J18-P18-V18 -> 4111.975891 | AC18: =+K18-Q18-W18 -> 4182.620742 | AD18: =+SUMPRODUCT(Z18:AC18,PremisaCosto!$F$69:$I$69) -> 13364.70024
A19: =+DdaAñoBase!A16 -> MTH Fuera de Punta Bajo | F19: =+(ProyDda!B$23*DdaAñoBase!$F16+ProyDda!B$24*DdaAñoBase!$G16+ProyDda!B$25*DdaAñoBase!$H16+ProyDda!B$26*DdaAñoBase!$I16) -> 6042.481777 | G19: =+(ProyDda!C$23*DdaAñoBase!$F16+ProyDda!C$24*DdaAñoBase!$G16+ProyDda!C$25*DdaAñoBase!$H16+ProyDda!C$26*DdaAñoBase!$I16) -> 6084.382516 | H19: =+(ProyDda!D$23*DdaAñoBase!$F16+ProyDda!D$24*DdaAñoBase!$G16+ProyDda!D$25*DdaAñoBase!$H16+ProyDda!D$26*DdaAñoBase!$I16) -> 6203.817121 | I19: =+(ProyDda!E$23*DdaAñoBase!$F16+ProyDda!E$24*DdaAñoBase!$G16+ProyDda!E$25*DdaAñoBase!$H16+ProyDda!E$26*DdaAñoBase!$I16) -> 6314.481249 | J19: =+(ProyDda!F$23*DdaAñoBase!$F16+ProyDda!F$24*DdaAñoBase!$G16+ProyDda!F$25*DdaAñoBase!$H16+ProyDda!F$26*DdaAñoBase!$I16) -> 6430.129418 | K19: =+(ProyDda!G$23*DdaAñoBase!$F16+ProyDda!G$24*DdaAñoBase!$G16+ProyDda!G$25*DdaAñoBase!$H16+ProyDda!G$26*DdaAñoBase!$I16) -> 6540.600771 | S19: =+DdaAñoBase!$I16*ProyDda!C$26 -> 0 | T19: =+DdaAñoBase!$I16*ProyDda!D$26 -> 0 | U19: =+DdaAñoBase!$I16*ProyDda!E$26 -> 0 | V19: =+DdaAñoBase!$I16*ProyDda!F$26 -> 0 | W19: =+DdaAñoBase!$I16*ProyDda!G$26 -> 0 | Y19: 6084.382516 | Z19: 6203.817121 | AA19: 6314.481249 | AB19: 6430.129418 | AC19: 6540.600771 | AD19: =+SUMPRODUCT(Z19:AC19,PremisaCosto!$F$69:$I$69) -> 20899.13814
A20: =+DdaAñoBase!A17 -> MTD | F20: =+(ProyDda!B$23*DdaAñoBase!$F17+ProyDda!B$24*DdaAñoBase!$G17+ProyDda!B$25*DdaAñoBase!$H17+ProyDda!B$26*DdaAñoBase!$I17) -> 1005830.254 | G20: =+(ProyDda!C$23*DdaAñoBase!$F17+ProyDda!C$24*DdaAñoBase!$G17+ProyDda!C$25*DdaAñoBase!$H17+ProyDda!C$26*DdaAñoBase!$I17) -> 1012803.315 | H20: =+(ProyDda!D$23*DdaAñoBase!$F17+ProyDda!D$24*DdaAñoBase!$G17+ProyDda!D$25*DdaAñoBase!$H17+ProyDda!D$26*DdaAñoBase!$I17) -> 1032683.463 | I20: =+(ProyDda!E$23*DdaAñoBase!$F17+ProyDda!E$24*DdaAñoBase!$G17+ProyDda!E$25*DdaAñoBase!$H17+ProyDda!E$26*DdaAñoBase!$I17) -> 1051102.863 | J20: =+(ProyDda!F$23*DdaAñoBase!$F17+ProyDda!F$24*DdaAñoBase!$G17+ProyDda!F$25*DdaAñoBase!$H17+ProyDda!F$26*DdaAñoBase!$I17) -> 1070351.967 | K20: =+(ProyDda!G$23*DdaAñoBase!$F17+ProyDda!G$24*DdaAñoBase!$G17+ProyDda!G$25*DdaAñoBase!$H17+ProyDda!G$26*DdaAñoBase!$I17) -> 1088739.755 | S20: =+DdaAñoBase!$I17*ProyDda!C$26 -> 0 | T20: =+DdaAñoBase!$I17*ProyDda!D$26 -> 0 | U20: =+DdaAñoBase!$I17*ProyDda!E$26 -> 0 | V20: =+DdaAñoBase!$I17*ProyDda!F$26 -> 0 | W20: =+DdaAñoBase!$I17*ProyDda!G$26 -> 0 | Y20: 1012803.315 | Z20: 1032683.463 | AA20: 1051102.863 | AB20: 1070351.967 | AC20: 1088739.755 | AD20: =+SUMPRODUCT(Z20:AC20,PremisaCosto!$F$69:$I$69) -> 3478850.123
A21: =+DdaAñoBase!A18 -> MTD_1 (0-10,000) | F21: =+(ProyDda!B$23*DdaAñoBase!$F18+ProyDda!B$24*DdaAñoBase!$G18+ProyDda!B$25*DdaAñoBase!$H18+ProyDda!B$26*DdaAñoBase!$I18) -> 1005830.254 | G21: =+(ProyDda!C$23*DdaAñoBase!$F18+ProyDda!C$24*DdaAñoBase!$G18+ProyDda!C$25*DdaAñoBase!$H18+ProyDda!C$26*DdaAñoBase!$I18) -> 1012803.315 | H21: =+(ProyDda!D$23*DdaAñoBase!$F18+ProyDda!D$24*DdaAñoBase!$G18+ProyDda!D$25*DdaAñoBase!$H18+ProyDda!D$26*DdaAñoBase!$I18) -> 1032683.463 | I21: =+(ProyDda!E$23*DdaAñoBase!$F18+ProyDda!E$24*DdaAñoBase!$G18+ProyDda!E$25*DdaAñoBase!$H18+ProyDda!E$26*DdaAñoBase!$I18) -> 1051102.863 | J21: =+(ProyDda!F$23*DdaAñoBase!$F18+ProyDda!F$24*DdaAñoBase!$G18+ProyDda!F$25*DdaAñoBase!$H18+ProyDda!F$26*DdaAñoBase!$I18) -> 1070351.967 | K21: =+(ProyDda!G$23*DdaAñoBase!$F18+ProyDda!G$24*DdaAñoBase!$G18+ProyDda!G$25*DdaAñoBase!$H18+ProyDda!G$26*DdaAñoBase!$I18) -> 1088739.755 | S21: =+DdaAñoBase!$I18*ProyDda!C$26 -> 0 | T21: =+DdaAñoBase!$I18*ProyDda!D$26 -> 0 | U21: =+DdaAñoBase!$I18*ProyDda!E$26 -> 0 | V21: =+DdaAñoBase!$I18*ProyDda!F$26 -> 0 | W21: =+DdaAñoBase!$I18*ProyDda!G$26 -> 0 | Y21: 1012803.315 | Z21: 1032683.463 | AA21: 1051102.863 | AB21: 1070351.967 | AC21: 1088739.755 | AD21: =+SUMPRODUCT(Z21:AC21,PremisaCosto!$F$69:$I$69) -> 3478850.123
A22: =+DdaAñoBase!A19 -> MTD_1 Regular | F22: =+(ProyDda!B$23*DdaAñoBase!$F19+ProyDda!B$24*DdaAñoBase!$G19+ProyDda!B$25*DdaAñoBase!$H19+ProyDda!B$26*DdaAñoBase!$I19) -> 997473.1335 | G22: =+(ProyDda!C$23*DdaAñoBase!$F19+ProyDda!C$24*DdaAñoBase!$G19+ProyDda!C$25*DdaAñoBase!$H19+ProyDda!C$26*DdaAñoBase!$I19) -> 1004388.612 | H22: =+(ProyDda!D$23*DdaAñoBase!$F19+ProyDda!D$24*DdaAñoBase!$G19+ProyDda!D$25*DdaAñoBase!$H19+ProyDda!D$26*DdaAñoBase!$I19) -> 1024103.768 | I22: =+(ProyDda!E$23*DdaAñoBase!$F19+ProyDda!E$24*DdaAñoBase!$G19+ProyDda!E$25*DdaAñoBase!$H19+ProyDda!E$26*DdaAñoBase!$I19) -> 1042370.482 | J22: =+(ProyDda!F$23*DdaAñoBase!$F19+ProyDda!F$24*DdaAñoBase!$G19+ProyDda!F$25*DdaAñoBase!$H19+ProyDda!F$26*DdaAñoBase!$I19) -> 1061459.993 | K22: =+(ProyDda!G$23*DdaAñoBase!$F19+ProyDda!G$24*DdaAñoBase!$G19+ProyDda!G$25*DdaAñoBase!$H19+ProyDda!G$26*DdaAñoBase!$I19) -> 1079695.259 | S22: =+DdaAñoBase!$I19*ProyDda!C$26 -> 0 | T22: =+DdaAñoBase!$I19*ProyDda!D$26 -> 0 | U22: =+DdaAñoBase!$I19*ProyDda!E$26 -> 0 | V22: =+DdaAñoBase!$I19*ProyDda!F$26 -> 0 | W22: =+DdaAñoBase!$I19*ProyDda!G$26 -> 0 | Y22: 1004388.612 | Z22: 1024103.768 | AA22: 1042370.482 | AB22: 1061459.993 | AC22: 1079695.259 | AD22: =+SUMPRODUCT(Z22:AC22,PremisaCosto!$F$69:$I$69) -> 3449948.764
A23: =+DdaAñoBase!A20 -> MTD_1 Agro | F23: =+(ProyDda!B$23*DdaAñoBase!$F20+ProyDda!B$24*DdaAñoBase!$G20+ProyDda!B$25*DdaAñoBase!$H20+ProyDda!B$26*DdaAñoBase!$I20) -> 8306.281183 | G23: =+(ProyDda!C$23*DdaAñoBase!$F20+ProyDda!C$24*DdaAñoBase!$G20+ProyDda!C$25*DdaAñoBase!$H20+ProyDda!C$26*DdaAñoBase!$I20) -> 8363.879921 | H23: =+(ProyDda!D$23*DdaAñoBase!$F20+ProyDda!D$24*DdaAñoBase!$G20+ProyDda!D$25*DdaAñoBase!$H20+ProyDda!D$26*DdaAñoBase!$I20) -> 8528.060376 | I23: =+(ProyDda!E$23*DdaAñoBase!$F20+ProyDda!E$24*DdaAñoBase!$G20+ProyDda!E$25*DdaAñoBase!$H20+ProyDda!E$26*DdaAñoBase!$I20) -> 8680.18452 | J23: =+(ProyDda!F$23*DdaAñoBase!$F20+ProyDda!F$24*DdaAñoBase!$G20+ProyDda!F$25*DdaAñoBase!$H20+ProyDda!F$26*DdaAñoBase!$I20) -> 8839.159961 | K23: =+(ProyDda!G$23*DdaAñoBase!$F20+ProyDda!G$24*DdaAñoBase!$G20+ProyDda!G$25*DdaAñoBase!$H20+ProyDda!G$26*DdaAñoBase!$I20) -> 8991.019107 | S23: =+DdaAñoBase!$I20*ProyDda!C$26 -> 0 | T23: =+DdaAñoBase!$I20*ProyDda!D$26 -> 0 | U23: =+DdaAñoBase!$I20*ProyDda!E$26 -> 0 | V23: =+DdaAñoBase!$I20*ProyDda!F$26 -> 0 | W23: =+DdaAñoBase!$I20*ProyDda!G$26 -> 0 | Y23: 8363.879921 | Z23: 8528.060376 | AA23: =+I23-O23-U23 -> 8680.18452 | AB23: 8839.159961 | AC23: 8991.019107 | AD23: =+SUMPRODUCT(Z23:AC23,PremisaCosto!$F$69:$I$69) -> 28728.94355
A24: =+DdaAñoBase!A21 -> MTD_1 Jub. 1 | F24: =+(ProyDda!B$23*DdaAñoBase!$F21+ProyDda!B$24*DdaAñoBase!$G21+ProyDda!B$25*DdaAñoBase!$H21+ProyDda!B$26*DdaAñoBase!$I21) -> 50.83926217 | G24: =+(ProyDda!C$23*DdaAñoBase!$F21+ProyDda!C$24*DdaAñoBase!$G21+ProyDda!C$25*DdaAñoBase!$H21+ProyDda!C$26*DdaAñoBase!$I21) -> 50.82345011 | H24: =+(ProyDda!D$23*DdaAñoBase!$F21+ProyDda!D$24*DdaAñoBase!$G21+ProyDda!D$25*DdaAñoBase!$H21+ProyDda!D$26*DdaAñoBase!$I21) -> 51.63381006 | I24: =+(ProyDda!E$23*DdaAñoBase!$F21+ProyDda!E$24*DdaAñoBase!$G21+ProyDda!E$25*DdaAñoBase!$H21+ProyDda!E$26*DdaAñoBase!$I21) -> 52.19639464 | J24: =+(ProyDda!F$23*DdaAñoBase!$F21+ProyDda!F$24*DdaAñoBase!$G21+ProyDda!F$25*DdaAñoBase!$H21+ProyDda!F$26*DdaAñoBase!$I21) -> 52.81415033 | K24: =+(ProyDda!G$23*DdaAñoBase!$F21+ProyDda!G$24*DdaAñoBase!$G21+ProyDda!G$25*DdaAñoBase!$H21+ProyDda!G$26*DdaAñoBase!$I21) -> 53.47685933 | S24: =+DdaAñoBase!$I21*ProyDda!C$26 -> 0 | T24: =+DdaAñoBase!$I21*ProyDda!D$26 -> 0 | U24: =+DdaAñoBase!$I21*ProyDda!E$26 -> 0 | V24: =+DdaAñoBase!$I21*ProyDda!F$26 -> 0 | W24: =+DdaAñoBase!$I21*ProyDda!G$26 -> 0 | Y24: 50.82345011 | Z24: 51.63381006 | AA24: 52.19639464 | AB24: 52.81415033 | AC24: 53.47685933 | AD24: =+SUMPRODUCT(Z24:AC24,PremisaCosto!$F$69:$I$69) -> 172.4155261
A25: =+DdaAñoBase!A22 -> MTD_1 Jub. 2 | F25: =+(ProyDda!B$23*DdaAñoBase!$F22+ProyDda!B$24*DdaAñoBase!$G22+ProyDda!B$25*DdaAñoBase!$H22+ProyDda!B$26*DdaAñoBase!$I22) -> 0 | G25: =+(ProyDda!C$23*DdaAñoBase!$F22+ProyDda!C$24*DdaAñoBase!$G22+ProyDda!C$25*DdaAñoBase!$H22+ProyDda!C$26*DdaAñoBase!$I22) -> 0 | H25: =+(ProyDda!D$23*DdaAñoBase!$F22+ProyDda!D$24*DdaAñoBase!$G22+ProyDda!D$25*DdaAñoBase!$H22+ProyDda!D$26*DdaAñoBase!$I22) -> 0 | I25: =+(ProyDda!E$23*DdaAñoBase!$F22+ProyDda!E$24*DdaAñoBase!$G22+ProyDda!E$25*DdaAñoBase!$H22+ProyDda!E$26*DdaAñoBase!$I22) -> 0 | J25: =+(ProyDda!F$23*DdaAñoBase!$F22+ProyDda!F$24*DdaAñoBase!$G22+ProyDda!F$25*DdaAñoBase!$H22+ProyDda!F$26*DdaAñoBase!$I22) -> 0 | K25: =+(ProyDda!G$23*DdaAñoBase!$F22+ProyDda!G$24*DdaAñoBase!$G22+ProyDda!G$25*DdaAñoBase!$H22+ProyDda!G$26*DdaAñoBase!$I22) -> 0 | S25: =+DdaAñoBase!$I22*ProyDda!C$26 -> 0 | T25: =+DdaAñoBase!$I22*ProyDda!D$26 -> 0 | U25: =+DdaAñoBase!$I22*ProyDda!E$26 -> 0 | V25: =+DdaAñoBase!$I22*ProyDda!F$26 -> 0 | W25: =+DdaAñoBase!$I22*ProyDda!G$26 -> 0 | Y25: 0 | Z25: 0 | AA25: 0 | AB25: 0 | AC25: 0 | AD25: =+SUMPRODUCT(Z25:AC25,PremisaCosto!$F$69:$I$69) -> 0
A26: =+DdaAñoBase!A23 -> MTD_1 Político | F26: =+(ProyDda!B$23*DdaAñoBase!$F23+ProyDda!B$24*DdaAñoBase!$G23+ProyDda!B$25*DdaAñoBase!$H23+ProyDda!B$26*DdaAñoBase!$I23) -> 0 | G26: =+(ProyDda!C$23*DdaAñoBase!$F23+ProyDda!C$24*DdaAñoBase!$G23+ProyDda!C$25*DdaAñoBase!$H23+ProyDda!C$26*DdaAñoBase!$I23) -> 0 | H26: =+(ProyDda!D$23*DdaAñoBase!$F23+ProyDda!D$24*DdaAñoBase!$G23+ProyDda!D$25*DdaAñoBase!$H23+ProyDda!D$26*DdaAñoBase!$I23) -> 0 | I26: =+(ProyDda!E$23*DdaAñoBase!$F23+ProyDda!E$24*DdaAñoBase!$G23+ProyDda!E$25*DdaAñoBase!$H23+ProyDda!E$26*DdaAñoBase!$I23) -> 0 | J26: =+(ProyDda!F$23*DdaAñoBase!$F23+ProyDda!F$24*DdaAñoBase!$G23+ProyDda!F$25*DdaAñoBase!$H23+ProyDda!F$26*DdaAñoBase!$I23) -> 0 | K26: =+(ProyDda!G$23*DdaAñoBase!$F23+ProyDda!G$24*DdaAñoBase!$G23+ProyDda!G$25*DdaAñoBase!$H23+ProyDda!G$26*DdaAñoBase!$I23) -> 0 | S26: =+DdaAñoBase!$I23*ProyDda!C$26 -> 0 | T26: =+DdaAñoBase!$I23*ProyDda!D$26 -> 0 | U26: =+DdaAñoBase!$I23*ProyDda!E$26 -> 0 | V26: =+DdaAñoBase!$I23*ProyDda!F$26 -> 0 | W26: =+DdaAñoBase!$I23*ProyDda!G$26 -> 0 | Y26: 0 | Z26: 0 | AA26: 0 | AB26: 0 | AC26: 0 | AD26: =+SUMPRODUCT(Z26:AC26,PremisaCosto!$F$69:$I$69) -> 0
A27: =+DdaAñoBase!A24 -> MTD_1 x1 | F27: =+(ProyDda!B$23*DdaAñoBase!$F24+ProyDda!B$24*DdaAñoBase!$G24+ProyDda!B$25*DdaAñoBase!$H24+ProyDda!B$26*DdaAñoBase!$I24) -> 0 | G27: =+(ProyDda!C$23*DdaAñoBase!$F24+ProyDda!C$24*DdaAñoBase!$G24+ProyDda!C$25*DdaAñoBase!$H24+ProyDda!C$26*DdaAñoBase!$I24) -> 0 | H27: =+(ProyDda!D$23*DdaAñoBase!$F24+ProyDda!D$24*DdaAñoBase!$G24+ProyDda!D$25*DdaAñoBase!$H24+ProyDda!D$26*DdaAñoBase!$I24) -> 0 | I27: =+(ProyDda!E$23*DdaAñoBase!$F24+ProyDda!E$24*DdaAñoBase!$G24+ProyDda!E$25*DdaAñoBase!$H24+ProyDda!E$26*DdaAñoBase!$I24) -> 0 | J27: =+(ProyDda!F$23*DdaAñoBase!$F24+ProyDda!F$24*DdaAñoBase!$G24+ProyDda!F$25*DdaAñoBase!$H24+ProyDda!F$26*DdaAñoBase!$I24) -> 0 | K27: =+(ProyDda!G$23*DdaAñoBase!$F24+ProyDda!G$24*DdaAñoBase!$G24+ProyDda!G$25*DdaAñoBase!$H24+ProyDda!G$26*DdaAñoBase!$I24) -> 0 | S27: =+DdaAñoBase!$I24*ProyDda!C$26 -> 0 | T27: =+DdaAñoBase!$I24*ProyDda!D$26 -> 0 | U27: =+DdaAñoBase!$I24*ProyDda!E$26 -> 0 | V27: =+DdaAñoBase!$I24*ProyDda!F$26 -> 0 | W27: =+DdaAñoBase!$I24*ProyDda!G$26 -> 0 | Y27: 0 | Z27: 0 | AA27: 0 | AB27: 0 | AC27: 0 | AD27: =+SUMPRODUCT(Z27:AC27,PremisaCosto!$F$69:$I$69) -> 0
A28: =+DdaAñoBase!A25 -> MTD_1 x2 | F28: =+(ProyDda!B$23*DdaAñoBase!$F25+ProyDda!B$24*DdaAñoBase!$G25+ProyDda!B$25*DdaAñoBase!$H25+ProyDda!B$26*DdaAñoBase!$I25) -> 0 | G28: =+(ProyDda!C$23*DdaAñoBase!$F25+ProyDda!C$24*DdaAñoBase!$G25+ProyDda!C$25*DdaAñoBase!$H25+ProyDda!C$26*DdaAñoBase!$I25) -> 0 | H28: =+(ProyDda!D$23*DdaAñoBase!$F25+ProyDda!D$24*DdaAñoBase!$G25+ProyDda!D$25*DdaAñoBase!$H25+ProyDda!D$26*DdaAñoBase!$I25) -> 0 | I28: =+(ProyDda!E$23*DdaAñoBase!$F25+ProyDda!E$24*DdaAñoBase!$G25+ProyDda!E$25*DdaAñoBase!$H25+ProyDda!E$26*DdaAñoBase!$I25) -> 0 | J28: =+(ProyDda!F$23*DdaAñoBase!$F25+ProyDda!F$24*DdaAñoBase!$G25+ProyDda!F$25*DdaAñoBase!$H25+ProyDda!F$26*DdaAñoBase!$I25) -> 0 | K28: =+(ProyDda!G$23*DdaAñoBase!$F25+ProyDda!G$24*DdaAñoBase!$G25+ProyDda!G$25*DdaAñoBase!$H25+ProyDda!G$26*DdaAñoBase!$I25) -> 0 | S28: =+DdaAñoBase!$I25*ProyDda!C$26 -> 0 | T28: =+DdaAñoBase!$I25*ProyDda!D$26 -> 0 | U28: =+DdaAñoBase!$I25*ProyDda!E$26 -> 0 | V28: =+DdaAñoBase!$I25*ProyDda!F$26 -> 0 | W28: =+DdaAñoBase!$I25*ProyDda!G$26 -> 0 | Y28: 0 | Z28: 0 | AA28: 0 | AB28: 0 | AC28: 0 | AD28: =+SUMPRODUCT(Z28:AC28,PremisaCosto!$F$69:$I$69) -> 0
A29: =+DdaAñoBase!A26 -> MTD_1 Discap. | F29: =+(ProyDda!B$23*DdaAñoBase!$F26+ProyDda!B$24*DdaAñoBase!$G26+ProyDda!B$25*DdaAñoBase!$H26+ProyDda!B$26*DdaAñoBase!$I26) -> 0 | G29: =+(ProyDda!C$23*DdaAñoBase!$F26+ProyDda!C$24*DdaAñoBase!$G26+ProyDda!C$25*DdaAñoBase!$H26+ProyDda!C$26*DdaAñoBase!$I26) -> 0 | H29: =+(ProyDda!D$23*DdaAñoBase!$F26+ProyDda!D$24*DdaAñoBase!$G26+ProyDda!D$25*DdaAñoBase!$H26+ProyDda!D$26*DdaAñoBase!$I26) -> 0 | I29: =+(ProyDda!E$23*DdaAñoBase!$F26+ProyDda!E$24*DdaAñoBase!$G26+ProyDda!E$25*DdaAñoBase!$H26+ProyDda!E$26*DdaAñoBase!$I26) -> 0 | J29: =+(ProyDda!F$23*DdaAñoBase!$F26+ProyDda!F$24*DdaAñoBase!$G26+ProyDda!F$25*DdaAñoBase!$H26+ProyDda!F$26*DdaAñoBase!$I26) -> 0 | K29: =+(ProyDda!G$23*DdaAñoBase!$F26+ProyDda!G$24*DdaAñoBase!$G26+ProyDda!G$25*DdaAñoBase!$H26+ProyDda!G$26*DdaAñoBase!$I26) -> 0 | S29: =+DdaAñoBase!$I26*ProyDda!C$26 -> 0 | T29: =+DdaAñoBase!$I26*ProyDda!D$26 -> 0 | U29: =+DdaAñoBase!$I26*ProyDda!E$26 -> 0 | V29: =+DdaAñoBase!$I26*ProyDda!F$26 -> 0 | W29: =+DdaAñoBase!$I26*ProyDda!G$26 -> 0 | Y29: =+G29-M29-S29 -> 0 | Z29: 0 | AA29: 0 | AB29: 0 | AC29: 0 | AD29: =+SUMPRODUCT(Z29:AC29,PremisaCosto!$F$69:$I$69) -> 0
A30: =+DdaAñoBase!A27 -> MTD_1 Discapacitados 601-más | F30: =+(ProyDda!B$23*DdaAñoBase!$F27+ProyDda!B$24*DdaAñoBase!$G27+ProyDda!B$25*DdaAñoBase!$H27+ProyDda!B$26*DdaAñoBase!$I27) -> 0 | G30: =+(ProyDda!C$23*DdaAñoBase!$F27+ProyDda!C$24*DdaAñoBase!$G27+ProyDda!C$25*DdaAñoBase!$H27+ProyDda!C$26*DdaAñoBase!$I27) -> 0 | H30: =+(ProyDda!D$23*DdaAñoBase!$F27+ProyDda!D$24*DdaAñoBase!$G27+ProyDda!D$25*DdaAñoBase!$H27+ProyDda!D$26*DdaAñoBase!$I27) -> 0 | I30: =+(ProyDda!E$23*DdaAñoBase!$F27+ProyDda!E$24*DdaAñoBase!$G27+ProyDda!E$25*DdaAñoBase!$H27+ProyDda!E$26*DdaAñoBase!$I27) -> 0 | J30: =+(ProyDda!F$23*DdaAñoBase!$F27+ProyDda!F$24*DdaAñoBase!$G27+ProyDda!F$25*DdaAñoBase!$H27+ProyDda!F$26*DdaAñoBase!$I27) -> 0 | K30: =+(ProyDda!G$23*DdaAñoBase!$F27+ProyDda!G$24*DdaAñoBase!$G27+ProyDda!G$25*DdaAñoBase!$H27+ProyDda!G$26*DdaAñoBase!$I27) -> 0 | S30: =+DdaAñoBase!$I27*ProyDda!C$26 -> 0 | T30: =+DdaAñoBase!$I27*ProyDda!D$26 -> 0 | U30: =+DdaAñoBase!$I27*ProyDda!E$26 -> 0 | V30: =+DdaAñoBase!$I27*ProyDda!F$26 -> 0 | W30: =+DdaAñoBase!$I27*ProyDda!G$26 -> 0 | Y30: 0 | Z30: 0 | AA30: 0 | AB30: 0 | AC30: 0 | AD30: =+SUMPRODUCT(Z30:AC30,PremisaCosto!$F$69:$I$69) -> 0
A31: =+DdaAñoBase!A28 -> MTD_1 Cruz Roja | F31: =+(ProyDda!B$23*DdaAñoBase!$F28+ProyDda!B$24*DdaAñoBase!$G28+ProyDda!B$25*DdaAñoBase!$H28+ProyDda!B$26*DdaAñoBase!$I28) -> 0 | G31: =+(ProyDda!C$23*DdaAñoBase!$F28+ProyDda!C$24*DdaAñoBase!$G28+ProyDda!C$25*DdaAñoBase!$H28+ProyDda!C$26*DdaAñoBase!$I28) -> 0 | H31: =+(ProyDda!D$23*DdaAñoBase!$F28+ProyDda!D$24*DdaAñoBase!$G28+ProyDda!D$25*DdaAñoBase!$H28+ProyDda!D$26*DdaAñoBase!$I28) -> 0 | I31: =+(ProyDda!E$23*DdaAñoBase!$F28+ProyDda!E$24*DdaAñoBase!$G28+ProyDda!E$25*DdaAñoBase!$H28+ProyDda!E$26*DdaAñoBase!$I28) -> 0 | J31: =+(ProyDda!F$23*DdaAñoBase!$F28+ProyDda!F$24*DdaAñoBase!$G28+ProyDda!F$25*DdaAñoBase!$H28+ProyDda!F$26*DdaAñoBase!$I28) -> 0 | K31: =+(ProyDda!G$23*DdaAñoBase!$F28+ProyDda!G$24*DdaAñoBase!$G28+ProyDda!G$25*DdaAñoBase!$H28+ProyDda!G$26*DdaAñoBase!$I28) -> 0 | S31: =+DdaAñoBase!$I28*ProyDda!C$26 -> 0 | T31: =+DdaAñoBase!$I28*ProyDda!D$26 -> 0 | U31: =+DdaAñoBase!$I28*ProyDda!E$26 -> 0 | V31: =+DdaAñoBase!$I28*ProyDda!F$26 -> 0 | W31: =+DdaAñoBase!$I28*ProyDda!G$26 -> 0 | Y31: 0 | Z31: 0 | AA31: 0 | AB31: 0 | AC31: 0 | AD31: =+SUMPRODUCT(Z31:AC31,PremisaCosto!$F$69:$I$69) -> 0
A32: =+DdaAñoBase!A29 -> MTD_2 (10,001-30,000) | F32: =+(ProyDda!B$23*DdaAñoBase!$F29+ProyDda!B$24*DdaAñoBase!$G29+ProyDda!B$25*DdaAñoBase!$H29+ProyDda!B$26*DdaAñoBase!$I29) -> 0 | G32: =+(ProyDda!C$23*DdaAñoBase!$F29+ProyDda!C$24*DdaAñoBase!$G29+ProyDda!C$25*DdaAñoBase!$H29+ProyDda!C$26*DdaAñoBase!$I29) -> 0 | H32: =+(ProyDda!D$23*DdaAñoBase!$F29+ProyDda!D$24*DdaAñoBase!$G29+ProyDda!D$25*DdaAñoBase!$H29+ProyDda!D$26*DdaAñoBase!$I29) -> 0 | I32: =+(ProyDda!E$23*DdaAñoBase!$F29+ProyDda!E$24*DdaAñoBase!$G29+ProyDda!E$25*DdaAñoBase!$H29+ProyDda!E$26*DdaAñoBase!$I29) -> 0 | J32: =+(ProyDda!F$23*DdaAñoBase!$F29+ProyDda!F$24*DdaAñoBase!$G29+ProyDda!F$25*DdaAñoBase!$H29+ProyDda!F$26*DdaAñoBase!$I29) -> 0 | K32: =+(ProyDda!G$23*DdaAñoBase!$F29+ProyDda!G$24*DdaAñoBase!$G29+ProyDda!G$25*DdaAñoBase!$H29+ProyDda!G$26*DdaAñoBase!$I29) -> 0 | S32: =+DdaAñoBase!$I29*ProyDda!C$26 -> 0 | T32: =+DdaAñoBase!$I29*ProyDda!D$26 -> 0 | U32: =+DdaAñoBase!$I29*ProyDda!E$26 -> 0 | V32: =+DdaAñoBase!$I29*ProyDda!F$26 -> 0 | W32: =+DdaAñoBase!$I29*ProyDda!G$26 -> 0 | Y32: 0 | Z32: 0 | AA32: 0 | AB32: 0 | AC32: 0 | AD32: =+SUMPRODUCT(Z32:AC32,PremisaCosto!$F$69:$I$69) -> 0
A33: =+DdaAñoBase!A30 -> MTD_2 Regular | F33: =+(ProyDda!B$23*DdaAñoBase!$F30+ProyDda!B$24*DdaAñoBase!$G30+ProyDda!B$25*DdaAñoBase!$H30+ProyDda!B$26*DdaAñoBase!$I30) -> 0 | G33: =+(ProyDda!C$23*DdaAñoBase!$F30+ProyDda!C$24*DdaAñoBase!$G30+ProyDda!C$25*DdaAñoBase!$H30+ProyDda!C$26*DdaAñoBase!$I30) -> 0 | H33: =+(ProyDda!D$23*DdaAñoBase!$F30+ProyDda!D$24*DdaAñoBase!$G30+ProyDda!D$25*DdaAñoBase!$H30+ProyDda!D$26*DdaAñoBase!$I30) -> 0 | I33: =+(ProyDda!E$23*DdaAñoBase!$F30+ProyDda!E$24*DdaAñoBase!$G30+ProyDda!E$25*DdaAñoBase!$H30+ProyDda!E$26*DdaAñoBase!$I30) -> 0 | J33: =+(ProyDda!F$23*DdaAñoBase!$F30+ProyDda!F$24*DdaAñoBase!$G30+ProyDda!F$25*DdaAñoBase!$H30+ProyDda!F$26*DdaAñoBase!$I30) -> 0 | K33: =+(ProyDda!G$23*DdaAñoBase!$F30+ProyDda!G$24*DdaAñoBase!$G30+ProyDda!G$25*DdaAñoBase!$H30+ProyDda!G$26*DdaAñoBase!$I30) -> 0 | S33: =+DdaAñoBase!$I30*ProyDda!C$26 -> 0 | T33: =+DdaAñoBase!$I30*ProyDda!D$26 -> 0 | U33: =+DdaAñoBase!$I30*ProyDda!E$26 -> 0 | V33: =+DdaAñoBase!$I30*ProyDda!F$26 -> 0 | W33: =+DdaAñoBase!$I30*ProyDda!G$26 -> 0 | Y33: 0 | Z33: 0 | AA33: 0 | AB33: 0 | AC33: 0 | AD33: =+SUMPRODUCT(Z33:AC33,PremisaCosto!$F$69:$I$69) -> 0
A34: =+DdaAñoBase!A31 -> MTD_2 Agro | F34: =+(ProyDda!B$23*DdaAñoBase!$F31+ProyDda!B$24*DdaAñoBase!$G31+ProyDda!B$25*DdaAñoBase!$H31+ProyDda!B$26*DdaAñoBase!$I31) -> 0 | G34: =+(ProyDda!C$23*DdaAñoBase!$F31+ProyDda!C$24*DdaAñoBase!$G31+ProyDda!C$25*DdaAñoBase!$H31+ProyDda!C$26*DdaAñoBase!$I31) -> 0 | H34: =+(ProyDda!D$23*DdaAñoBase!$F31+ProyDda!D$24*DdaAñoBase!$G31+ProyDda!D$25*DdaAñoBase!$H31+ProyDda!D$26*DdaAñoBase!$I31) -> 0 | I34: =+(ProyDda!E$23*DdaAñoBase!$F31+ProyDda!E$24*DdaAñoBase!$G31+ProyDda!E$25*DdaAñoBase!$H31+ProyDda!E$26*DdaAñoBase!$I31) -> 0 | J34: =+(ProyDda!F$23*DdaAñoBase!$F31+ProyDda!F$24*DdaAñoBase!$G31+ProyDda!F$25*DdaAñoBase!$H31+ProyDda!F$26*DdaAñoBase!$I31) -> 0 | K34: =+(ProyDda!G$23*DdaAñoBase!$F31+ProyDda!G$24*DdaAñoBase!$G31+ProyDda!G$25*DdaAñoBase!$H31+ProyDda!G$26*DdaAñoBase!$I31) -> 0 | S34: =+DdaAñoBase!$I31*ProyDda!C$26 -> 0 | T34: =+DdaAñoBase!$I31*ProyDda!D$26 -> 0 | U34: =+DdaAñoBase!$I31*ProyDda!E$26 -> 0 | V34: =+DdaAñoBase!$I31*ProyDda!F$26 -> 0 | W34: =+DdaAñoBase!$I31*ProyDda!G$26 -> 0 | Y34: 0 | Z34: 0 | AA34: 0 | AB34: 0 | AC34: 0 | AD34: =+SUMPRODUCT(Z34:AC34,PremisaCosto!$F$69:$I$69) -> 0
A35: =+DdaAñoBase!A32 -> MTD_2 Jub. 1 | F35: =+(ProyDda!B$23*DdaAñoBase!$F32+ProyDda!B$24*DdaAñoBase!$G32+ProyDda!B$25*DdaAñoBase!$H32+ProyDda!B$26*DdaAñoBase!$I32) -> 0 | G35: =+(ProyDda!C$23*DdaAñoBase!$F32+ProyDda!C$24*DdaAñoBase!$G32+ProyDda!C$25*DdaAñoBase!$H32+ProyDda!C$26*DdaAñoBase!$I32) -> 0 | H35: =+(ProyDda!D$23*DdaAñoBase!$F32+ProyDda!D$24*DdaAñoBase!$G32+ProyDda!D$25*DdaAñoBase!$H32+ProyDda!D$26*DdaAñoBase!$I32) -> 0 | I35: =+(ProyDda!E$23*DdaAñoBase!$F32+ProyDda!E$24*DdaAñoBase!$G32+ProyDda!E$25*DdaAñoBase!$H32+ProyDda!E$26*DdaAñoBase!$I32) -> 0 | J35: =+(ProyDda!F$23*DdaAñoBase!$F32+ProyDda!F$24*DdaAñoBase!$G32+ProyDda!F$25*DdaAñoBase!$H32+ProyDda!F$26*DdaAñoBase!$I32) -> 0 | K35: =+(ProyDda!G$23*DdaAñoBase!$F32+ProyDda!G$24*DdaAñoBase!$G32+ProyDda!G$25*DdaAñoBase!$H32+ProyDda!G$26*DdaAñoBase!$I32) -> 0 | S35: =+DdaAñoBase!$I32*ProyDda!C$26 -> 0 | T35: =+DdaAñoBase!$I32*ProyDda!D$26 -> 0 | U35: =+DdaAñoBase!$I32*ProyDda!E$26 -> 0 | V35: =+DdaAñoBase!$I32*ProyDda!F$26 -> 0 | W35: =+DdaAñoBase!$I32*ProyDda!G$26 -> 0 | Y35: 0 | Z35: 0 | AA35: 0 | AB35: 0 | AC35: 0 | AD35: =+SUMPRODUCT(Z35:AC35,PremisaCosto!$F$69:$I$69) -> 0
A36: =+DdaAñoBase!A33 -> MTD_2 Jub. 2 | F36: =+(ProyDda!B$23*DdaAñoBase!$F33+ProyDda!B$24*DdaAñoBase!$G33+ProyDda!B$25*DdaAñoBase!$H33+ProyDda!B$26*DdaAñoBase!$I33) -> 0 | G36: =+(ProyDda!C$23*DdaAñoBase!$F33+ProyDda!C$24*DdaAñoBase!$G33+ProyDda!C$25*DdaAñoBase!$H33+ProyDda!C$26*DdaAñoBase!$I33) -> 0 | H36: =+(ProyDda!D$23*DdaAñoBase!$F33+ProyDda!D$24*DdaAñoBase!$G33+ProyDda!D$25*DdaAñoBase!$H33+ProyDda!D$26*DdaAñoBase!$I33) -> 0 | I36: =+(ProyDda!E$23*DdaAñoBase!$F33+ProyDda!E$24*DdaAñoBase!$G33+ProyDda!E$25*DdaAñoBase!$H33+ProyDda!E$26*DdaAñoBase!$I33) -> 0 | J36: =+(ProyDda!F$23*DdaAñoBase!$F33+ProyDda!F$24*DdaAñoBase!$G33+ProyDda!F$25*DdaAñoBase!$H33+ProyDda!F$26*DdaAñoBase!$I33) -> 0 | K36: =+(ProyDda!G$23*DdaAñoBase!$F33+ProyDda!G$24*DdaAñoBase!$G33+ProyDda!G$25*DdaAñoBase!$H33+ProyDda!G$26*DdaAñoBase!$I33) -> 0 | S36: =+DdaAñoBase!$I33*ProyDda!C$26 -> 0 | T36: =+DdaAñoBase!$I33*ProyDda!D$26 -> 0 | U36: =+DdaAñoBase!$I33*ProyDda!E$26 -> 0 | V36: =+DdaAñoBase!$I33*ProyDda!F$26 -> 0 | W36: =+DdaAñoBase!$I33*ProyDda!G$26 -> 0 | Y36: 0 | Z36: 0 | AA36: 0 | AB36: 0 | AC36: 0 | AD36: =+SUMPRODUCT(Z36:AC36,PremisaCosto!$F$69:$I$69) -> 0
A37: =+DdaAñoBase!A34 -> MTD_2 Político | F37: =+(ProyDda!B$23*DdaAñoBase!$F34+ProyDda!B$24*DdaAñoBase!$G34+ProyDda!B$25*DdaAñoBase!$H34+ProyDda!B$26*DdaAñoBase!$I34) -> 0 | G37: =+(ProyDda!C$23*DdaAñoBase!$F34+ProyDda!C$24*DdaAñoBase!$G34+ProyDda!C$25*DdaAñoBase!$H34+ProyDda!C$26*DdaAñoBase!$I34) -> 0 | H37: =+(ProyDda!D$23*DdaAñoBase!$F34+ProyDda!D$24*DdaAñoBase!$G34+ProyDda!D$25*DdaAñoBase!$H34+ProyDda!D$26*DdaAñoBase!$I34) -> 0 | I37: =+(ProyDda!E$23*DdaAñoBase!$F34+ProyDda!E$24*DdaAñoBase!$G34+ProyDda!E$25*DdaAñoBase!$H34+ProyDda!E$26*DdaAñoBase!$I34) -> 0 | J37: =+(ProyDda!F$23*DdaAñoBase!$F34+ProyDda!F$24*DdaAñoBase!$G34+ProyDda!F$25*DdaAñoBase!$H34+ProyDda!F$26*DdaAñoBase!$I34) -> 0 | K37: =+(ProyDda!G$23*DdaAñoBase!$F34+ProyDda!G$24*DdaAñoBase!$G34+ProyDda!G$25*DdaAñoBase!$H34+ProyDda!G$26*DdaAñoBase!$I34) -> 0 | S37: =+DdaAñoBase!$I34*ProyDda!C$26 -> 0 | T37: =+DdaAñoBase!$I34*ProyDda!D$26 -> 0 | U37: =+DdaAñoBase!$I34*ProyDda!E$26 -> 0 | V37: =+DdaAñoBase!$I34*ProyDda!F$26 -> 0 | W37: =+DdaAñoBase!$I34*ProyDda!G$26 -> 0 | Y37: 0 | Z37: 0 | AA37: 0 | AB37: 0 | AC37: 0 | AD37: =+SUMPRODUCT(Z37:AC37,PremisaCosto!$F$69:$I$69) -> 0
A38: =+DdaAñoBase!A35 -> MTD_2 x1 | F38: =+(ProyDda!B$23*DdaAñoBase!$F35+ProyDda!B$24*DdaAñoBase!$G35+ProyDda!B$25*DdaAñoBase!$H35+ProyDda!B$26*DdaAñoBase!$I35) -> 0 | G38: =+(ProyDda!C$23*DdaAñoBase!$F35+ProyDda!C$24*DdaAñoBase!$G35+ProyDda!C$25*DdaAñoBase!$H35+ProyDda!C$26*DdaAñoBase!$I35) -> 0 | H38: =+(ProyDda!D$23*DdaAñoBase!$F35+ProyDda!D$24*DdaAñoBase!$G35+ProyDda!D$25*DdaAñoBase!$H35+ProyDda!D$26*DdaAñoBase!$I35) -> 0 | I38: =+(ProyDda!E$23*DdaAñoBase!$F35+ProyDda!E$24*DdaAñoBase!$G35+ProyDda!E$25*DdaAñoBase!$H35+ProyDda!E$26*DdaAñoBase!$I35) -> 0 | J38: =+(ProyDda!F$23*DdaAñoBase!$F35+ProyDda!F$24*DdaAñoBase!$G35+ProyDda!F$25*DdaAñoBase!$H35+ProyDda!F$26*DdaAñoBase!$I35) -> 0 | K38: =+(ProyDda!G$23*DdaAñoBase!$F35+ProyDda!G$24*DdaAñoBase!$G35+ProyDda!G$25*DdaAñoBase!$H35+ProyDda!G$26*DdaAñoBase!$I35) -> 0 | S38: =+DdaAñoBase!$I35*ProyDda!C$26 -> 0 | T38: =+DdaAñoBase!$I35*ProyDda!D$26 -> 0 | U38: =+DdaAñoBase!$I35*ProyDda!E$26 -> 0 | V38: =+DdaAñoBase!$I35*ProyDda!F$26 -> 0 | W38: =+DdaAñoBase!$I35*ProyDda!G$26 -> 0 | Y38: 0 | Z38: 0 | AA38: 0 | AB38: 0 | AC38: 0 | AD38: =+SUMPRODUCT(Z38:AC38,PremisaCosto!$F$69:$I$69) -> 0
A39: =+DdaAñoBase!A36 -> MTD_2 x2 | F39: =+(ProyDda!B$23*DdaAñoBase!$F36+ProyDda!B$24*DdaAñoBase!$G36+ProyDda!B$25*DdaAñoBase!$H36+ProyDda!B$26*DdaAñoBase!$I36) -> 0 | G39: =+(ProyDda!C$23*DdaAñoBase!$F36+ProyDda!C$24*DdaAñoBase!$G36+ProyDda!C$25*DdaAñoBase!$H36+ProyDda!C$26*DdaAñoBase!$I36) -> 0 | H39: =+(ProyDda!D$23*DdaAñoBase!$F36+ProyDda!D$24*DdaAñoBase!$G36+ProyDda!D$25*DdaAñoBase!$H36+ProyDda!D$26*DdaAñoBase!$I36) -> 0 | I39: =+(ProyDda!E$23*DdaAñoBase!$F36+ProyDda!E$24*DdaAñoBase!$G36+ProyDda!E$25*DdaAñoBase!$H36+ProyDda!E$26*DdaAñoBase!$I36) -> 0 | J39: =+(ProyDda!F$23*DdaAñoBase!$F36+ProyDda!F$24*DdaAñoBase!$G36+ProyDda!F$25*DdaAñoBase!$H36+ProyDda!F$26*DdaAñoBase!$I36) -> 0 | K39: =+(ProyDda!G$23*DdaAñoBase!$F36+ProyDda!G$24*DdaAñoBase!$G36+ProyDda!G$25*DdaAñoBase!$H36+ProyDda!G$26*DdaAñoBase!$I36) -> 0 | S39: =+DdaAñoBase!$I36*ProyDda!C$26 -> 0 | T39: =+DdaAñoBase!$I36*ProyDda!D$26 -> 0 | U39: =+DdaAñoBase!$I36*ProyDda!E$26 -> 0 | V39: =+DdaAñoBase!$I36*ProyDda!F$26 -> 0 | W39: =+DdaAñoBase!$I36*ProyDda!G$26 -> 0 | Y39: 0 | Z39: 0 | AA39: 0 | AB39: 0 | AC39: 0 | AD39: =+SUMPRODUCT(Z39:AC39,PremisaCosto!$F$69:$I$69) -> 0
A40: =+DdaAñoBase!A37 -> MTD_2 Discap. | F40: =+(ProyDda!B$23*DdaAñoBase!$F37+ProyDda!B$24*DdaAñoBase!$G37+ProyDda!B$25*DdaAñoBase!$H37+ProyDda!B$26*DdaAñoBase!$I37) -> 0 | G40: =+(ProyDda!C$23*DdaAñoBase!$F37+ProyDda!C$24*DdaAñoBase!$G37+ProyDda!C$25*DdaAñoBase!$H37+ProyDda!C$26*DdaAñoBase!$I37) -> 0 | H40: =+(ProyDda!D$23*DdaAñoBase!$F37+ProyDda!D$24*DdaAñoBase!$G37+ProyDda!D$25*DdaAñoBase!$H37+ProyDda!D$26*DdaAñoBase!$I37) -> 0 | I40: =+(ProyDda!E$23*DdaAñoBase!$F37+ProyDda!E$24*DdaAñoBase!$G37+ProyDda!E$25*DdaAñoBase!$H37+ProyDda!E$26*DdaAñoBase!$I37) -> 0 | J40: =+(ProyDda!F$23*DdaAñoBase!$F37+ProyDda!F$24*DdaAñoBase!$G37+ProyDda!F$25*DdaAñoBase!$H37+ProyDda!F$26*DdaAñoBase!$I37) -> 0 | K40: =+(ProyDda!G$23*DdaAñoBase!$F37+ProyDda!G$24*DdaAñoBase!$G37+ProyDda!G$25*DdaAñoBase!$H37+ProyDda!G$26*DdaAñoBase!$I37) -> 0 | S40: =+DdaAñoBase!$I37*ProyDda!C$26 -> 0 | T40: =+DdaAñoBase!$I37*ProyDda!D$26 -> 0 | U40: =+DdaAñoBase!$I37*ProyDda!E$26 -> 0 | V40: =+DdaAñoBase!$I37*ProyDda!F$26 -> 0 | W40: =+DdaAñoBase!$I37*ProyDda!G$26 -> 0 | Y40: 0 | Z40: 0 | AA40: 0 | AB40: 0 | AC40: 0 | AD40: =+SUMPRODUCT(Z40:AC40,PremisaCosto!$F$69:$I$69) -> 0
A41: =+DdaAñoBase!A38 -> MTD_2 Discapacitados 601-más | F41: =+(ProyDda!B$23*DdaAñoBase!$F38+ProyDda!B$24*DdaAñoBase!$G38+ProyDda!B$25*DdaAñoBase!$H38+ProyDda!B$26*DdaAñoBase!$I38) -> 0 | G41: =+(ProyDda!C$23*DdaAñoBase!$F38+ProyDda!C$24*DdaAñoBase!$G38+ProyDda!C$25*DdaAñoBase!$H38+ProyDda!C$26*DdaAñoBase!$I38) -> 0 | H41: =+(ProyDda!D$23*DdaAñoBase!$F38+ProyDda!D$24*DdaAñoBase!$G38+ProyDda!D$25*DdaAñoBase!$H38+ProyDda!D$26*DdaAñoBase!$I38) -> 0 | I41: =+(ProyDda!E$23*DdaAñoBase!$F38+ProyDda!E$24*DdaAñoBase!$G38+ProyDda!E$25*DdaAñoBase!$H38+ProyDda!E$26*DdaAñoBase!$I38) -> 0 | J41: =+(ProyDda!F$23*DdaAñoBase!$F38+ProyDda!F$24*DdaAñoBase!$G38+ProyDda!F$25*DdaAñoBase!$H38+ProyDda!F$26*DdaAñoBase!$I38) -> 0 | K41: =+(ProyDda!G$23*DdaAñoBase!$F38+ProyDda!G$24*DdaAñoBase!$G38+ProyDda!G$25*DdaAñoBase!$H38+ProyDda!G$26*DdaAñoBase!$I38) -> 0 | S41: =+DdaAñoBase!$I38*ProyDda!C$26 -> 0 | T41: =+DdaAñoBase!$I38*ProyDda!D$26 -> 0 | U41: =+DdaAñoBase!$I38*ProyDda!E$26 -> 0 | V41: =+DdaAñoBase!$I38*ProyDda!F$26 -> 0 | W41: =+DdaAñoBase!$I38*ProyDda!G$26 -> 0 | Y41: 0 | Z41: 0 | AA41: 0 | AB41: 0 | AC41: 0 | AD41: =+SUMPRODUCT(Z41:AC41,PremisaCosto!$F$69:$I$69) -> 0
A42: =+DdaAñoBase!A39 -> MTD_2 Cruz Roja | F42: =+(ProyDda!B$23*DdaAñoBase!$F39+ProyDda!B$24*DdaAñoBase!$G39+ProyDda!B$25*DdaAñoBase!$H39+ProyDda!B$26*DdaAñoBase!$I39) -> 0 | G42: =+(ProyDda!C$23*DdaAñoBase!$F39+ProyDda!C$24*DdaAñoBase!$G39+ProyDda!C$25*DdaAñoBase!$H39+ProyDda!C$26*DdaAñoBase!$I39) -> 0 | H42: =+(ProyDda!D$23*DdaAñoBase!$F39+ProyDda!D$24*DdaAñoBase!$G39+ProyDda!D$25*DdaAñoBase!$H39+ProyDda!D$26*DdaAñoBase!$I39) -> 0 | I42: =+(ProyDda!E$23*DdaAñoBase!$F39+ProyDda!E$24*DdaAñoBase!$G39+ProyDda!E$25*DdaAñoBase!$H39+ProyDda!E$26*DdaAñoBase!$I39) -> 0 | J42: =+(ProyDda!F$23*DdaAñoBase!$F39+ProyDda!F$24*DdaAñoBase!$G39+ProyDda!F$25*DdaAñoBase!$H39+ProyDda!F$26*DdaAñoBase!$I39) -> 0 | K42: =+(ProyDda!G$23*DdaAñoBase!$F39+ProyDda!G$24*DdaAñoBase!$G39+ProyDda!G$25*DdaAñoBase!$H39+ProyDda!G$26*DdaAñoBase!$I39) -> 0 | S42: =+DdaAñoBase!$I39*ProyDda!C$26 -> 0 | T42: =+DdaAñoBase!$I39*ProyDda!D$26 -> 0 | U42: =+DdaAñoBase!$I39*ProyDda!E$26 -> 0 | V42: =+DdaAñoBase!$I39*ProyDda!F$26 -> 0 | W42: =+DdaAñoBase!$I39*ProyDda!G$26 -> 0 | Y42: 0 | Z42: 0 | AA42: 0 | AB42: 0 | AC42: 0 | AD42: =+SUMPRODUCT(Z42:AC42,PremisaCosto!$F$69:$I$69) -> 0
A43: =+DdaAñoBase!A40 -> MTD_3 (30,001-50,000) | F43: =+(ProyDda!B$23*DdaAñoBase!$F40+ProyDda!B$24*DdaAñoBase!$G40+ProyDda!B$25*DdaAñoBase!$H40+ProyDda!B$26*DdaAñoBase!$I40) -> 0 | G43: =+(ProyDda!C$23*DdaAñoBase!$F40+ProyDda!C$24*DdaAñoBase!$G40+ProyDda!C$25*DdaAñoBase!$H40+ProyDda!C$26*DdaAñoBase!$I40) -> 0 | H43: =+(ProyDda!D$23*DdaAñoBase!$F40+ProyDda!D$24*DdaAñoBase!$G40+ProyDda!D$25*DdaAñoBase!$H40+ProyDda!D$26*DdaAñoBase!$I40) -> 0 | I43: =+(ProyDda!E$23*DdaAñoBase!$F40+ProyDda!E$24*DdaAñoBase!$G40+ProyDda!E$25*DdaAñoBase!$H40+ProyDda!E$26*DdaAñoBase!$I40) -> 0 | J43: =+(ProyDda!F$23*DdaAñoBase!$F40+ProyDda!F$24*DdaAñoBase!$G40+ProyDda!F$25*DdaAñoBase!$H40+ProyDda!F$26*DdaAñoBase!$I40) -> 0 | K43: =+(ProyDda!G$23*DdaAñoBase!$F40+ProyDda!G$24*DdaAñoBase!$G40+ProyDda!G$25*DdaAñoBase!$H40+ProyDda!G$26*DdaAñoBase!$I40) -> 0 | S43: =+DdaAñoBase!$I40*ProyDda!C$26 -> 0 | T43: =+DdaAñoBase!$I40*ProyDda!D$26 -> 0 | U43: =+DdaAñoBase!$I40*ProyDda!E$26 -> 0 | V43: =+DdaAñoBase!$I40*ProyDda!F$26 -> 0 | W43: =+DdaAñoBase!$I40*ProyDda!G$26 -> 0 | Y43: 0 | Z43: 0 | AA43: 0 | AB43: 0 | AC43: 0 | AD43: =+SUMPRODUCT(Z43:AC43,PremisaCosto!$F$69:$I$69) -> 0
A44: =+DdaAñoBase!A41 -> MTD_3 Regular | F44: =+(ProyDda!B$23*DdaAñoBase!$F41+ProyDda!B$24*DdaAñoBase!$G41+ProyDda!B$25*DdaAñoBase!$H41+ProyDda!B$26*DdaAñoBase!$I41) -> 0 | G44: =+(ProyDda!C$23*DdaAñoBase!$F41+ProyDda!C$24*DdaAñoBase!$G41+ProyDda!C$25*DdaAñoBase!$H41+ProyDda!C$26*DdaAñoBase!$I41) -> 0 | H44: =+(ProyDda!D$23*DdaAñoBase!$F41+ProyDda!D$24*DdaAñoBase!$G41+ProyDda!D$25*DdaAñoBase!$H41+ProyDda!D$26*DdaAñoBase!$I41) -> 0 | I44: =+(ProyDda!E$23*DdaAñoBase!$F41+ProyDda!E$24*DdaAñoBase!$G41+ProyDda!E$25*DdaAñoBase!$H41+ProyDda!E$26*DdaAñoBase!$I41) -> 0 | J44: =+(ProyDda!F$23*DdaAñoBase!$F41+ProyDda!F$24*DdaAñoBase!$G41+ProyDda!F$25*DdaAñoBase!$H41+ProyDda!F$26*DdaAñoBase!$I41) -> 0 | K44: =+(ProyDda!G$23*DdaAñoBase!$F41+ProyDda!G$24*DdaAñoBase!$G41+ProyDda!G$25*DdaAñoBase!$H41+ProyDda!G$26*DdaAñoBase!$I41) -> 0 | S44: =+DdaAñoBase!$I41*ProyDda!C$26 -> 0 | T44: =+DdaAñoBase!$I41*ProyDda!D$26 -> 0 | U44: =+DdaAñoBase!$I41*ProyDda!E$26 -> 0 | V44: =+DdaAñoBase!$I41*ProyDda!F$26 -> 0 | W44: =+DdaAñoBase!$I41*ProyDda!G$26 -> 0 | Y44: 0 | Z44: 0 | AA44: 0 | AB44: 0 | AC44: 0 | AD44: =+SUMPRODUCT(Z44:AC44,PremisaCosto!$F$69:$I$69) -> 0
A45: =+DdaAñoBase!A42 -> MTD_3 Agro | F45: =+(ProyDda!B$23*DdaAñoBase!$F42+ProyDda!B$24*DdaAñoBase!$G42+ProyDda!B$25*DdaAñoBase!$H42+ProyDda!B$26*DdaAñoBase!$I42) -> 0 | G45: =+(ProyDda!C$23*DdaAñoBase!$F42+ProyDda!C$24*DdaAñoBase!$G42+ProyDda!C$25*DdaAñoBase!$H42+ProyDda!C$26*DdaAñoBase!$I42) -> 0 | H45: =+(ProyDda!D$23*DdaAñoBase!$F42+ProyDda!D$24*DdaAñoBase!$G42+ProyDda!D$25*DdaAñoBase!$H42+ProyDda!D$26*DdaAñoBase!$I42) -> 0 | I45: =+(ProyDda!E$23*DdaAñoBase!$F42+ProyDda!E$24*DdaAñoBase!$G42+ProyDda!E$25*DdaAñoBase!$H42+ProyDda!E$26*DdaAñoBase!$I42) -> 0 | J45: =+(ProyDda!F$23*DdaAñoBase!$F42+ProyDda!F$24*DdaAñoBase!$G42+ProyDda!F$25*DdaAñoBase!$H42+ProyDda!F$26*DdaAñoBase!$I42) -> 0 | K45: =+(ProyDda!G$23*DdaAñoBase!$F42+ProyDda!G$24*DdaAñoBase!$G42+ProyDda!G$25*DdaAñoBase!$H42+ProyDda!G$26*DdaAñoBase!$I42) -> 0 | S45: =+DdaAñoBase!$I42*ProyDda!C$26 -> 0 | T45: =+DdaAñoBase!$I42*ProyDda!D$26 -> 0 | U45: =+DdaAñoBase!$I42*ProyDda!E$26 -> 0 | V45: =+DdaAñoBase!$I42*ProyDda!F$26 -> 0 | W45: =+DdaAñoBase!$I42*ProyDda!G$26 -> 0 | Y45: 0 | Z45: 0 | AA45: 0 | AB45: 0 | AC45: 0 | AD45: =+SUMPRODUCT(Z45:AC45,PremisaCosto!$F$69:$I$69) -> 0
A46: =+DdaAñoBase!A43 -> MTD_3 Jub. 1 | F46: =+(ProyDda!B$23*DdaAñoBase!$F43+ProyDda!B$24*DdaAñoBase!$G43+ProyDda!B$25*DdaAñoBase!$H43+ProyDda!B$26*DdaAñoBase!$I43) -> 0 | G46: =+(ProyDda!C$23*DdaAñoBase!$F43+ProyDda!C$24*DdaAñoBase!$G43+ProyDda!C$25*DdaAñoBase!$H43+ProyDda!C$26*DdaAñoBase!$I43) -> 0 | H46: =+(ProyDda!D$23*DdaAñoBase!$F43+ProyDda!D$24*DdaAñoBase!$G43+ProyDda!D$25*DdaAñoBase!$H43+ProyDda!D$26*DdaAñoBase!$I43) -> 0 | I46: =+(ProyDda!E$23*DdaAñoBase!$F43+ProyDda!E$24*DdaAñoBase!$G43+ProyDda!E$25*DdaAñoBase!$H43+ProyDda!E$26*DdaAñoBase!$I43) -> 0 | J46: =+(ProyDda!F$23*DdaAñoBase!$F43+ProyDda!F$24*DdaAñoBase!$G43+ProyDda!F$25*DdaAñoBase!$H43+ProyDda!F$26*DdaAñoBase!$I43) -> 0 | K46: =+(ProyDda!G$23*DdaAñoBase!$F43+ProyDda!G$24*DdaAñoBase!$G43+ProyDda!G$25*DdaAñoBase!$H43+ProyDda!G$26*DdaAñoBase!$I43) -> 0 | S46: =+DdaAñoBase!$I43*ProyDda!C$26 -> 0 | T46: =+DdaAñoBase!$I43*ProyDda!D$26 -> 0 | U46: =+DdaAñoBase!$I43*ProyDda!E$26 -> 0 | V46: =+DdaAñoBase!$I43*ProyDda!F$26 -> 0 | W46: =+DdaAñoBase!$I43*ProyDda!G$26 -> 0 | Y46: 0 | Z46: 0 | AA46: 0 | AB46: 0 | AC46: 0 | AD46: =+SUMPRODUCT(Z46:AC46,PremisaCosto!$F$69:$I$69) -> 0
A47: =+DdaAñoBase!A44 -> MTD_3 Jub. 2 | F47: =+(ProyDda!B$23*DdaAñoBase!$F44+ProyDda!B$24*DdaAñoBase!$G44+ProyDda!B$25*DdaAñoBase!$H44+ProyDda!B$26*DdaAñoBase!$I44) -> 0 | G47: =+(ProyDda!C$23*DdaAñoBase!$F44+ProyDda!C$24*DdaAñoBase!$G44+ProyDda!C$25*DdaAñoBase!$H44+ProyDda!C$26*DdaAñoBase!$I44) -> 0 | H47: =+(ProyDda!D$23*DdaAñoBase!$F44+ProyDda!D$24*DdaAñoBase!$G44+ProyDda!D$25*DdaAñoBase!$H44+ProyDda!D$26*DdaAñoBase!$I44) -> 0 | I47: =+(ProyDda!E$23*DdaAñoBase!$F44+ProyDda!E$24*DdaAñoBase!$G44+ProyDda!E$25*DdaAñoBase!$H44+ProyDda!E$26*DdaAñoBase!$I44) -> 0 | J47: =+(ProyDda!F$23*DdaAñoBase!$F44+ProyDda!F$24*DdaAñoBase!$G44+ProyDda!F$25*DdaAñoBase!$H44+ProyDda!F$26*DdaAñoBase!$I44) -> 0 | K47: =+(ProyDda!G$23*DdaAñoBase!$F44+ProyDda!G$24*DdaAñoBase!$G44+ProyDda!G$25*DdaAñoBase!$H44+ProyDda!G$26*DdaAñoBase!$I44) -> 0 | S47: =+DdaAñoBase!$I44*ProyDda!C$26 -> 0 | T47: =+DdaAñoBase!$I44*ProyDda!D$26 -> 0 | U47: =+DdaAñoBase!$I44*ProyDda!E$26 -> 0 | V47: =+DdaAñoBase!$I44*ProyDda!F$26 -> 0 | W47: =+DdaAñoBase!$I44*ProyDda!G$26 -> 0 | Y47: 0 | Z47: 0 | AA47: 0 | AB47: 0 | AC47: 0 | AD47: =+SUMPRODUCT(Z47:AC47,PremisaCosto!$F$69:$I$69) -> 0
A48: =+DdaAñoBase!A45 -> MTD_3 Político | F48: =+(ProyDda!B$23*DdaAñoBase!$F45+ProyDda!B$24*DdaAñoBase!$G45+ProyDda!B$25*DdaAñoBase!$H45+ProyDda!B$26*DdaAñoBase!$I45) -> 0 | G48: =+(ProyDda!C$23*DdaAñoBase!$F45+ProyDda!C$24*DdaAñoBase!$G45+ProyDda!C$25*DdaAñoBase!$H45+ProyDda!C$26*DdaAñoBase!$I45) -> 0 | H48: =+(ProyDda!D$23*DdaAñoBase!$F45+ProyDda!D$24*DdaAñoBase!$G45+ProyDda!D$25*DdaAñoBase!$H45+ProyDda!D$26*DdaAñoBase!$I45) -> 0 | I48: =+(ProyDda!E$23*DdaAñoBase!$F45+ProyDda!E$24*DdaAñoBase!$G45+ProyDda!E$25*DdaAñoBase!$H45+ProyDda!E$26*DdaAñoBase!$I45) -> 0 | J48: =+(ProyDda!F$23*DdaAñoBase!$F45+ProyDda!F$24*DdaAñoBase!$G45+ProyDda!F$25*DdaAñoBase!$H45+ProyDda!F$26*DdaAñoBase!$I45) -> 0 | K48: =+(ProyDda!G$23*DdaAñoBase!$F45+ProyDda!G$24*DdaAñoBase!$G45+ProyDda!G$25*DdaAñoBase!$H45+ProyDda!G$26*DdaAñoBase!$I45) -> 0 | S48: =+DdaAñoBase!$I45*ProyDda!C$26 -> 0 | T48: =+DdaAñoBase!$I45*ProyDda!D$26 -> 0 | U48: =+DdaAñoBase!$I45*ProyDda!E$26 -> 0 | V48: =+DdaAñoBase!$I45*ProyDda!F$26 -> 0 | W48: =+DdaAñoBase!$I45*ProyDda!G$26 -> 0 | Y48: 0 | Z48: 0 | AA48: 0 | AB48: 0 | AC48: 0 | AD48: =+SUMPRODUCT(Z48:AC48,PremisaCosto!$F$69:$I$69) -> 0
A49: =+DdaAñoBase!A46 -> MTD_3 x1 | F49: =+(ProyDda!B$23*DdaAñoBase!$F46+ProyDda!B$24*DdaAñoBase!$G46+ProyDda!B$25*DdaAñoBase!$H46+ProyDda!B$26*DdaAñoBase!$I46) -> 0 | G49: =+(ProyDda!C$23*DdaAñoBase!$F46+ProyDda!C$24*DdaAñoBase!$G46+ProyDda!C$25*DdaAñoBase!$H46+ProyDda!C$26*DdaAñoBase!$I46) -> 0 | H49: =+(ProyDda!D$23*DdaAñoBase!$F46+ProyDda!D$24*DdaAñoBase!$G46+ProyDda!D$25*DdaAñoBase!$H46+ProyDda!D$26*DdaAñoBase!$I46) -> 0 | I49: =+(ProyDda!E$23*DdaAñoBase!$F46+ProyDda!E$24*DdaAñoBase!$G46+ProyDda!E$25*DdaAñoBase!$H46+ProyDda!E$26*DdaAñoBase!$I46) -> 0 | J49: =+(ProyDda!F$23*DdaAñoBase!$F46+ProyDda!F$24*DdaAñoBase!$G46+ProyDda!F$25*DdaAñoBase!$H46+ProyDda!F$26*DdaAñoBase!$I46) -> 0 | K49: =+(ProyDda!G$23*DdaAñoBase!$F46+ProyDda!G$24*DdaAñoBase!$G46+ProyDda!G$25*DdaAñoBase!$H46+ProyDda!G$26*DdaAñoBase!$I46) -> 0 | S49: =+DdaAñoBase!$I46*ProyDda!C$26 -> 0 | T49: =+DdaAñoBase!$I46*ProyDda!D$26 -> 0 | U49: =+DdaAñoBase!$I46*ProyDda!E$26 -> 0 | V49: =+DdaAñoBase!$I46*ProyDda!F$26 -> 0 | W49: =+DdaAñoBase!$I46*ProyDda!G$26 -> 0 | Y49: 0 | Z49: 0 | AA49: 0 | AB49: 0 | AC49: 0 | AD49: =+SUMPRODUCT(Z49:AC49,PremisaCosto!$F$69:$I$69) -> 0
A50: =+DdaAñoBase!A47 -> MTD_3 x2 | F50: =+(ProyDda!B$23*DdaAñoBase!$F47+ProyDda!B$24*DdaAñoBase!$G47+ProyDda!B$25*DdaAñoBase!$H47+ProyDda!B$26*DdaAñoBase!$I47) -> 0 | G50: =+(ProyDda!C$23*DdaAñoBase!$F47+ProyDda!C$24*DdaAñoBase!$G47+ProyDda!C$25*DdaAñoBase!$H47+ProyDda!C$26*DdaAñoBase!$I47) -> 0 | H50: =+(ProyDda!D$23*DdaAñoBase!$F47+ProyDda!D$24*DdaAñoBase!$G47+ProyDda!D$25*DdaAñoBase!$H47+ProyDda!D$26*DdaAñoBase!$I47) -> 0 | I50: =+(ProyDda!E$23*DdaAñoBase!$F47+ProyDda!E$24*DdaAñoBase!$G47+ProyDda!E$25*DdaAñoBase!$H47+ProyDda!E$26*DdaAñoBase!$I47) -> 0 | J50: =+(ProyDda!F$23*DdaAñoBase!$F47+ProyDda!F$24*DdaAñoBase!$G47+ProyDda!F$25*DdaAñoBase!$H47+ProyDda!F$26*DdaAñoBase!$I47) -> 0 | K50: =+(ProyDda!G$23*DdaAñoBase!$F47+ProyDda!G$24*DdaAñoBase!$G47+ProyDda!G$25*DdaAñoBase!$H47+ProyDda!G$26*DdaAñoBase!$I47) -> 0 | S50: =+DdaAñoBase!$I47*ProyDda!C$26 -> 0 | T50: =+DdaAñoBase!$I47*ProyDda!D$26 -> 0 | U50: =+DdaAñoBase!$I47*ProyDda!E$26 -> 0 | V50: =+DdaAñoBase!$I47*ProyDda!F$26 -> 0 | W50: =+DdaAñoBase!$I47*ProyDda!G$26 -> 0 | Y50: 0 | Z50: 0 | AA50: 0 | AB50: 0 | AC50: 0 | AD50: =+SUMPRODUCT(Z50:AC50,PremisaCosto!$F$69:$I$69) -> 0
A51: =+DdaAñoBase!A48 -> MTD_3 Discap. | F51: =+(ProyDda!B$23*DdaAñoBase!$F48+ProyDda!B$24*DdaAñoBase!$G48+ProyDda!B$25*DdaAñoBase!$H48+ProyDda!B$26*DdaAñoBase!$I48) -> 0 | G51: =+(ProyDda!C$23*DdaAñoBase!$F48+ProyDda!C$24*DdaAñoBase!$G48+ProyDda!C$25*DdaAñoBase!$H48+ProyDda!C$26*DdaAñoBase!$I48) -> 0 | H51: =+(ProyDda!D$23*DdaAñoBase!$F48+ProyDda!D$24*DdaAñoBase!$G48+ProyDda!D$25*DdaAñoBase!$H48+ProyDda!D$26*DdaAñoBase!$I48) -> 0 | I51: =+(ProyDda!E$23*DdaAñoBase!$F48+ProyDda!E$24*DdaAñoBase!$G48+ProyDda!E$25*DdaAñoBase!$H48+ProyDda!E$26*DdaAñoBase!$I48) -> 0 | J51: =+(ProyDda!F$23*DdaAñoBase!$F48+ProyDda!F$24*DdaAñoBase!$G48+ProyDda!F$25*DdaAñoBase!$H48+ProyDda!F$26*DdaAñoBase!$I48) -> 0 | K51: =+(ProyDda!G$23*DdaAñoBase!$F48+ProyDda!G$24*DdaAñoBase!$G48+ProyDda!G$25*DdaAñoBase!$H48+ProyDda!G$26*DdaAñoBase!$I48) -> 0 | S51: =+DdaAñoBase!$I48*ProyDda!C$26 -> 0 | T51: =+DdaAñoBase!$I48*ProyDda!D$26 -> 0 | U51: =+DdaAñoBase!$I48*ProyDda!E$26 -> 0 | V51: =+DdaAñoBase!$I48*ProyDda!F$26 -> 0 | W51: =+DdaAñoBase!$I48*ProyDda!G$26 -> 0 | Y51: 0 | Z51: 0 | AA51: 0 | AB51: 0 | AC51: 0 | AD51: =+SUMPRODUCT(Z51:AC51,PremisaCosto!$F$69:$I$69) -> 0
A52: =+DdaAñoBase!A49 -> MTD_3 Discapacitados 601-más | F52: =+(ProyDda!B$23*DdaAñoBase!$F49+ProyDda!B$24*DdaAñoBase!$G49+ProyDda!B$25*DdaAñoBase!$H49+ProyDda!B$26*DdaAñoBase!$I49) -> 0 | G52: =+(ProyDda!C$23*DdaAñoBase!$F49+ProyDda!C$24*DdaAñoBase!$G49+ProyDda!C$25*DdaAñoBase!$H49+ProyDda!C$26*DdaAñoBase!$I49) -> 0 | H52: =+(ProyDda!D$23*DdaAñoBase!$F49+ProyDda!D$24*DdaAñoBase!$G49+ProyDda!D$25*DdaAñoBase!$H49+ProyDda!D$26*DdaAñoBase!$I49) -> 0 | I52: =+(ProyDda!E$23*DdaAñoBase!$F49+ProyDda!E$24*DdaAñoBase!$G49+ProyDda!E$25*DdaAñoBase!$H49+ProyDda!E$26*DdaAñoBase!$I49) -> 0 | J52: =+(ProyDda!F$23*DdaAñoBase!$F49+ProyDda!F$24*DdaAñoBase!$G49+ProyDda!F$25*DdaAñoBase!$H49+ProyDda!F$26*DdaAñoBase!$I49) -> 0 | K52: =+(ProyDda!G$23*DdaAñoBase!$F49+ProyDda!G$24*DdaAñoBase!$G49+ProyDda!G$25*DdaAñoBase!$H49+ProyDda!G$26*DdaAñoBase!$I49) -> 0 | S52: =+DdaAñoBase!$I49*ProyDda!C$26 -> 0 | T52: =+DdaAñoBase!$I49*ProyDda!D$26 -> 0 | U52: =+DdaAñoBase!$I49*ProyDda!E$26 -> 0 | V52: =+DdaAñoBase!$I49*ProyDda!F$26 -> 0 | W52: =+DdaAñoBase!$I49*ProyDda!G$26 -> 0 | Y52: 0 | Z52: 0 | AA52: 0 | AB52: 0 | AC52: 0 | AD52: =+SUMPRODUCT(Z52:AC52,PremisaCosto!$F$69:$I$69) -> 0
A53: =+DdaAñoBase!A50 -> MTD_3 Cruz Roja | F53: =+(ProyDda!B$23*DdaAñoBase!$F50+ProyDda!B$24*DdaAñoBase!$G50+ProyDda!B$25*DdaAñoBase!$H50+ProyDda!B$26*DdaAñoBase!$I50) -> 0 | G53: =+(ProyDda!C$23*DdaAñoBase!$F50+ProyDda!C$24*DdaAñoBase!$G50+ProyDda!C$25*DdaAñoBase!$H50+ProyDda!C$26*DdaAñoBase!$I50) -> 0 | H53: =+(ProyDda!D$23*DdaAñoBase!$F50+ProyDda!D$24*DdaAñoBase!$G50+ProyDda!D$25*DdaAñoBase!$H50+ProyDda!D$26*DdaAñoBase!$I50) -> 0 | I53: =+(ProyDda!E$23*DdaAñoBase!$F50+ProyDda!E$24*DdaAñoBase!$G50+ProyDda!E$25*DdaAñoBase!$H50+ProyDda!E$26*DdaAñoBase!$I50) -> 0 | J53: =+(ProyDda!F$23*DdaAñoBase!$F50+ProyDda!F$24*DdaAñoBase!$G50+ProyDda!F$25*DdaAñoBase!$H50+ProyDda!F$26*DdaAñoBase!$I50) -> 0 | K53: =+(ProyDda!G$23*DdaAñoBase!$F50+ProyDda!G$24*DdaAñoBase!$G50+ProyDda!G$25*DdaAñoBase!$H50+ProyDda!G$26*DdaAñoBase!$I50) -> 0 | S53: =+DdaAñoBase!$I50*ProyDda!C$26 -> 0 | T53: =+DdaAñoBase!$I50*ProyDda!D$26 -> 0 | U53: =+DdaAñoBase!$I50*ProyDda!E$26 -> 0 | V53: =+DdaAñoBase!$I50*ProyDda!F$26 -> 0 | W53: =+DdaAñoBase!$I50*ProyDda!G$26 -> 0 | Y53: 0 | Z53: 0 | AA53: 0 | AB53: 0 | AC53: 0 | AD53: =+SUMPRODUCT(Z53:AC53,PremisaCosto!$F$69:$I$69) -> 0
A54: =+DdaAñoBase!A51 -> MTD_4 (50,001-más) | F54: =+(ProyDda!B$23*DdaAñoBase!$F51+ProyDda!B$24*DdaAñoBase!$G51+ProyDda!B$25*DdaAñoBase!$H51+ProyDda!B$26*DdaAñoBase!$I51) -> 0 | G54: =+(ProyDda!C$23*DdaAñoBase!$F51+ProyDda!C$24*DdaAñoBase!$G51+ProyDda!C$25*DdaAñoBase!$H51+ProyDda!C$26*DdaAñoBase!$I51) -> 0 | H54: =+(ProyDda!D$23*DdaAñoBase!$F51+ProyDda!D$24*DdaAñoBase!$G51+ProyDda!D$25*DdaAñoBase!$H51+ProyDda!D$26*DdaAñoBase!$I51) -> 0 | I54: =+(ProyDda!E$23*DdaAñoBase!$F51+ProyDda!E$24*DdaAñoBase!$G51+ProyDda!E$25*DdaAñoBase!$H51+ProyDda!E$26*DdaAñoBase!$I51) -> 0 | J54: =+(ProyDda!F$23*DdaAñoBase!$F51+ProyDda!F$24*DdaAñoBase!$G51+ProyDda!F$25*DdaAñoBase!$H51+ProyDda!F$26*DdaAñoBase!$I51) -> 0 | K54: =+(ProyDda!G$23*DdaAñoBase!$F51+ProyDda!G$24*DdaAñoBase!$G51+ProyDda!G$25*DdaAñoBase!$H51+ProyDda!G$26*DdaAñoBase!$I51) -> 0 | S54: =+DdaAñoBase!$I51*ProyDda!C$26 -> 0 | T54: =+DdaAñoBase!$I51*ProyDda!D$26 -> 0 | U54: =+DdaAñoBase!$I51*ProyDda!E$26 -> 0 | V54: =+DdaAñoBase!$I51*ProyDda!F$26 -> 0 | W54: =+DdaAñoBase!$I51*ProyDda!G$26 -> 0 | Y54: 0 | Z54: 0 | AA54: 0 | AB54: 0 | AC54: 0 | AD54: =+SUMPRODUCT(Z54:AC54,PremisaCosto!$F$69:$I$69) -> 0
A55: =+DdaAñoBase!A52 -> MTD_4 Regular | F55: =+(ProyDda!B$23*DdaAñoBase!$F52+ProyDda!B$24*DdaAñoBase!$G52+ProyDda!B$25*DdaAñoBase!$H52+ProyDda!B$26*DdaAñoBase!$I52) -> 0 | G55: =+(ProyDda!C$23*DdaAñoBase!$F52+ProyDda!C$24*DdaAñoBase!$G52+ProyDda!C$25*DdaAñoBase!$H52+ProyDda!C$26*DdaAñoBase!$I52) -> 0 | H55: =+(ProyDda!D$23*DdaAñoBase!$F52+ProyDda!D$24*DdaAñoBase!$G52+ProyDda!D$25*DdaAñoBase!$H52+ProyDda!D$26*DdaAñoBase!$I52) -> 0 | I55: =+(ProyDda!E$23*DdaAñoBase!$F52+ProyDda!E$24*DdaAñoBase!$G52+ProyDda!E$25*DdaAñoBase!$H52+ProyDda!E$26*DdaAñoBase!$I52) -> 0 | J55: =+(ProyDda!F$23*DdaAñoBase!$F52+ProyDda!F$24*DdaAñoBase!$G52+ProyDda!F$25*DdaAñoBase!$H52+ProyDda!F$26*DdaAñoBase!$I52) -> 0 | K55: =+(ProyDda!G$23*DdaAñoBase!$F52+ProyDda!G$24*DdaAñoBase!$G52+ProyDda!G$25*DdaAñoBase!$H52+ProyDda!G$26*DdaAñoBase!$I52) -> 0 | S55: =+DdaAñoBase!$I52*ProyDda!C$26 -> 0 | T55: =+DdaAñoBase!$I52*ProyDda!D$26 -> 0 | U55: =+DdaAñoBase!$I52*ProyDda!E$26 -> 0 | V55: =+DdaAñoBase!$I52*ProyDda!F$26 -> 0 | W55: =+DdaAñoBase!$I52*ProyDda!G$26 -> 0 | Y55: 0 | Z55: 0 | AA55: 0 | AB55: 0 | AC55: 0 | AD55: =+SUMPRODUCT(Z55:AC55,PremisaCosto!$F$69:$I$69) -> 0
A56: =+DdaAñoBase!A53 -> MTD_4 Agro | F56: =+(ProyDda!B$23*DdaAñoBase!$F53+ProyDda!B$24*DdaAñoBase!$G53+ProyDda!B$25*DdaAñoBase!$H53+ProyDda!B$26*DdaAñoBase!$I53) -> 0 | G56: =+(ProyDda!C$23*DdaAñoBase!$F53+ProyDda!C$24*DdaAñoBase!$G53+ProyDda!C$25*DdaAñoBase!$H53+ProyDda!C$26*DdaAñoBase!$I53) -> 0 | H56: =+(ProyDda!D$23*DdaAñoBase!$F53+ProyDda!D$24*DdaAñoBase!$G53+ProyDda!D$25*DdaAñoBase!$H53+ProyDda!D$26*DdaAñoBase!$I53) -> 0 | I56: =+(ProyDda!E$23*DdaAñoBase!$F53+ProyDda!E$24*DdaAñoBase!$G53+ProyDda!E$25*DdaAñoBase!$H53+ProyDda!E$26*DdaAñoBase!$I53) -> 0 | J56: =+(ProyDda!F$23*DdaAñoBase!$F53+ProyDda!F$24*DdaAñoBase!$G53+ProyDda!F$25*DdaAñoBase!$H53+ProyDda!F$26*DdaAñoBase!$I53) -> 0 | K56: =+(ProyDda!G$23*DdaAñoBase!$F53+ProyDda!G$24*DdaAñoBase!$G53+ProyDda!G$25*DdaAñoBase!$H53+ProyDda!G$26*DdaAñoBase!$I53) -> 0 | S56: =+DdaAñoBase!$I53*ProyDda!C$26 -> 0 | T56: =+DdaAñoBase!$I53*ProyDda!D$26 -> 0 | U56: =+DdaAñoBase!$I53*ProyDda!E$26 -> 0 | V56: =+DdaAñoBase!$I53*ProyDda!F$26 -> 0 | W56: =+DdaAñoBase!$I53*ProyDda!G$26 -> 0 | Y56: 0 | Z56: 0 | AA56: 0 | AB56: 0 | AC56: 0 | AD56: =+SUMPRODUCT(Z56:AC56,PremisaCosto!$F$69:$I$69) -> 0
A57: =+DdaAñoBase!A54 -> MTD_4 Jub. 1 | F57: =+(ProyDda!B$23*DdaAñoBase!$F54+ProyDda!B$24*DdaAñoBase!$G54+ProyDda!B$25*DdaAñoBase!$H54+ProyDda!B$26*DdaAñoBase!$I54) -> 0 | G57: =+(ProyDda!C$23*DdaAñoBase!$F54+ProyDda!C$24*DdaAñoBase!$G54+ProyDda!C$25*DdaAñoBase!$H54+ProyDda!C$26*DdaAñoBase!$I54) -> 0 | H57: =+(ProyDda!D$23*DdaAñoBase!$F54+ProyDda!D$24*DdaAñoBase!$G54+ProyDda!D$25*DdaAñoBase!$H54+ProyDda!D$26*DdaAñoBase!$I54) -> 0 | I57: =+(ProyDda!E$23*DdaAñoBase!$F54+ProyDda!E$24*DdaAñoBase!$G54+ProyDda!E$25*DdaAñoBase!$H54+ProyDda!E$26*DdaAñoBase!$I54) -> 0 | J57: =+(ProyDda!F$23*DdaAñoBase!$F54+ProyDda!F$24*DdaAñoBase!$G54+ProyDda!F$25*DdaAñoBase!$H54+ProyDda!F$26*DdaAñoBase!$I54) -> 0 | K57: =+(ProyDda!G$23*DdaAñoBase!$F54+ProyDda!G$24*DdaAñoBase!$G54+ProyDda!G$25*DdaAñoBase!$H54+ProyDda!G$26*DdaAñoBase!$I54) -> 0 | S57: =+DdaAñoBase!$I54*ProyDda!C$26 -> 0 | T57: =+DdaAñoBase!$I54*ProyDda!D$26 -> 0 | U57: =+DdaAñoBase!$I54*ProyDda!E$26 -> 0 | V57: =+DdaAñoBase!$I54*ProyDda!F$26 -> 0 | W57: =+DdaAñoBase!$I54*ProyDda!G$26 -> 0 | Y57: 0 | Z57: 0 | AA57: 0 | AB57: 0 | AC57: 0 | AD57: =+SUMPRODUCT(Z57:AC57,PremisaCosto!$F$69:$I$69) -> 0
A58: =+DdaAñoBase!A55 -> MTD_4 Jub. 2 | F58: =+(ProyDda!B$23*DdaAñoBase!$F55+ProyDda!B$24*DdaAñoBase!$G55+ProyDda!B$25*DdaAñoBase!$H55+ProyDda!B$26*DdaAñoBase!$I55) -> 0 | G58: =+(ProyDda!C$23*DdaAñoBase!$F55+ProyDda!C$24*DdaAñoBase!$G55+ProyDda!C$25*DdaAñoBase!$H55+ProyDda!C$26*DdaAñoBase!$I55) -> 0 | H58: =+(ProyDda!D$23*DdaAñoBase!$F55+ProyDda!D$24*DdaAñoBase!$G55+ProyDda!D$25*DdaAñoBase!$H55+ProyDda!D$26*DdaAñoBase!$I55) -> 0 | I58: =+(ProyDda!E$23*DdaAñoBase!$F55+ProyDda!E$24*DdaAñoBase!$G55+ProyDda!E$25*DdaAñoBase!$H55+ProyDda!E$26*DdaAñoBase!$I55) -> 0 | J58: =+(ProyDda!F$23*DdaAñoBase!$F55+ProyDda!F$24*DdaAñoBase!$G55+ProyDda!F$25*DdaAñoBase!$H55+ProyDda!F$26*DdaAñoBase!$I55) -> 0 | K58: =+(ProyDda!G$23*DdaAñoBase!$F55+ProyDda!G$24*DdaAñoBase!$G55+ProyDda!G$25*DdaAñoBase!$H55+ProyDda!G$26*DdaAñoBase!$I55) -> 0 | S58: =+DdaAñoBase!$I55*ProyDda!C$26 -> 0 | T58: =+DdaAñoBase!$I55*ProyDda!D$26 -> 0 | U58: =+DdaAñoBase!$I55*ProyDda!E$26 -> 0 | V58: =+DdaAñoBase!$I55*ProyDda!F$26 -> 0 | W58: =+DdaAñoBase!$I55*ProyDda!G$26 -> 0 | Y58: 0 | Z58: 0 | AA58: 0 | AB58: 0 | AC58: 0 | AD58: =+SUMPRODUCT(Z58:AC58,PremisaCosto!$F$69:$I$69) -> 0
A59: =+DdaAñoBase!A56 -> MTD_4 Político | F59: =+(ProyDda!B$23*DdaAñoBase!$F56+ProyDda!B$24*DdaAñoBase!$G56+ProyDda!B$25*DdaAñoBase!$H56+ProyDda!B$26*DdaAñoBase!$I56) -> 0 | G59: =+(ProyDda!C$23*DdaAñoBase!$F56+ProyDda!C$24*DdaAñoBase!$G56+ProyDda!C$25*DdaAñoBase!$H56+ProyDda!C$26*DdaAñoBase!$I56) -> 0 | H59: =+(ProyDda!D$23*DdaAñoBase!$F56+ProyDda!D$24*DdaAñoBase!$G56+ProyDda!D$25*DdaAñoBase!$H56+ProyDda!D$26*DdaAñoBase!$I56) -> 0 | I59: =+(ProyDda!E$23*DdaAñoBase!$F56+ProyDda!E$24*DdaAñoBase!$G56+ProyDda!E$25*DdaAñoBase!$H56+ProyDda!E$26*DdaAñoBase!$I56) -> 0 | J59: =+(ProyDda!F$23*DdaAñoBase!$F56+ProyDda!F$24*DdaAñoBase!$G56+ProyDda!F$25*DdaAñoBase!$H56+ProyDda!F$26*DdaAñoBase!$I56) -> 0 | K59: =+(ProyDda!G$23*DdaAñoBase!$F56+ProyDda!G$24*DdaAñoBase!$G56+ProyDda!G$25*DdaAñoBase!$H56+ProyDda!G$26*DdaAñoBase!$I56) -> 0 | S59: =+DdaAñoBase!$I56*ProyDda!C$26 -> 0 | T59: =+DdaAñoBase!$I56*ProyDda!D$26 -> 0 | U59: =+DdaAñoBase!$I56*ProyDda!E$26 -> 0 | V59: =+DdaAñoBase!$I56*ProyDda!F$26 -> 0 | W59: =+DdaAñoBase!$I56*ProyDda!G$26 -> 0 | Y59: 0 | Z59: 0 | AA59: 0 | AB59: 0 | AC59: 0 | AD59: =+SUMPRODUCT(Z59:AC59,PremisaCosto!$F$69:$I$69) -> 0
A60: =+DdaAñoBase!A57 -> MTD_4 x1 | F60: =+(ProyDda!B$23*DdaAñoBase!$F57+ProyDda!B$24*DdaAñoBase!$G57+ProyDda!B$25*DdaAñoBase!$H57+ProyDda!B$26*DdaAñoBase!$I57) -> 0 | G60: =+(ProyDda!C$23*DdaAñoBase!$F57+ProyDda!C$24*DdaAñoBase!$G57+ProyDda!C$25*DdaAñoBase!$H57+ProyDda!C$26*DdaAñoBase!$I57) -> 0 | H60: =+(ProyDda!D$23*DdaAñoBase!$F57+ProyDda!D$24*DdaAñoBase!$G57+ProyDda!D$25*DdaAñoBase!$H57+ProyDda!D$26*DdaAñoBase!$I57) -> 0 | I60: =+(ProyDda!E$23*DdaAñoBase!$F57+ProyDda!E$24*DdaAñoBase!$G57+ProyDda!E$25*DdaAñoBase!$H57+ProyDda!E$26*DdaAñoBase!$I57) -> 0 | J60: =+(ProyDda!F$23*DdaAñoBase!$F57+ProyDda!F$24*DdaAñoBase!$G57+ProyDda!F$25*DdaAñoBase!$H57+ProyDda!F$26*DdaAñoBase!$I57) -> 0 | K60: =+(ProyDda!G$23*DdaAñoBase!$F57+ProyDda!G$24*DdaAñoBase!$G57+ProyDda!G$25*DdaAñoBase!$H57+ProyDda!G$26*DdaAñoBase!$I57) -> 0 | S60: =+DdaAñoBase!$I57*ProyDda!C$26 -> 0 | T60: =+DdaAñoBase!$I57*ProyDda!D$26 -> 0 | U60: =+DdaAñoBase!$I57*ProyDda!E$26 -> 0 | V60: =+DdaAñoBase!$I57*ProyDda!F$26 -> 0 | W60: =+DdaAñoBase!$I57*ProyDda!G$26 -> 0 | Y60: 0 | Z60: 0 | AA60: 0 | AB60: 0 | AC60: 0 | AD60: =+SUMPRODUCT(Z60:AC60,PremisaCosto!$F$69:$I$69) -> 0
